Workbook

Sheet ActFasecolda (hidden)
A1: Directorio | B1: C:\Users\juan.soacha\Desktop\Guia_Excel_240.xls
D2: 1

Sheet Guia

Sheet SolCotizacion
A1: Solicitud de Cotización
A3: Acuerdo Marco de Seguros de Vehículos
A5: Información de la Entidad Compradora
A7: Nombre de la Entidad: | G7: DIRECCIÓN NACIONAL DE DERECHO DE AUTOR | J7: NIT: | K7: 800185929-2
A9: Dirección de la Entidad: | G9: CALLE 28 # 13a-15 PISO 17 | J9: Municipio: | K9: bogota
A11: Nombre del Comprador: | G11: GLORIA RAQUEL TRIVIÑO GUZMAN | J11: Teléfono: | K11: 3418177
A13: Correo del comprador: | G13: compras@derechodeautor.gov.co
A15: Fechas estimadas
A17: Fecha creación solicitud cotización: | G17: =TODAY() -> 2016-09-09
A21: Artículos Solicitud de Cotización
F22: Filas a agregar o eliminar:
F23: 2
A25: No. | B25: Placa o sigla | C25: Numero de Motor | D25: Numero de chasis | E25: Tipo de adquisición | F25: Grupo | G25: Tipo de Vehículo | H25: Tienen Código Fasecolda? | I25: Código Fasecolda | J25: Marca | K25: Línea | L25: Modelo | M25: Referencia 1 Fasecolda | N25: Referencia 2 Fasecolda | O25: Referencia 3 Fasecolda | P25: Color | Q25: Cilindraje | R25: Tipo de Precio Vehiculo | S25: Precio del Vehículo | T25: Precio de Accesorios | U25: Total Precio Vehículo | V25: Servicio | W25: Deducible o Franquicia | X25: Valor Deducible o Franquicia | Y25: Cobertura Amparo de Responsabilidad Civil (PRC) | Z25: Cobertura Amparo por daño total (PDT) | AA25: Cobertura Amparo por daño parcial (PDP) | AB25: Cobertura Amparo por hurto total (PHT) | AC25: Cobertura Amparo por hurto parcial (PHP) | AD25: Asistencia en viaje (PAV1) | AE25: Transporte de mercancías azarosas, inflamables o explosivas (PAV2) | AF25: Daños Mutuos (PAV3) | AG25: Ampliación del radio de operaciones a país de pacto Andino (PAT1) | AH25: Transporte de mercancías ilícitas (PAT2) | AI25: Aclaraciones de la Póliza | AJ25: Fecha Inicio Póliza | AK25: Fecha Vencimiento Póliza | AL25: Vigencia de la Póliza en días | AM25: Información Adicional del Vehículo
A26: 1 | B26: BLR 853 | C26: B3525756 | D26: KJDAJP17564 | E26: Propio | F26: Inspección permitida | G26: Automóvil | H26: Si | I26: 3001049 | J26: =VLOOKUP($I26,Fasecolda!$A$2:$BW$11651,3,0) -> FORD | K26: GLX | L26: 1995 | M26: =VLOOKUP($I26,Fasecolda!$A$2:$BW$11651,6,0) -> FESTIVA | N26: =VLOOKUP($I26,Fasecolda!$A$2:$BW$11651,7,0) -> GLX | O26: =VLOOKUP($I26,Fasecolda!$A$2:$BW$11651,8,0) -> MT 1300CC 4P | P26: ROJO | Q26: =VLOOKUP($I26,Fasecolda!$A$2:$BW$11651,64,0) -> 1300 | R26: Valor Fasecolda | S26: =VLOOKUP($I26,Fasecolda!$A$2:$BW$11651,MATCH(L26,Fasecolda!$A$1:$BG$1,0),0)*1000 -> 4800000 | T26: =SUMIF(Accesorios!$B:$B,$B26,Accesorios!$D:$D) -> 0 | U26: =S26+T26 -> 4800000 | V26: Particular | W26: Ninguno | Y26: 1000000000 | Z26: Si | AA26: Si | AB26: Si | AC26: Si | AD26: Si | AE26: Si | AF26: Si | AG26: No | AH26: No | AJ26: 2016-10-03 | AK26: 2017-10-02 | AL26: =IF(AND(AJ26<>"",AK26<>""),AK26-AJ26,"")+1 -> 365
A27: 2 | B27: OKZ 542 | C27: A812UC04109 | D27: 9FB4SREB4HM243762 | E27: Propio | F27: Inspección permitida | G27: Automóvil | H27: Si | I27: 8002144 | J27: =VLOOKUP($I27,Fasecolda!$A$2:$BW$11651,3,0) -> RENAULT | K27: LOGAN | L27: 2017 | M27: =VLOOKUP($I27,Fasecolda!$A$2:$BW$11651,6,0) -> LOGAN | N27: =VLOOKUP($I27,Fasecolda!$A$2:$BW$11651,7,0) -> DYNAMIQUE | O27: =VLOOKUP($I27,Fasecolda!$A$2:$BW$11651,8,0) -> MT 1600CC | P27: GRIS | Q27: =VLOOKUP($I27,Fasecolda!$A$2:$BW$11651,64,0) -> 1600 | R27: Valor Fasecolda | S27: =VLOOKUP($I27,Fasecolda!$A$2:$BW$11651,MATCH(L27,Fasecolda!$A$1:$BG$1,0),0)*1000 -> 29400000 | T27: =SUMIF(Accesorios!$B:$B,$B27,Accesorios!$D:$D) -> 1120000 | U27: =S27+T27 -> 30520000 | V27: Oficiales | W27: Ninguno | Y27: 1000000000 | Z27: Si | AA27: Si | AB27: Si | AC27: Si | AD27: Si | AE27: Si | AF27: Si | AG27: No | AH27: No | AJ27: 2016-10-03 | AK27: 2017-10-02 | AL27: =IF(AND(AJ27<>"",AK27<>""),AK27-AJ27,"")+1 -> 365
A28: 3 | B28: OBI 445 | C28: L3788956 | D28: 9FCGG453470103158 | E28: Propio | F28: Inspección permitida | G28: Automóvil | H28: Si | I28: 5602161 | J28: =VLOOKUP($I28,Fasecolda!$A$2:$BW$11651,3,0) -> MAZDA | K28: 6 | L28: 2007 | M28: =VLOOKUP($I28,Fasecolda!$A$2:$BW$11651,6,0) -> 6 [1] | N28: =VLOOKUP($I28,Fasecolda!$A$2:$BW$11651,7,0) -> LXNM6 | O28: =VLOOKUP($I28,Fasecolda!$A$2:$BW$11651,8,0) -> MT 2000CC | P28: ROJO | Q28: =VLOOKUP($I28,Fasecolda!$A$2:$BW$11651,64,0) -> 1999 | R28: Valor Fasecolda | S28: =VLOOKUP($I28,Fasecolda!$A$2:$BW$11651,MATCH(L28,Fasecolda!$A$1:$BG$1,0),0)*1000 -> 15700000 | T28: =SUMIF(Accesorios!$B:$B,$B28,Accesorios!$D:$D) -> 0 | U28: =S28+T28 -> 15700000 | V28: Oficiales | W28: Ninguno | Y28: 1000000000 | Z28: Si | AA28: Si | AB28: Si | AC28: Si | AD28: Si | AE28: Si | AF28: Si | AG28: No | AH28: No | AJ28: 2016-10-03 | AK28: 2017-10-02 | AL28: =IF(AND(AJ28<>"",AK28<>""),AK28-AJ28,"")+1 -> 365
A31: Lugar de Entrega
A32: Ciudad de Entrega
A33: BOGOTÁ, D.C. - BOGOTÁ, D.C.
A34: Dirección
A35: CALLE 28 # 13a-15 PISO 17
A37: Corredor de Seguros
A38: Si
A39: Nombre
A40: JARGU S.A. CORREDORES DE SEGUROS
A41: Télefono
A42: 6171411
A43: Correo electrónico
A44: juan.hurtado@jargu.com
A45: Si requiere agregue o elimine filas
A46: Fecha y hora para visita de los Vehículos
A49: Gravámenes adicionales (estampillas)
A51: Si los hay, indique los gravámenes adicionales (estampilllas) a los que está sujeta la Orden de Compra. Son gravámens adiconales por ejemplo; estampillas y demás impuestos territoriales. Los impuestos como ICA y retención en la fuente NO son gravámenes adicionales.
A54: No. | B54: Descripción | H54: % Gravámen
A55: 1
E57: Total Gravámenes adicionales | H57: =SUM(H55:I55) -> 0

Sheet Accesorios
A1: item | B1: Placa o sigla | C1: Accesorio | D1: Valor
A2: 1 | B2: OKZ 542 | C2: Alarma, pelicula de seguridad, sensor reversa, seguros antirrobo, espejos, pernos y repuestos | D2: 1120000
A3: Si requiere agregue o elimine filas

Sheet Fasecolda
A1: Codigo | B1: Novedad | C1: Marca | D1: Clase | E1: HomologoCodigo | F1: Referencia1 | G1: Referencia2 | H1: Referencia3 | I1: Peso | J1: IdServicio | K1: Servicio | L1: 1970 | M1: 1971 | N1: 1972 | O1: 1973 | P1: 1974 | Q1: 1975 | R1: 1976 | S1: 1977 | T1: 1978 | U1: 1979 | V1: 1980 | W1: 1981 | X1: 1982 | Y1: 1983 | Z1: 1984 | AA1: 1985 | AB1: 1986 | AC1: 1987 | AD1: 1988 | AE1: 1989 | AF1: 1990 | AG1: 1991 | AH1: 1992 | AI1: 1993 | AJ1: 1994 | AK1: 1995 | AL1: 1996 | AM1: 1997 | AN1: 1998 | AO1: 1999 | AP1: 2000 | AQ1: 2001 | AR1: 2002 | AS1: 2003 | AT1: 2004 | AU1: 2005 | AV1: 2006 | AW1: 2007 | AX1: 2008 | AY1: 2009 | AZ1: 2010 | BA1: 2011 | BB1: 2012 | BC1: 2013 | BD1: 2014 | BE1: 2015 | BF1: 2016 | BG1: 2017 | BH1: Bcpp | BI1: Importado | BJ1: Potencia | BK1: TipoCaja | BL1: Cilindraje | BM1: Nacionalidad | BN1: CapacidadPasajeros | BO1: CapacidadCarga | BP1: Puertas | BQ1: AireAcondicionado | BR1: Ejes | BS1: Estado | BT1: Combustible | BU1: Transmision | BV1: Um | BW1: PesoCategoria
A2: 101001 | B2: M | C2: ALEKO | D2: AUTOMOVIL | F2: 2141 | G2: 1.6 | H2: MT 1600CC TAXI | I2: 1380 | J2: 2 | K2: Publico | L2: 0 | M2: 0 | N2: 0 | O2: 0 | P2: 0 | Q2: 0 | R2: 0 | S2: 0 | T2: 0 | U2: 0 | V2: 0 | W2: 0 | X2: 0 | Y2: 0 | Z2: 0 | AA2: 0 | AB2: 0 | AC2: 0 | AD2: 0 | AE2: 0 | AF2: 0 | AG2: 0 | AH2: 0 | AI2: 200 | AJ2: 0 | AK2: 0 | AL2: 0 | AM2: 0 | AN2: 0 | AO2: 0 | AP2: 0 | AQ2: 0 | AR2: 0 | AS2: 0 | AT2: 0 | AU2: 0 | AV2: 0 | AW2: 0 | AX2: 0 | AY2: 0 | AZ2: 0 | BA2: 0 | BB2: 0 | BC2: 0 | BD2: 0 | BE2: 0 | BF2: 0 | BG2: 12200 | BH2: 15300 | BI2: 1 | BJ2: 82 | BK2: MT | BL2: 1570 | BM2: RUS | BN2: 5 | BO2: 0 | BP2: 5 | BQ2: 0 | BR2: 2 | BS2: Activo | BT2: GSL | BU2: 4X2 | BV2: 0 | BW2: 1
A3: 206001 | B3: M | C3: AMERICAN MOTOR | D3: CAMIONETA PASAJ. | F3: EAGLE | G3: SUMMIT | H3: AT 2400CC LX 4P | I3: 0 | J3: 1 | K3: Particular | L3: 0 | M3: 0 | N3: 0 | O3: 0 | P3: 0 | Q3: 0 | R3: 0 | S3: 0 | T3: 0 | U3: 0 | V3: 0 | W3: 0 | X3: 0 | Y3: 0 | Z3: 0 | AA3: 0 | AB3: 0 | AC3: 0 | AD3: 0 | AE3: 0 | AF3: 0 | AG3: 0 | AH3: 6100 | AI3: 6500 | AJ3: 7000 | AK3: 7500 | AL3: 0 | AM3: 0 | AN3: 0 | AO3: 0 | AP3: 0 | AQ3: 0 | AR3: 0 | AS3: 0 | AT3: 0 | AU3: 0 | AV3: 0 | AW3: 0 | AX3: 0 | AY3: 0 | AZ3: 0 | BA3: 0 | BB3: 0 | BC3: 0 | BD3: 0 | BE3: 0 | BF3: 0 | BG3: 43800 | BH3: 54800 | BI3: 1 | BJ3: 0 | BK3: AT | BL3: 2351 | BN3: 5 | BO3: 0 | BP3: 5 | BQ3: 0 | BR3: 2 | BS3: Activo | BV3: 0 | BW3: 1
A4: 208003 | B4: M | C4: AMERICAN MOTOR | D4: CAMPERO | F4: WRANGLER | G4: 4.2 | H4: MT 4200CC CAB | I4: 1100 | J4: 1 | K4: Particular | L4: 0 | M4: 0 | N4: 0 | O4: 0 | P4: 0 | Q4: 0 | R4: 0 | S4: 0 | T4: 0 | U4: 0 | V4: 0 | W4: 0 | X4: 0 | Y4: 0 | Z4: 0 | AA4: 0 | AB4: 0 | AC4: 0 | AD4: 0 | AE4: 0 | AF4: 0 | AG4: 11900 | AH4: 12800 | AI4: 13700 | AJ4: 0 | AK4: 0 | AL4: 0 | AM4: 0 | AN4: 0 | AO4: 0 | AP4: 0 | AQ4: 0 | AR4: 0 | AS4: 0 | AT4: 0 | AU4: 0 | AV4: 0 | AW4: 0 | AX4: 0 | AY4: 0 | AZ4: 0 | BA4: 0 | BB4: 0 | BC4: 0 | BD4: 0 | BE4: 0 | BF4: 0 | BG4: 81600 | BH4: 102000 | BI4: 1 | BJ4: 120 | BK4: MT | BL4: 2400 | BM4: USA | BN4: 5 | BO4: 0 | BP4: 3 | BQ4: 1 | BR4: 2 | BS4: Activo | BU4: 4X4 | BV4: 0 | BW4: 1
A5: 208004 | B5: M | C5: AMERICAN MOTOR | D5: CAMPERO | F5: WRANGLER | G5: 4.2 | H5: MT 2500CC CARPADO | I5: 1100 | J5: 1 | K5: Particular | L5: 0 | M5: 0 | N5: 0 | O5: 0 | P5: 0 | Q5: 0 | R5: 0 | S5: 0 | T5: 4700 | U5: 5000 | V5: 5400 | W5: 5800 | X5: 6200 | Y5: 6700 | Z5: 7200 | AA5: 7700 | AB5: 8300 | AC5: 8900 | AD5: 9500 | AE5: 10200 | AF5: 10900 | AG5: 11700 | AH5: 12600 | AI5: 13500 | AJ5: 0 | AK5: 0 | AL5: 0 | AM5: 0 | AN5: 0 | AO5: 0 | AP5: 0 | AQ5: 0 | AR5: 0 | AS5: 0 | AT5: 0 | AU5: 0 | AV5: 0 | AW5: 0 | AX5: 0 | AY5: 0 | AZ5: 0 | BA5: 0 | BB5: 0 | BC5: 0 | BD5: 0 | BE5: 0 | BF5: 0 | BG5: 74900 | BH5: 93600 | BI5: 1 | BJ5: 120 | BK5: MT | BL5: 2400 | BM5: USA | BN5: 5 | BO5: 0 | BP5: 3 | BQ5: 1 | BR5: 2 | BS5: Activo | BU5: 4X4 | BV5: 0 | BW5: 1
A6: 317003 | B6: M | C6: AUTECO | D6: MOTOCICLETA | F6: SUMA | G6: 80 | H6: MT 80CC 2T | I6: 75 | J6: 1 | K6: Particular | L6: 0 | M6: 0 | N6: 0 | O6: 0 | P6: 0 | Q6: 0 | R6: 0 | S6: 0 | T6: 0 | U6: 0 | V6: 0 | W6: 0 | X6: 0 | Y6: 0 | Z6: 0 | AA6: 0 | AB6: 0 | AC6: 0 | AD6: 0 | AE6: 0 | AF6: 0 | AG6: 0 | AH6: 0 | AI6: 0 | AJ6: 260 | AK6: 280 | AL6: 300 | AM6: 0 | AN6: 0 | AO6: 0 | AP6: 0 | AQ6: 0 | AR6: 0 | AS6: 0 | AT6: 0 | AU6: 0 | AV6: 0 | AW6: 0 | AX6: 0 | AY6: 0 | AZ6: 0 | BA6: 0 | BB6: 0 | BC6: 0 | BD6: 0 | BE6: 0 | BF6: 0 | BG6: 2800 | BH6: 3200 | BI6: 0 | BJ6: 6 | BK6: MT | BL6: 80 | BM6: COL | BN6: 2 | BO6: 0 | BP6: 0 | BQ6: 0 | BR6: 2 | BS6: Activo | BT6: GSL | BU6: 2X1 | BV6: 0 | BW6: 1
A7: 317004 | B7: M | C7: AUTECO | D7: MOTOCICLETA | F7: KTZ | G7: 100 | H7: MT 100CC | I7: 78 | J7: 1 | K7: Particular | L7: 0 | M7: 0 | N7: 0 | O7: 0 | P7: 0 | Q7: 0 | R7: 0 | S7: 0 | T7: 0 | U7: 0 | V7: 0 | W7: 0 | X7: 0 | Y7: 0 | Z7: 0 | AA7: 0 | AB7: 0 | AC7: 0 | AD7: 0 | AE7: 0 | AF7: 0 | AG7: 0 | AH7: 0 | AI7: 0 | AJ7: 0 | AK7: 0 | AL7: 370 | AM7: 400 | AN7: 0 | AO7: 0 | AP7: 0 | AQ7: 0 | AR7: 0 | AS7: 0 | AT7: 0 | AU7: 0 | AV7: 0 | AW7: 0 | AX7: 0 | AY7: 0 | AZ7: 0 | BA7: 0 | BB7: 0 | BC7: 0 | BD7: 0 | BE7: 0 | BF7: 0 | BG7: 2900 | BH7: 3300 | BI7: 0 | BJ7: 5 | BK7: MT | BL7: 100 | BM7: COL | BN7: 2 | BO7: 0 | BP7: 0 | BQ7: 0 | BR7: 2 | BS7: Activo | BT7: GSL | BU7: 2X1 | BV7: 0 | BW7: 1
A8: 317006 | B8: M | C8: AUTECO | D8: MOTOCICLETA | F8: BAJAJ | G8: PLUS POWER | H8: AT 150CC | I8: 95 | J8: 1 | K8: Particular | L8: 0 | M8: 0 | N8: 0 | O8: 0 | P8: 0 | Q8: 0 | R8: 0 | S8: 0 | T8: 0 | U8: 0 | V8: 0 | W8: 0 | X8: 0 | Y8: 0 | Z8: 0 | AA8: 0 | AB8: 0 | AC8: 0 | AD8: 0 | AE8: 0 | AF8: 0 | AG8: 0 | AH8: 0 | AI8: 0 | AJ8: 0 | AK8: 380 | AL8: 410 | AM8: 440 | AN8: 470 | AO8: 500 | AP8: 570 | AQ8: 610 | AR8: 650 | AS8: 700 | AT8: 800 | AU8: 900 | AV8: 1000 | AW8: 0 | AX8: 0 | AY8: 0 | AZ8: 0 | BA8: 0 | BB8: 0 | BC8: 0 | BD8: 0 | BE8: 0 | BF8: 0 | BG8: 4800 | BH8: 5500 | BI8: 0 | BJ8: 7 | BK8: AT | BL8: 150 | BM8: COL | BN8: 2 | BO8: 0 | BP8: 0 | BQ8: 0 | BR8: 2 | BS8: Activo | BT8: GSL | BU8: 2X1 | BV8: 0 | BW8: 1
A9: 317007 | B9: M | C9: AUTECO | D9: MOTOCICLETA | F9: ZIP | G9: 80 | H9: AT 80CC | I9: 77 | J9: 1 | K9: Particular | L9: 0 | M9: 0 | N9: 0 | O9: 0 | P9: 0 | Q9: 0 | R9: 0 | S9: 0 | T9: 0 | U9: 0 | V9: 0 | W9: 0 | X9: 0 | Y9: 0 | Z9: 0 | AA9: 0 | AB9: 0 | AC9: 0 | AD9: 0 | AE9: 0 | AF9: 0 | AG9: 0 | AH9: 0 | AI9: 0 | AJ9: 0 | AK9: 0 | AL9: 0 | AM9: 0 | AN9: 400 | AO9: 0 | AP9: 0 | AQ9: 0 | AR9: 0 | AS9: 0 | AT9: 0 | AU9: 0 | AV9: 0 | AW9: 0 | AX9: 0 | AY9: 0 | AZ9: 0 | BA9: 0 | BB9: 0 | BC9: 0 | BD9: 0 | BE9: 0 | BF9: 0 | BG9: 2900 | BH9: 3300 | BI9: 0 | BJ9: 6 | BK9: MT | BL9: 80 | BM9: COL | BN9: 2 | BO9: 0 | BP9: 0 | BQ9: 0 | BR9: 2 | BS9: Activo | BT9: GSL | BU9: 2X1 | BV9: 0 | BW9: 1
A10: 317008 | B10: M | C10: AUTECO | D10: MOTOCICLETA | F10: KB | G10: 125 | H10: MT 125CC | I10: 93 | J10: 1 | K10: Particular | L10: 0 | M10: 0 | N10: 0 | O10: 0 | P10: 0 | Q10: 0 | R10: 0 | S10: 0 | T10: 0 | U10: 0 | V10: 0 | W10: 0 | X10: 0 | Y10: 0 | Z10: 0 | AA10: 0 | AB10: 0 | AC10: 0 | AD10: 0 | AE10: 0 | AF10: 0 | AG10: 0 | AH10: 0 | AI10: 0 | AJ10: 0 | AK10: 0 | AL10: 0 | AM10: 0 | AN10: 300 | AO10: 0 | AP10: 0 | AQ10: 0 | AR10: 0 | AS10: 0 | AT10: 0 | AU10: 0 | AV10: 0 | AW10: 0 | AX10: 0 | AY10: 0 | AZ10: 0 | BA10: 0 | BB10: 0 | BC10: 0 | BD10: 0 | BE10: 0 | BF10: 0 | BG10: 2700 | BH10: 3100 | BI10: 0 | BJ10: 13 | BK10: MT | BL10: 125 | BM10: COL | BN10: 2 | BO10: 0 | BP10: 0 | BQ10: 0 | BR10: 2 | BS10: Activo | BT10: GSL | BU10: 2X1 | BV10: 0 | BW10: 1
A11: 317009 | B11: M | C11: AUTECO | D11: MOTOCICLETA | F11: SUNNY | G11: 80 | H11: MT 80CC | I11: 105 | J11: 1 | K11: Particular | L11: 0 | M11: 0 | N11: 0 | O11: 0 | P11: 0 | Q11: 0 | R11: 0 | S11: 0 | T11: 0 | U11: 0 | V11: 0 | W11: 0 | X11: 0 | Y11: 0 | Z11: 0 | AA11: 0 | AB11: 0 | AC11: 0 | AD11: 0 | AE11: 0 | AF11: 0 | AG11: 0 | AH11: 0 | AI11: 0 | AJ11: 0 | AK11: 0 | AL11: 0 | AM11: 0 | AN11: 300 | AO11: 0 | AP11: 0 | AQ11: 0 | AR11: 0 | AS11: 0 | AT11: 0 | AU11: 0 | AV11: 0 | AW11: 0 | AX11: 0 | AY11: 0 | AZ11: 0 | BA11: 0 | BB11: 0 | BC11: 0 | BD11: 0 | BE11: 0 | BF11: 0 | BG11: 2700 | BH11: 3100 | BI11: 0 | BJ11: 6 | BK11: MT | BL11: 80 | BM11: COL | BN11: 2 | BO11: 0 | BP11: 0 | BQ11: 0 | BR11: 2 | BS11: Activo | BT11: GSL | BU11: 2X1 | BV11: 0 | BW11: 1
A12: 317010 | B12: M | C12: AUTECO | D12: MOTOCICLETA | F12: BAJAJ | G12: PLUS CLASSIC | H12: MT 150CC | I12: 106 | J12: 1 | K12: Particular | L12: 0 | M12: 0 | N12: 0 | O12: 0 | P12: 0 | Q12: 0 | R12: 0 | S12: 0 | T12: 0 | U12: 0 | V12: 0 | W12: 0 | X12: 0 | Y12: 0 | Z12: 0 | AA12: 0 | AB12: 0 | AC12: 0 | AD12: 0 | AE12: 0 | AF12: 0 | AG12: 0 | AH12: 0 | AI12: 0 | AJ12: 0 | AK12: 380 | AL12: 410 | AM12: 440 | AN12: 470 | AO12: 500 | AP12: 550 | AQ12: 0 | AR12: 0 | AS12: 0 | AT12: 0 | AU12: 0 | AV12: 0 | AW12: 0 | AX12: 0 | AY12: 0 | AZ12: 0 | BA12: 0 | BB12: 0 | BC12: 0 | BD12: 0 | BE12: 0 | BF12: 0 | BG12: 5300 | BH12: 6100 | BI12: 0 | BJ12: 7 | BK12: MT | BL12: 150 | BM12: COL | BN12: 2 | BO12: 0 | BP12: 0 | BQ12: 0 | BR12: 2 | BS12: Activo | BT12: GSL | BU12: 2X1 | BV12: 0 | BW12: 1
A13: 317015 | B13: M | C13: AUTECO | D13: MOTOCICLETA | F13: BAJAJ | G13: BOXER CT100 | H13: MT 100CC | I13: 113 | J13: 1 | K13: Particular | L13: 0 | M13: 0 | N13: 0 | O13: 0 | P13: 0 | Q13: 0 | R13: 0 | S13: 0 | T13: 0 | U13: 0 | V13: 0 | W13: 0 | X13: 0 | Y13: 0 | Z13: 0 | AA13: 0 | AB13: 0 | AC13: 0 | AD13: 0 | AE13: 0 | AF13: 0 | AG13: 0 | AH13: 0 | AI13: 0 | AJ13: 0 | AK13: 0 | AL13: 0 | AM13: 0 | AN13: 0 | AO13: 0 | AP13: 0 | AQ13: 0 | AR13: 700 | AS13: 750 | AT13: 800 | AU13: 900 | AV13: 1000 | AW13: 1100 | AX13: 1200 | AY13: 1300 | AZ13: 1400 | BA13: 1500 | BB13: 1700 | BC13: 1900 | BD13: 2500 | BE13: 2800 | BF13: 3100 | BG13: 3200 | BH13: 4000 | BI13: 1 | BJ13: 8 | BK13: MT | BL13: 99 | BM13: IND | BN13: 2 | BO13: 0 | BP13: 0 | BQ13: 0 | BR13: 2 | BS13: Activo | BT13: GSL | BU13: 2X1 | BV13: 1 | BW13: 1
A14: 317016 | B14: M | C14: AUTECO | D14: MOTOCICLETA | F14: BAJAJ | G14: LEGEND | H14: MT 150CC | I14: 108 | J14: 1 | K14: Particular | L14: 0 | M14: 0 | N14: 0 | O14: 0 | P14: 0 | Q14: 0 | R14: 0 | S14: 0 | T14: 0 | U14: 0 | V14: 0 | W14: 0 | X14: 0 | Y14: 0 | Z14: 0 | AA14: 0 | AB14: 0 | AC14: 0 | AD14: 0 | AE14: 0 | AF14: 0 | AG14: 0 | AH14: 0 | AI14: 0 | AJ14: 0 | AK14: 0 | AL14: 0 | AM14: 0 | AN14: 0 | AO14: 0 | AP14: 0 | AQ14: 0 | AR14: 1100 | AS14: 1200 | AT14: 1300 | AU14: 1400 | AV14: 0 | AW14: 0 | AX14: 0 | AY14: 0 | AZ14: 0 | BA14: 0 | BB14: 0 | BC14: 0 | BD14: 0 | BE14: 0 | BF14: 0 | BG14: 4400 | BH14: 5100 | BI14: 0 | BJ14: 9 | BK14: MT | BL14: 145 | BM14: COL | BN14: 2 | BO14: 0 | BP14: 0 | BQ14: 0 | BR14: 2 | BS14: Activo | BT14: GSL | BU14: 2X1 | BV14: 0 | BW14: 1
A15: 317017 | B15: M | C15: AUTECO | D15: MOTOCICLETA | F15: BAJAJ | G15: BRAVO | H15: MT 145CC | I15: 103 | J15: 1 | K15: Particular | L15: 0 | M15: 0 | N15: 0 | O15: 0 | P15: 0 | Q15: 0 | R15: 0 | S15: 0 | T15: 0 | U15: 0 | V15: 0 | W15: 0 | X15: 0 | Y15: 0 | Z15: 0 | AA15: 0 | AB15: 0 | AC15: 0 | AD15: 0 | AE15: 0 | AF15: 0 | AG15: 0 | AH15: 0 | AI15: 0 | AJ15: 0 | AK15: 0 | AL15: 0 | AM15: 0 | AN15: 0 | AO15: 0 | AP15: 0 | AQ15: 1100 | AR15: 1200 | AS15: 1300 | AT15: 1400 | AU15: 1500 | AV15: 0 | AW15: 0 | AX15: 0 | AY15: 0 | AZ15: 0 | BA15: 0 | BB15: 0 | BC15: 0 | BD15: 0 | BE15: 0 | BF15: 0 | BG15: 4700 | BH15: 5400 | BI15: 0 | BJ15: 8 | BK15: MT | BL15: 145 | BM15: COL | BN15: 2 | BO15: 0 | BP15: 0 | BQ15: 0 | BR15: 2 | BS15: Activo | BT15: GSL | BU15: 2X1 | BV15: 0 | BW15: 1
A16: 317019 | B16: M | C16: AUTECO | D16: MOTOCICLETA | F16: BAJAJ | G16: SPIRIT 60 | H16: AT 60CC | I16: 76 | J16: 1 | K16: Particular | L16: 0 | M16: 0 | N16: 0 | O16: 0 | P16: 0 | Q16: 0 | R16: 0 | S16: 0 | T16: 0 | U16: 0 | V16: 0 | W16: 0 | X16: 0 | Y16: 0 | Z16: 0 | AA16: 0 | AB16: 0 | AC16: 0 | AD16: 0 | AE16: 0 | AF16: 0 | AG16: 0 | AH16: 0 | AI16: 0 | AJ16: 0 | AK16: 0 | AL16: 0 | AM16: 0 | AN16: 0 | AO16: 0 | AP16: 0 | AQ16: 0 | AR16: 320 | AS16: 340 | AT16: 370 | AU16: 400 | AV16: 0 | AW16: 0 | AX16: 0 | AY16: 0 | AZ16: 0 | BA16: 0 | BB16: 0 | BC16: 0 | BD16: 0 | BE16: 0 | BF16: 0 | BG16: 2400 | BH16: 2800 | BI16: 0 | BJ16: 5 | BK16: MT | BL16: 60 | BM16: COL | BN16: 2 | BO16: 0 | BP16: 0 | BQ16: 0 | BR16: 2 | BS16: Activo | BT16: GSL | BU16: 2X1 | BV16: 0 | BW16: 1
A17: 317022 | B17: M | C17: AUTECO | D17: MOTOCICLETA | F17: BAJAJ | G17: NXT 150 | H17: MT 150CC | I17: 80 | J17: 1 | K17: Particular | L17: 0 | M17: 0 | N17: 0 | O17: 0 | P17: 0 | Q17: 0 | R17: 0 | S17: 0 | T17: 0 | U17: 0 | V17: 0 | W17: 0 | X17: 0 | Y17: 0 | Z17: 0 | AA17: 0 | AB17: 0 | AC17: 0 | AD17: 0 | AE17: 0 | AF17: 0 | AG17: 0 | AH17: 0 | AI17: 0 | AJ17: 0 | AK17: 0 | AL17: 0 | AM17: 0 | AN17: 0 | AO17: 0 | AP17: 0 | AQ17: 0 | AR17: 1100 | AS17: 1200 | AT17: 1300 | AU17: 1400 | AV17: 0 | AW17: 0 | AX17: 0 | AY17: 0 | AZ17: 0 | BA17: 0 | BB17: 0 | BC17: 0 | BD17: 0 | BE17: 0 | BF17: 0 | BG17: 4700 | BH17: 5400 | BI17: 0 | BJ17: 8 | BK17: MT | BL17: 145 | BM17: COL | BN17: 2 | BO17: 0 | BP17: 0 | BQ17: 0 | BR17: 2 | BS17: Activo | BT17: GSL | BU17: 2X1 | BV17: 0 | BW17: 1
A18: 317025 | B18: M | C18: AUTECO | D18: MOTOCICLETA | F18: BAJAJ | G18: PULSAR | H18: MT 180CC | I18: 143 | J18: 1 | K18: Particular | L18: 0 | M18: 0 | N18: 0 | O18: 0 | P18: 0 | Q18: 0 | R18: 0 | S18: 0 | T18: 0 | U18: 0 | V18: 0 | W18: 0 | X18: 0 | Y18: 0 | Z18: 0 | AA18: 0 | AB18: 0 | AC18: 0 | AD18: 0 | AE18: 0 | AF18: 0 | AG18: 0 | AH18: 0 | AI18: 0 | AJ18: 0 | AK18: 0 | AL18: 0 | AM18: 0 | AN18: 0 | AO18: 0 | AP18: 0 | AQ18: 0 | AR18: 0 | AS18: 0 | AT18: 1900 | AU18: 2000 | AV18: 2100 | AW18: 2300 | AX18: 0 | AY18: 0 | AZ18: 0 | BA18: 0 | BB18: 0 | BC18: 0 | BD18: 0 | BE18: 0 | BF18: 0 | BG18: 4300 | BH18: 5400 | BI18: 1 | BJ18: 17 | BK18: MT | BL18: 178 | BM18: IND | BN18: 2 | BO18: 0 | BP18: 0 | BQ18: 0 | BR18: 2 | BS18: Activo | BT18: GSL | BU18: 2X1 | BV18: 0 | BW18: 1
A19: 317028 | B19: M | C19: AUTECO | D19: MOTOCICLETA | F19: MAX | G19: 100 | H19: MT 100CC | I19: 79 | J19: 1 | K19: Particular | L19: 0 | M19: 0 | N19: 0 | O19: 0 | P19: 0 | Q19: 0 | R19: 0 | S19: 0 | T19: 0 | U19: 0 | V19: 0 | W19: 0 | X19: 0 | Y19: 0 | Z19: 0 | AA19: 0 | AB19: 0 | AC19: 0 | AD19: 0 | AE19: 0 | AF19: 0 | AG19: 0 | AH19: 0 | AI19: 0 | AJ19: 0 | AK19: 0 | AL19: 0 | AM19: 0 | AN19: 0 | AO19: 0 | AP19: 0 | AQ19: 0 | AR19: 0 | AS19: 0 | AT19: 0 | AU19: 500 | AV19: 0 | AW19: 0 | AX19: 0 | AY19: 0 | AZ19: 0 | BA19: 0 | BB19: 0 | BC19: 0 | BD19: 0 | BE19: 0 | BF19: 0 | BG19: 3000 | BH19: 3500 | BI19: 0 | BJ19: 7 | BK19: MT | BL19: 96 | BM19: COL | BN19: 2 | BO19: 0 | BP19: 0 | BQ19: 0 | BR19: 2 | BS19: Activo | BT19: GSL | BU19: 2X1 | BV19: 0 | BW19: 1
A20: 317029 | B20: M | C20: AUTECO | D20: MOTOCICLETA | F20: BAJAJ | G20: AVANTI | H20: MT 90CC | I20: 98 | J20: 1 | K20: Particular | L20: 0 | M20: 0 | N20: 0 | O20: 0 | P20: 0 | Q20: 0 | R20: 0 | S20: 0 | T20: 0 | U20: 0 | V20: 0 | W20: 0 | X20: 0 | Y20: 0 | Z20: 0 | AA20: 0 | AB20: 0 | AC20: 0 | AD20: 0 | AE20: 0 | AF20: 0 | AG20: 0 | AH20: 0 | AI20: 0 | AJ20: 0 | AK20: 0 | AL20: 0 | AM20: 0 | AN20: 0 | AO20: 0 | AP20: 0 | AQ20: 0 | AR20: 0 | AS20: 600 | AT20: 650 | AU20: 700 | AV20: 800 | AW20: 0 | AX20: 0 | AY20: 0 | AZ20: 0 | BA20: 0 | BB20: 0 | BC20: 0 | BD20: 0 | BE20: 0 | BF20: 0 | BG20: 2100 | BH20: 2600 | BI20: 1 | BJ20: 7 | BK20: MT | BL20: 90 | BM20: IND | BN20: 2 | BO20: 0 | BP20: 0 | BQ20: 0 | BR20: 2 | BS20: Activo | BT20: GSL | BU20: 2X1 | BV20: 0 | BW20: 1
A21: 317030 | B21: M | C21: AUTECO | D21: MOTOCICLETA | F21: BAJAJ | G21: CALIBER II 115 | H21: MT 115CC | I21: 118 | J21: 1 | K21: Particular | L21: 0 | M21: 0 | N21: 0 | O21: 0 | P21: 0 | Q21: 0 | R21: 0 | S21: 0 | T21: 0 | U21: 0 | V21: 0 | W21: 0 | X21: 0 | Y21: 0 | Z21: 0 | AA21: 0 | AB21: 0 | AC21: 0 | AD21: 0 | AE21: 0 | AF21: 0 | AG21: 0 | AH21: 0 | AI21: 0 | AJ21: 0 | AK21: 0 | AL21: 0 | AM21: 0 | AN21: 0 | AO21: 0 | AP21: 0 | AQ21: 0 | AR21: 0 | AS21: 0 | AT21: 900 | AU21: 1000 | AV21: 0 | AW21: 0 | AX21: 0 | AY21: 0 | AZ21: 0 | BA21: 0 | BB21: 0 | BC21: 0 | BD21: 0 | BE21: 0 | BF21: 0 | BG21: 3100 | BH21: 3900 | BI21: 1 | BJ21: 10 | BK21: MT | BL21: 112 | BM21: JAP | BN21: 2 | BO21: 0 | BP21: 0 | BQ21: 0 | BR21: 2 | BS21: Activo | BT21: GSL | BU21: 2X1 | BV21: 0 | BW21: 1
A22: 317035 | B22: M | C22: AUTECO | D22: MOTOCICLETA | F22: VICTORY | G22: FURAX | H22: MT 150CC | I22: 80 | J22: 1 | K22: Particular | L22: 0 | M22: 0 | N22: 0 | O22: 0 | P22: 0 | Q22: 0 | R22: 0 | S22: 0 | T22: 0 | U22: 0 | V22: 0 | W22: 0 | X22: 0 | Y22: 0 | Z22: 0 | AA22: 0 | AB22: 0 | AC22: 0 | AD22: 0 | AE22: 0 | AF22: 0 | AG22: 0 | AH22: 0 | AI22: 0 | AJ22: 0 | AK22: 0 | AL22: 0 | AM22: 0 | AN22: 0 | AO22: 0 | AP22: 0 | AQ22: 0 | AR22: 0 | AS22: 0 | AT22: 0 | AU22: 1700 | AV22: 1800 | AW22: 1900 | AX22: 2000 | AY22: 0 | AZ22: 0 | BA22: 0 | BB22: 0 | BC22: 0 | BD22: 0 | BE22: 0 | BF22: 0 | BG22: 6700 | BH22: 8400 | BI22: 1 | BJ22: 8 | BK22: MT | BL22: 150 | BM22: TWN | BN22: 2 | BO22: 0 | BP22: 0 | BQ22: 0 | BR22: 2 | BS22: Activo | BT22: GSL | BU22: 2X1 | BV22: 0 | BW22: 1
A23: 317037 | B23: M | C23: AUTECO | D23: MOTOCICLETA | F23: BAJAJ | G23: DISCOVER [1] | H23: MT 125CC | I23: 125 | J23: 1 | K23: Particular | L23: 0 | M23: 0 | N23: 0 | O23: 0 | P23: 0 | Q23: 0 | R23: 0 | S23: 0 | T23: 0 | U23: 0 | V23: 0 | W23: 0 | X23: 0 | Y23: 0 | Z23: 0 | AA23: 0 | AB23: 0 | AC23: 0 | AD23: 0 | AE23: 0 | AF23: 0 | AG23: 0 | AH23: 0 | AI23: 0 | AJ23: 0 | AK23: 0 | AL23: 0 | AM23: 0 | AN23: 0 | AO23: 0 | AP23: 0 | AQ23: 0 | AR23: 0 | AS23: 0 | AT23: 0 | AU23: 0 | AV23: 0 | AW23: 1800 | AX23: 1900 | AY23: 0 | AZ23: 0 | BA23: 0 | BB23: 0 | BC23: 0 | BD23: 0 | BE23: 0 | BF23: 0 | BG23: 3300 | BH23: 4100 | BI23: 1 | BJ23: 12 | BK23: MT | BL23: 124 | BM23: IND | BN23: 2 | BO23: 0 | BP23: 0 | BQ23: 0 | BR23: 2 | BS23: Activo | BT23: GSL | BU23: 2X1 | BV23: 0 | BW23: 1
A24: 317038 | B24: M | C24: AUTECO | D24: MOTOCICLETA | F24: BAJAJ | G24: PULSAR II | H24: MT 180CC | I24: 143 | J24: 1 | K24: Particular | L24: 0 | M24: 0 | N24: 0 | O24: 0 | P24: 0 | Q24: 0 | R24: 0 | S24: 0 | T24: 0 | U24: 0 | V24: 0 | W24: 0 | X24: 0 | Y24: 0 | Z24: 0 | AA24: 0 | AB24: 0 | AC24: 0 | AD24: 0 | AE24: 0 | AF24: 0 | AG24: 0 | AH24: 0 | AI24: 0 | AJ24: 0 | AK24: 0 | AL24: 0 | AM24: 0 | AN24: 0 | AO24: 0 | AP24: 0 | AQ24: 0 | AR24: 0 | AS24: 0 | AT24: 0 | AU24: 0 | AV24: 0 | AW24: 2300 | AX24: 2500 | AY24: 2700 | AZ24: 3200 | BA24: 0 | BB24: 0 | BC24: 0 | BD24: 0 | BE24: 0 | BF24: 0 | BG24: 4800 | BH24: 6000 | BI24: 1 | BJ24: 17 | BK24: MT | BL24: 178 | BM24: IND | BN24: 2 | BO24: 0 | BP24: 0 | BQ24: 0 | BR24: 2 | BS24: Activo | BT24: GSL | BU24: 2X1 | BV24: 0 | BW24: 1
A25: 317039 | B25: A | C25: AUTECO | D25: MOTOCICLETA | F25: BAJAJ | G25: PLATINO | H25: MT 100CC | I25: 113 | J25: 1 | K25: Particular | L25: 0 | M25: 0 | N25: 0 | O25: 0 | P25: 0 | Q25: 0 | R25: 0 | S25: 0 | T25: 0 | U25: 0 | V25: 0 | W25: 0 | X25: 0 | Y25: 0 | Z25: 0 | AA25: 0 | AB25: 0 | AC25: 0 | AD25: 0 | AE25: 0 | AF25: 0 | AG25: 0 | AH25: 0 | AI25: 0 | AJ25: 0 | AK25: 0 | AL25: 0 | AM25: 0 | AN25: 0 | AO25: 0 | AP25: 0 | AQ25: 0 | AR25: 0 | AS25: 0 | AT25: 0 | AU25: 0 | AV25: 0 | AW25: 0 | AX25: 1700 | AY25: 1800 | AZ25: 1900 | BA25: 2000 | BB25: 2100 | BC25: 2300 | BD25: 2600 | BE25: 3000 | BF25: 3200 | BG25: 3400 | BH25: 4300 | BI25: 1 | BJ25: 8 | BK25: MT | BL25: 99 | BM25: IND | BN25: 2 | BO25: 0 | BP25: 0 | BQ25: 0 | BR25: 2 | BS25: Activo | BT25: GSL | BU25: 2X1 | BV25: 0 | BW25: 1
A26: 317041 | B26: M | C26: AUTECO | D26: MOTOCICLETA | F26: BAJAJ | G26: DISCOVER [2] SUPREME | H26: MT 135CC | I26: 133 | J26: 1 | K26: Particular | L26: 0 | M26: 0 | N26: 0 | O26: 0 | P26: 0 | Q26: 0 | R26: 0 | S26: 0 | T26: 0 | U26: 0 | V26: 0 | W26: 0 | X26: 0 | Y26: 0 | Z26: 0 | AA26: 0 | AB26: 0 | AC26: 0 | AD26: 0 | AE26: 0 | AF26: 0 | AG26: 0 | AH26: 0 | AI26: 0 | AJ26: 0 | AK26: 0 | AL26: 0 | AM26: 0 | AN26: 0 | AO26: 0 | AP26: 0 | AQ26: 0 | AR26: 0 | AS26: 0 | AT26: 0 | AU26: 0 | AV26: 0 | AW26: 0 | AX26: 2100 | AY26: 2200 | AZ26: 2400 | BA26: 2600 | BB26: 0 | BC26: 0 | BD26: 0 | BE26: 0 | BF26: 0 | BG26: 3600 | BH26: 4500 | BI26: 1 | BJ26: 13 | BK26: MT | BL26: 134 | BM26: IND | BN26: 2 | BO26: 0 | BP26: 0 | BQ26: 0 | BR26: 2 | BS26: Activo | BT26: GSL | BU26: 2X1 | BV26: 0 | BW26: 1
A27: 317042 | B27: M | C27: AUTECO | D27: MOTOCICLETA | F27: BAJAJ | G27: DISCOVER [2] SPORT | H27: MT 135CC | I27: 133 | J27: 1 | K27: Particular | L27: 0 | M27: 0 | N27: 0 | O27: 0 | P27: 0 | Q27: 0 | R27: 0 | S27: 0 | T27: 0 | U27: 0 | V27: 0 | W27: 0 | X27: 0 | Y27: 0 | Z27: 0 | AA27: 0 | AB27: 0 | AC27: 0 | AD27: 0 | AE27: 0 | AF27: 0 | AG27: 0 | AH27: 0 | AI27: 0 | AJ27: 0 | AK27: 0 | AL27: 0 | AM27: 0 | AN27: 0 | AO27: 0 | AP27: 0 | AQ27: 0 | AR27: 0 | AS27: 0 | AT27: 0 | AU27: 0 | AV27: 0 | AW27: 0 | AX27: 2000 | AY27: 2100 | AZ27: 2300 | BA27: 2500 | BB27: 0 | BC27: 0 | BD27: 0 | BE27: 0 | BF27: 0 | BG27: 3500 | BH27: 4400 | BI27: 1 | BJ27: 13 | BK27: MT | BL27: 134 | BM27: IND | BN27: 2 | BO27: 0 | BP27: 0 | BQ27: 0 | BR27: 2 | BS27: Activo | BT27: GSL | BU27: 2X1 | BV27: 0 | BW27: 1
A28: 317043 | B28: M | C28: AUTECO | D28: MOTOCICLETA | F28: BAJAJ | G28: PULSAR | H28: MT 200CC | I28: 145 | J28: 1 | K28: Particular | L28: 0 | M28: 0 | N28: 0 | O28: 0 | P28: 0 | Q28: 0 | R28: 0 | S28: 0 | T28: 0 | U28: 0 | V28: 0 | W28: 0 | X28: 0 | Y28: 0 | Z28: 0 | AA28: 0 | AB28: 0 | AC28: 0 | AD28: 0 | AE28: 0 | AF28: 0 | AG28: 0 | AH28: 0 | AI28: 0 | AJ28: 0 | AK28: 0 | AL28: 0 | AM28: 0 | AN28: 0 | AO28: 0 | AP28: 0 | AQ28: 0 | AR28: 0 | AS28: 0 | AT28: 0 | AU28: 0 | AV28: 0 | AW28: 0 | AX28: 0 | AY28: 3000 | AZ28: 3200 | BA28: 3400 | BB28: 0 | BC28: 0 | BD28: 0 | BE28: 0 | BF28: 0 | BG28: 4500 | BH28: 5600 | BI28: 1 | BJ28: 18 | BK28: MT | BL28: 198 | BM28: IND | BN28: 2 | BO28: 0 | BP28: 0 | BQ28: 0 | BR28: 2 | BS28: Activo | BT28: GSL | BU28: 2X1 | BV28: 0 | BW28: 1
A29: 317044 | B29: N | C29: AUTECO | D29: MOTOCICLETA | F29: BAJAJ | G29: XCD | H29: MT 125CC | I29: 112 | J29: 1 | K29: Particular | L29: 0 | M29: 0 | N29: 0 | O29: 0 | P29: 0 | Q29: 0 | R29: 0 | S29: 0 | T29: 0 | U29: 0 | V29: 0 | W29: 0 | X29: 0 | Y29: 0 | Z29: 0 | AA29: 0 | AB29: 0 | AC29: 0 | AD29: 0 | AE29: 0 | AF29: 0 | AG29: 0 | AH29: 0 | AI29: 0 | AJ29: 0 | AK29: 0 | AL29: 0 | AM29: 0 | AN29: 0 | AO29: 0 | AP29: 0 | AQ29: 0 | AR29: 0 | AS29: 0 | AT29: 0 | AU29: 0 | AV29: 0 | AW29: 0 | AX29: 2000 | AY29: 2100 | AZ29: 2300 | BA29: 2500 | BB29: 0 | BC29: 0 | BD29: 0 | BE29: 0 | BF29: 0 | BG29: 3900 | BH29: 4900 | BI29: 1 | BJ29: 9 | BK29: MT | BL29: 124 | BM29: IND | BN29: 2 | BO29: 0 | BP29: 0 | BQ29: 0 | BR29: 2 | BS29: Activo | BT29: GSL | BU29: 2X1 | BV29: 0 | BW29: 1
A30: 317045 | B30: N | C30: AUTECO | D30: MOTOCICLETA | F30: BAJAJ | G30: PULSAR UG | H30: MT 180CC | I30: 150 | J30: 1 | K30: Particular | L30: 0 | M30: 0 | N30: 0 | O30: 0 | P30: 0 | Q30: 0 | R30: 0 | S30: 0 | T30: 0 | U30: 0 | V30: 0 | W30: 0 | X30: 0 | Y30: 0 | Z30: 0 | AA30: 0 | AB30: 0 | AC30: 0 | AD30: 0 | AE30: 0 | AF30: 0 | AG30: 0 | AH30: 0 | AI30: 0 | AJ30: 0 | AK30: 0 | AL30: 0 | AM30: 0 | AN30: 0 | AO30: 0 | AP30: 0 | AQ30: 0 | AR30: 0 | AS30: 0 | AT30: 0 | AU30: 0 | AV30: 0 | AW30: 0 | AX30: 0 | AY30: 0 | AZ30: 3200 | BA30: 3400 | BB30: 3600 | BC30: 3900 | BD30: 4300 | BE30: 4800 | BF30: 5200 | BG30: 5500 | BH30: 6900 | BI30: 1 | BJ30: 17 | BK30: MT | BL30: 179 | BM30: IND | BN30: 2 | BO30: 0 | BP30: 0 | BQ30: 0 | BR30: 2 | BS30: Activo | BT30: GSL | BU30: 2X1 | BV30: 1 | BW30: 1
A31: 317046 | B31: N | C31: AUTECO | D31: MOTOCICLETA | F31: BAJAJ | G31: BOXER BM CLASSIC [1] | H31: MT 100CC | I31: 109 | J31: 1 | K31: Particular | L31: 0 | M31: 0 | N31: 0 | O31: 0 | P31: 0 | Q31: 0 | R31: 0 | S31: 0 | T31: 0 | U31: 0 | V31: 0 | W31: 0 | X31: 0 | Y31: 0 | Z31: 0 | AA31: 0 | AB31: 0 | AC31: 0 | AD31: 0 | AE31: 0 | AF31: 0 | AG31: 0 | AH31: 0 | AI31: 0 | AJ31: 0 | AK31: 0 | AL31: 0 | AM31: 0 | AN31: 0 | AO31: 0 | AP31: 0 | AQ31: 0 | AR31: 0 | AS31: 0 | AT31: 0 | AU31: 0 | AV31: 0 | AW31: 0 | AX31: 0 | AY31: 0 | AZ31: 1300 | BA31: 1400 | BB31: 1500 | BC31: 0 | BD31: 0 | BE31: 0 | BF31: 0 | BG31: 2600 | BH31: 3000 | BI31: 0 | BJ31: 8 | BK31: MT | BL31: 99 | BM31: COL | BN31: 2 | BO31: 0 | BP31: 0 | BQ31: 0 | BR31: 2 | BS31: Activo | BT31: GSL | BU31: 2X1 | BV31: 0 | BW31: 1
A32: 317047 | B32: N | C32: AUTECO | D32: MOTOCICLETA | F32: BAJAJ | G32: PLATINO | H32: MT 125CC | I32: 113 | J32: 1 | K32: Particular | L32: 0 | M32: 0 | N32: 0 | O32: 0 | P32: 0 | Q32: 0 | R32: 0 | S32: 0 | T32: 0 | U32: 0 | V32: 0 | W32: 0 | X32: 0 | Y32: 0 | Z32: 0 | AA32: 0 | AB32: 0 | AC32: 0 | AD32: 0 | AE32: 0 | AF32: 0 | AG32: 0 | AH32: 0 | AI32: 0 | AJ32: 0 | AK32: 0 | AL32: 0 | AM32: 0 | AN32: 0 | AO32: 0 | AP32: 0 | AQ32: 0 | AR32: 0 | AS32: 0 | AT32: 0 | AU32: 0 | AV32: 0 | AW32: 0 | AX32: 0 | AY32: 0 | AZ32: 1900 | BA32: 2000 | BB32: 0 | BC32: 0 | BD32: 0 | BE32: 0 | BF32: 0 | BG32: 2800 | BH32: 3500 | BI32: 1 | BJ32: 9 | BK32: MT | BL32: 125 | BM32: IND | BN32: 2 | BO32: 0 | BP32: 0 | BQ32: 0 | BR32: 2 | BS32: Activo | BT32: GSL | BU32: 2X1 | BV32: 0 | BW32: 1
A33: 317048 | B33: M | C33: AUTECO | D33: MOTOCICLETA | F33: BAJAJ | G33: DISCOVER [2] | H33: MT 100CC | I33: 115 | J33: 1 | K33: Particular | L33: 0 | M33: 0 | N33: 0 | O33: 0 | P33: 0 | Q33: 0 | R33: 0 | S33: 0 | T33: 0 | U33: 0 | V33: 0 | W33: 0 | X33: 0 | Y33: 0 | Z33: 0 | AA33: 0 | AB33: 0 | AC33: 0 | AD33: 0 | AE33: 0 | AF33: 0 | AG33: 0 | AH33: 0 | AI33: 0 | AJ33: 0 | AK33: 0 | AL33: 0 | AM33: 0 | AN33: 0 | AO33: 0 | AP33: 0 | AQ33: 0 | AR33: 0 | AS33: 0 | AT33: 0 | AU33: 0 | AV33: 0 | AW33: 0 | AX33: 0 | AY33: 0 | AZ33: 2100 | BA33: 2200 | BB33: 2400 | BC33: 2600 | BD33: 2900 | BE33: 0 | BF33: 0 | BG33: 3100 | BH33: 3600 | BI33: 0 | BJ33: 8 | BK33: MT | BL33: 94 | BM33: COL | BN33: 2 | BO33: 0 | BP33: 0 | BQ33: 0 | BR33: 2 | BS33: Activo | BT33: GSL | BU33: 2X1 | BV33: 0 | BW33: 1
A34: 317049 | B34: N | C34: AUTECO | D34: MOTOCICLETA | F34: BAJAJ | G34: PLATINO 125 5S | H34: MT 125CC | I34: 113 | J34: 1 | K34: Particular | L34: 0 | M34: 0 | N34: 0 | O34: 0 | P34: 0 | Q34: 0 | R34: 0 | S34: 0 | T34: 0 | U34: 0 | V34: 0 | W34: 0 | X34: 0 | Y34: 0 | Z34: 0 | AA34: 0 | AB34: 0 | AC34: 0 | AD34: 0 | AE34: 0 | AF34: 0 | AG34: 0 | AH34: 0 | AI34: 0 | AJ34: 0 | AK34: 0 | AL34: 0 | AM34: 0 | AN34: 0 | AO34: 0 | AP34: 0 | AQ34: 0 | AR34: 0 | AS34: 0 | AT34: 0 | AU34: 0 | AV34: 0 | AW34: 0 | AX34: 0 | AY34: 0 | AZ34: 0 | BA34: 2100 | BB34: 2200 | BC34: 2400 | BD34: 2600 | BE34: 0 | BF34: 0 | BG34: 3000 | BH34: 3800 | BI34: 1 | BJ34: 9 | BK34: MT | BL34: 125 | BM34: IND | BN34: 2 | BO34: 0 | BP34: 0 | BQ34: 0 | BR34: 2 | BS34: Activo | BT34: GSL | BU34: 2X1 | BV34: 0 | BW34: 1
A35: 317050 | B35: N | C35: AUTECO | D35: MOTOCICLETA | F35: BAJAJ | G35: PULSAR 220 F | H35: MT 220CC | I35: 152 | J35: 1 | K35: Particular | L35: 0 | M35: 0 | N35: 0 | O35: 0 | P35: 0 | Q35: 0 | R35: 0 | S35: 0 | T35: 0 | U35: 0 | V35: 0 | W35: 0 | X35: 0 | Y35: 0 | Z35: 0 | AA35: 0 | AB35: 0 | AC35: 0 | AD35: 0 | AE35: 0 | AF35: 0 | AG35: 0 | AH35: 0 | AI35: 0 | AJ35: 0 | AK35: 0 | AL35: 0 | AM35: 0 | AN35: 0 | AO35: 0 | AP35: 0 | AQ35: 0 | AR35: 0 | AS35: 0 | AT35: 0 | AU35: 0 | AV35: 0 | AW35: 0 | AX35: 0 | AY35: 0 | AZ35: 0 | BA35: 4900 | BB35: 5300 | BC35: 5700 | BD35: 0 | BE35: 0 | BF35: 0 | BG35: 6600 | BH35: 8300 | BI35: 1 | BJ35: 21 | BK35: MT | BL35: 220 | BM35: IND | BN35: 2 | BO35: 0 | BP35: 0 | BQ35: 0 | BR35: 2 | BS35: Activo | BT35: GSL | BU35: 2X1 | BV35: 0 | BW35: 1
A36: 317051 | B36: M | C36: AUTECO | D36: MOTOCICLETA | F36: BAJAJ | G36: PULSAR 135 LS | H36: MT 135CC | I36: 122 | J36: 1 | K36: Particular | L36: 0 | M36: 0 | N36: 0 | O36: 0 | P36: 0 | Q36: 0 | R36: 0 | S36: 0 | T36: 0 | U36: 0 | V36: 0 | W36: 0 | X36: 0 | Y36: 0 | Z36: 0 | AA36: 0 | AB36: 0 | AC36: 0 | AD36: 0 | AE36: 0 | AF36: 0 | AG36: 0 | AH36: 0 | AI36: 0 | AJ36: 0 | AK36: 0 | AL36: 0 | AM36: 0 | AN36: 0 | AO36: 0 | AP36: 0 | AQ36: 0 | AR36: 0 | AS36: 0 | AT36: 0 | AU36: 0 | AV36: 0 | AW36: 0 | AX36: 0 | AY36: 0 | AZ36: 2800 | BA36: 3000 | BB36: 3200 | BC36: 3400 | BD36: 3800 | BE36: 4000 | BF36: 4500 | BG36: 4700 | BH36: 5900 | BI36: 1 | BJ36: 13 | BK36: MT | BL36: 134 | BM36: IND | BN36: 2 | BO36: 0 | BP36: 0 | BQ36: 0 | BR36: 2 | BS36: Activo | BT36: GSL | BU36: 2X1 | BV36: 1 | BW36: 1
A37: 317052 | B37: N | C37: AUTECO | D37: MOTOCICLETA | F37: BAJAJ | G37: PULSAR 220 SPORT | H37: MT 220CC | I37: 152 | J37: 1 | K37: Particular | L37: 0 | M37: 0 | N37: 0 | O37: 0 | P37: 0 | Q37: 0 | R37: 0 | S37: 0 | T37: 0 | U37: 0 | V37: 0 | W37: 0 | X37: 0 | Y37: 0 | Z37: 0 | AA37: 0 | AB37: 0 | AC37: 0 | AD37: 0 | AE37: 0 | AF37: 0 | AG37: 0 | AH37: 0 | AI37: 0 | AJ37: 0 | AK37: 0 | AL37: 0 | AM37: 0 | AN37: 0 | AO37: 0 | AP37: 0 | AQ37: 0 | AR37: 0 | AS37: 0 | AT37: 0 | AU37: 0 | AV37: 0 | AW37: 0 | AX37: 0 | AY37: 0 | AZ37: 0 | BA37: 5200 | BB37: 5600 | BC37: 6000 | BD37: 6700 | BE37: 0 | BF37: 0 | BG37: 7000 | BH37: 8800 | BI37: 1 | BJ37: 21 | BK37: MT | BL37: 220 | BM37: IND | BN37: 2 | BO37: 0 | BP37: 0 | BQ37: 0 | BR37: 2 | BS37: Activo | BT37: GSL | BU37: 2X1 | BV37: 0 | BW37: 1
A38: 317053 | B38: M | C38: AUTECO | D38: MOTOCICLETA | F38: BAJAJ | G38: DISCOVER [2] | H38: MT 125CC | I38: 119 | J38: 1 | K38: Particular | L38: 0 | M38: 0 | N38: 0 | O38: 0 | P38: 0 | Q38: 0 | R38: 0 | S38: 0 | T38: 0 | U38: 0 | V38: 0 | W38: 0 | X38: 0 | Y38: 0 | Z38: 0 | AA38: 0 | AB38: 0 | AC38: 0 | AD38: 0 | AE38: 0 | AF38: 0 | AG38: 0 | AH38: 0 | AI38: 0 | AJ38: 0 | AK38: 0 | AL38: 0 | AM38: 0 | AN38: 0 | AO38: 0 | AP38: 0 | AQ38: 0 | AR38: 0 | AS38: 0 | AT38: 0 | AU38: 0 | AV38: 0 | AW38: 0 | AX38: 0 | AY38: 0 | AZ38: 0 | BA38: 0 | BB38: 2400 | BC38: 2600 | BD38: 2800 | BE38: 3000 | BF38: 3200 | BG38: 3500 | BH38: 4000 | BI38: 0 | BJ38: 11 | BK38: MT | BL38: 124 | BM38: COL | BN38: 2 | BO38: 0 | BP38: 0 | BQ38: 0 | BR38: 2 | BS38: Activo | BT38: GSL | BU38: 2X1 | BV38: 1 | BW38: 1
A39: 317054 | B39: N | C39: AUTECO | D39: MOTOCICLETA | F39: BAJAJ | G39: BOXER BM | H39: MT 150CC | I39: 123 | J39: 1 | K39: Particular | L39: 0 | M39: 0 | N39: 0 | O39: 0 | P39: 0 | Q39: 0 | R39: 0 | S39: 0 | T39: 0 | U39: 0 | V39: 0 | W39: 0 | X39: 0 | Y39: 0 | Z39: 0 | AA39: 0 | AB39: 0 | AC39: 0 | AD39: 0 | AE39: 0 | AF39: 0 | AG39: 0 | AH39: 0 | AI39: 0 | AJ39: 0 | AK39: 0 | AL39: 0 | AM39: 0 | AN39: 0 | AO39: 0 | AP39: 0 | AQ39: 0 | AR39: 0 | AS39: 0 | AT39: 0 | AU39: 0 | AV39: 0 | AW39: 0 | AX39: 0 | AY39: 0 | AZ39: 0 | BA39: 0 | BB39: 2100 | BC39: 2200 | BD39: 2900 | BE39: 3300 | BF39: 3900 | BG39: 4300 | BH39: 4900 | BI39: 0 | BJ39: 12 | BK39: MT | BL39: 145 | BM39: COL | BN39: 2 | BO39: 0 | BP39: 0 | BQ39: 0 | BR39: 2 | BS39: Activo | BT39: GSL | BU39: 2X1 | BV39: 0 | BW39: 1
A40: 317055 | B40: N | C40: AUTECO | D40: MOTOCICLETA | F40: BAJAJ | G40: BOXER BM CLASSIC [2] | H40: MT 100CC | I40: 0 | J40: 1 | K40: Particular | L40: 0 | M40: 0 | N40: 0 | O40: 0 | P40: 0 | Q40: 0 | R40: 0 | S40: 0 | T40: 0 | U40: 0 | V40: 0 | W40: 0 | X40: 0 | Y40: 0 | Z40: 0 | AA40: 0 | AB40: 0 | AC40: 0 | AD40: 0 | AE40: 0 | AF40: 0 | AG40: 0 | AH40: 0 | AI40: 0 | AJ40: 0 | AK40: 0 | AL40: 0 | AM40: 0 | AN40: 0 | AO40: 0 | AP40: 0 | AQ40: 0 | AR40: 0 | AS40: 0 | AT40: 0 | AU40: 0 | AV40: 0 | AW40: 0 | AX40: 0 | AY40: 0 | AZ40: 0 | BA40: 0 | BB40: 1700 | BC40: 1800 | BD40: 2200 | BE40: 2600 | BF40: 3300 | BG40: 3400 | BH40: 3900 | BI40: 0 | BJ40: 8 | BK40: MT | BL40: 94 | BM40: COL | BN40: 2 | BO40: 0 | BP40: 0 | BQ40: 0 | BR40: 2 | BS40: Activo | BT40: GSL | BU40: 2X1 | BV40: 0 | BW40: 1
A41: 317056 | B41: N | C41: AUTECO | D41: MOTOCICLETA | F41: BAJAJ | G41: DISCOVER [3] 125 ST | H41: MT 125CC | I41: 0 | J41: 1 | K41: Particular | L41: 0 | M41: 0 | N41: 0 | O41: 0 | P41: 0 | Q41: 0 | R41: 0 | S41: 0 | T41: 0 | U41: 0 | V41: 0 | W41: 0 | X41: 0 | Y41: 0 | Z41: 0 | AA41: 0 | AB41: 0 | AC41: 0 | AD41: 0 | AE41: 0 | AF41: 0 | AG41: 0 | AH41: 0 | AI41: 0 | AJ41: 0 | AK41: 0 | AL41: 0 | AM41: 0 | AN41: 0 | AO41: 0 | AP41: 0 | AQ41: 0 | AR41: 0 | AS41: 0 | AT41: 0 | AU41: 0 | AV41: 0 | AW41: 0 | AX41: 0 | AY41: 0 | AZ41: 0 | BA41: 0 | BB41: 0 | BC41: 3200 | BD41: 3400 | BE41: 3600 | BF41: 4500 | BG41: 4700 | BH41: 5400 | BI41: 0 | BJ41: 13 | BK41: MT | BL41: 125 | BM41: COL | BN41: 2 | BO41: 0 | BP41: 0 | BQ41: 0 | BR41: 2 | BS41: Activo | BT41: GSL | BU41: 2X1 | BV41: 1 | BW41: 1
A42: 317057 | B42: N | C42: AUTECO | D42: MOTOCICLETA | F42: BAJAJ | G42: PULSAR 200 NS | H42: MT 200CC | I42: 0 | J42: 1 | K42: Particular | L42: 0 | M42: 0 | N42: 0 | O42: 0 | P42: 0 | Q42: 0 | R42: 0 | S42: 0 | T42: 0 | U42: 0 | V42: 0 | W42: 0 | X42: 0 | Y42: 0 | Z42: 0 | AA42: 0 | AB42: 0 | AC42: 0 | AD42: 0 | AE42: 0 | AF42: 0 | AG42: 0 | AH42: 0 | AI42: 0 | AJ42: 0 | AK42: 0 | AL42: 0 | AM42: 0 | AN42: 0 | AO42: 0 | AP42: 0 | AQ42: 0 | AR42: 0 | AS42: 0 | AT42: 0 | AU42: 0 | AV42: 0 | AW42: 0 | AX42: 0 | AY42: 0 | AZ42: 0 | BA42: 0 | BB42: 5600 | BC42: 6000 | BD42: 6400 | BE42: 6900 | BF42: 7700 | BG42: 8200 | BH42: 9400 | BI42: 0 | BJ42: 23 | BK42: MT | BL42: 199 | BM42: COL | BN42: 2 | BO42: 0 | BP42: 0 | BQ42: 0 | BR42: 2 | BS42: Activo | BT42: GSL | BU42: 2X1 | BV42: 1 | BW42: 1
A43: 317058 | B43: N | C43: AUTECO | D43: MOTOCICLETA | F43: BAJAJ | G43: AVENGER 220 | H43: MT 220CC | I43: 155 | J43: 1 | K43: Particular | L43: 0 | M43: 0 | N43: 0 | O43: 0 | P43: 0 | Q43: 0 | R43: 0 | S43: 0 | T43: 0 | U43: 0 | V43: 0 | W43: 0 | X43: 0 | Y43: 0 | Z43: 0 | AA43: 0 | AB43: 0 | AC43: 0 | AD43: 0 | AE43: 0 | AF43: 0 | AG43: 0 | AH43: 0 | AI43: 0 | AJ43: 0 | AK43: 0 | AL43: 0 | AM43: 0 | AN43: 0 | AO43: 0 | AP43: 0 | AQ43: 0 | AR43: 0 | AS43: 0 | AT43: 0 | AU43: 0 | AV43: 0 | AW43: 0 | AX43: 0 | AY43: 0 | AZ43: 0 | BA43: 0 | BB43: 0 | BC43: 0 | BD43: 0 | BE43: 4300 | BF43: 4800 | BG43: 5000 | BH43: 6300 | BI43: 1 | BJ43: 19 | BK43: MT | BL43: 220 | BM43: MEX | BN43: 2 | BO43: 0 | BP43: 0 | BQ43: 0 | BR43: 2 | BS43: Activo | BT43: GSL | BU43: 2X1 | BV43: 1 | BW43: 1
A44: 317059 | B44: N | C44: AUTECO | D44: MOTOCICLETA | F44: BAJAJ | G44: DISCOVER 100M | H44: MT 100CC | I44: 113 | J44: 1 | K44: Particular | L44: 0 | M44: 0 | N44: 0 | O44: 0 | P44: 0 | Q44: 0 | R44: 0 | S44: 0 | T44: 0 | U44: 0 | V44: 0 | W44: 0 | X44: 0 | Y44: 0 | Z44: 0 | AA44: 0 | AB44: 0 | AC44: 0 | AD44: 0 | AE44: 0 | AF44: 0 | AG44: 0 | AH44: 0 | AI44: 0 | AJ44: 0 | AK44: 0 | AL44: 0 | AM44: 0 | AN44: 0 | AO44: 0 | AP44: 0 | AQ44: 0 | AR44: 0 | AS44: 0 | AT44: 0 | AU44: 0 | AV44: 0 | AW44: 0 | AX44: 0 | AY44: 0 | AZ44: 0 | BA44: 0 | BB44: 0 | BC44: 0 | BD44: 0 | BE44: 2900 | BF44: 3700 | BG44: 4000 | BH44: 4600 | BI44: 0 | BJ44: 9 | BK44: MT | BL44: 102 | BM44: COL | BN44: 2 | BO44: 0 | BP44: 0 | BQ44: 0 | BR44: 2 | BS44: Activo | BT44: GSL | BU44: 2X1 | BV44: 0 | BW44: 1
A45: 317060 | B45: N | C45: AUTECO | D45: MOTOCICLETA | F45: BAJAJ | G45: PULSAR 220 SS | H45: MT 220CC | I45: 152 | J45: 1 | K45: Particular | L45: 0 | M45: 0 | N45: 0 | O45: 0 | P45: 0 | Q45: 0 | R45: 0 | S45: 0 | T45: 0 | U45: 0 | V45: 0 | W45: 0 | X45: 0 | Y45: 0 | Z45: 0 | AA45: 0 | AB45: 0 | AC45: 0 | AD45: 0 | AE45: 0 | AF45: 0 | AG45: 0 | AH45: 0 | AI45: 0 | AJ45: 0 | AK45: 0 | AL45: 0 | AM45: 0 | AN45: 0 | AO45: 0 | AP45: 0 | AQ45: 0 | AR45: 0 | AS45: 0 | AT45: 0 | AU45: 0 | AV45: 0 | AW45: 0 | AX45: 0 | AY45: 0 | AZ45: 0 | BA45: 0 | BB45: 0 | BC45: 0 | BD45: 0 | BE45: 5900 | BF45: 6900 | BG45: 6900 | BH45: 7900 | BI45: 0 | BJ45: 21 | BK45: MT | BL45: 220 | BM45: IND | BN45: 2 | BO45: 0 | BP45: 0 | BQ45: 0 | BR45: 2 | BS45: Activo | BT45: GSL | BU45: 2X1 | BV45: 0 | BW45: 1
A46: 317061 | B46: N | C46: AUTECO | D46: MOTOCICLETA | F46: BAJAJ | G46: DISCOVER [3] 150 ST | H46: MT 150CC | I46: 130 | J46: 1 | K46: Particular | L46: 0 | M46: 0 | N46: 0 | O46: 0 | P46: 0 | Q46: 0 | R46: 0 | S46: 0 | T46: 0 | U46: 0 | V46: 0 | W46: 0 | X46: 0 | Y46: 0 | Z46: 0 | AA46: 0 | AB46: 0 | AC46: 0 | AD46: 0 | AE46: 0 | AF46: 0 | AG46: 0 | AH46: 0 | AI46: 0 | AJ46: 0 | AK46: 0 | AL46: 0 | AM46: 0 | AN46: 0 | AO46: 0 | AP46: 0 | AQ46: 0 | AR46: 0 | AS46: 0 | AT46: 0 | AU46: 0 | AV46: 0 | AW46: 0 | AX46: 0 | AY46: 0 | AZ46: 0 | BA46: 0 | BB46: 0 | BC46: 0 | BD46: 0 | BE46: 0 | BF46: 4300 | BG46: 4700 | BH46: 5400 | BI46: 0 | BJ46: 14 | BK46: MT | BL46: 149 | BM46: COL | BN46: 2 | BO46: 0 | BP46: 0 | BQ46: 0 | BR46: 2 | BS46: Activo | BT46: GSL | BU46: 2X1 | BV46: 1 | BW46: 1
A47: 317062 | B47: N | C47: AUTECO | D47: MOTOCICLETA | F47: BAJAJ | G47: PULSAR UG PRO | H47: MT 180CC | I47: 147 | J47: 1 | K47: Particular | L47: 0 | M47: 0 | N47: 0 | O47: 0 | P47: 0 | Q47: 0 | R47: 0 | S47: 0 | T47: 0 | U47: 0 | V47: 0 | W47: 0 | X47: 0 | Y47: 0 | Z47: 0 | AA47: 0 | AB47: 0 | AC47: 0 | AD47: 0 | AE47: 0 | AF47: 0 | AG47: 0 | AH47: 0 | AI47: 0 | AJ47: 0 | AK47: 0 | AL47: 0 | AM47: 0 | AN47: 0 | AO47: 0 | AP47: 0 | AQ47: 0 | AR47: 0 | AS47: 0 | AT47: 0 | AU47: 0 | AV47: 0 | AW47: 0 | AX47: 0 | AY47: 0 | AZ47: 0 | BA47: 0 | BB47: 0 | BC47: 0 | BD47: 0 | BE47: 5000 | BF47: 5300 | BG47: 5600 | BH47: 6400 | BI47: 0 | BJ47: 17 | BK47: MT | BL47: 179 | BM47: COL | BN47: 2 | BO47: 0 | BP47: 0 | BQ47: 0 | BR47: 2 | BS47: Activo | BT47: GSL | BU47: 2X1 | BV47: 1 | BW47: 1
A48: 317063 | B48: N | C48: AUTECO | D48: MOTOCICLETA | F48: BAJAJ | G48: DISCOVER 150F | H48: MT 150CC | I48: 132 | J48: 1 | K48: Particular | L48: 0 | M48: 0 | N48: 0 | O48: 0 | P48: 0 | Q48: 0 | R48: 0 | S48: 0 | T48: 0 | U48: 0 | V48: 0 | W48: 0 | X48: 0 | Y48: 0 | Z48: 0 | AA48: 0 | AB48: 0 | AC48: 0 | AD48: 0 | AE48: 0 | AF48: 0 | AG48: 0 | AH48: 0 | AI48: 0 | AJ48: 0 | AK48: 0 | AL48: 0 | AM48: 0 | AN48: 0 | AO48: 0 | AP48: 0 | AQ48: 0 | AR48: 0 | AS48: 0 | AT48: 0 | AU48: 0 | AV48: 0 | AW48: 0 | AX48: 0 | AY48: 0 | AZ48: 0 | BA48: 0 | BB48: 0 | BC48: 0 | BD48: 0 | BE48: 0 | BF48: 4400 | BG48: 4700 | BH48: 5400 | BI48: 0 | BJ48: 14 | BK48: MT | BL48: 149 | BM48: COL | BN48: 2 | BO48: 0 | BP48: 0 | BQ48: 0 | BR48: 2 | BS48: Activo | BT48: GSL | BU48: 2X1 | BV48: 0 | BW48: 1
A49: 317064 | B49: N | C49: AUTECO | D49: MOTOCICLETA | F49: BAJAJ | G49: PLATINO 110 | H49: MT 110CC | I49: 108 | J49: 1 | K49: Particular | L49: 0 | M49: 0 | N49: 0 | O49: 0 | P49: 0 | Q49: 0 | R49: 0 | S49: 0 | T49: 0 | U49: 0 | V49: 0 | W49: 0 | X49: 0 | Y49: 0 | Z49: 0 | AA49: 0 | AB49: 0 | AC49: 0 | AD49: 0 | AE49: 0 | AF49: 0 | AG49: 0 | AH49: 0 | AI49: 0 | AJ49: 0 | AK49: 0 | AL49: 0 | AM49: 0 | AN49: 0 | AO49: 0 | AP49: 0 | AQ49: 0 | AR49: 0 | AS49: 0 | AT49: 0 | AU49: 0 | AV49: 0 | AW49: 0 | AX49: 0 | AY49: 0 | AZ49: 0 | BA49: 0 | BB49: 0 | BC49: 0 | BD49: 0 | BE49: 0 | BF49: 3200 | BG49: 3400 | BH49: 3900 | BI49: 0 | BJ49: 8 | BK49: MT | BL49: 102 | BM49: COL | BN49: 2 | BO49: 0 | BP49: 0 | BQ49: 0 | BR49: 2 | BS49: Activo | BT49: GSL | BU49: 2X1 | BV49: 1 | BW49: 1
A50: 317065 | B50: N | C50: AUTECO | D50: MOTOCICLETA | F50: BAJAJ | G50: PULSAR 150 NS | H50: MT 150CC | I50: 140 | J50: 1 | K50: Particular | L50: 0 | M50: 0 | N50: 0 | O50: 0 | P50: 0 | Q50: 0 | R50: 0 | S50: 0 | T50: 0 | U50: 0 | V50: 0 | W50: 0 | X50: 0 | Y50: 0 | Z50: 0 | AA50: 0 | AB50: 0 | AC50: 0 | AD50: 0 | AE50: 0 | AF50: 0 | AG50: 0 | AH50: 0 | AI50: 0 | AJ50: 0 | AK50: 0 | AL50: 0 | AM50: 0 | AN50: 0 | AO50: 0 | AP50: 0 | AQ50: 0 | AR50: 0 | AS50: 0 | AT50: 0 | AU50: 0 | AV50: 0 | AW50: 0 | AX50: 0 | AY50: 0 | AZ50: 0 | BA50: 0 | BB50: 0 | BC50: 0 | BD50: 0 | BE50: 0 | BF50: 5700 | BG50: 6000 | BH50: 6900 | BI50: 0 | BJ50: 17 | BK50: MT | BL50: 149 | BM50: COL | BN50: 2 | BO50: 0 | BP50: 0 | BQ50: 0 | BR50: 2 | BS50: Activo | BT50: GSL | BU50: 2X1 | BV50: 1 | BW50: 1
A51: 317066 | B51: N | C51: AUTECO | D51: MOTOCICLETA | F51: BAJAJ | G51: PULSAR AS 200 | H51: MT 200CC | I51: 153 | J51: 1 | K51: Particular | L51: 0 | M51: 0 | N51: 0 | O51: 0 | P51: 0 | Q51: 0 | R51: 0 | S51: 0 | T51: 0 | U51: 0 | V51: 0 | W51: 0 | X51: 0 | Y51: 0 | Z51: 0 | AA51: 0 | AB51: 0 | AC51: 0 | AD51: 0 | AE51: 0 | AF51: 0 | AG51: 0 | AH51: 0 | AI51: 0 | AJ51: 0 | AK51: 0 | AL51: 0 | AM51: 0 | AN51: 0 | AO51: 0 | AP51: 0 | AQ51: 0 | AR51: 0 | AS51: 0 | AT51: 0 | AU51: 0 | AV51: 0 | AW51: 0 | AX51: 0 | AY51: 0 | AZ51: 0 | BA51: 0 | BB51: 0 | BC51: 0 | BD51: 0 | BE51: 0 | BF51: 7400 | BG51: 7700 | BH51: 8900 | BI51: 0 | BJ51: 23 | BK51: MT | BL51: 200 | BM51: COL | BN51: 2 | BO51: 0 | BP51: 0 | BQ51: 0 | BR51: 2 | BS51: Activo | BT51: GSL | BU51: 2X1 | BV51: 1 | BW51: 1
A52: 317067 | B52: N | C52: AUTECO | D52: MOTOCICLETA | F52: BAJAJ | G52: PULSAR RS 200 | H52: MT 200CC | I52: 165 | J52: 1 | K52: Particular | L52: 0 | M52: 0 | N52: 0 | O52: 0 | P52: 0 | Q52: 0 | R52: 0 | S52: 0 | T52: 0 | U52: 0 | V52: 0 | W52: 0 | X52: 0 | Y52: 0 | Z52: 0 | AA52: 0 | AB52: 0 | AC52: 0 | AD52: 0 | AE52: 0 | AF52: 0 | AG52: 0 | AH52: 0 | AI52: 0 | AJ52: 0 | AK52: 0 | AL52: 0 | AM52: 0 | AN52: 0 | AO52: 0 | AP52: 0 | AQ52: 0 | AR52: 0 | AS52: 0 | AT52: 0 | AU52: 0 | AV52: 0 | AW52: 0 | AX52: 0 | AY52: 0 | AZ52: 0 | BA52: 0 | BB52: 0 | BC52: 0 | BD52: 0 | BE52: 0 | BF52: 11000 | BG52: 11000 | BH52: 12700 | BI52: 0 | BJ52: 24 | BK52: MT | BL52: 200 | BM52: COL | BN52: 2 | BO52: 0 | BP52: 0 | BQ52: 0 | BR52: 2 | BS52: Activo | BT52: GSL | BU52: 2X1 | BV52: 0 | BW52: 1
A53: 319001 | B53: M | C53: AUTECO | D53: MOTOCARRO | F53: PICK-UP VAN | G53: 150 | H53: MT 150CC | I53: 283 | J53: 1 | K53: Particular | L53: 0 | M53: 0 | N53: 0 | O53: 0 | P53: 0 | Q53: 0 | R53: 0 | S53: 0 | T53: 0 | U53: 0 | V53: 0 | W53: 0 | X53: 0 | Y53: 0 | Z53: 0 | AA53: 0 | AB53: 0 | AC53: 0 | AD53: 0 | AE53: 0 | AF53: 0 | AG53: 0 | AH53: 0 | AI53: 0 | AJ53: 0 | AK53: 0 | AL53: 0 | AM53: 0 | AN53: 0 | AO53: 0 | AP53: 0 | AQ53: 0 | AR53: 3000 | AS53: 3200 | AT53: 0 | AU53: 0 | AV53: 0 | AW53: 0 | AX53: 0 | AY53: 0 | AZ53: 0 | BA53: 0 | BB53: 0 | BC53: 0 | BD53: 0 | BE53: 0 | BF53: 0 | BG53: 8800 | BH53: 11000 | BI53: 1 | BJ53: 7 | BK53: MT | BL53: 146 | BM53: IND | BN53: 2 | BO53: 0 | BP53: 2 | BQ53: 0 | BR53: 2 | BS53: Activo | BT53: GSL | BU53: 3X1 | BV53: 0 | BW53: 1
A54: 319002 | B54: M | C54: AUTECO | D54: MOTOCARRO | F54: CAMELLITO | G54: 175 | H54: MT 175CC | I54: 200 | J54: 1 | K54: Particular | L54: 0 | M54: 0 | N54: 0 | O54: 0 | P54: 0 | Q54: 0 | R54: 0 | S54: 0 | T54: 0 | U54: 0 | V54: 0 | W54: 0 | X54: 0 | Y54: 0 | Z54: 0 | AA54: 0 | AB54: 0 | AC54: 0 | AD54: 0 | AE54: 0 | AF54: 0 | AG54: 0 | AH54: 0 | AI54: 0 | AJ54: 0 | AK54: 0 | AL54: 0 | AM54: 0 | AN54: 0 | AO54: 0 | AP54: 0 | AQ54: 0 | AR54: 0 | AS54: 0 | AT54: 0 | AU54: 4200 | AV54: 4500 | AW54: 4800 | AX54: 5200 | AY54: 5600 | AZ54: 6000 | BA54: 6400 | BB54: 0 | BC54: 0 | BD54: 0 | BE54: 0 | BF54: 0 | BG54: 9400 | BH54: 11800 | BI54: 1 | BJ54: 12 | BK54: MT | BL54: 175 | BM54: IND | BN54: 3 | BO54: 0 | BP54: 0 | BQ54: 0 | BR54: 2 | BS54: Activo | BT54: GSL | BU54: 3X1 | BV54: 0 | BW54: 1
A55: 319003 | B55: N | C55: AUTECO | D55: MOTOCARRO | F55: PICK-UP VAN | G55: 175 | H55: MT 175CC | I55: 305 | J55: 1 | K55: Particular | L55: 0 | M55: 0 | N55: 0 | O55: 0 | P55: 0 | Q55: 0 | R55: 0 | S55: 0 | T55: 0 | U55: 0 | V55: 0 | W55: 0 | X55: 0 | Y55: 0 | Z55: 0 | AA55: 0 | AB55: 0 | AC55: 0 | AD55: 0 | AE55: 0 | AF55: 0 | AG55: 0 | AH55: 0 | AI55: 0 | AJ55: 0 | AK55: 0 | AL55: 0 | AM55: 0 | AN55: 0 | AO55: 0 | AP55: 0 | AQ55: 0 | AR55: 0 | AS55: 3400 | AT55: 3600 | AU55: 3900 | AV55: 4200 | AW55: 0 | AX55: 0 | AY55: 0 | AZ55: 0 | BA55: 0 | BB55: 0 | BC55: 0 | BD55: 0 | BE55: 0 | BF55: 0 | BG55: 9400 | BH55: 11800 | BI55: 1 | BJ55: 8 | BK55: MT | BL55: 174 | BM55: IND | BN55: 3 | BO55: 0 | BP55: 0 | BQ55: 0 | BR55: 2 | BS55: Activo | BT55: GSL | BU55: 3X1 | BV55: 0 | BW55: 1
A56: 319004 | B56: N | C56: AUTECO | D56: MOTOCARRO | F56: PICK-UP VAN | G56: 400 | H56: MT 400CC DSL | I56: 353 | J56: 1 | K56: Particular | L56: 0 | M56: 0 | N56: 0 | O56: 0 | P56: 0 | Q56: 0 | R56: 0 | S56: 0 | T56: 0 | U56: 0 | V56: 0 | W56: 0 | X56: 0 | Y56: 0 | Z56: 0 | AA56: 0 | AB56: 0 | AC56: 0 | AD56: 0 | AE56: 0 | AF56: 0 | AG56: 0 | AH56: 0 | AI56: 0 | AJ56: 0 | AK56: 0 | AL56: 0 | AM56: 0 | AN56: 0 | AO56: 0 | AP56: 0 | AQ56: 0 | AR56: 0 | AS56: 0 | AT56: 0 | AU56: 0 | AV56: 0 | AW56: 6000 | AX56: 0 | AY56: 0 | AZ56: 0 | BA56: 0 | BB56: 0 | BC56: 0 | BD56: 0 | BE56: 0 | BF56: 0 | BG56: 11800 | BH56: 14800 | BI56: 1 | BJ56: 7 | BK56: MT | BL56: 417 | BM56: IND | BN56: 3 | BO56: 0 | BP56: 0 | BQ56: 0 | BR56: 2 | BS56: Activo | BT56: GSL | BU56: 3X1 | BV56: 0 | BW56: 1
A57: 319005 | B57: M | C57: AUTECO | D57: MOTOCARRO | F57: CAMELLITO | G57: FURGON [ASL] | H57: MT 175CC | I57: 350 | J57: 1 | K57: Particular | L57: 0 | M57: 0 | N57: 0 | O57: 0 | P57: 0 | Q57: 0 | R57: 0 | S57: 0 | T57: 0 | U57: 0 | V57: 0 | W57: 0 | X57: 0 | Y57: 0 | Z57: 0 | AA57: 0 | AB57: 0 | AC57: 0 | AD57: 0 | AE57: 0 | AF57: 0 | AG57: 0 | AH57: 0 | AI57: 0 | AJ57: 0 | AK57: 0 | AL57: 0 | AM57: 0 | AN57: 0 | AO57: 0 | AP57: 0 | AQ57: 0 | AR57: 0 | AS57: 0 | AT57: 0 | AU57: 0 | AV57: 0 | AW57: 0 | AX57: 0 | AY57: 7400 | AZ57: 7900 | BA57: 0 | BB57: 0 | BC57: 0 | BD57: 0 | BE57: 0 | BF57: 0 | BG57: 12300 | BH57: 15400 | BI57: 1 | BJ57: 6 | BK57: MT | BL57: 174 | BM57: IND | BN57: 3 | BO57: 0 | BP57: 0 | BQ57: 0 | BR57: 2 | BS57: Activo | BT57: GSL | BU57: 3X1 | BV57: 0 | BW57: 1
A58: 319006 | B58: N | C58: AUTECO | D58: MOTOCARRO | F58: CAMELLITO | G58: FURGON | H58: MT 175CC | I58: 350 | J58: 1 | K58: Particular | L58: 0 | M58: 0 | N58: 0 | O58: 0 | P58: 0 | Q58: 0 | R58: 0 | S58: 0 | T58: 0 | U58: 0 | V58: 0 | W58: 0 | X58: 0 | Y58: 0 | Z58: 0 | AA58: 0 | AB58: 0 | AC58: 0 | AD58: 0 | AE58: 0 | AF58: 0 | AG58: 0 | AH58: 0 | AI58: 0 | AJ58: 0 | AK58: 0 | AL58: 0 | AM58: 0 | AN58: 0 | AO58: 0 | AP58: 0 | AQ58: 0 | AR58: 0 | AS58: 0 | AT58: 0 | AU58: 0 | AV58: 0 | AW58: 0 | AX58: 0 | AY58: 0 | AZ58: 6700 | BA58: 0 | BB58: 0 | BC58: 0 | BD58: 0 | BE58: 0 | BF58: 0 | BG58: 10200 | BH58: 12800 | BI58: 1 | BJ58: 6 | BK58: MT | BL58: 174 | BM58: IND | BN58: 3 | BO58: 0 | BP58: 0 | BQ58: 0 | BR58: 2 | BS58: Activo | BT58: GSL | BU58: 3X1 | BV58: 0 | BW58: 1
A59: 319007 | B59: N | C59: AUTECO | D59: MOTOCARRO | F59: CAMELLITO | G59: WILLYS | H59: MT 175CC | I59: 305 | J59: 1 | K59: Particular | L59: 0 | M59: 0 | N59: 0 | O59: 0 | P59: 0 | Q59: 0 | R59: 0 | S59: 0 | T59: 0 | U59: 0 | V59: 0 | W59: 0 | X59: 0 | Y59: 0 | Z59: 0 | AA59: 0 | AB59: 0 | AC59: 0 | AD59: 0 | AE59: 0 | AF59: 0 | AG59: 0 | AH59: 0 | AI59: 0 | AJ59: 0 | AK59: 0 | AL59: 0 | AM59: 0 | AN59: 0 | AO59: 0 | AP59: 0 | AQ59: 0 | AR59: 0 | AS59: 0 | AT59: 0 | AU59: 0 | AV59: 0 | AW59: 0 | AX59: 0 | AY59: 0 | AZ59: 0 | BA59: 6500 | BB59: 0 | BC59: 0 | BD59: 0 | BE59: 0 | BF59: 0 | BG59: 10500 | BH59: 13100 | BI59: 1 | BJ59: 8 | BK59: MT | BL59: 174 | BM59: IND | BN59: 3 | BO59: 3258 | BP59: 0 | BQ59: 0 | BR59: 2 | BS59: Activo | BT59: GSL | BU59: 3X1 | BV59: 0 | BW59: 1
A60: 319008 | B60: N | C60: AUTECO | D60: MOTOCARRO | F60: CAMELLITO | G60: CHIVA | H60: MT 175CC | I60: 305 | J60: 1 | K60: Particular | L60: 0 | M60: 0 | N60: 0 | O60: 0 | P60: 0 | Q60: 0 | R60: 0 | S60: 0 | T60: 0 | U60: 0 | V60: 0 | W60: 0 | X60: 0 | Y60: 0 | Z60: 0 | AA60: 0 | AB60: 0 | AC60: 0 | AD60: 0 | AE60: 0 | AF60: 0 | AG60: 0 | AH60: 0 | AI60: 0 | AJ60: 0 | AK60: 0 | AL60: 0 | AM60: 0 | AN60: 0 | AO60: 0 | AP60: 0 | AQ60: 0 | AR60: 0 | AS60: 0 | AT60: 0 | AU60: 0 | AV60: 0 | AW60: 0 | AX60: 0 | AY60: 0 | AZ60: 0 | BA60: 9200 | BB60: 0 | BC60: 0 | BD60: 0 | BE60: 0 | BF60: 0 | BG60: 12300 | BH60: 15400 | BI60: 1 | BJ60: 8 | BK60: MT | BL60: 174 | BM60: IND | BN60: 3 | BO60: 3258 | BP60: 0 | BQ60: 0 | BR60: 2 | BS60: Activo | BT60: GSL | BU60: 3X1 | BV60: 0 | BW60: 1
A61: 319009 | B61: N | C61: AUTECO | D61: MOTOCARRO | F61: CAMELLITO | G61: CHASIS | H61: MT 175CC | I61: 305 | J61: 1 | K61: Particular | L61: 0 | M61: 0 | N61: 0 | O61: 0 | P61: 0 | Q61: 0 | R61: 0 | S61: 0 | T61: 0 | U61: 0 | V61: 0 | W61: 0 | X61: 0 | Y61: 0 | Z61: 0 | AA61: 0 | AB61: 0 | AC61: 0 | AD61: 0 | AE61: 0 | AF61: 0 | AG61: 0 | AH61: 0 | AI61: 0 | AJ61: 0 | AK61: 0 | AL61: 0 | AM61: 0 | AN61: 0 | AO61: 0 | AP61: 0 | AQ61: 0 | AR61: 0 | AS61: 0 | AT61: 0 | AU61: 0 | AV61: 0 | AW61: 0 | AX61: 0 | AY61: 0 | AZ61: 0 | BA61: 5100 | BB61: 0 | BC61: 0 | BD61: 0 | BE61: 0 | BF61: 0 | BG61: 7800 | BH61: 9800 | BI61: 1 | BJ61: 8 | BK61: MT | BL61: 174 | BM61: IND | BN61: 1 | BO61: 3258 | BP61: 0 | BQ61: 0 | BR61: 2 | BS61: Activo | BT61: GSL | BU61: 3X1 | BV61: 0 | BW61: 1
A62: 319010 | B62: N | C62: AUTECO | D62: MOTOCARRO | F62: CAMELLITO | G62: ESTACAS | H62: MT 175CC | I62: 305 | J62: 1 | K62: Particular | L62: 0 | M62: 0 | N62: 0 | O62: 0 | P62: 0 | Q62: 0 | R62: 0 | S62: 0 | T62: 0 | U62: 0 | V62: 0 | W62: 0 | X62: 0 | Y62: 0 | Z62: 0 | AA62: 0 | AB62: 0 | AC62: 0 | AD62: 0 | AE62: 0 | AF62: 0 | AG62: 0 | AH62: 0 | AI62: 0 | AJ62: 0 | AK62: 0 | AL62: 0 | AM62: 0 | AN62: 0 | AO62: 0 | AP62: 0 | AQ62: 0 | AR62: 0 | AS62: 0 | AT62: 0 | AU62: 0 | AV62: 0 | AW62: 0 | AX62: 0 | AY62: 0 | AZ62: 0 | BA62: 5400 | BB62: 0 | BC62: 0 | BD62: 0 | BE62: 0 | BF62: 0 | BG62: 9300 | BH62: 11600 | BI62: 1 | BJ62: 8 | BK62: MT | BL62: 174 | BM62: IND | BN62: 1 | BO62: 3258 | BP62: 0 | BQ62: 0 | BR62: 2 | BS62: Activo | BT62: GSL | BU62: 3X1 | BV62: 0 | BW62: 1
A63: 319011 | B63: N | C63: AUTECO | D63: MOTOCARRO | F63: CAMELLITO | G63: ESTACAS ALUMINIO | H63: MT 175CC | I63: 305 | J63: 1 | K63: Particular | L63: 0 | M63: 0 | N63: 0 | O63: 0 | P63: 0 | Q63: 0 | R63: 0 | S63: 0 | T63: 0 | U63: 0 | V63: 0 | W63: 0 | X63: 0 | Y63: 0 | Z63: 0 | AA63: 0 | AB63: 0 | AC63: 0 | AD63: 0 | AE63: 0 | AF63: 0 | AG63: 0 | AH63: 0 | AI63: 0 | AJ63: 0 | AK63: 0 | AL63: 0 | AM63: 0 | AN63: 0 | AO63: 0 | AP63: 0 | AQ63: 0 | AR63: 0 | AS63: 0 | AT63: 0 | AU63: 0 | AV63: 0 | AW63: 0 | AX63: 0 | AY63: 0 | AZ63: 7100 | BA63: 7600 | BB63: 0 | BC63: 0 | BD63: 0 | BE63: 0 | BF63: 0 | BG63: 11400 | BH63: 14300 | BI63: 1 | BJ63: 8 | BK63: MT | BL63: 174 | BM63: IND | BN63: 1 | BO63: 3258 | BP63: 0 | BQ63: 0 | BR63: 2 | BS63: Activo | BT63: GSL | BU63: 3X1 | BV63: 0 | BW63: 1
A64: 319012 | B64: N | C64: AUTECO | D64: MOTOCARRO | F64: CAMELLITO | G64: FURGON ALUMINIO | H64: MT 175CC | I64: 305 | J64: 1 | K64: Particular | L64: 0 | M64: 0 | N64: 0 | O64: 0 | P64: 0 | Q64: 0 | R64: 0 | S64: 0 | T64: 0 | U64: 0 | V64: 0 | W64: 0 | X64: 0 | Y64: 0 | Z64: 0 | AA64: 0 | AB64: 0 | AC64: 0 | AD64: 0 | AE64: 0 | AF64: 0 | AG64: 0 | AH64: 0 | AI64: 0 | AJ64: 0 | AK64: 0 | AL64: 0 | AM64: 0 | AN64: 0 | AO64: 0 | AP64: 0 | AQ64: 0 | AR64: 0 | AS64: 0 | AT64: 0 | AU64: 0 | AV64: 0 | AW64: 0 | AX64: 0 | AY64: 0 | AZ64: 0 | BA64: 6900 | BB64: 0 | BC64: 0 | BD64: 0 | BE64: 0 | BF64: 0 | BG64: 10200 | BH64: 12800 | BI64: 1 | BJ64: 8 | BK64: MT | BL64: 174 | BM64: IND | BN64: 1 | BO64: 3258 | BP64: 0 | BQ64: 0 | BR64: 2 | BS64: Activo | BT64: GSL | BU64: 3X1 | BV64: 0 | BW64: 1
A65: 319013 | B65: N | C65: AUTECO | D65: MOTOCARRO | F65: CAMELLITO | G65: REPARTO | H65: MT 175CC | I65: 305 | J65: 1 | K65: Particular | L65: 0 | M65: 0 | N65: 0 | O65: 0 | P65: 0 | Q65: 0 | R65: 0 | S65: 0 | T65: 0 | U65: 0 | V65: 0 | W65: 0 | X65: 0 | Y65: 0 | Z65: 0 | AA65: 0 | AB65: 0 | AC65: 0 | AD65: 0 | AE65: 0 | AF65: 0 | AG65: 0 | AH65: 0 | AI65: 0 | AJ65: 0 | AK65: 0 | AL65: 0 | AM65: 0 | AN65: 0 | AO65: 0 | AP65: 0 | AQ65: 0 | AR65: 0 | AS65: 0 | AT65: 0 | AU65: 0 | AV65: 0 | AW65: 0 | AX65: 0 | AY65: 0 | AZ65: 0 | BA65: 7000 | BB65: 0 | BC65: 0 | BD65: 0 | BE65: 0 | BF65: 0 | BG65: 9700 | BH65: 12100 | BI65: 1 | BJ65: 8 | BK65: MT | BL65: 174 | BM65: IND | BN65: 1 | BO65: 3258 | BP65: 2 | BQ65: 0 | BR65: 2 | BS65: Activo | BT65: GSL | BU65: 3X1 | BV65: 0 | BW65: 1
A66: 319014 | B66: N | C66: AUTECO | D66: MOTOCARRO | F66: PICK-UP VAN | G66: 450 | H66: MT 450CC DSL | I66: 398 | J66: 1 | K66: Particular | L66: 0 | M66: 0 | N66: 0 | O66: 0 | P66: 0 | Q66: 0 | R66: 0 | S66: 0 | T66: 0 | U66: 0 | V66: 0 | W66: 0 | X66: 0 | Y66: 0 | Z66: 0 | AA66: 0 | AB66: 0 | AC66: 0 | AD66: 0 | AE66: 0 | AF66: 0 | AG66: 0 | AH66: 0 | AI66: 0 | AJ66: 0 | AK66: 0 | AL66: 0 | AM66: 0 | AN66: 0 | AO66: 0 | AP66: 0 | AQ66: 0 | AR66: 0 | AS66: 0 | AT66: 0 | AU66: 0 | AV66: 0 | AW66: 0 | AX66: 0 | AY66: 0 | AZ66: 0 | BA66: 8200 | BB66: 0 | BC66: 0 | BD66: 0 | BE66: 0 | BF66: 0 | BG66: 11500 | BH66: 14400 | BI66: 1 | BJ66: 7 | BK66: MT | BL66: 447 | BM66: IND | BN66: 2 | BO66: 432 | BP66: 2 | BQ66: 0 | BR66: 2 | BS66: Activo | BT66: GSL | BU66: 3X1 | BV66: 0 | BW66: 1
A67: 319015 | B67: N | C67: AUTECO | D67: MOTOCARRO | F67: CAMELLITO | G67: RE205 D C. ESPECIAL | H67: MT 199CC | I67: 329 | J67: 1 | K67: Particular | L67: 0 | M67: 0 | N67: 0 | O67: 0 | P67: 0 | Q67: 0 | R67: 0 | S67: 0 | T67: 0 | U67: 0 | V67: 0 | W67: 0 | X67: 0 | Y67: 0 | Z67: 0 | AA67: 0 | AB67: 0 | AC67: 0 | AD67: 0 | AE67: 0 | AF67: 0 | AG67: 0 | AH67: 0 | AI67: 0 | AJ67: 0 | AK67: 0 | AL67: 0 | AM67: 0 | AN67: 0 | AO67: 0 | AP67: 0 | AQ67: 0 | AR67: 0 | AS67: 0 | AT67: 0 | AU67: 0 | AV67: 0 | AW67: 0 | AX67: 0 | AY67: 0 | AZ67: 0 | BA67: 6600 | BB67: 7100 | BC67: 0 | BD67: 0 | BE67: 0 | BF67: 0 | BG67: 9300 | BH67: 11600 | BI67: 1 | BJ67: 10 | BK67: MT | BL67: 199 | BM67: IND | BN67: 4 | BO67: 0 | BP67: 0 | BQ67: 0 | BR67: 2 | BS67: Activo | BT67: GSL | BU67: 3X1 | BV67: 0 | BW67: 1
A68: 319016 | B68: M | C68: AUTECO | D68: MOTOCARRO | F68: CAMELLITO | G68: RE205 D WILLIS | H68: MT 199CC | I68: 329 | J68: 1 | K68: Particular | L68: 0 | M68: 0 | N68: 0 | O68: 0 | P68: 0 | Q68: 0 | R68: 0 | S68: 0 | T68: 0 | U68: 0 | V68: 0 | W68: 0 | X68: 0 | Y68: 0 | Z68: 0 | AA68: 0 | AB68: 0 | AC68: 0 | AD68: 0 | AE68: 0 | AF68: 0 | AG68: 0 | AH68: 0 | AI68: 0 | AJ68: 0 | AK68: 0 | AL68: 0 | AM68: 0 | AN68: 0 | AO68: 0 | AP68: 0 | AQ68: 0 | AR68: 0 | AS68: 0 | AT68: 0 | AU68: 0 | AV68: 0 | AW68: 0 | AX68: 0 | AY68: 0 | AZ68: 0 | BA68: 0 | BB68: 7600 | BC68: 8200 | BD68: 9800 | BE68: 0 | BF68: 0 | BG68: 10500 | BH68: 13100 | BI68: 1 | BJ68: 10 | BK68: MT | BL68: 199 | BM68: IND | BN68: 4 | BO68: 0 | BP68: 4 | BQ68: 0 | BR68: 2 | BS68: Activo | BT68: GSL | BU68: 3X1 | BV68: 0 | BW68: 1
A69: 319017 | B69: N | C69: AUTECO | D69: MOTOCARRO | F69: CAMELLITO | G69: RE205 D BASICO | H69: MT 199CC | I69: 329 | J69: 1 | K69: Particular | L69: 0 | M69: 0 | N69: 0 | O69: 0 | P69: 0 | Q69: 0 | R69: 0 | S69: 0 | T69: 0 | U69: 0 | V69: 0 | W69: 0 | X69: 0 | Y69: 0 | Z69: 0 | AA69: 0 | AB69: 0 | AC69: 0 | AD69: 0 | AE69: 0 | AF69: 0 | AG69: 0 | AH69: 0 | AI69: 0 | AJ69: 0 | AK69: 0 | AL69: 0 | AM69: 0 | AN69: 0 | AO69: 0 | AP69: 0 | AQ69: 0 | AR69: 0 | AS69: 0 | AT69: 0 | AU69: 0 | AV69: 0 | AW69: 0 | AX69: 0 | AY69: 0 | AZ69: 0 | BA69: 0 | BB69: 0 | BC69: 7100 | BD69: 8100 | BE69: 0 | BF69: 0 | BG69: 8700 | BH69: 10900 | BI69: 1 | BJ69: 10 | BK69: MT | BL69: 199 | BM69: IND | BN69: 4 | BO69: 0 | BP69: 0 | BQ69: 0 | BR69: 2 | BS69: Activo | BT69: GSL | BU69: 3X1 | BV69: 0 | BW69: 1
A70: 319018 | B70: M | C70: AUTECO | D70: MOTOCARRO | F70: CAMELLITO | G70: RE600 FURGON [ASL] | H70: MT 448CC DSL | I70: 398 | J70: 1 | K70: Particular | L70: 0 | M70: 0 | N70: 0 | O70: 0 | P70: 0 | Q70: 0 | R70: 0 | S70: 0 | T70: 0 | U70: 0 | V70: 0 | W70: 0 | X70: 0 | Y70: 0 | Z70: 0 | AA70: 0 | AB70: 0 | AC70: 0 | AD70: 0 | AE70: 0 | AF70: 0 | AG70: 0 | AH70: 0 | AI70: 0 | AJ70: 0 | AK70: 0 | AL70: 0 | AM70: 0 | AN70: 0 | AO70: 0 | AP70: 0 | AQ70: 0 | AR70: 0 | AS70: 0 | AT70: 0 | AU70: 0 | AV70: 0 | AW70: 0 | AX70: 0 | AY70: 0 | AZ70: 0 | BA70: 10300 | BB70: 0 | BC70: 0 | BD70: 0 | BE70: 0 | BF70: 0 | BG70: 14900 | BH70: 18600 | BI70: 1 | BJ70: 8 | BK70: MT | BL70: 416 | BM70: IND | BN70: 2 | BO70: 600 | BP70: 2 | BQ70: 0 | BR70: 2 | BS70: Activo | BT70: DSL | BU70: 3X1 | BV70: 0 | BW70: 1
A71: 319019 | B71: N | C71: AUTECO | D71: MOTOCARRO | F71: CAMELLITO | G71: RE205 D FURGON | H71: MT 199CC | I71: 300 | J71: 1 | K71: Particular | L71: 0 | M71: 0 | N71: 0 | O71: 0 | P71: 0 | Q71: 0 | R71: 0 | S71: 0 | T71: 0 | U71: 0 | V71: 0 | W71: 0 | X71: 0 | Y71: 0 | Z71: 0 | AA71: 0 | AB71: 0 | AC71: 0 | AD71: 0 | AE71: 0 | AF71: 0 | AG71: 0 | AH71: 0 | AI71: 0 | AJ71: 0 | AK71: 0 | AL71: 0 | AM71: 0 | AN71: 0 | AO71: 0 | AP71: 0 | AQ71: 0 | AR71: 0 | AS71: 0 | AT71: 0 | AU71: 0 | AV71: 0 | AW71: 0 | AX71: 0 | AY71: 0 | AZ71: 0 | BA71: 0 | BB71: 0 | BC71: 11000 | BD71: 12200 | BE71: 12900 | BF71: 13500 | BG71: 15000 | BH71: 18800 | BI71: 1 | BJ71: 10 | BK71: MT | BL71: 199 | BM71: IND | BN71: 2 | BO71: 342 | BP71: 2 | BQ71: 0 | BR71: 2 | BS71: Activo | BT71: GSL | BU71: 3X1 | BV71: 0 | BW71: 1
A72: 319020 | B72: N | C72: AUTECO | D72: MOTOCARRO | F72: TORITO | G72: RE205 D BASICO | H72: MT 199CC | I72: 329 | J72: 1 | K72: Particular | L72: 0 | M72: 0 | N72: 0 | O72: 0 | P72: 0 | Q72: 0 | R72: 0 | S72: 0 | T72: 0 | U72: 0 | V72: 0 | W72: 0 | X72: 0 | Y72: 0 | Z72: 0 | AA72: 0 | AB72: 0 | AC72: 0 | AD72: 0 | AE72: 0 | AF72: 0 | AG72: 0 | AH72: 0 | AI72: 0 | AJ72: 0 | AK72: 0 | AL72: 0 | AM72: 0 | AN72: 0 | AO72: 0 | AP72: 0 | AQ72: 0 | AR72: 0 | AS72: 0 | AT72: 0 | AU72: 0 | AV72: 0 | AW72: 0 | AX72: 0 | AY72: 0 | AZ72: 0 | BA72: 0 | BB72: 0 | BC72: 0 | BD72: 0 | BE72: 9000 | BF72: 10000 | BG72: 10800 | BH72: 13500 | BI72: 1 | BJ72: 10 | BK72: MT | BL72: 199 | BM72: IND | BN72: 4 | BO72: 342 | BP72: 4 | BQ72: 0 | BR72: 2 | BS72: Activo | BT72: GSL | BU72: 3X1 | BV72: 0 | BW72: 1
A73: 408008 | B73: A | C73: AROCARPATI | D73: CAMPERO | F73: D127 | G73: 240 | H73: MT 2500CC LONA DSL | I73: 1950 | J73: 1 | K73: Particular | L73: 0 | M73: 0 | N73: 0 | O73: 0 | P73: 0 | Q73: 0 | R73: 0 | S73: 0 | T73: 0 | U73: 0 | V73: 0 | W73: 0 | X73: 0 | Y73: 0 | Z73: 0 | AA73: 0 | AB73: 0 | AC73: 0 | AD73: 3500 | AE73: 0 | AF73: 0 | AG73: 0 | AH73: 0 | AI73: 0 | AJ73: 0 | AK73: 0 | AL73: 0 | AM73: 0 | AN73: 0 | AO73: 0 | AP73: 0 | AQ73: 0 | AR73: 0 | AS73: 0 | AT73: 0 | AU73: 0 | AV73: 0 | AW73: 0 | AX73: 0 | AY73: 0 | AZ73: 0 | BA73: 0 | BB73: 0 | BC73: 0 | BD73: 0 | BE73: 0 | BF73: 0 | BG73: 37000 | BH73: 46300 | BI73: 1 | BJ73: 68 | BK73: MT | BL73: 2500 | BM73: RUM | BN73: 5 | BO73: 0 | BP73: 3 | BQ73: 0 | BR73: 2 | BS73: Activo | BU73: 4X4 | BV73: 0 | BW73: 2
A74: 408014 | B74: M | C74: AROCARPATI | D74: CAMPERO | F74: 240 | G74: 13 PSJ | H74: MT 2500CC TAXI | I74: 2000 | J74: 2 | K74: Publico | L74: 0 | M74: 0 | N74: 0 | O74: 0 | P74: 0 | Q74: 0 | R74: 0 | S74: 0 | T74: 0 | U74: 0 | V74: 0 | W74: 0 | X74: 0 | Y74: 0 | Z74: 0 | AA74: 0 | AB74: 0 | AC74: 0 | AD74: 0 | AE74: 0 | AF74: 200 | AG74: 0 | AH74: 0 | AI74: 0 | AJ74: 0 | AK74: 0 | AL74: 0 | AM74: 0 | AN74: 0 | AO74: 0 | AP74: 0 | AQ74: 0 | AR74: 0 | AS74: 0 | AT74: 0 | AU74: 0 | AV74: 0 | AW74: 0 | AX74: 0 | AY74: 0 | AZ74: 0 | BA74: 0 | BB74: 0 | BC74: 0 | BD74: 0 | BE74: 0 | BF74: 0 | BG74: 20600 | BH74: 25800 | BI74: 1 | BJ74: 75 | BK74: MT | BL74: 2500 | BM74: RUM | BN74: 13 | BO74: 0 | BP74: 3 | BQ74: 0 | BR74: 2 | BS74: Activo | BT74: GSL | BU74: 4X4 | BV74: 0 | BW74: 2
A75: 408015 | B75: A | C75: AROCARPATI | D75: CAMPERO | F75: 240 | G75: 240 | H75: MT 2500CC GAS | I75: 2200 | J75: 1 | K75: Particular | L75: 0 | M75: 0 | N75: 0 | O75: 0 | P75: 0 | Q75: 0 | R75: 0 | S75: 0 | T75: 0 | U75: 0 | V75: 2800 | W75: 0 | X75: 0 | Y75: 0 | Z75: 0 | AA75: 0 | AB75: 0 | AC75: 0 | AD75: 0 | AE75: 0 | AF75: 0 | AG75: 0 | AH75: 0 | AI75: 6600 | AJ75: 0 | AK75: 0 | AL75: 0 | AM75: 0 | AN75: 0 | AO75: 0 | AP75: 0 | AQ75: 0 | AR75: 0 | AS75: 0 | AT75: 0 | AU75: 0 | AV75: 0 | AW75: 0 | AX75: 0 | AY75: 0 | AZ75: 0 | BA75: 0 | BB75: 0 | BC75: 0 | BD75: 0 | BE75: 0 | BF75: 0 | BG75: 40000 | BH75: 50000 | BI75: 1 | BJ75: 75 | BK75: MT | BL75: 2500 | BM75: RUM | BN75: 5 | BO75: 0 | BP75: 3 | BQ75: 0 | BR75: 2 | BS75: Activo | BU75: 4X4 | BV75: 0 | BW75: 2
A76: 408016 | B76: M | C76: AROCARPATI | D76: CAMPERO | F76: 244 | G76: 244 | H76: MT 2700CC | I76: 1350 | J76: 1 | K76: Particular | L76: 0 | M76: 0 | N76: 0 | O76: 0 | P76: 0 | Q76: 0 | R76: 0 | S76: 0 | T76: 0 | U76: 0 | V76: 0 | W76: 0 | X76: 0 | Y76: 0 | Z76: 0 | AA76: 0 | AB76: 0 | AC76: 0 | AD76: 0 | AE76: 0 | AF76: 0 | AG76: 0 | AH76: 0 | AI76: 0 | AJ76: 0 | AK76: 0 | AL76: 0 | AM76: 0 | AN76: 0 | AO76: 0 | AP76: 0 | AQ76: 11200 | AR76: 0 | AS76: 0 | AT76: 0 | AU76: 0 | AV76: 0 | AW76: 0 | AX76: 0 | AY76: 0 | AZ76: 0 | BA76: 0 | BB76: 0 | BC76: 0 | BD76: 0 | BE76: 0 | BF76: 0 | BG76: 44000 | BH76: 55000 | BI76: 1 | BJ76: 80 | BK76: MT | BL76: 2660 | BM76: RUM | BN76: 5 | BO76: 0 | BP76: 3 | BQ76: 0 | BR76: 2 | BS76: Activo | BT76: GSL | BU76: 4X4 | BV76: 0 | BW76: 1
A77: 408017 | B77: A | C77: AROCARPATI | D77: CAMPERO | F77: 243 | G77: 4X4 | H77: MT 1600CC 3P DSL | I77: 0 | J77: 1 | K77: Particular | L77: 0 | M77: 0 | N77: 0 | O77: 0 | P77: 0 | Q77: 0 | R77: 0 | S77: 0 | T77: 0 | U77: 0 | V77: 0 | W77: 0 | X77: 0 | Y77: 0 | Z77: 0 | AA77: 0 | AB77: 0 | AC77: 0 | AD77: 0 | AE77: 0 | AF77: 0 | AG77: 0 | AH77: 0 | AI77: 0 | AJ77: 0 | AK77: 0 | AL77: 0 | AM77: 0 | AN77: 0 | AO77: 0 | AP77: 0 | AQ77: 0 | AR77: 0 | AS77: 0 | AT77: 0 | AU77: 8600 | AV77: 0 | AW77: 0 | AX77: 0 | AY77: 0 | AZ77: 0 | BA77: 0 | BB77: 0 | BC77: 0 | BD77: 0 | BE77: 0 | BF77: 0 | BG77: 25600 | BH77: 32000 | BI77: 1 | BJ77: 0 | BK77: MT | BL77: 1600 | BM77: RUM | BN77: 5 | BO77: 0 | BP77: 3 | BQ77: 0 | BR77: 2 | BS77: Activo | BU77: 4X4 | BV77: 0 | BW77: 1
A78: 421001 | B78: A | C78: AROCARPATI | D78: PICKUP DOBLE CAB | F78: 324 | G78: TDX | H78: MT 2700CC DSL | I78: 1380 | J78: 1 | K78: Particular | L78: 0 | M78: 0 | N78: 0 | O78: 0 | P78: 0 | Q78: 0 | R78: 0 | S78: 0 | T78: 0 | U78: 0 | V78: 0 | W78: 0 | X78: 0 | Y78: 0 | Z78: 0 | AA78: 0 | AB78: 0 | AC78: 0 | AD78: 0 | AE78: 0 | AF78: 0 | AG78: 0 | AH78: 0 | AI78: 0 | AJ78: 0 | AK78: 0 | AL78: 0 | AM78: 0 | AN78: 0 | AO78: 0 | AP78: 0 | AQ78: 15400 | AR78: 0 | AS78: 0 | AT78: 0 | AU78: 0 | AV78: 0 | AW78: 0 | AX78: 0 | AY78: 0 | AZ78: 0 | BA78: 0 | BB78: 0 | BC78: 0 | BD78: 0 | BE78: 0 | BF78: 0 | BG78: 60400 | BH78: 75500 | BI78: 1 | BJ78: 95 | BK78: MT | BL78: 2700 | BM78: RUM | BN78: 5 | BO78: 0 | BP78: 4 | BQ78: 0 | BR78: 2 | BS78: Activo | BV78: 0 | BW78: 1
A79: 503001 | B79: M | C79: ASIA | D79: BUS / BUSETA / MICROBUS | F79: COMBI | G79: AM 825 | H79: MT 4100CC DSL 4X2 [INT] | I79: 2350 | J79: 1 | K79: Particular | L79: 0 | M79: 0 | N79: 0 | O79: 0 | P79: 0 | Q79: 0 | R79: 0 | S79: 0 | T79: 0 | U79: 0 | V79: 0 | W79: 0 | X79: 0 | Y79: 0 | Z79: 0 | AA79: 0 | AB79: 0 | AC79: 0 | AD79: 0 | AE79: 0 | AF79: 0 | AG79: 0 | AH79: 0 | AI79: 13400 | AJ79: 14100 | AK79: 14800 | AL79: 15600 | AM79: 16400 | AN79: 17300 | AO79: 0 | AP79: 0 | AQ79: 0 | AR79: 0 | AS79: 0 | AT79: 0 | AU79: 0 | AV79: 0 | AW79: 0 | AX79: 0 | AY79: 0 | AZ79: 0 | BA79: 0 | BB79: 0 | BC79: 0 | BD79: 0 | BE79: 0 | BF79: 0 | BG79: 40100 | BH79: 50100 | BI79: 1 | BJ79: 100 | BK79: MT | BL79: 4052 | BM79: KOR | BN79: 20 | BO79: 0 | BP79: 3 | BQ79: 0 | BR79: 2 | BS79: Activo | BT79: DSL | BU79: 4X2 | BV79: 0 | BW79: 2
A80: 503002 | B80: A | C80: ASIA | D80: BUS / BUSETA / MICROBUS | F80: COSMOS | G80: COSMOS | H80: MT 5000CC DSL 4X2 | I80: 14000 | J80: 1 | K80: Particular | L80: 0 | M80: 0 | N80: 0 | O80: 0 | P80: 0 | Q80: 0 | R80: 0 | S80: 0 | T80: 0 | U80: 0 | V80: 0 | W80: 0 | X80: 0 | Y80: 0 | Z80: 0 | AA80: 0 | AB80: 0 | AC80: 0 | AD80: 0 | AE80: 0 | AF80: 0 | AG80: 0 | AH80: 0 | AI80: 0 | AJ80: 41000 | AK80: 43200 | AL80: 45500 | AM80: 47900 | AN80: 0 | AO80: 0 | AP80: 0 | AQ80: 0 | AR80: 0 | AS80: 0 | AT80: 0 | AU80: 0 | AV80: 0 | AW80: 0 | AX80: 0 | AY80: 0 | AZ80: 0 | BA80: 0 | BB80: 0 | BC80: 0 | BD80: 0 | BE80: 0 | BF80: 0 | BG80: 152400 | BH80: 190500 | BI80: 1 | BJ80: 175 | BK80: MT | BL80: 5000 | BM80: KOR | BN80: 31 | BO80: 0 | BP80: 2 | BQ80: 0 | BR80: 2 | BS80: Activo | BV80: 0 | BW80: 2
A81: 503003 | B81: A | C81: ASIA | D81: BUS / BUSETA / MICROBUS | F81: CITY | G81: AM 973 | H81: MT 5500CC DSL 4X2 | I81: 13500 | J81: 1 | K81: Particular | L81: 0 | M81: 0 | N81: 0 | O81: 0 | P81: 0 | Q81: 0 | R81: 0 | S81: 0 | T81: 0 | U81: 0 | V81: 0 | W81: 0 | X81: 0 | Y81: 0 | Z81: 0 | AA81: 0 | AB81: 0 | AC81: 0 | AD81: 0 | AE81: 0 | AF81: 0 | AG81: 0 | AH81: 0 | AI81: 0 | AJ81: 16300 | AK81: 17200 | AL81: 18100 | AM81: 19000 | AN81: 0 | AO81: 0 | AP81: 0 | AQ81: 0 | AR81: 0 | AS81: 0 | AT81: 0 | AU81: 0 | AV81: 0 | AW81: 0 | AX81: 0 | AY81: 0 | AZ81: 0 | BA81: 0 | BB81: 0 | BC81: 0 | BD81: 0 | BE81: 0 | BF81: 0 | BG81: 67200 | BH81: 84000 | BI81: 1 | BJ81: 170 | BK81: MT | BL81: 5500 | BM81: KOR | BN81: 30 | BO81: 0 | BP81: 2 | BQ81: 0 | BR81: 2 | BS81: Activo | BV81: 0 | BW81: 2
A82: 503004 | B82: M | C82: ASIA | D82: BUS / BUSETA / MICROBUS | F82: HI TOPIC | G82: AM 715 | H82: MT 2700CC DSL 4X2 | I82: 1200 | J82: 1 | K82: Particular | L82: 0 | M82: 0 | N82: 0 | O82: 0 | P82: 0 | Q82: 0 | R82: 0 | S82: 0 | T82: 0 | U82: 0 | V82: 0 | W82: 0 | X82: 0 | Y82: 0 | Z82: 0 | AA82: 0 | AB82: 0 | AC82: 0 | AD82: 0 | AE82: 0 | AF82: 0 | AG82: 0 | AH82: 0 | AI82: 6100 | AJ82: 6500 | AK82: 7000 | AL82: 7500 | AM82: 8000 | AN82: 0 | AO82: 0 | AP82: 0 | AQ82: 0 | AR82: 0 | AS82: 0 | AT82: 0 | AU82: 0 | AV82: 0 | AW82: 0 | AX82: 0 | AY82: 0 | AZ82: 0 | BA82: 0 | BB82: 0 | BC82: 0 | BD82: 0 | BE82: 0 | BF82: 0 | BG82: 23800 | BH82: 29800 | BI82: 1 | BJ82: 76 | BK82: MT | BL82: 2700 | BM82: KOR | BN82: 19 | BO82: 0 | BP82: 2 | BQ82: 1 | BR82: 2 | BS82: Activo | BT82: DSL | BU82: 4X2 | BV82: 0 | BW82: 1
A83: 506002 | B83: M | C83: ASIA | D83: CAMIONETA PASAJ. | F83: TOWNER | G83: DLX | H83: MT 800CC MINIVAN | I83: 1100 | J83: 1 | K83: Particular | L83: 0 | M83: 0 | N83: 0 | O83: 0 | P83: 0 | Q83: 0 | R83: 0 | S83: 0 | T83: 0 | U83: 0 | V83: 0 | W83: 0 | X83: 0 | Y83: 0 | Z83: 0 | AA83: 0 | AB83: 0 | AC83: 0 | AD83: 0 | AE83: 0 | AF83: 0 | AG83: 0 | AH83: 0 | AI83: 0 | AJ83: 3400 | AK83: 3600 | AL83: 3900 | AM83: 4200 | AN83: 0 | AO83: 0 | AP83: 0 | AQ83: 0 | AR83: 0 | AS83: 0 | AT83: 0 | AU83: 0 | AV83: 0 | AW83: 0 | AX83: 0 | AY83: 0 | AZ83: 0 | BA83: 0 | BB83: 0 | BC83: 0 | BD83: 0 | BE83: 0 | BF83: 0 | BG83: 19800 | BH83: 24800 | BI83: 1 | BJ83: 52 | BK83: MT | BL83: 800 | BM83: KOR | BN83: 8 | BO83: 0 | BP83: 3 | BQ83: 1 | BR83: 2 | BS83: Activo | BT83: GSL | BU83: 4X2 | BV83: 0 | BW83: 1
A84: 506003 | B84: A | C84: ASIA | D84: CAMIONETA PASAJ. | F84: HI TOPIC | G84: STD | H84: MT 2700CC DSL | I84: 2100 | J84: 1 | K84: Particular | L84: 0 | M84: 0 | N84: 0 | O84: 0 | P84: 0 | Q84: 0 | R84: 0 | S84: 0 | T84: 0 | U84: 0 | V84: 0 | W84: 0 | X84: 0 | Y84: 0 | Z84: 0 | AA84: 0 | AB84: 0 | AC84: 0 | AD84: 0 | AE84: 0 | AF84: 0 | AG84: 0 | AH84: 0 | AI84: 0 | AJ84: 0 | AK84: 8700 | AL84: 0 | AM84: 0 | AN84: 10800 | AO84: 0 | AP84: 0 | AQ84: 0 | AR84: 0 | AS84: 0 | AT84: 0 | AU84: 0 | AV84: 0 | AW84: 0 | AX84: 0 | AY84: 0 | AZ84: 0 | BA84: 0 | BB84: 0 | BC84: 0 | BD84: 0 | BE84: 0 | BF84: 0 | BG84: 55000 | BH84: 68800 | BI84: 1 | BJ84: 110 | BK84: MT | BL84: 2700 | BM84: KOR | BN84: 15 | BO84: 0 | BP84: 3 | BQ84: 1 | BR84: 2 | BS84: Activo | BT84: DSL | BU84: 4X2 | BV84: 0 | BW84: 2
A85: 507001 | B85: A | C85: ASIA | D85: CAMIONETA REPAR | F85: TOWNER | G85: PANEL | H85: MT 800CC | I85: 1100 | J85: 1 | K85: Particular | L85: 0 | M85: 0 | N85: 0 | O85: 0 | P85: 0 | Q85: 0 | R85: 0 | S85: 0 | T85: 0 | U85: 0 | V85: 0 | W85: 0 | X85: 0 | Y85: 0 | Z85: 0 | AA85: 0 | AB85: 0 | AC85: 0 | AD85: 0 | AE85: 0 | AF85: 0 | AG85: 0 | AH85: 0 | AI85: 0 | AJ85: 2900 | AK85: 3100 | AL85: 3300 | AM85: 3500 | AN85: 0 | AO85: 0 | AP85: 0 | AQ85: 0 | AR85: 0 | AS85: 0 | AT85: 0 | AU85: 0 | AV85: 0 | AW85: 0 | AX85: 0 | AY85: 0 | AZ85: 0 | BA85: 0 | BB85: 0 | BC85: 0 | BD85: 0 | BE85: 0 | BF85: 0 | BG85: 18300 | BH85: 22900 | BI85: 1 | BJ85: 55 | BK85: MT | BL85: 800 | BM85: KOR | BN85: 2 | BO85: 0 | BP85: 3 | BQ85: 1 | BR85: 2 | BS85: Activo | BT85: GSL | BU85: 4X2 | BV85: 0 | BW85: 1
A86: 508001 | B86: A | C86: ASIA | D86: CAMPERO | F86: ROCSTA | G86: I | H86: MT 1800CC 4X4 LONA | I86: 1400 | J86: 1 | K86: Particular | L86: 0 | M86: 0 | N86: 0 | O86: 0 | P86: 0 | Q86: 0 | R86: 0 | S86: 0 | T86: 0 | U86: 0 | V86: 0 | W86: 0 | X86: 0 | Y86: 0 | Z86: 0 | AA86: 0 | AB86: 0 | AC86: 0 | AD86: 0 | AE86: 0 | AF86: 0 | AG86: 0 | AH86: 0 | AI86: 0 | AJ86: 7700 | AK86: 8300 | AL86: 8900 | AM86: 9600 | AN86: 10300 | AO86: 0 | AP86: 0 | AQ86: 0 | AR86: 0 | AS86: 0 | AT86: 0 | AU86: 0 | AV86: 0 | AW86: 0 | AX86: 0 | AY86: 0 | AZ86: 0 | BA86: 0 | BB86: 0 | BC86: 0 | BD86: 0 | BE86: 0 | BF86: 0 | BG86: 36400 | BH86: 45500 | BI86: 1 | BJ86: 86 | BK86: MT | BL86: 1800 | BM86: KOR | BN86: 5 | BO86: 0 | BP86: 3 | BQ86: 0 | BR86: 2 | BS86: Activo | BT86: GSL | BU86: 4X4 | BV86: 0 | BW86: 1
A87: 508002 | B87: A | C87: ASIA | D87: CAMPERO | F87: ROCSTA | G87: I | H87: MT 1800CC 4X4 CAB | I87: 1400 | J87: 1 | K87: Particular | L87: 0 | M87: 0 | N87: 0 | O87: 0 | P87: 0 | Q87: 0 | R87: 0 | S87: 0 | T87: 0 | U87: 0 | V87: 0 | W87: 0 | X87: 0 | Y87: 0 | Z87: 0 | AA87: 0 | AB87: 0 | AC87: 0 | AD87: 0 | AE87: 0 | AF87: 0 | AG87: 0 | AH87: 0 | AI87: 0 | AJ87: 8300 | AK87: 8900 | AL87: 9500 | AM87: 10200 | AN87: 10900 | AO87: 0 | AP87: 0 | AQ87: 0 | AR87: 0 | AS87: 0 | AT87: 0 | AU87: 0 | AV87: 0 | AW87: 0 | AX87: 0 | AY87: 0 | AZ87: 0 | BA87: 0 | BB87: 0 | BC87: 0 | BD87: 0 | BE87: 0 | BF87: 0 | BG87: 38200 | BH87: 47800 | BI87: 1 | BJ87: 86 | BK87: MT | BL87: 1800 | BM87: KOR | BN87: 5 | BO87: 0 | BP87: 3 | BQ87: 0 | BR87: 2 | BS87: Activo | BT87: GSL | BU87: 4X4 | BV87: 0 | BW87: 1
A88: 508003 | B88: A | C88: ASIA | D88: CAMPERO | F88: ROCSTA | G88: II | H88: MT 2200CC 4X4 CAB DSL | I88: 1400 | J88: 1 | K88: Particular | L88: 0 | M88: 0 | N88: 0 | O88: 0 | P88: 0 | Q88: 0 | R88: 0 | S88: 0 | T88: 0 | U88: 0 | V88: 0 | W88: 0 | X88: 0 | Y88: 0 | Z88: 0 | AA88: 0 | AB88: 0 | AC88: 0 | AD88: 0 | AE88: 0 | AF88: 0 | AG88: 0 | AH88: 0 | AI88: 0 | AJ88: 8400 | AK88: 9000 | AL88: 9700 | AM88: 10400 | AN88: 11200 | AO88: 0 | AP88: 0 | AQ88: 0 | AR88: 0 | AS88: 0 | AT88: 0 | AU88: 0 | AV88: 0 | AW88: 0 | AX88: 0 | AY88: 0 | AZ88: 0 | BA88: 0 | BB88: 0 | BC88: 0 | BD88: 0 | BE88: 0 | BF88: 0 | BG88: 39400 | BH88: 49300 | BI88: 1 | BJ88: 76 | BK88: MT | BL88: 2200 | BM88: KOR | BN88: 5 | BO88: 0 | BP88: 3 | BQ88: 0 | BR88: 2 | BS88: Activo | BT88: DSL | BU88: 4X4 | BV88: 0 | BW88: 1
A89: 520001 | B89: M | C89: ASIA | D89: PICKUP SENCILLA | F89: TOWNER | G89: TOWNER | H89: MT 1500CC GSL | I89: 2300 | J89: 1 | K89: Particular | L89: 0 | M89: 0 | N89: 0 | O89: 0 | P89: 0 | Q89: 0 | R89: 0 | S89: 0 | T89: 0 | U89: 0 | V89: 0 | W89: 0 | X89: 0 | Y89: 0 | Z89: 0 | AA89: 0 | AB89: 0 | AC89: 0 | AD89: 0 | AE89: 0 | AF89: 0 | AG89: 0 | AH89: 0 | AI89: 0 | AJ89: 0 | AK89: 0 | AL89: 3400 | AM89: 3700 | AN89: 4000 | AO89: 0 | AP89: 0 | AQ89: 0 | AR89: 0 | AS89: 0 | AT89: 0 | AU89: 0 | AV89: 0 | AW89: 0 | AX89: 0 | AY89: 0 | AZ89: 0 | BA89: 0 | BB89: 0 | BC89: 0 | BD89: 0 | BE89: 0 | BF89: 0 | BG89: 19800 | BH89: 24800 | BI89: 1 | BJ89: 82 | BK89: MT | BL89: 1500 | BM89: KOR | BN89: 2 | BO89: 0 | BP89: 2 | BQ89: 0 | BR89: 2 | BS89: Activo | BT89: GSL | BU89: 4X2 | BV89: 0 | BW89: 2
A90: 601005 | B90: M | C90: AUDI | D90: AUTOMOVIL | F90: 100 | G90: C4 2.8 V6 | H90: MT 2800CC 12V | I90: 1400 | J90: 1 | K90: Particular | L90: 0 | M90: 0 | N90: 0 | O90: 0 | P90: 0 | Q90: 0 | R90: 0 | S90: 0 | T90: 0 | U90: 0 | V90: 0 | W90: 0 | X90: 0 | Y90: 0 | Z90: 0 | AA90: 0 | AB90: 0 | AC90: 0 | AD90: 0 | AE90: 0 | AF90: 0 | AG90: 0 | AH90: 9800 | AI90: 10500 | AJ90: 0 | AK90: 0 | AL90: 0 | AM90: 0 | AN90: 0 | AO90: 0 | AP90: 0 | AQ90: 0 | AR90: 0 | AS90: 0 | AT90: 0 | AU90: 0 | AV90: 0 | AW90: 0 | AX90: 0 | AY90: 0 | AZ90: 0 | BA90: 0 | BB90: 0 | BC90: 0 | BD90: 0 | BE90: 0 | BF90: 0 | BG90: 85700 | BH90: 107100 | BI90: 1 | BJ90: 174 | BK90: MT | BL90: 2771 | BM90: ALE | BN90: 5 | BO90: 0 | BP90: 4 | BQ90: 1 | BR90: 2 | BS90: Activo | BT90: GSL | BU90: 4X2 | BV90: 0 | BW90: 1
A91: 601006 | B91: M | C91: AUDI | D91: AUTOMOVIL | F91: A6 | G91: C4 2.8 V6 | H91: MT 2800CC 12V | I91: 1510 | J91: 1 | K91: Particular | L91: 0 | M91: 0 | N91: 0 | O91: 0 | P91: 0 | Q91: 0 | R91: 0 | S91: 0 | T91: 0 | U91: 0 | V91: 0 | W91: 0 | X91: 0 | Y91: 0 | Z91: 0 | AA91: 0 | AB91: 0 | AC91: 0 | AD91: 0 | AE91: 0 | AF91: 0 | AG91: 0 | AH91: 0 | AI91: 0 | AJ91: 0 | AK91: 14700 | AL91: 15800 | AM91: 16900 | AN91: 0 | AO91: 0 | AP91: 0 | AQ91: 0 | AR91: 0 | AS91: 0 | AT91: 0 | AU91: 0 | AV91: 0 | AW91: 0 | AX91: 0 | AY91: 0 | AZ91: 0 | BA91: 0 | BB91: 0 | BC91: 0 | BD91: 0 | BE91: 0 | BF91: 0 | BG91: 105800 | BH91: 132300 | BI91: 1 | BJ91: 174 | BK91: MT | BL91: 2771 | BM91: ALE | BN91: 5 | BO91: 0 | BP91: 4 | BQ91: 1 | BR91: 2 | BS91: Activo | BT91: GSL | BU91: 4X2 | BV91: 0 | BW91: 2
A92: 601007 | B92: M | C92: AUDI | D92: AUTOMOVIL | F92: A6 | G92: C4 2.8 V6 | H92: AT 2800CC 12V | I92: 1542 | J92: 1 | K92: Particular | L92: 0 | M92: 0 | N92: 0 | O92: 0 | P92: 0 | Q92: 0 | R92: 0 | S92: 0 | T92: 0 | U92: 0 | V92: 0 | W92: 0 | X92: 0 | Y92: 0 | Z92: 0 | AA92: 0 | AB92: 0 | AC92: 0 | AD92: 0 | AE92: 0 | AF92: 0 | AG92: 0 | AH92: 0 | AI92: 0 | AJ92: 0 | AK92: 15500 | AL92: 16600 | AM92: 17800 | AN92: 0 | AO92: 0 | AP92: 0 | AQ92: 0 | AR92: 0 | AS92: 0 | AT92: 0 | AU92: 0 | AV92: 0 | AW92: 0 | AX92: 0 | AY92: 0 | AZ92: 0 | BA92: 0 | BB92: 0 | BC92: 0 | BD92: 0 | BE92: 0 | BF92: 0 | BG92: 111200 | BH92: 139000 | BI92: 1 | BJ92: 174 | BK92: AT | BL92: 2771 | BM92: ALE | BN92: 5 | BO92: 0 | BP92: 4 | BQ92: 1 | BR92: 2 | BS92: Activo | BT92: GSL | BU92: 4X2 | BV92: 0 | BW92: 2
A93: 601008 | B93: M | C93: AUDI | D93: AUTOMOVIL | F93: 80 | G93: B4 2.8 V6 | H93: AT 2800CC | I93: 1400 | J93: 1 | K93: Particular | L93: 0 | M93: 0 | N93: 0 | O93: 0 | P93: 0 | Q93: 0 | R93: 0 | S93: 0 | T93: 0 | U93: 0 | V93: 0 | W93: 0 | X93: 0 | Y93: 0 | Z93: 0 | AA93: 0 | AB93: 0 | AC93: 0 | AD93: 0 | AE93: 0 | AF93: 0 | AG93: 0 | AH93: 0 | AI93: 0 | AJ93: 0 | AK93: 11500 | AL93: 0 | AM93: 0 | AN93: 0 | AO93: 0 | AP93: 0 | AQ93: 0 | AR93: 0 | AS93: 0 | AT93: 0 | AU93: 0 | AV93: 0 | AW93: 0 | AX93: 0 | AY93: 0 | AZ93: 0 | BA93: 0 | BB93: 0 | BC93: 0 | BD93: 0 | BE93: 0 | BF93: 0 | BG93: 70900 | BH93: 88600 | BI93: 1 | BJ93: 174 | BK93: AT | BL93: 2771 | BM93: ALE | BN93: 5 | BO93: 0 | BP93: 4 | BQ93: 1 | BR93: 2 | BS93: Activo | BT93: GSL | BU93: 4X2 | BV93: 0 | BW93: 1
A94: 601009 | B94: M | C94: AUDI | D94: AUTOMOVIL | F94: A4 | G94: B5 2.8 V6 | H94: MT 2800CC 12V | I94: 1560 | J94: 1 | K94: Particular | L94: 0 | M94: 0 | N94: 0 | O94: 0 | P94: 0 | Q94: 0 | R94: 0 | S94: 0 | T94: 0 | U94: 0 | V94: 0 | W94: 0 | X94: 0 | Y94: 0 | Z94: 0 | AA94: 0 | AB94: 0 | AC94: 0 | AD94: 0 | AE94: 0 | AF94: 0 | AG94: 0 | AH94: 0 | AI94: 0 | AJ94: 0 | AK94: 12300 | AL94: 13200 | AM94: 14200 | AN94: 15200 | AO94: 0 | AP94: 0 | AQ94: 0 | AR94: 0 | AS94: 0 | AT94: 0 | AU94: 0 | AV94: 0 | AW94: 0 | AX94: 0 | AY94: 0 | AZ94: 0 | BA94: 0 | BB94: 0 | BC94: 0 | BD94: 0 | BE94: 0 | BF94: 0 | BG94: 87300 | BH94: 109100 | BI94: 1 | BJ94: 174 | BK94: MT | BL94: 2771 | BM94: ALE | BN94: 5 | BO94: 0 | BP94: 4 | BQ94: 1 | BR94: 2 | BS94: Activo | BT94: GSL | BU94: 4X2 | BV94: 0 | BW94: 2
A95: 601010 | B95: M | C95: AUDI | D95: AUTOMOVIL | F95: A4 | G95: B5 1.8 | H95: MT 1800CC | I95: 1235 | J95: 1 | K95: Particular | L95: 0 | M95: 0 | N95: 0 | O95: 0 | P95: 0 | Q95: 0 | R95: 0 | S95: 0 | T95: 0 | U95: 0 | V95: 0 | W95: 0 | X95: 0 | Y95: 0 | Z95: 0 | AA95: 0 | AB95: 0 | AC95: 0 | AD95: 0 | AE95: 0 | AF95: 0 | AG95: 0 | AH95: 0 | AI95: 0 | AJ95: 0 | AK95: 11900 | AL95: 12800 | AM95: 13700 | AN95: 14700 | AO95: 15800 | AP95: 17000 | AQ95: 0 | AR95: 0 | AS95: 0 | AT95: 0 | AU95: 0 | AV95: 0 | AW95: 0 | AX95: 0 | AY95: 0 | AZ95: 0 | BA95: 0 | BB95: 0 | BC95: 0 | BD95: 0 | BE95: 0 | BF95: 0 | BG95: 79800 | BH95: 99800 | BI95: 1 | BJ95: 125 | BK95: MT | BL95: 1781 | BM95: ALE | BN95: 5 | BO95: 0 | BP95: 4 | BQ95: 1 | BR95: 2 | BS95: Activo | BT95: GSL | BU95: 4X2 | BV95: 0 | BW95: 1
A96: 601011 | B96: M | C96: AUDI | D96: AUTOMOVIL | F96: A4 | G96: B5 1.8 | H96: AT 1800CC | I96: 1260 | J96: 1 | K96: Particular | L96: 0 | M96: 0 | N96: 0 | O96: 0 | P96: 0 | Q96: 0 | R96: 0 | S96: 0 | T96: 0 | U96: 0 | V96: 0 | W96: 0 | X96: 0 | Y96: 0 | Z96: 0 | AA96: 0 | AB96: 0 | AC96: 0 | AD96: 0 | AE96: 0 | AF96: 0 | AG96: 0 | AH96: 0 | AI96: 0 | AJ96: 0 | AK96: 12500 | AL96: 13400 | AM96: 14400 | AN96: 15500 | AO96: 16600 | AP96: 17800 | AQ96: 0 | AR96: 0 | AS96: 0 | AT96: 0 | AU96: 0 | AV96: 0 | AW96: 0 | AX96: 0 | AY96: 0 | AZ96: 0 | BA96: 0 | BB96: 0 | BC96: 0 | BD96: 0 | BE96: 0 | BF96: 0 | BG96: 84300 | BH96: 105400 | BI96: 1 | BJ96: 125 | BK96: AT | BL96: 1781 | BM96: ALE | BN96: 5 | BO96: 0 | BP96: 4 | BQ96: 1 | BR96: 2 | BS96: Activo | BT96: GSL | BU96: 4X2 | BV96: 0 | BW96: 1
A97: 601012 | B97: M | C97: AUDI | D97: AUTOMOVIL | F97: S6 | G97: C5 4.2 AVANT QUATTRO | H97: AT 4200CC V8 | I97: 1760 | J97: 1 | K97: Particular | L97: 0 | M97: 0 | N97: 0 | O97: 0 | P97: 0 | Q97: 0 | R97: 0 | S97: 0 | T97: 0 | U97: 0 | V97: 0 | W97: 0 | X97: 0 | Y97: 0 | Z97: 0 | AA97: 0 | AB97: 0 | AC97: 0 | AD97: 0 | AE97: 0 | AF97: 0 | AG97: 0 | AH97: 0 | AI97: 0 | AJ97: 0 | AK97: 0 | AL97: 0 | AM97: 0 | AN97: 0 | AO97: 35100 | AP97: 37700 | AQ97: 40400 | AR97: 43300 | AS97: 46500 | AT97: 0 | AU97: 0 | AV97: 0 | AW97: 0 | AX97: 0 | AY97: 0 | AZ97: 0 | BA97: 0 | BB97: 0 | BC97: 0 | BD97: 0 | BE97: 0 | BF97: 0 | BG97: 205500 | BH97: 256900 | BI97: 1 | BJ97: 335 | BK97: AT | BL97: 4172 | BM97: ALE | BN97: 5 | BO97: 0 | BP97: 5 | BQ97: 1 | BR97: 2 | BS97: Activo | BT97: GSL | BU97: 4X4 | BV97: 0 | BW97: 2
A98: 601013 | B98: M | C98: AUDI | D98: AUTOMOVIL | F98: S6 | G98: C5 4.2 AVANT QUATTRO | H98: MT 4200CC V8 | I98: 1745 | J98: 1 | K98: Particular | L98: 0 | M98: 0 | N98: 0 | O98: 0 | P98: 0 | Q98: 0 | R98: 0 | S98: 0 | T98: 0 | U98: 0 | V98: 0 | W98: 0 | X98: 0 | Y98: 0 | Z98: 0 | AA98: 0 | AB98: 0 | AC98: 0 | AD98: 0 | AE98: 0 | AF98: 0 | AG98: 0 | AH98: 0 | AI98: 0 | AJ98: 0 | AK98: 0 | AL98: 0 | AM98: 0 | AN98: 0 | AO98: 34500 | AP98: 37000 | AQ98: 39700 | AR98: 42600 | AS98: 45700 | AT98: 0 | AU98: 0 | AV98: 0 | AW98: 0 | AX98: 0 | AY98: 0 | AZ98: 0 | BA98: 0 | BB98: 0 | BC98: 0 | BD98: 0 | BE98: 0 | BF98: 0 | BG98: 202300 | BH98: 252900 | BI98: 1 | BJ98: 335 | BK98: MT | BL98: 4172 | BM98: ALE | BN98: 5 | BO98: 0 | BP98: 5 | BQ98: 1 | BR98: 2 | BS98: Activo | BT98: GSL | BU98: 4X4 | BV98: 0 | BW98: 2
A99: 601014 | B99: M | C99: AUDI | D99: AUTOMOVIL | F99: CABRIOLET | G99: B4 2.8 V6 | H99: MT 2800CC 12V | I99: 1495 | J99: 1 | K99: Particular | L99: 0 | M99: 0 | N99: 0 | O99: 0 | P99: 0 | Q99: 0 | R99: 0 | S99: 0 | T99: 0 | U99: 0 | V99: 0 | W99: 0 | X99: 0 | Y99: 0 | Z99: 0 | AA99: 0 | AB99: 0 | AC99: 0 | AD99: 0 | AE99: 0 | AF99: 0 | AG99: 0 | AH99: 0 | AI99: 0 | AJ99: 0 | AK99: 17300 | AL99: 18600 | AM99: 20000 | AN99: 21500 | AO99: 23100 | AP99: 24800 | AQ99: 0 | AR99: 0 | AS99: 0 | AT99: 0 | AU99: 0 | AV99: 0 | AW99: 0 | AX99: 0 | AY99: 0 | AZ99: 0 | BA99: 0 | BB99: 0 | BC99: 0 | BD99: 0 | BE99: 0 | BF99: 0 | BG99: 109600 | BH99: 137000 | BI99: 1 | BJ99: 174 | BK99: MT | BL99: 2771 | BM99: ALE | BN99: 4 | BO99: 0 | BP99: 2 | BQ99: 1 | BR99: 2 | BS99: Activo | BT99: GSL | BU99: 4X2 | BV99: 0 | BW99: 2
A100: 601015 | B100: M | C100: AUDI | D100: AUTOMOVIL | F100: CABRIOLET | G100: B4 2.8 V6 | H100: AT 2800CC 12V | I100: 1526 | J100: 1 | K100: Particular | L100: 0 | M100: 0 | N100: 0 | O100: 0 | P100: 0 | Q100: 0 | R100: 0 | S100: 0 | T100: 0 | U100: 0 | V100: 0 | W100: 0 | X100: 0 | Y100: 0 | Z100: 0 | AA100: 0 | AB100: 0 | AC100: 0 | AD100: 0 | AE100: 0 | AF100: 0 | AG100: 0 | AH100: 0 | AI100: 0 | AJ100: 0 | AK100: 18200 | AL100: 19500 | AM100: 20900 | AN100: 22400 | AO100: 24000 | AP100: 25700 | AQ100: 0 | AR100: 0 | AS100: 0 | AT100: 0 | AU100: 0 | AV100: 0 | AW100: 0 | AX100: 0 | AY100: 0 | AZ100: 0 | BA100: 0 | BB100: 0 | BC100: 0 | BD100: 0 | BE100: 0 | BF100: 0 | BG100: 115300 | BH100: 144100 | BI100: 1 | BJ100: 174 | BK100: AT | BL100: 2771 | BM100: ALE | BN100: 4 | BO100: 0 | BP100: 2 | BQ100: 1 | BR100: 2 | BS100: Activo | BT100: GSL | BU100: 4X2 | BV100: 0 | BW100: 2
A101: 601016 | B101: M | C101: AUDI | D101: AUTOMOVIL | F101: A4 | G101: B5 2.8 V6 | H101: AT 2800CC 12V | I101: 1580 | J101: 1 | K101: Particular | L101: 0 | M101: 0 | N101: 0 | O101: 0 | P101: 0 | Q101: 0 | R101: 0 | S101: 0 | T101: 0 | U101: 0 | V101: 0 | W101: 0 | X101: 0 | Y101: 0 | Z101: 0 | AA101: 0 | AB101: 0 | AC101: 0 | AD101: 0 | AE101: 0 | AF101: 0 | AG101: 0 | AH101: 0 | AI101: 0 | AJ101: 0 | AK101: 13000 | AL101: 13900 | AM101: 14900 | AN101: 16000 | AO101: 0 | AP101: 0 | AQ101: 0 | AR101: 0 | AS101: 0 | AT101: 0 | AU101: 0 | AV101: 0 | AW101: 0 | AX101: 0 | AY101: 0 | AZ101: 0 | BA101: 0 | BB101: 0 | BC101: 0 | BD101: 0 | BE101: 0 | BF101: 0 | BG101: 91900 | BH101: 114900 | BI101: 1 | BJ101: 174 | BK101: AT | BL101: 2771 | BM101: ALE | BN101: 5 | BO101: 0 | BP101: 4 | BQ101: 1 | BR101: 2 | BS101: Activo | BT101: GSL | BU101: 4X2 | BV101: 0 | BW101: 2
A102: 601017 | B102: M | C102: AUDI | D102: AUTOMOVIL | F102: A6 | G102: C4 2.8 V6 | H102: AT 2800CC 30V | I102: 1542 | J102: 1 | K102: Particular | L102: 0 | M102: 0 | N102: 0 | O102: 0 | P102: 0 | Q102: 0 | R102: 0 | S102: 0 | T102: 0 | U102: 0 | V102: 0 | W102: 0 | X102: 0 | Y102: 0 | Z102: 0 | AA102: 0 | AB102: 0 | AC102: 0 | AD102: 0 | AE102: 0 | AF102: 0 | AG102: 0 | AH102: 0 | AI102: 0 | AJ102: 0 | AK102: 0 | AL102: 0 | AM102: 17200 | AN102: 0 | AO102: 0 | AP102: 0 | AQ102: 0 | AR102: 0 | AS102: 0 | AT102: 0 | AU102: 0 | AV102: 0 | AW102: 0 | AX102: 0 | AY102: 0 | AZ102: 0 | BA102: 0 | BB102: 0 | BC102: 0 | BD102: 0 | BE102: 0 | BF102: 0 | BG102: 117800 | BH102: 147300 | BI102: 1 | BJ102: 193 | BK102: AT | BL102: 2771 | BM102: ALE | BN102: 5 | BO102: 0 | BP102: 4 | BQ102: 1 | BR102: 2 | BS102: Activo | BT102: GSL | BU102: 4X2 | BV102: 0 | BW102: 2
A103: 601018 | B103: M | C103: AUDI | D103: AUTOMOVIL | F103: 80 | G103: B4 2.0 | H103: MT 2000CC | I103: 1190 | J103: 1 | K103: Particular | L103: 0 | M103: 0 | N103: 0 | O103: 0 | P103: 0 | Q103: 0 | R103: 0 | S103: 0 | T103: 0 | U103: 0 | V103: 0 | W103: 0 | X103: 0 | Y103: 0 | Z103: 0 | AA103: 0 | AB103: 0 | AC103: 0 | AD103: 0 | AE103: 0 | AF103: 0 | AG103: 0 | AH103: 0 | AI103: 0 | AJ103: 11200 | AK103: 12000 | AL103: 12900 | AM103: 0 | AN103: 0 | AO103: 0 | AP103: 0 | AQ103: 0 | AR103: 0 | AS103: 0 | AT103: 0 | AU103: 0 | AV103: 0 | AW103: 0 | AX103: 0 | AY103: 0 | AZ103: 0 | BA103: 0 | BB103: 0 | BC103: 0 | BD103: 0 | BE103: 0 | BF103: 0 | BG103: 62500 | BH103: 78100 | BI103: 1 | BJ103: 90 | BK103: MT | BL103: 1984 | BM103: ALE | BN103: 5 | BO103: 0 | BP103: 4 | BQ103: 1 | BR103: 2 | BS103: Activo | BT103: GSL | BU103: 4X2 | BV103: 0 | BW103: 1
A104: 601019 | B104: M | C104: AUDI | D104: AUTOMOVIL | F104: A4 | G104: B5 1.8T | H104: AT 1800CC T | I104: 1395 | J104: 1 | K104: Particular | L104: 0 | M104: 0 | N104: 0 | O104: 0 | P104: 0 | Q104: 0 | R104: 0 | S104: 0 | T104: 0 | U104: 0 | V104: 0 | W104: 0 | X104: 0 | Y104: 0 | Z104: 0 | AA104: 0 | AB104: 0 | AC104: 0 | AD104: 0 | AE104: 0 | AF104: 0 | AG104: 0 | AH104: 0 | AI104: 0 | AJ104: 0 | AK104: 0 | AL104: 14700 | AM104: 15800 | AN104: 16900 | AO104: 18100 | AP104: 19400 | AQ104: 20800 | AR104: 0 | AS104: 0 | AT104: 0 | AU104: 0 | AV104: 0 | AW104: 0 | AX104: 0 | AY104: 0 | AZ104: 0 | BA104: 0 | BB104: 0 | BC104: 0 | BD104: 0 | BE104: 0 | BF104: 0 | BG104: 91500 | BH104: 114400 | BI104: 1 | BJ104: 150 | BK104: AT | BL104: 1780 | BM104: ALE | BN104: 5 | BO104: 0 | BP104: 4 | BQ104: 1 | BR104: 2 | BS104: Activo | BT104: GSL | BU104: 4X2 | BV104: 0 | BW104: 1
A105: 601020 | B105: M | C105: AUDI | D105: AUTOMOVIL | F105: A3 | G105: 8L 1.8 COUPE | H105: MT 1800CC 3P | I105: 1140 | J105: 1 | K105: Particular | L105: 0 | M105: 0 | N105: 0 | O105: 0 | P105: 0 | Q105: 0 | R105: 0 | S105: 0 | T105: 0 | U105: 0 | V105: 0 | W105: 0 | X105: 0 | Y105: 0 | Z105: 0 | AA105: 0 | AB105: 0 | AC105: 0 | AD105: 0 | AE105: 0 | AF105: 0 | AG105: 0 | AH105: 0 | AI105: 0 | AJ105: 0 | AK105: 0 | AL105: 0 | AM105: 13000 | AN105: 13900 | AO105: 14900 | AP105: 16000 | AQ105: 0 | AR105: 0 | AS105: 0 | AT105: 0 | AU105: 0 | AV105: 0 | AW105: 0 | AX105: 0 | AY105: 0 | AZ105: 0 | BA105: 0 | BB105: 0 | BC105: 0 | BD105: 0 | BE105: 0 | BF105: 0 | BG105: 63700 | BH105: 79600 | BI105: 1 | BJ105: 125 | BK105: MT | BL105: 1781 | BM105: ALE | BN105: 5 | BO105: 0 | BP105: 3 | BQ105: 1 | BR105: 2 | BS105: Activo | BT105: GSL | BU105: 4X2 | BV105: 0 | BW105: 1
A106: 601021 | B106: M | C106: AUDI | D106: AUTOMOVIL | F106: A3 | G106: 8L 1.8 COUPE | H106: AT 1800CC 3P | I106: 1160 | J106: 1 | K106: Particular | L106: 0 | M106: 0 | N106: 0 | O106: 0 | P106: 0 | Q106: 0 | R106: 0 | S106: 0 | T106: 0 | U106: 0 | V106: 0 | W106: 0 | X106: 0 | Y106: 0 | Z106: 0 | AA106: 0 | AB106: 0 | AC106: 0 | AD106: 0 | AE106: 0 | AF106: 0 | AG106: 0 | AH106: 0 | AI106: 0 | AJ106: 0 | AK106: 0 | AL106: 0 | AM106: 13600 | AN106: 14600 | AO106: 15700 | AP106: 16800 | AQ106: 0 | AR106: 0 | AS106: 0 | AT106: 0 | AU106: 0 | AV106: 0 | AW106: 0 | AX106: 0 | AY106: 0 | AZ106: 0 | BA106: 0 | BB106: 0 | BC106: 0 | BD106: 0 | BE106: 0 | BF106: 0 | BG106: 67000 | BH106: 83800 | BI106: 1 | BJ106: 125 | BK106: AT | BL106: 1781 | BM106: ALE | BN106: 5 | BO106: 0 | BP106: 3 | BQ106: 1 | BR106: 2 | BS106: Activo | BT106: GSL | BU106: 4X2 | BV106: 0 | BW106: 1
A107: 601022 | B107: M | C107: AUDI | D107: AUTOMOVIL | F107: A4 | G107: B5 1.8T | H107: MT 1800CC T | I107: 1360 | J107: 1 | K107: Particular | L107: 0 | M107: 0 | N107: 0 | O107: 0 | P107: 0 | Q107: 0 | R107: 0 | S107: 0 | T107: 0 | U107: 0 | V107: 0 | W107: 0 | X107: 0 | Y107: 0 | Z107: 0 | AA107: 0 | AB107: 0 | AC107: 0 | AD107: 0 | AE107: 0 | AF107: 0 | AG107: 0 | AH107: 0 | AI107: 0 | AJ107: 0 | AK107: 0 | AL107: 13900 | AM107: 14900 | AN107: 16000 | AO107: 17200 | AP107: 18500 | AQ107: 19800 | AR107: 0 | AS107: 0 | AT107: 0 | AU107: 0 | AV107: 0 | AW107: 0 | AX107: 0 | AY107: 0 | AZ107: 0 | BA107: 0 | BB107: 0 | BC107: 0 | BD107: 0 | BE107: 0 | BF107: 0 | BG107: 86900 | BH107: 108600 | BI107: 1 | BJ107: 150 | BK107: MT | BL107: 1780 | BM107: ALE | BN107: 5 | BO107: 0 | BP107: 4 | BQ107: 1 | BR107: 2 | BS107: Activo | BT107: GSL | BU107: 4X2 | BV107: 0 | BW107: 1
A108: 601023 | B108: M | C108: AUDI | D108: AUTOMOVIL | F108: A6 | G108: C5 2.8 V6 | H108: TP 2800CC 30V | I108: 1560 | J108: 1 | K108: Particular | L108: 0 | M108: 0 | N108: 0 | O108: 0 | P108: 0 | Q108: 0 | R108: 0 | S108: 0 | T108: 0 | U108: 0 | V108: 0 | W108: 0 | X108: 0 | Y108: 0 | Z108: 0 | AA108: 0 | AB108: 0 | AC108: 0 | AD108: 0 | AE108: 0 | AF108: 0 | AG108: 0 | AH108: 0 | AI108: 0 | AJ108: 0 | AK108: 0 | AL108: 0 | AM108: 19100 | AN108: 20500 | AO108: 22000 | AP108: 23600 | AQ108: 25300 | AR108: 0 | AS108: 0 | AT108: 0 | AU108: 0 | AV108: 0 | AW108: 0 | AX108: 0 | AY108: 0 | AZ108: 0 | BA108: 0 | BB108: 0 | BC108: 0 | BD108: 0 | BE108: 0 | BF108: 0 | BG108: 131000 | BH108: 163800 | BI108: 1 | BJ108: 193 | BK108: TP | BL108: 2771 | BM108: ALE | BN108: 5 | BO108: 0 | BP108: 4 | BQ108: 1 | BR108: 2 | BS108: Activo | BT108: GSL | BU108: 4X2 | BV108: 0 | BW108: 2
A109: 601024 | B109: M | C109: AUDI | D109: AUTOMOVIL | F109: A4 | G109: B6 1.8T | H109: TP 1800CC T | I109: 1375 | J109: 1 | K109: Particular | L109: 0 | M109: 0 | N109: 0 | O109: 0 | P109: 0 | Q109: 0 | R109: 0 | S109: 0 | T109: 0 | U109: 0 | V109: 0 | W109: 0 | X109: 0 | Y109: 0 | Z109: 0 | AA109: 0 | AB109: 0 | AC109: 0 | AD109: 0 | AE109: 0 | AF109: 0 | AG109: 0 | AH109: 0 | AI109: 0 | AJ109: 0 | AK109: 0 | AL109: 0 | AM109: 0 | AN109: 0 | AO109: 0 | AP109: 0 | AQ109: 24400 | AR109: 26200 | AS109: 28100 | AT109: 30100 | AU109: 32300 | AV109: 0 | AW109: 0 | AX109: 0 | AY109: 0 | AZ109: 0 | BA109: 0 | BB109: 0 | BC109: 0 | BD109: 0 | BE109: 0 | BF109: 0 | BG109: 98100 | BH109: 122600 | BI109: 1 | BJ109: 163 | BK109: TP | BL109: 1781 | BM109: ALE | BN109: 5 | BO109: 0 | BP109: 4 | BQ109: 1 | BR109: 2 | BS109: Activo | BT109: GSL | BU109: 4X2 | BV109: 0 | BW109: 1
A110: 601025 | B110: M | C110: AUDI | D110: AUTOMOVIL | F110: S3 | G110: 8L 1.8T QUATTRO | H110: MT 1800CC T 3P | I110: 1423 | J110: 1 | K110: Particular | L110: 0 | M110: 0 | N110: 0 | O110: 0 | P110: 0 | Q110: 0 | R110: 0 | S110: 0 | T110: 0 | U110: 0 | V110: 0 | W110: 0 | X110: 0 | Y110: 0 | Z110: 0 | AA110: 0 | AB110: 0 | AC110: 0 | AD110: 0 | AE110: 0 | AF110: 0 | AG110: 0 | AH110: 0 | AI110: 0 | AJ110: 0 | AK110: 0 | AL110: 0 | AM110: 0 | AN110: 0 | AO110: 0 | AP110: 34300 | AQ110: 36800 | AR110: 39500 | AS110: 42400 | AT110: 0 | AU110: 0 | AV110: 0 | AW110: 0 | AX110: 0 | AY110: 0 | AZ110: 0 | BA110: 0 | BB110: 0 | BC110: 0 | BD110: 0 | BE110: 0 | BF110: 0 | BG110: 117000 | BH110: 146300 | BI110: 1 | BJ110: 221 | BK110: MT | BL110: 1781 | BM110: ALE | BN110: 5 | BO110: 0 | BP110: 3 | BQ110: 1 | BR110: 2 | BS110: Activo | BT110: GSL | BU110: 4X4 | BV110: 0 | BW110: 1
A111: 601026 | B111: M | C111: AUDI | D111: AUTOMOVIL | F111: A6 | G111: C5 1.8T | H111: AT 1800CC T | I111: 1405 | J111: 1 | K111: Particular | L111: 0 | M111: 0 | N111: 0 | O111: 0 | P111: 0 | Q111: 0 | R111: 0 | S111: 0 | T111: 0 | U111: 0 | V111: 0 | W111: 0 | X111: 0 | Y111: 0 | Z111: 0 | AA111: 0 | AB111: 0 | AC111: 0 | AD111: 0 | AE111: 0 | AF111: 0 | AG111: 0 | AH111: 0 | AI111: 0 | AJ111: 0 | AK111: 0 | AL111: 0 | AM111: 0 | AN111: 19500 | AO111: 20900 | AP111: 22400 | AQ111: 0 | AR111: 0 | AS111: 0 | AT111: 0 | AU111: 0 | AV111: 0 | AW111: 0 | AX111: 0 | AY111: 0 | AZ111: 0 | BA111: 0 | BB111: 0 | BC111: 0 | BD111: 0 | BE111: 0 | BF111: 0 | BG111: 115800 | BH111: 144800 | BI111: 1 | BJ111: 150 | BK111: AT | BL111: 1781 | BM111: ALE | BN111: 5 | BO111: 0 | BP111: 4 | BQ111: 1 | BR111: 2 | BS111: Activo | BT111: GSL | BU111: 4X2 | BV111: 0 | BW111: 1
A112: 601027 | B112: M | C112: AUDI | D112: AUTOMOVIL | F112: A3 | G112: 8L 1.8T COUPE | H112: MT 1800CC T 3P | I112: 1140 | J112: 1 | K112: Particular | L112: 0 | M112: 0 | N112: 0 | O112: 0 | P112: 0 | Q112: 0 | R112: 0 | S112: 0 | T112: 0 | U112: 0 | V112: 0 | W112: 0 | X112: 0 | Y112: 0 | Z112: 0 | AA112: 0 | AB112: 0 | AC112: 0 | AD112: 0 | AE112: 0 | AF112: 0 | AG112: 0 | AH112: 0 | AI112: 0 | AJ112: 0 | AK112: 0 | AL112: 0 | AM112: 14400 | AN112: 15500 | AO112: 16600 | AP112: 17800 | AQ112: 19100 | AR112: 20500 | AS112: 22000 | AT112: 23600 | AU112: 25300 | AV112: 27100 | AW112: 0 | AX112: 0 | AY112: 0 | AZ112: 0 | BA112: 0 | BB112: 0 | BC112: 0 | BD112: 0 | BE112: 0 | BF112: 0 | BG112: 71000 | BH112: 88800 | BI112: 1 | BJ112: 150 | BK112: MT | BL112: 1781 | BM112: BRA | BN112: 5 | BO112: 0 | BP112: 3 | BQ112: 1 | BR112: 2 | BS112: Activo | BT112: GSL | BU112: 4X2 | BV112: 0 | BW112: 1
A113: 601028 | B113: M | C113: AUDI | D113: AUTOMOVIL | F113: A3 | G113: 8L 1.6 COUPE | H113: MT 1600CC 3P | I113: 1090 | J113: 1 | K113: Particular | L113: 0 | M113: 0 | N113: 0 | O113: 0 | P113: 0 | Q113: 0 | R113: 0 | S113: 0 | T113: 0 | U113: 0 | V113: 0 | W113: 0 | X113: 0 | Y113: 0 | Z113: 0 | AA113: 0 | AB113: 0 | AC113: 0 | AD113: 0 | AE113: 0 | AF113: 0 | AG113: 0 | AH113: 0 | AI113: 0 | AJ113: 0 | AK113: 0 | AL113: 0 | AM113: 0 | AN113: 0 | AO113: 0 | AP113: 15700 | AQ113: 16800 | AR113: 18000 | AS113: 19300 | AT113: 20700 | AU113: 22200 | AV113: 23800 | AW113: 0 | AX113: 0 | AY113: 0 | AZ113: 0 | BA113: 0 | BB113: 0 | BC113: 0 | BD113: 0 | BE113: 0 | BF113: 0 | BG113: 64800 | BH113: 81000 | BI113: 1 | BJ113: 102 | BK113: MT | BL113: 1595 | BM113: BRA | BN113: 5 | BO113: 0 | BP113: 3 | BQ113: 1 | BR113: 2 | BS113: Activo | BT113: GSL | BU113: 4X2 | BV113: 0 | BW113: 1
A114: 601029 | B114: M | C114: AUDI | D114: AUTOMOVIL | F114: TT | G114: 8N 1.8T COUPE | H114: MT 1800CC T | I114: 1280 | J114: 1 | K114: Particular | L114: 0 | M114: 0 | N114: 0 | O114: 0 | P114: 0 | Q114: 0 | R114: 0 | S114: 0 | T114: 0 | U114: 0 | V114: 0 | W114: 0 | X114: 0 | Y114: 0 | Z114: 0 | AA114: 0 | AB114: 0 | AC114: 0 | AD114: 0 | AE114: 0 | AF114: 0 | AG114: 0 | AH114: 0 | AI114: 0 | AJ114: 0 | AK114: 0 | AL114: 0 | AM114: 0 | AN114: 0 | AO114: 0 | AP114: 35100 | AQ114: 37700 | AR114: 40500 | AS114: 43500 | AT114: 46700 | AU114: 50100 | AV114: 0 | AW114: 0 | AX114: 0 | AY114: 0 | AZ114: 0 | BA114: 0 | BB114: 0 | BC114: 0 | BD114: 0 | BE114: 0 | BF114: 0 | BG114: 117400 | BH114: 146800 | BI114: 1 | BJ114: 177 | BK114: MT | BL114: 1781 | BM114: HNG | BN114: 4 | BO114: 0 | BP114: 3 | BQ114: 1 | BR114: 2 | BS114: Activo | BT114: GSL | BU114: 4X2 | BV114: 0 | BW114: 1
A115: 601030 | B115: M | C115: AUDI | D115: AUTOMOVIL | F115: A3 | G115: 8L 1.8T HB | H115: MT 1800CC T 5P | I115: 1190 | J115: 1 | K115: Particular | L115: 0 | M115: 0 | N115: 0 | O115: 0 | P115: 0 | Q115: 0 | R115: 0 | S115: 0 | T115: 0 | U115: 0 | V115: 0 | W115: 0 | X115: 0 | Y115: 0 | Z115: 0 | AA115: 0 | AB115: 0 | AC115: 0 | AD115: 0 | AE115: 0 | AF115: 0 | AG115: 0 | AH115: 0 | AI115: 0 | AJ115: 0 | AK115: 0 | AL115: 0 | AM115: 0 | AN115: 0 | AO115: 0 | AP115: 18500 | AQ115: 19900 | AR115: 21400 | AS115: 23000 | AT115: 24700 | AU115: 26500 | AV115: 28400 | AW115: 0 | AX115: 0 | AY115: 0 | AZ115: 0 | BA115: 0 | BB115: 0 | BC115: 0 | BD115: 0 | BE115: 0 | BF115: 0 | BG115: 76300 | BH115: 95400 | BI115: 1 | BJ115: 150 | BK115: MT | BL115: 1781 | BM115: BRA | BN115: 5 | BO115: 0 | BP115: 5 | BQ115: 1 | BR115: 2 | BS115: Activo | BT115: GSL | BU115: 4X2 | BV115: 0 | BW115: 1
A116: 601031 | B116: M | C116: AUDI | D116: AUTOMOVIL | F116: A3 | G116: 8L 1.6 HB | H116: TP 1600CC | I116: 1150 | J116: 1 | K116: Particular | L116: 0 | M116: 0 | N116: 0 | O116: 0 | P116: 0 | Q116: 0 | R116: 0 | S116: 0 | T116: 0 | U116: 0 | V116: 0 | W116: 0 | X116: 0 | Y116: 0 | Z116: 0 | AA116: 0 | AB116: 0 | AC116: 0 | AD116: 0 | AE116: 0 | AF116: 0 | AG116: 0 | AH116: 0 | AI116: 0 | AJ116: 0 | AK116: 0 | AL116: 0 | AM116: 0 | AN116: 0 | AO116: 0 | AP116: 17200 | AQ116: 18500 | AR116: 19900 | AS116: 21300 | AT116: 22900 | AU116: 24600 | AV116: 26400 | AW116: 0 | AX116: 0 | AY116: 0 | AZ116: 0 | BA116: 0 | BB116: 0 | BC116: 0 | BD116: 0 | BE116: 0 | BF116: 0 | BG116: 72800 | BH116: 91000 | BI116: 1 | BJ116: 102 | BK116: AT | BL116: 1595 | BM116: BRA | BN116: 5 | BO116: 0 | BP116: 5 | BQ116: 1 | BR116: 2 | BS116: Activo | BT116: GSL | BU116: 4X2 | BV116: 0 | BW116: 1
A117: 601032 | B117: M | C117: AUDI | D117: AUTOMOVIL | F117: A3 | G117: 8L 1.6 HB | H117: MT 1600CC 5P | I117: 1120 | J117: 1 | K117: Particular | L117: 0 | M117: 0 | N117: 0 | O117: 0 | P117: 0 | Q117: 0 | R117: 0 | S117: 0 | T117: 0 | U117: 0 | V117: 0 | W117: 0 | X117: 0 | Y117: 0 | Z117: 0 | AA117: 0 | AB117: 0 | AC117: 0 | AD117: 0 | AE117: 0 | AF117: 0 | AG117: 0 | AH117: 0 | AI117: 0 | AJ117: 0 | AK117: 0 | AL117: 0 | AM117: 0 | AN117: 0 | AO117: 0 | AP117: 16500 | AQ117: 17700 | AR117: 19000 | AS117: 20400 | AT117: 21900 | AU117: 23500 | AV117: 25200 | AW117: 0 | AX117: 0 | AY117: 0 | AZ117: 0 | BA117: 0 | BB117: 0 | BC117: 0 | BD117: 0 | BE117: 0 | BF117: 0 | BG117: 68900 | BH117: 86100 | BI117: 1 | BJ117: 102 | BK117: MT | BL117: 1595 | BM117: BRA | BN117: 5 | BO117: 0 | BP117: 5 | BQ117: 1 | BR117: 2 | BS117: Activo | BT117: GSL | BU117: 4X2 | BV117: 0 | BW117: 1
A118: 601033 | B118: M | C118: AUDI | D118: AUTOMOVIL | F118: A4 | G118: B6 2.0 MULTITRONIC | H118: TP 2000CC | I118: 1345 | J118: 1 | K118: Particular | L118: 0 | M118: 0 | N118: 0 | O118: 0 | P118: 0 | Q118: 0 | R118: 0 | S118: 0 | T118: 0 | U118: 0 | V118: 0 | W118: 0 | X118: 0 | Y118: 0 | Z118: 0 | AA118: 0 | AB118: 0 | AC118: 0 | AD118: 0 | AE118: 0 | AF118: 0 | AG118: 0 | AH118: 0 | AI118: 0 | AJ118: 0 | AK118: 0 | AL118: 0 | AM118: 0 | AN118: 0 | AO118: 0 | AP118: 0 | AQ118: 0 | AR118: 23000 | AS118: 24700 | AT118: 26500 | AU118: 28400 | AV118: 0 | AW118: 0 | AX118: 0 | AY118: 0 | AZ118: 0 | BA118: 0 | BB118: 0 | BC118: 0 | BD118: 0 | BE118: 0 | BF118: 0 | BG118: 88200 | BH118: 110300 | BI118: 1 | BJ118: 130 | BK118: TP | BL118: 1984 | BM118: ALE | BN118: 5 | BO118: 0 | BP118: 4 | BQ118: 1 | BR118: 2 | BS118: Activo | BT118: GSL | BU118: 4X2 | BV118: 0 | BW118: 1
A119: 601035 | B119: M | C119: AUDI | D119: AUTOMOVIL | F119: A4 | G119: B6 3.0 | H119: MT 3000CC | I119: 1425 | J119: 1 | K119: Particular | L119: 0 | M119: 0 | N119: 0 | O119: 0 | P119: 0 | Q119: 0 | R119: 0 | S119: 0 | T119: 0 | U119: 0 | V119: 0 | W119: 0 | X119: 0 | Y119: 0 | Z119: 0 | AA119: 0 | AB119: 0 | AC119: 0 | AD119: 0 | AE119: 0 | AF119: 0 | AG119: 0 | AH119: 0 | AI119: 0 | AJ119: 0 | AK119: 0 | AL119: 0 | AM119: 0 | AN119: 0 | AO119: 0 | AP119: 0 | AQ119: 25600 | AR119: 27500 | AS119: 29500 | AT119: 31600 | AU119: 33900 | AV119: 0 | AW119: 0 | AX119: 0 | AY119: 0 | AZ119: 0 | BA119: 0 | BB119: 0 | BC119: 0 | BD119: 0 | BE119: 0 | BF119: 0 | BG119: 110000 | BH119: 137500 | BI119: 1 | BJ119: 220 | BK119: MT | BL119: 2976 | BM119: ALE | BN119: 5 | BO119: 0 | BP119: 4 | BQ119: 1 | BR119: 2 | BS119: Activo | BT119: GSL | BU119: 4X2 | BV119: 0 | BW119: 1
A120: 601036 | B120: M | C120: AUDI | D120: AUTOMOVIL | F120: A4 | G120: B6 2.0 | H120: MT 2000CC | I120: 1300 | J120: 1 | K120: Particular | L120: 0 | M120: 0 | N120: 0 | O120: 0 | P120: 0 | Q120: 0 | R120: 0 | S120: 0 | T120: 0 | U120: 0 | V120: 0 | W120: 0 | X120: 0 | Y120: 0 | Z120: 0 | AA120: 0 | AB120: 0 | AC120: 0 | AD120: 0 | AE120: 0 | AF120: 0 | AG120: 0 | AH120: 0 | AI120: 0 | AJ120: 0 | AK120: 0 | AL120: 0 | AM120: 0 | AN120: 0 | AO120: 0 | AP120: 0 | AQ120: 0 | AR120: 22200 | AS120: 23800 | AT120: 25500 | AU120: 27400 | AV120: 0 | AW120: 0 | AX120: 0 | AY120: 0 | AZ120: 0 | BA120: 0 | BB120: 0 | BC120: 0 | BD120: 0 | BE120: 0 | BF120: 0 | BG120: 83900 | BH120: 104900 | BI120: 1 | BJ120: 130 | BK120: MT | BL120: 1984 | BM120: ALE | BN120: 5 | BO120: 0 | BP120: 4 | BQ120: 1 | BR120: 2 | BS120: Activo | BT120: GSL | BU120: 4X2 | BV120: 0 | BW120: 1
A121: 601037 | B121: M | C121: AUDI | D121: AUTOMOVIL | F121: A4 | G121: B6 2.4 V6 | H121: TP 2400CC | I121: 1475 | J121: 1 | K121: Particular | L121: 0 | M121: 0 | N121: 0 | O121: 0 | P121: 0 | Q121: 0 | R121: 0 | S121: 0 | T121: 0 | U121: 0 | V121: 0 | W121: 0 | X121: 0 | Y121: 0 | Z121: 0 | AA121: 0 | AB121: 0 | AC121: 0 | AD121: 0 | AE121: 0 | AF121: 0 | AG121: 0 | AH121: 0 | AI121: 0 | AJ121: 0 | AK121: 0 | AL121: 0 | AM121: 0 | AN121: 0 | AO121: 0 | AP121: 0 | AQ121: 25900 | AR121: 0 | AS121: 0 | AT121: 0 | AU121: 0 | AV121: 0 | AW121: 0 | AX121: 0 | AY121: 0 | AZ121: 0 | BA121: 0 | BB121: 0 | BC121: 0 | BD121: 0 | BE121: 0 | BF121: 0 | BG121: 104000 | BH121: 130000 | BI121: 1 | BJ121: 170 | BK121: TP | BL121: 2393 | BM121: ALE | BN121: 5 | BO121: 0 | BP121: 4 | BQ121: 1 | BR121: 2 | BS121: Activo | BT121: GSL | BU121: 4X2 | BV121: 0 | BW121: 2
A122: 601041 | B122: M | C122: AUDI | D122: AUTOMOVIL | F122: A3 | G122: 8L 1.8T HB | H122: AT 1800CC T 5P | I122: 1215 | J122: 1 | K122: Particular | L122: 0 | M122: 0 | N122: 0 | O122: 0 | P122: 0 | Q122: 0 | R122: 0 | S122: 0 | T122: 0 | U122: 0 | V122: 0 | W122: 0 | X122: 0 | Y122: 0 | Z122: 0 | AA122: 0 | AB122: 0 | AC122: 0 | AD122: 0 | AE122: 0 | AF122: 0 | AG122: 0 | AH122: 0 | AI122: 0 | AJ122: 0 | AK122: 0 | AL122: 0 | AM122: 0 | AN122: 0 | AO122: 0 | AP122: 19300 | AQ122: 20700 | AR122: 22200 | AS122: 23800 | AT122: 25500 | AU122: 27400 | AV122: 29400 | AW122: 0 | AX122: 0 | AY122: 0 | AZ122: 0 | BA122: 0 | BB122: 0 | BC122: 0 | BD122: 0 | BE122: 0 | BF122: 0 | BG122: 80300 | BH122: 100400 | BI122: 1 | BJ122: 150 | BK122: AT | BL122: 1781 | BM122: BRA | BN122: 5 | BO122: 0 | BP122: 5 | BQ122: 1 | BR122: 2 | BS122: Activo | BT122: GSL | BU122: 4X2 | BV122: 0 | BW122: 1
A123: 601046 | B123: M | C123: AUDI | D123: AUTOMOVIL | F123: 80 | G123: B3 1.8 QUATTRO | H123: MT 1800CC | I123: 1140 | J123: 1 | K123: Particular | L123: 0 | M123: 0 | N123: 0 | O123: 0 | P123: 0 | Q123: 0 | R123: 0 | S123: 0 | T123: 0 | U123: 0 | V123: 0 | W123: 0 | X123: 0 | Y123: 0 | Z123: 0 | AA123: 0 | AB123: 0 | AC123: 0 | AD123: 0 | AE123: 0 | AF123: 9100 | AG123: 0 | AH123: 0 | AI123: 0 | AJ123: 0 | AK123: 0 | AL123: 0 | AM123: 0 | AN123: 0 | AO123: 0 | AP123: 0 | AQ123: 0 | AR123: 0 | AS123: 0 | AT123: 0 | AU123: 0 | AV123: 0 | AW123: 0 | AX123: 0 | AY123: 0 | AZ123: 0 | BA123: 0 | BB123: 0 | BC123: 0 | BD123: 0 | BE123: 0 | BF123: 0 | BG123: 66600 | BH123: 83300 | BI123: 1 | BJ123: 112 | BK123: MT | BL123: 1781 | BM123: ALE | BN123: 5 | BO123: 0 | BP123: 4 | BQ123: 1 | BR123: 2 | BS123: Activo | BT123: GSL | BU123: 4X4 | BV123: 0 | BW123: 1
A124: 601047 | B124: M | C124: AUDI | D124: AUTOMOVIL | F124: A3 | G124: 8L 1.8T COUPE | H124: AT 1800CC T 3P | I124: 1190 | J124: 1 | K124: Particular | L124: 0 | M124: 0 | N124: 0 | O124: 0 | P124: 0 | Q124: 0 | R124: 0 | S124: 0 | T124: 0 | U124: 0 | V124: 0 | W124: 0 | X124: 0 | Y124: 0 | Z124: 0 | AA124: 0 | AB124: 0 | AC124: 0 | AD124: 0 | AE124: 0 | AF124: 0 | AG124: 0 | AH124: 0 | AI124: 0 | AJ124: 0 | AK124: 0 | AL124: 0 | AM124: 14800 | AN124: 15900 | AO124: 17100 | AP124: 18300 | AQ124: 19600 | AR124: 21000 | AS124: 22500 | AT124: 24100 | AU124: 25900 | AV124: 27800 | AW124: 0 | AX124: 0 | AY124: 0 | AZ124: 0 | BA124: 0 | BB124: 0 | BC124: 0 | BD124: 0 | BE124: 0 | BF124: 0 | BG124: 74500 | BH124: 93100 | BI124: 1 | BJ124: 150 | BK124: AT | BL124: 1781 | BM124: BRA | BN124: 5 | BO124: 0 | BP124: 3 | BQ124: 1 | BR124: 2 | BS124: Activo | BT124: GSL | BU124: 4X2 | BV124: 0 | BW124: 1
A125: 601048 | B125: M | C125: AUDI | D125: AUTOMOVIL | F125: A6 | G125: C5 2.0 L | H125: AT 2000CC | I125: 1480 | J125: 1 | K125: Particular | L125: 0 | M125: 0 | N125: 0 | O125: 0 | P125: 0 | Q125: 0 | R125: 0 | S125: 0 | T125: 0 | U125: 0 | V125: 0 | W125: 0 | X125: 0 | Y125: 0 | Z125: 0 | AA125: 0 | AB125: 0 | AC125: 0 | AD125: 0 | AE125: 0 | AF125: 0 | AG125: 0 | AH125: 0 | AI125: 0 | AJ125: 0 | AK125: 0 | AL125: 0 | AM125: 0 | AN125: 0 | AO125: 0 | AP125: 0 | AQ125: 0 | AR125: 0 | AS125: 26300 | AT125: 28200 | AU125: 30300 | AV125: 0 | AW125: 0 | AX125: 0 | AY125: 0 | AZ125: 0 | BA125: 0 | BB125: 0 | BC125: 0 | BD125: 0 | BE125: 0 | BF125: 0 | BG125: 112000 | BH125: 140000 | BI125: 1 | BJ125: 130 | BK125: AT | BL125: 1984 | BM125: ALE | BN125: 5 | BO125: 0 | BP125: 4 | BQ125: 1 | BR125: 2 | BS125: Activo | BT125: GSL | BU125: 4X2 | BV125: 0 | BW125: 2
A126: 601049 | B126: M | C126: AUDI | D126: AUTOMOVIL | F126: A6 | G126: C5 3.0 MULTITRONIC | H126: TP 3000CC | I126: 1520 | J126: 1 | K126: Particular | L126: 0 | M126: 0 | N126: 0 | O126: 0 | P126: 0 | Q126: 0 | R126: 0 | S126: 0 | T126: 0 | U126: 0 | V126: 0 | W126: 0 | X126: 0 | Y126: 0 | Z126: 0 | AA126: 0 | AB126: 0 | AC126: 0 | AD126: 0 | AE126: 0 | AF126: 0 | AG126: 0 | AH126: 0 | AI126: 0 | AJ126: 0 | AK126: 0 | AL126: 0 | AM126: 0 | AN126: 0 | AO126: 0 | AP126: 0 | AQ126: 0 | AR126: 30900 | AS126: 33200 | AT126: 35600 | AU126: 38200 | AV126: 0 | AW126: 0 | AX126: 0 | AY126: 0 | AZ126: 0 | BA126: 0 | BB126: 0 | BC126: 0 | BD126: 0 | BE126: 0 | BF126: 0 | BG126: 135900 | BH126: 169900 | BI126: 1 | BJ126: 220 | BK126: TP | BL126: 2976 | BM126: ALE | BN126: 5 | BO126: 0 | BP126: 4 | BQ126: 1 | BR126: 2 | BS126: Activo | BT126: GSL | BU126: 4X2 | BV126: 0 | BW126: 2
A127: 601050 | B127: M | C127: AUDI | D127: AUTOMOVIL | F127: A4 | G127: B6 3.0 MULTITRONIC | H127: TP 3000CC | I127: 1460 | J127: 1 | K127: Particular | L127: 0 | M127: 0 | N127: 0 | O127: 0 | P127: 0 | Q127: 0 | R127: 0 | S127: 0 | T127: 0 | U127: 0 | V127: 0 | W127: 0 | X127: 0 | Y127: 0 | Z127: 0 | AA127: 0 | AB127: 0 | AC127: 0 | AD127: 0 | AE127: 0 | AF127: 0 | AG127: 0 | AH127: 0 | AI127: 0 | AJ127: 0 | AK127: 0 | AL127: 0 | AM127: 0 | AN127: 0 | AO127: 0 | AP127: 0 | AQ127: 26900 | AR127: 28900 | AS127: 31000 | AT127: 33300 | AU127: 35700 | AV127: 38300 | AW127: 0 | AX127: 0 | AY127: 0 | AZ127: 0 | BA127: 0 | BB127: 0 | BC127: 0 | BD127: 0 | BE127: 0 | BF127: 0 | BG127: 113000 | BH127: 141300 | BI127: 1 | BJ127: 220 | BK127: TP | BL127: 2976 | BM127: ALE | BN127: 5 | BO127: 0 | BP127: 4 | BQ127: 1 | BR127: 2 | BS127: Activo | BT127: GSL | BU127: 4X2 | BV127: 0 | BW127: 2
A128: 601051 | B128: M | C128: AUDI | D128: AUTOMOVIL | F128: A8 | G128: D3 4.2 TIPTRONIC QUATTRO | H128: TP 4200CC V8 | I128: 2000 | J128: 1 | K128: Particular | L128: 0 | M128: 0 | N128: 0 | O128: 0 | P128: 0 | Q128: 0 | R128: 0 | S128: 0 | T128: 0 | U128: 0 | V128: 0 | W128: 0 | X128: 0 | Y128: 0 | Z128: 0 | AA128: 0 | AB128: 0 | AC128: 0 | AD128: 0 | AE128: 0 | AF128: 0 | AG128: 0 | AH128: 0 | AI128: 0 | AJ128: 0 | AK128: 0 | AL128: 0 | AM128: 0 | AN128: 0 | AO128: 0 | AP128: 0 | AQ128: 0 | AR128: 0 | AS128: 0 | AT128: 85800 | AU128: 94300 | AV128: 103600 | AW128: 113800 | AX128: 125100 | AY128: 137500 | AZ128: 151100 | BA128: 0 | BB128: 0 | BC128: 0 | BD128: 0 | BE128: 0 | BF128: 0 | BG128: 250000 | BH128: 312500 | BI128: 1 | BJ128: 350 | BK128: TP | BL128: 4163 | BM128: ALE | BN128: 5 | BO128: 0 | BP128: 4 | BQ128: 1 | BR128: 2 | BS128: Activo | BT128: GSL | BU128: 4X4 | BV128: 0 | BW128: 2
A129: 601052 | B129: M | C129: AUDI | D129: AUTOMOVIL | F129: S4 | G129: B6 4.2 V8 QUATTRO | H129: MT 4200CC | I129: 1660 | J129: 1 | K129: Particular | L129: 0 | M129: 0 | N129: 0 | O129: 0 | P129: 0 | Q129: 0 | R129: 0 | S129: 0 | T129: 0 | U129: 0 | V129: 0 | W129: 0 | X129: 0 | Y129: 0 | Z129: 0 | AA129: 0 | AB129: 0 | AC129: 0 | AD129: 0 | AE129: 0 | AF129: 0 | AG129: 0 | AH129: 0 | AI129: 0 | AJ129: 0 | AK129: 0 | AL129: 0 | AM129: 0 | AN129: 0 | AO129: 0 | AP129: 0 | AQ129: 0 | AR129: 0 | AS129: 0 | AT129: 46900 | AU129: 50300 | AV129: 0 | AW129: 0 | AX129: 0 | AY129: 0 | AZ129: 0 | BA129: 0 | BB129: 0 | BC129: 0 | BD129: 0 | BE129: 0 | BF129: 0 | BG129: 208500 | BH129: 260600 | BI129: 1 | BJ129: 340 | BK129: MT | BL129: 4163 | BM129: ALE | BN129: 5 | BO129: 0 | BP129: 4 | BQ129: 1 | BR129: 2 | BS129: Activo | BT129: GSL | BU129: 4X4 | BV129: 0 | BW129: 2
A130: 601053 | B130: M | C130: AUDI | D130: AUTOMOVIL | F130: A4 | G130: B6 3.0 CABRIOLET | H130: MT 3000CC | I130: 1590 | J130: 1 | K130: Particular | L130: 0 | M130: 0 | N130: 0 | O130: 0 | P130: 0 | Q130: 0 | R130: 0 | S130: 0 | T130: 0 | U130: 0 | V130: 0 | W130: 0 | X130: 0 | Y130: 0 | Z130: 0 | AA130: 0 | AB130: 0 | AC130: 0 | AD130: 0 | AE130: 0 | AF130: 0 | AG130: 0 | AH130: 0 | AI130: 0 | AJ130: 0 | AK130: 0 | AL130: 0 | AM130: 0 | AN130: 0 | AO130: 0 | AP130: 0 | AQ130: 0 | AR130: 0 | AS130: 0 | AT130: 35000 | AU130: 37600 | AV130: 0 | AW130: 0 | AX130: 0 | AY130: 0 | AZ130: 0 | BA130: 0 | BB130: 0 | BC130: 0 | BD130: 0 | BE130: 0 | BF130: 0 | BG130: 119100 | BH130: 148900 | BI130: 1 | BJ130: 220 | BK130: MT | BL130: 2976 | BM130: ALE | BN130: 4 | BO130: 0 | BP130: 2 | BQ130: 1 | BR130: 2 | BS130: Activo | BT130: GSL | BU130: 4X2 | BV130: 0 | BW130: 2
A131: 601054 | B131: M | C131: AUDI | D131: AUTOMOVIL | F131: A4 | G131: B6 3.0 CABRIOLET | H131: TP 3000CC | I131: 1620 | J131: 1 | K131: Particular | L131: 0 | M131: 0 | N131: 0 | O131: 0 | P131: 0 | Q131: 0 | R131: 0 | S131: 0 | T131: 0 | U131: 0 | V131: 0 | W131: 0 | X131: 0 | Y131: 0 | Z131: 0 | AA131: 0 | AB131: 0 | AC131: 0 | AD131: 0 | AE131: 0 | AF131: 0 | AG131: 0 | AH131: 0 | AI131: 0 | AJ131: 0 | AK131: 0 | AL131: 0 | AM131: 0 | AN131: 0 | AO131: 0 | AP131: 0 | AQ131: 0 | AR131: 0 | AS131: 34400 | AT131: 36900 | AU131: 39600 | AV131: 0 | AW131: 0 | AX131: 0 | AY131: 0 | AZ131: 0 | BA131: 0 | BB131: 0 | BC131: 0 | BD131: 0 | BE131: 0 | BF131: 0 | BG131: 125400 | BH131: 156800 | BI131: 1 | BJ131: 220 | BK131: AT | BL131: 2976 | BM131: ALE | BN131: 4 | BO131: 0 | BP131: 2 | BQ131: 1 | BR131: 2 | BS131: Activo | BT131: GSL | BU131: 4X2 | BV131: 0 | BW131: 2
A132: 601055 | B132: M | C132: AUDI | D132: AUTOMOVIL | F132: TT | G132: 8N 1.8T COUPE | H132: AT 1800CC T | I132: 1335 | J132: 1 | K132: Particular | L132: 0 | M132: 0 | N132: 0 | O132: 0 | P132: 0 | Q132: 0 | R132: 0 | S132: 0 | T132: 0 | U132: 0 | V132: 0 | W132: 0 | X132: 0 | Y132: 0 | Z132: 0 | AA132: 0 | AB132: 0 | AC132: 0 | AD132: 0 | AE132: 0 | AF132: 0 | AG132: 0 | AH132: 0 | AI132: 0 | AJ132: 0 | AK132: 0 | AL132: 0 | AM132: 0 | AN132: 0 | AO132: 0 | AP132: 37200 | AQ132: 39900 | AR132: 42800 | AS132: 45900 | AT132: 49200 | AU132: 52800 | AV132: 0 | AW132: 0 | AX132: 0 | AY132: 0 | AZ132: 0 | BA132: 0 | BB132: 0 | BC132: 0 | BD132: 0 | BE132: 0 | BF132: 0 | BG132: 123200 | BH132: 154000 | BI132: 1 | BJ132: 177 | BK132: AT | BL132: 1781 | BM132: HNG | BN132: 4 | BO132: 0 | BP132: 3 | BQ132: 1 | BR132: 2 | BS132: Activo | BT132: GSL | BU132: 4X2 | BV132: 0 | BW132: 1
A133: 601056 | B133: M | C133: AUDI | D133: AUTOMOVIL | F133: A4 | G133: B6 3.0 TRIPTRONIC QUATTRO | H133: TP 3000CC | I133: 1555 | J133: 1 | K133: Particular | L133: 0 | M133: 0 | N133: 0 | O133: 0 | P133: 0 | Q133: 0 | R133: 0 | S133: 0 | T133: 0 | U133: 0 | V133: 0 | W133: 0 | X133: 0 | Y133: 0 | Z133: 0 | AA133: 0 | AB133: 0 | AC133: 0 | AD133: 0 | AE133: 0 | AF133: 0 | AG133: 0 | AH133: 0 | AI133: 0 | AJ133: 0 | AK133: 0 | AL133: 0 | AM133: 0 | AN133: 0 | AO133: 0 | AP133: 0 | AQ133: 0 | AR133: 30400 | AS133: 32600 | AT133: 35000 | AU133: 37500 | AV133: 0 | AW133: 0 | AX133: 0 | AY133: 0 | AZ133: 0 | BA133: 0 | BB133: 0 | BC133: 0 | BD133: 0 | BE133: 0 | BF133: 0 | BG133: 117000 | BH133: 146300 | BI133: 1 | BJ133: 220 | BK133: TP | BL133: 2976 | BM133: ALE | BN133: 5 | BO133: 0 | BP133: 4 | BQ133: 1 | BR133: 2 | BS133: Activo | BT133: GSL | BU133: 4X4 | BV133: 0 | BW133: 2
A134: 601057 | B134: M | C134: AUDI | D134: AUTOMOVIL | F134: S4 | G134: B5 2.7 V6 QUATTRO | H134: TP 2700CC | I134: 1510 | J134: 1 | K134: Particular | L134: 0 | M134: 0 | N134: 0 | O134: 0 | P134: 0 | Q134: 0 | R134: 0 | S134: 0 | T134: 0 | U134: 0 | V134: 0 | W134: 0 | X134: 0 | Y134: 0 | Z134: 0 | AA134: 0 | AB134: 0 | AC134: 0 | AD134: 0 | AE134: 0 | AF134: 0 | AG134: 0 | AH134: 0 | AI134: 0 | AJ134: 0 | AK134: 0 | AL134: 0 | AM134: 0 | AN134: 0 | AO134: 0 | AP134: 0 | AQ134: 0 | AR134: 41400 | AS134: 0 | AT134: 0 | AU134: 0 | AV134: 0 | AW134: 0 | AX134: 0 | AY134: 0 | AZ134: 0 | BA134: 0 | BB134: 0 | BC134: 0 | BD134: 0 | BE134: 0 | BF134: 0 | BG134: 160000 | BH134: 200000 | BI134: 1 | BJ134: 260 | BK134: TP | BL134: 2671 | BM134: ALE | BN134: 5 | BO134: 0 | BP134: 4 | BQ134: 1 | BR134: 2 | BS134: Activo | BT134: GSL | BU134: 4X4 | BV134: 0 | BW134: 2
A135: 601058 | B135: M | C135: AUDI | D135: AUTOMOVIL | F135: A3 | G135: 8L 1.8T HB [180 HP] | H135: MT 1800CC T 5P | I135: 1200 | J135: 1 | K135: Particular | L135: 0 | M135: 0 | N135: 0 | O135: 0 | P135: 0 | Q135: 0 | R135: 0 | S135: 0 | T135: 0 | U135: 0 | V135: 0 | W135: 0 | X135: 0 | Y135: 0 | Z135: 0 | AA135: 0 | AB135: 0 | AC135: 0 | AD135: 0 | AE135: 0 | AF135: 0 | AG135: 0 | AH135: 0 | AI135: 0 | AJ135: 0 | AK135: 0 | AL135: 0 | AM135: 0 | AN135: 0 | AO135: 0 | AP135: 0 | AQ135: 0 | AR135: 0 | AS135: 25300 | AT135: 27100 | AU135: 29100 | AV135: 31200 | AW135: 0 | AX135: 0 | AY135: 0 | AZ135: 0 | BA135: 0 | BB135: 0 | BC135: 0 | BD135: 0 | BE135: 0 | BF135: 0 | BG135: 83900 | BH135: 104900 | BI135: 1 | BJ135: 180 | BK135: MT | BL135: 1781 | BM135: BRA | BN135: 5 | BO135: 0 | BP135: 5 | BQ135: 1 | BR135: 2 | BS135: Activo | BT135: GSL | BU135: 4X2 | BV135: 0 | BW135: 1
A136: 601059 | B136: M | C136: AUDI | D136: AUTOMOVIL | F136: A6 | G136: C6 2.4 MULTITRONIC CONFORT | H136: TP 2400CC | I136: 1555 | J136: 1 | K136: Particular | L136: 0 | M136: 0 | N136: 0 | O136: 0 | P136: 0 | Q136: 0 | R136: 0 | S136: 0 | T136: 0 | U136: 0 | V136: 0 | W136: 0 | X136: 0 | Y136: 0 | Z136: 0 | AA136: 0 | AB136: 0 | AC136: 0 | AD136: 0 | AE136: 0 | AF136: 0 | AG136: 0 | AH136: 0 | AI136: 0 | AJ136: 0 | AK136: 0 | AL136: 0 | AM136: 0 | AN136: 0 | AO136: 0 | AP136: 0 | AQ136: 0 | AR136: 0 | AS136: 0 | AT136: 0 | AU136: 41600 | AV136: 44600 | AW136: 0 | AX136: 0 | AY136: 0 | AZ136: 0 | BA136: 0 | BB136: 0 | BC136: 0 | BD136: 0 | BE136: 0 | BF136: 0 | BG136: 116000 | BH136: 145000 | BI136: 1 | BJ136: 177 | BK136: TP | BL136: 2393 | BM136: ALE | BN136: 5 | BO136: 0 | BP136: 4 | BQ136: 1 | BR136: 2 | BS136: Activo | BT136: GSL | BU136: 4X2 | BV136: 0 | BW136: 2
A137: 601060 | B137: M | C137: AUDI | D137: AUTOMOVIL | F137: S4 | G137: B7 4.2 V8 QUATTRO | H137: TP 4200CC | I137: 1690 | J137: 1 | K137: Particular | L137: 0 | M137: 0 | N137: 0 | O137: 0 | P137: 0 | Q137: 0 | R137: 0 | S137: 0 | T137: 0 | U137: 0 | V137: 0 | W137: 0 | X137: 0 | Y137: 0 | Z137: 0 | AA137: 0 | AB137: 0 | AC137: 0 | AD137: 0 | AE137: 0 | AF137: 0 | AG137: 0 | AH137: 0 | AI137: 0 | AJ137: 0 | AK137: 0 | AL137: 0 | AM137: 0 | AN137: 0 | AO137: 0 | AP137: 0 | AQ137: 0 | AR137: 0 | AS137: 0 | AT137: 0 | AU137: 62000 | AV137: 66500 | AW137: 71400 | AX137: 76600 | AY137: 0 | AZ137: 0 | BA137: 0 | BB137: 0 | BC137: 0 | BD137: 0 | BE137: 0 | BF137: 0 | BG137: 200000 | BH137: 250000 | BI137: 1 | BJ137: 345 | BK137: TP | BL137: 4163 | BM137: ALE | BN137: 5 | BO137: 0 | BP137: 4 | BQ137: 1 | BR137: 2 | BS137: Activo | BT137: GSL | BU137: 4X4 | BV137: 0 | BW137: 2
A138: 601061 | B138: M | C138: AUDI | D138: AUTOMOVIL | F138: A3 | G138: 8P SPORTBACK 2.0 FSI | H138: TP 2000CC 5P | I138: 1345 | J138: 1 | K138: Particular | L138: 0 | M138: 0 | N138: 0 | O138: 0 | P138: 0 | Q138: 0 | R138: 0 | S138: 0 | T138: 0 | U138: 0 | V138: 0 | W138: 0 | X138: 0 | Y138: 0 | Z138: 0 | AA138: 0 | AB138: 0 | AC138: 0 | AD138: 0 | AE138: 0 | AF138: 0 | AG138: 0 | AH138: 0 | AI138: 0 | AJ138: 0 | AK138: 0 | AL138: 0 | AM138: 0 | AN138: 0 | AO138: 0 | AP138: 0 | AQ138: 0 | AR138: 0 | AS138: 0 | AT138: 0 | AU138: 33300 | AV138: 35700 | AW138: 38300 | AX138: 41100 | AY138: 44100 | AZ138: 0 | BA138: 0 | BB138: 0 | BC138: 0 | BD138: 0 | BE138: 0 | BF138: 0 | BG138: 87500 | BH138: 109400 | BI138: 1 | BJ138: 148 | BK138: TP | BL138: 1984 | BM138: ALE | BN138: 5 | BO138: 0 | BP138: 5 | BQ138: 1 | BR138: 2 | BS138: Activo | BT138: GSL | BU138: 4X2 | BV138: 0 | BW138: 1
A139: 601062 | B139: M | C139: AUDI | D139: AUTOMOVIL | F139: A3 | G139: 8P SPORTBACK 1.6 | H139: AT 1600CC 5P | I139: 1295 | J139: 1 | K139: Particular | L139: 0 | M139: 0 | N139: 0 | O139: 0 | P139: 0 | Q139: 0 | R139: 0 | S139: 0 | T139: 0 | U139: 0 | V139: 0 | W139: 0 | X139: 0 | Y139: 0 | Z139: 0 | AA139: 0 | AB139: 0 | AC139: 0 | AD139: 0 | AE139: 0 | AF139: 0 | AG139: 0 | AH139: 0 | AI139: 0 | AJ139: 0 | AK139: 0 | AL139: 0 | AM139: 0 | AN139: 0 | AO139: 0 | AP139: 0 | AQ139: 0 | AR139: 0 | AS139: 0 | AT139: 0 | AU139: 0 | AV139: 33400 | AW139: 35800 | AX139: 38400 | AY139: 41200 | AZ139: 0 | BA139: 0 | BB139: 0 | BC139: 0 | BD139: 0 | BE139: 0 | BF139: 0 | BG139: 68000 | BH139: 85000 | BI139: 1 | BJ139: 102 | BK139: AT | BL139: 1595 | BM139: ALE | BN139: 5 | BO139: 0 | BP139: 5 | BQ139: 1 | BR139: 2 | BS139: Activo | BT139: GSL | BU139: 4X2 | BV139: 0 | BW139: 1
A140: 601063 | B140: M | C140: AUDI | D140: AUTOMOVIL | F140: A3 | G140: 8P SPORTBACK 1.6 | H140: MT 1600CC 5P | I140: 1245 | J140: 1 | K140: Particular | L140: 0 | M140: 0 | N140: 0 | O140: 0 | P140: 0 | Q140: 0 | R140: 0 | S140: 0 | T140: 0 | U140: 0 | V140: 0 | W140: 0 | X140: 0 | Y140: 0 | Z140: 0 | AA140: 0 | AB140: 0 | AC140: 0 | AD140: 0 | AE140: 0 | AF140: 0 | AG140: 0 | AH140: 0 | AI140: 0 | AJ140: 0 | AK140: 0 | AL140: 0 | AM140: 0 | AN140: 0 | AO140: 0 | AP140: 0 | AQ140: 0 | AR140: 0 | AS140: 0 | AT140: 0 | AU140: 0 | AV140: 31900 | AW140: 34200 | AX140: 36700 | AY140: 39400 | AZ140: 42300 | BA140: 45400 | BB140: 48700 | BC140: 52300 | BD140: 0 | BE140: 0 | BF140: 0 | BG140: 64900 | BH140: 81100 | BI140: 1 | BJ140: 102 | BK140: MT | BL140: 1595 | BM140: ALE | BN140: 5 | BO140: 0 | BP140: 5 | BQ140: 1 | BR140: 2 | BS140: Activo | BT140: GSL | BU140: 4X2 | BV140: 0 | BW140: 1
A141: 601064 | B141: M | C141: AUDI | D141: AUTOMOVIL | F141: A4 | G141: B5 2.8 V6 | H141: TP 2800CC 30V | I141: 1590 | J141: 1 | K141: Particular | L141: 0 | M141: 0 | N141: 0 | O141: 0 | P141: 0 | Q141: 0 | R141: 0 | S141: 0 | T141: 0 | U141: 0 | V141: 0 | W141: 0 | X141: 0 | Y141: 0 | Z141: 0 | AA141: 0 | AB141: 0 | AC141: 0 | AD141: 0 | AE141: 0 | AF141: 0 | AG141: 0 | AH141: 0 | AI141: 0 | AJ141: 0 | AK141: 0 | AL141: 0 | AM141: 15500 | AN141: 16600 | AO141: 17800 | AP141: 19100 | AQ141: 20500 | AR141: 0 | AS141: 0 | AT141: 0 | AU141: 0 | AV141: 0 | AW141: 0 | AX141: 0 | AY141: 0 | AZ141: 0 | BA141: 0 | BB141: 0 | BC141: 0 | BD141: 0 | BE141: 0 | BF141: 0 | BG141: 94000 | BH141: 117500 | BI141: 1 | BJ141: 192 | BK141: TP | BL141: 2771 | BM141: ALE | BN141: 5 | BO141: 0 | BP141: 4 | BQ141: 1 | BR141: 2 | BS141: Activo | BT141: GSL | BU141: 4X2 | BV141: 0 | BW141: 2
A142: 601065 | B142: M | C142: AUDI | D142: AUTOMOVIL | F142: A4 | G142: B7 1.8T CONFORT | H142: TP 1800CC T | I142: 1430 | J142: 1 | K142: Particular | L142: 0 | M142: 0 | N142: 0 | O142: 0 | P142: 0 | Q142: 0 | R142: 0 | S142: 0 | T142: 0 | U142: 0 | V142: 0 | W142: 0 | X142: 0 | Y142: 0 | Z142: 0 | AA142: 0 | AB142: 0 | AC142: 0 | AD142: 0 | AE142: 0 | AF142: 0 | AG142: 0 | AH142: 0 | AI142: 0 | AJ142: 0 | AK142: 0 | AL142: 0 | AM142: 0 | AN142: 0 | AO142: 0 | AP142: 0 | AQ142: 0 | AR142: 0 | AS142: 0 | AT142: 0 | AU142: 32600 | AV142: 35000 | AW142: 37600 | AX142: 0 | AY142: 0 | AZ142: 0 | BA142: 0 | BB142: 0 | BC142: 0 | BD142: 0 | BE142: 0 | BF142: 0 | BG142: 102100 | BH142: 127600 | BI142: 1 | BJ142: 163 | BK142: TP | BL142: 1781 | BM142: ALE | BN142: 5 | BO142: 0 | BP142: 4 | BQ142: 1 | BR142: 2 | BS142: Activo | BT142: GSL | BU142: 4X2 | BV142: 0 | BW142: 1
A143: 601066 | B143: M | C143: AUDI | D143: AUTOMOVIL | F143: A6 | G143: C5 1.8T | H143: MT 1800CC T | I143: 1355 | J143: 1 | K143: Particular | L143: 0 | M143: 0 | N143: 0 | O143: 0 | P143: 0 | Q143: 0 | R143: 0 | S143: 0 | T143: 0 | U143: 0 | V143: 0 | W143: 0 | X143: 0 | Y143: 0 | Z143: 0 | AA143: 0 | AB143: 0 | AC143: 0 | AD143: 0 | AE143: 0 | AF143: 0 | AG143: 0 | AH143: 0 | AI143: 0 | AJ143: 0 | AK143: 0 | AL143: 0 | AM143: 0 | AN143: 18500 | AO143: 19900 | AP143: 0 | AQ143: 0 | AR143: 0 | AS143: 0 | AT143: 0 | AU143: 0 | AV143: 0 | AW143: 0 | AX143: 0 | AY143: 0 | AZ143: 0 | BA143: 0 | BB143: 0 | BC143: 0 | BD143: 0 | BE143: 0 | BF143: 0 | BG143: 110000 | BH143: 137500 | BI143: 1 | BJ143: 150 | BK143: MT | BL143: 1781 | BM143: ALE | BN143: 5 | BO143: 0 | BP143: 4 | BQ143: 1 | BR143: 2 | BS143: Activo | BT143: GSL | BU143: 4X2 | BV143: 0 | BW143: 1
A144: 601068 | B144: M | C144: AUDI | D144: AUTOMOVIL | F144: A3 | G144: 8P SPORTBACK 2.0 FSI | H144: MT 2000CC 5P CT | I144: 1315 | J144: 1 | K144: Particular | L144: 0 | M144: 0 | N144: 0 | O144: 0 | P144: 0 | Q144: 0 | R144: 0 | S144: 0 | T144: 0 | U144: 0 | V144: 0 | W144: 0 | X144: 0 | Y144: 0 | Z144: 0 | AA144: 0 | AB144: 0 | AC144: 0 | AD144: 0 | AE144: 0 | AF144: 0 | AG144: 0 | AH144: 0 | AI144: 0 | AJ144: 0 | AK144: 0 | AL144: 0 | AM144: 0 | AN144: 0 | AO144: 0 | AP144: 0 | AQ144: 0 | AR144: 0 | AS144: 0 | AT144: 0 | AU144: 31600 | AV144: 33900 | AW144: 36400 | AX144: 39000 | AY144: 41900 | AZ144: 0 | BA144: 0 | BB144: 0 | BC144: 0 | BD144: 0 | BE144: 0 | BF144: 0 | BG144: 83100 | BH144: 103900 | BI144: 1 | BJ144: 150 | BK144: MT | BL144: 1984 | BM144: ALE | BN144: 5 | BO144: 0 | BP144: 5 | BQ144: 1 | BR144: 2 | BS144: Activo | BT144: GSL | BU144: 4X2 | BV144: 0 | BW144: 1
A145: 601069 | B145: M | C145: AUDI | D145: AUTOMOVIL | F145: A4 | G145: B7 1.8T LUXURY | H145: MT 1800CC T | I145: 1390 | J145: 1 | K145: Particular | L145: 0 | M145: 0 | N145: 0 | O145: 0 | P145: 0 | Q145: 0 | R145: 0 | S145: 0 | T145: 0 | U145: 0 | V145: 0 | W145: 0 | X145: 0 | Y145: 0 | Z145: 0 | AA145: 0 | AB145: 0 | AC145: 0 | AD145: 0 | AE145: 0 | AF145: 0 | AG145: 0 | AH145: 0 | AI145: 0 | AJ145: 0 | AK145: 0 | AL145: 0 | AM145: 0 | AN145: 0 | AO145: 0 | AP145: 0 | AQ145: 0 | AR145: 0 | AS145: 0 | AT145: 0 | AU145: 33000 | AV145: 35400 | AW145: 38000 | AX145: 40800 | AY145: 0 | AZ145: 0 | BA145: 0 | BB145: 0 | BC145: 0 | BD145: 0 | BE145: 0 | BF145: 0 | BG145: 103100 | BH145: 128900 | BI145: 1 | BJ145: 163 | BK145: MT | BL145: 1781 | BM145: ALE | BN145: 5 | BO145: 0 | BP145: 4 | BQ145: 1 | BR145: 2 | BS145: Activo | BT145: GSL | BU145: 4X2 | BV145: 0 | BW145: 1
A146: 601070 | B146: M | C146: AUDI | D146: AUTOMOVIL | F146: A4 | G146: B7 1.8T LUXURY | H146: TP 1800CC T | I146: 1430 | J146: 1 | K146: Particular | L146: 0 | M146: 0 | N146: 0 | O146: 0 | P146: 0 | Q146: 0 | R146: 0 | S146: 0 | T146: 0 | U146: 0 | V146: 0 | W146: 0 | X146: 0 | Y146: 0 | Z146: 0 | AA146: 0 | AB146: 0 | AC146: 0 | AD146: 0 | AE146: 0 | AF146: 0 | AG146: 0 | AH146: 0 | AI146: 0 | AJ146: 0 | AK146: 0 | AL146: 0 | AM146: 0 | AN146: 0 | AO146: 0 | AP146: 0 | AQ146: 0 | AR146: 0 | AS146: 0 | AT146: 0 | AU146: 34500 | AV146: 37000 | AW146: 39700 | AX146: 42600 | AY146: 0 | AZ146: 0 | BA146: 0 | BB146: 0 | BC146: 0 | BD146: 0 | BE146: 0 | BF146: 0 | BG146: 108600 | BH146: 135800 | BI146: 1 | BJ146: 163 | BK146: TP | BL146: 1781 | BM146: ALE | BN146: 5 | BO146: 0 | BP146: 4 | BQ146: 1 | BR146: 2 | BS146: Activo | BT146: GSL | BU146: 4X2 | BV146: 0 | BW146: 1
A147: 601072 | B147: M | C147: AUDI | D147: AUTOMOVIL | F147: A4 | G147: B7 1.8T AVANT LUXURY | H147: TP 1800CC T | I147: 1490 | J147: 1 | K147: Particular | L147: 0 | M147: 0 | N147: 0 | O147: 0 | P147: 0 | Q147: 0 | R147: 0 | S147: 0 | T147: 0 | U147: 0 | V147: 0 | W147: 0 | X147: 0 | Y147: 0 | Z147: 0 | AA147: 0 | AB147: 0 | AC147: 0 | AD147: 0 | AE147: 0 | AF147: 0 | AG147: 0 | AH147: 0 | AI147: 0 | AJ147: 0 | AK147: 0 | AL147: 0 | AM147: 0 | AN147: 0 | AO147: 0 | AP147: 0 | AQ147: 0 | AR147: 0 | AS147: 0 | AT147: 0 | AU147: 36300 | AV147: 38900 | AW147: 41700 | AX147: 44700 | AY147: 0 | AZ147: 0 | BA147: 0 | BB147: 0 | BC147: 0 | BD147: 0 | BE147: 0 | BF147: 0 | BG147: 114000 | BH147: 142500 | BI147: 1 | BJ147: 163 | BK147: TP | BL147: 1781 | BM147: ALE | BN147: 5 | BO147: 0 | BP147: 4 | BQ147: 1 | BR147: 2 | BS147: Activo | BT147: GSL | BU147: 4X2 | BV147: 0 | BW147: 2
A148: 601073 | B148: M | C148: AUDI | D148: AUTOMOVIL | F148: S4 | G148: B7 4.2 V8 QUATTRO | H148: MT 4200CC | I148: 1650 | J148: 1 | K148: Particular | L148: 0 | M148: 0 | N148: 0 | O148: 0 | P148: 0 | Q148: 0 | R148: 0 | S148: 0 | T148: 0 | U148: 0 | V148: 0 | W148: 0 | X148: 0 | Y148: 0 | Z148: 0 | AA148: 0 | AB148: 0 | AC148: 0 | AD148: 0 | AE148: 0 | AF148: 0 | AG148: 0 | AH148: 0 | AI148: 0 | AJ148: 0 | AK148: 0 | AL148: 0 | AM148: 0 | AN148: 0 | AO148: 0 | AP148: 0 | AQ148: 0 | AR148: 0 | AS148: 0 | AT148: 0 | AU148: 0 | AV148: 64500 | AW148: 69200 | AX148: 74300 | AY148: 0 | AZ148: 0 | BA148: 0 | BB148: 0 | BC148: 0 | BD148: 0 | BE148: 0 | BF148: 0 | BG148: 191000 | BH148: 238800 | BI148: 1 | BJ148: 345 | BK148: MT | BL148: 4163 | BM148: ALE | BN148: 5 | BO148: 0 | BP148: 4 | BQ148: 1 | BR148: 2 | BS148: Activo | BT148: GSL | BU148: 4X4 | BV148: 0 | BW148: 2
A149: 601074 | B149: M | C149: AUDI | D149: AUTOMOVIL | F149: A6 | G149: C6 2.4 MULTITRONIC LUJO | H149: TP 2400CC | I149: 1555 | J149: 1 | K149: Particular | L149: 0 | M149: 0 | N149: 0 | O149: 0 | P149: 0 | Q149: 0 | R149: 0 | S149: 0 | T149: 0 | U149: 0 | V149: 0 | W149: 0 | X149: 0 | Y149: 0 | Z149: 0 | AA149: 0 | AB149: 0 | AC149: 0 | AD149: 0 | AE149: 0 | AF149: 0 | AG149: 0 | AH149: 0 | AI149: 0 | AJ149: 0 | AK149: 0 | AL149: 0 | AM149: 0 | AN149: 0 | AO149: 0 | AP149: 0 | AQ149: 0 | AR149: 0 | AS149: 0 | AT149: 0 | AU149: 43300 | AV149: 46500 | AW149: 49900 | AX149: 53500 | AY149: 0 | AZ149: 0 | BA149: 0 | BB149: 0 | BC149: 0 | BD149: 0 | BE149: 0 | BF149: 0 | BG149: 120000 | BH149: 150000 | BI149: 1 | BJ149: 177 | BK149: TP | BL149: 2393 | BM149: ALE | BN149: 5 | BO149: 0 | BP149: 4 | BQ149: 1 | BR149: 2 | BS149: Activo | BT149: GSL | BU149: 4X2 | BV149: 0 | BW149: 2
A150: 601075 | B150: M | C150: AUDI | D150: AUTOMOVIL | F150: A6 | G150: C6 3.0 TIPTRONIC QUATTRO | H150: TP 3000CC | I150: 1700 | J150: 1 | K150: Particular | L150: 0 | M150: 0 | N150: 0 | O150: 0 | P150: 0 | Q150: 0 | R150: 0 | S150: 0 | T150: 0 | U150: 0 | V150: 0 | W150: 0 | X150: 0 | Y150: 0 | Z150: 0 | AA150: 0 | AB150: 0 | AC150: 0 | AD150: 0 | AE150: 0 | AF150: 0 | AG150: 0 | AH150: 0 | AI150: 0 | AJ150: 0 | AK150: 0 | AL150: 0 | AM150: 0 | AN150: 0 | AO150: 0 | AP150: 0 | AQ150: 0 | AR150: 0 | AS150: 0 | AT150: 0 | AU150: 51400 | AV150: 55200 | AW150: 0 | AX150: 0 | AY150: 0 | AZ150: 0 | BA150: 0 | BB150: 0 | BC150: 0 | BD150: 0 | BE150: 0 | BF150: 0 | BG150: 169800 | BH150: 212300 | BI150: 1 | BJ150: 220 | BK150: TP | BL150: 2976 | BM150: ALE | BN150: 5 | BO150: 0 | BP150: 4 | BQ150: 1 | BR150: 2 | BS150: Activo | BT150: GSL | BU150: 4X4 | BV150: 0 | BW150: 2
A151: 601076 | B151: M | C151: AUDI | D151: AUTOMOVIL | F151: A6 | G151: C6 4.2 TIPTRONIC QUATTRO | H151: TP 4200CC V8 | I151: 1770 | J151: 1 | K151: Particular | L151: 0 | M151: 0 | N151: 0 | O151: 0 | P151: 0 | Q151: 0 | R151: 0 | S151: 0 | T151: 0 | U151: 0 | V151: 0 | W151: 0 | X151: 0 | Y151: 0 | Z151: 0 | AA151: 0 | AB151: 0 | AC151: 0 | AD151: 0 | AE151: 0 | AF151: 0 | AG151: 0 | AH151: 0 | AI151: 0 | AJ151: 0 | AK151: 0 | AL151: 0 | AM151: 0 | AN151: 0 | AO151: 0 | AP151: 0 | AQ151: 0 | AR151: 0 | AS151: 0 | AT151: 0 | AU151: 67600 | AV151: 72500 | AW151: 77800 | AX151: 83500 | AY151: 89600 | AZ151: 0 | BA151: 0 | BB151: 0 | BC151: 0 | BD151: 0 | BE151: 0 | BF151: 0 | BG151: 218300 | BH151: 272900 | BI151: 1 | BJ151: 350 | BK151: TP | BL151: 4163 | BM151: ALE | BN151: 5 | BO151: 0 | BP151: 4 | BQ151: 1 | BR151: 2 | BS151: Activo | BT151: GSL | BU151: 4X4 | BV151: 0 | BW151: 2
A152: 601077 | B152: M | C152: AUDI | D152: AUTOMOVIL | F152: TT | G152: 8N 1.8T COUPE QUATTRO | H152: MT 1800CC T | I152: 1410 | J152: 1 | K152: Particular | L152: 0 | M152: 0 | N152: 0 | O152: 0 | P152: 0 | Q152: 0 | R152: 0 | S152: 0 | T152: 0 | U152: 0 | V152: 0 | W152: 0 | X152: 0 | Y152: 0 | Z152: 0 | AA152: 0 | AB152: 0 | AC152: 0 | AD152: 0 | AE152: 0 | AF152: 0 | AG152: 0 | AH152: 0 | AI152: 0 | AJ152: 0 | AK152: 0 | AL152: 0 | AM152: 0 | AN152: 0 | AO152: 37800 | AP152: 40600 | AQ152: 43600 | AR152: 46800 | AS152: 50200 | AT152: 53900 | AU152: 57800 | AV152: 0 | AW152: 0 | AX152: 0 | AY152: 0 | AZ152: 0 | BA152: 0 | BB152: 0 | BC152: 0 | BD152: 0 | BE152: 0 | BF152: 0 | BG152: 135100 | BH152: 168900 | BI152: 1 | BJ152: 225 | BK152: MT | BL152: 1781 | BM152: HNG | BN152: 4 | BO152: 0 | BP152: 3 | BQ152: 1 | BR152: 2 | BS152: Activo | BT152: GSL | BU152: 4X4 | BV152: 0 | BW152: 1
A153: 601078 | B153: M | C153: AUDI | D153: AUTOMOVIL | F153: TT | G153: 8N 1.8T ROADSTER QUATTRO | H153: MT 1800CC T | I153: 1573 | J153: 1 | K153: Particular | L153: 0 | M153: 0 | N153: 0 | O153: 0 | P153: 0 | Q153: 0 | R153: 0 | S153: 0 | T153: 0 | U153: 0 | V153: 0 | W153: 0 | X153: 0 | Y153: 0 | Z153: 0 | AA153: 0 | AB153: 0 | AC153: 0 | AD153: 0 | AE153: 0 | AF153: 0 | AG153: 0 | AH153: 0 | AI153: 0 | AJ153: 0 | AK153: 0 | AL153: 0 | AM153: 0 | AN153: 0 | AO153: 0 | AP153: 0 | AQ153: 46800 | AR153: 50200 | AS153: 53900 | AT153: 57800 | AU153: 62000 | AV153: 0 | AW153: 0 | AX153: 0 | AY153: 0 | AZ153: 0 | BA153: 0 | BB153: 0 | BC153: 0 | BD153: 0 | BE153: 0 | BF153: 0 | BG153: 144800 | BH153: 181000 | BI153: 1 | BJ153: 225 | BK153: MT | BL153: 1781 | BM153: HNG | BN153: 2 | BO153: 0 | BP153: 2 | BQ153: 1 | BR153: 2 | BS153: Activo | BT153: GSL | BU153: 4X4 | BV153: 0 | BW153: 2
A154: 601080 | B154: M | C154: AUDI | D154: AUTOMOVIL | F154: A3 | G154: 8P SPORTBACK 2.0 FSI | H154: MT 2000CC 5P | I154: 1315 | J154: 1 | K154: Particular | L154: 0 | M154: 0 | N154: 0 | O154: 0 | P154: 0 | Q154: 0 | R154: 0 | S154: 0 | T154: 0 | U154: 0 | V154: 0 | W154: 0 | X154: 0 | Y154: 0 | Z154: 0 | AA154: 0 | AB154: 0 | AC154: 0 | AD154: 0 | AE154: 0 | AF154: 0 | AG154: 0 | AH154: 0 | AI154: 0 | AJ154: 0 | AK154: 0 | AL154: 0 | AM154: 0 | AN154: 0 | AO154: 0 | AP154: 0 | AQ154: 0 | AR154: 0 | AS154: 0 | AT154: 0 | AU154: 31000 | AV154: 33200 | AW154: 35700 | AX154: 38200 | AY154: 41100 | AZ154: 0 | BA154: 0 | BB154: 0 | BC154: 0 | BD154: 0 | BE154: 0 | BF154: 0 | BG154: 81400 | BH154: 101800 | BI154: 1 | BJ154: 150 | BK154: MT | BL154: 1984 | BM154: ALE | BN154: 5 | BO154: 0 | BP154: 5 | BQ154: 1 | BR154: 2 | BS154: Activo | BT154: GSL | BU154: 4X2 | BV154: 0 | BW154: 1
A155: 601081 | B155: M | C155: AUDI | D155: AUTOMOVIL | F155: A3 | G155: 8P COUPE S-TRONIC QUATTRO | H155: TP 3200CC 3P | I155: 1525 | J155: 1 | K155: Particular | L155: 0 | M155: 0 | N155: 0 | O155: 0 | P155: 0 | Q155: 0 | R155: 0 | S155: 0 | T155: 0 | U155: 0 | V155: 0 | W155: 0 | X155: 0 | Y155: 0 | Z155: 0 | AA155: 0 | AB155: 0 | AC155: 0 | AD155: 0 | AE155: 0 | AF155: 0 | AG155: 0 | AH155: 0 | AI155: 0 | AJ155: 0 | AK155: 0 | AL155: 0 | AM155: 0 | AN155: 0 | AO155: 0 | AP155: 0 | AQ155: 0 | AR155: 0 | AS155: 0 | AT155: 0 | AU155: 0 | AV155: 43400 | AW155: 46600 | AX155: 50000 | AY155: 53700 | AZ155: 0 | BA155: 0 | BB155: 0 | BC155: 0 | BD155: 0 | BE155: 0 | BF155: 0 | BG155: 112100 | BH155: 140100 | BI155: 1 | BJ155: 250 | BK155: TP | BL155: 3189 | BM155: ALE | BN155: 5 | BO155: 0 | BP155: 3 | BQ155: 1 | BR155: 2 | BS155: Activo | BT155: GSL | BU155: 4X4 | BV155: 0 | BW155: 2
A156: 601084 | B156: M | C156: AUDI | D156: AUTOMOVIL | F156: A3 | G156: 8P SPORTBACK S-TRONIC QUATTRO | H156: TP 3200CC 5P | I156: 1565 | J156: 1 | K156: Particular | L156: 0 | M156: 0 | N156: 0 | O156: 0 | P156: 0 | Q156: 0 | R156: 0 | S156: 0 | T156: 0 | U156: 0 | V156: 0 | W156: 0 | X156: 0 | Y156: 0 | Z156: 0 | AA156: 0 | AB156: 0 | AC156: 0 | AD156: 0 | AE156: 0 | AF156: 0 | AG156: 0 | AH156: 0 | AI156: 0 | AJ156: 0 | AK156: 0 | AL156: 0 | AM156: 0 | AN156: 0 | AO156: 0 | AP156: 0 | AQ156: 0 | AR156: 0 | AS156: 0 | AT156: 0 | AU156: 0 | AV156: 44700 | AW156: 48000 | AX156: 51500 | AY156: 55300 | AZ156: 0 | BA156: 0 | BB156: 0 | BC156: 0 | BD156: 0 | BE156: 0 | BF156: 0 | BG156: 114300 | BH156: 142900 | BI156: 1 | BJ156: 250 | BK156: TP | BL156: 3189 | BM156: ALE | BN156: 5 | BO156: 0 | BP156: 5 | BQ156: 1 | BR156: 2 | BS156: Activo | BT156: GSL | BU156: 4X4 | BV156: 0 | BW156: 2
A157: 601087 | B157: M | C157: AUDI | D157: AUTOMOVIL | F157: TT | G157: 8J 3.2 FSI COUPE S-TRONIC | H157: TP 3200CC | I157: 1430 | J157: 1 | K157: Particular | L157: 0 | M157: 0 | N157: 0 | O157: 0 | P157: 0 | Q157: 0 | R157: 0 | S157: 0 | T157: 0 | U157: 0 | V157: 0 | W157: 0 | X157: 0 | Y157: 0 | Z157: 0 | AA157: 0 | AB157: 0 | AC157: 0 | AD157: 0 | AE157: 0 | AF157: 0 | AG157: 0 | AH157: 0 | AI157: 0 | AJ157: 0 | AK157: 0 | AL157: 0 | AM157: 0 | AN157: 0 | AO157: 0 | AP157: 0 | AQ157: 0 | AR157: 0 | AS157: 0 | AT157: 0 | AU157: 0 | AV157: 64900 | AW157: 69600 | AX157: 74700 | AY157: 80100 | AZ157: 0 | BA157: 0 | BB157: 0 | BC157: 0 | BD157: 0 | BE157: 0 | BF157: 0 | BG157: 155600 | BH157: 194500 | BI157: 1 | BJ157: 250 | BK157: TP | BL157: 3189 | BM157: HNG | BN157: 4 | BO157: 0 | BP157: 3 | BQ157: 1 | BR157: 2 | BS157: Activo | BT157: GSL | BU157: 4X4 | BV157: 0 | BW157: 1
A158: 601088 | B158: M | C158: AUDI | D158: AUTOMOVIL | F158: A3 | G158: 8P COUPE 2.0 FSI | H158: TP 2000CC 3P | I158: 1305 | J158: 1 | K158: Particular | L158: 0 | M158: 0 | N158: 0 | O158: 0 | P158: 0 | Q158: 0 | R158: 0 | S158: 0 | T158: 0 | U158: 0 | V158: 0 | W158: 0 | X158: 0 | Y158: 0 | Z158: 0 | AA158: 0 | AB158: 0 | AC158: 0 | AD158: 0 | AE158: 0 | AF158: 0 | AG158: 0 | AH158: 0 | AI158: 0 | AJ158: 0 | AK158: 0 | AL158: 0 | AM158: 0 | AN158: 0 | AO158: 0 | AP158: 0 | AQ158: 0 | AR158: 0 | AS158: 0 | AT158: 0 | AU158: 32700 | AV158: 35100 | AW158: 37700 | AX158: 40400 | AY158: 43300 | AZ158: 0 | BA158: 0 | BB158: 0 | BC158: 0 | BD158: 0 | BE158: 0 | BF158: 0 | BG158: 85000 | BH158: 106300 | BI158: 1 | BJ158: 148 | BK158: TP | BL158: 1984 | BM158: ALE | BN158: 5 | BO158: 0 | BP158: 3 | BQ158: 1 | BR158: 2 | BS158: Activo | BT158: GSL | BU158: 4X2 | BV158: 0 | BW158: 1
A159: 601091 | B159: M | C159: AUDI | D159: AUTOMOVIL | F159: 100 | G159: C3 2.3 | H159: AT 2300CC | I159: 1370 | J159: 1 | K159: Particular | L159: 0 | M159: 0 | N159: 0 | O159: 0 | P159: 0 | Q159: 0 | R159: 0 | S159: 0 | T159: 0 | U159: 0 | V159: 0 | W159: 0 | X159: 0 | Y159: 0 | Z159: 0 | AA159: 0 | AB159: 0 | AC159: 0 | AD159: 0 | AE159: 0 | AF159: 8300 | AG159: 0 | AH159: 0 | AI159: 0 | AJ159: 0 | AK159: 0 | AL159: 0 | AM159: 0 | AN159: 0 | AO159: 0 | AP159: 0 | AQ159: 0 | AR159: 0 | AS159: 0 | AT159: 0 | AU159: 0 | AV159: 0 | AW159: 0 | AX159: 0 | AY159: 0 | AZ159: 0 | BA159: 0 | BB159: 0 | BC159: 0 | BD159: 0 | BE159: 0 | BF159: 0 | BG159: 80000 | BH159: 100000 | BI159: 1 | BJ159: 133 | BK159: AT | BL159: 2309 | BM159: ALE | BN159: 5 | BO159: 0 | BP159: 4 | BQ159: 1 | BR159: 2 | BS159: Activo | BT159: GSL | BU159: 4X2 | BV159: 0 | BW159: 1
A160: 601092 | B160: M | C160: AUDI | D160: AUTOMOVIL | F160: A4 | G160: B7 2.0 TFSI | H160: TP 2000CC T | I160: 1450 | J160: 1 | K160: Particular | L160: 0 | M160: 0 | N160: 0 | O160: 0 | P160: 0 | Q160: 0 | R160: 0 | S160: 0 | T160: 0 | U160: 0 | V160: 0 | W160: 0 | X160: 0 | Y160: 0 | Z160: 0 | AA160: 0 | AB160: 0 | AC160: 0 | AD160: 0 | AE160: 0 | AF160: 0 | AG160: 0 | AH160: 0 | AI160: 0 | AJ160: 0 | AK160: 0 | AL160: 0 | AM160: 0 | AN160: 0 | AO160: 0 | AP160: 0 | AQ160: 0 | AR160: 0 | AS160: 0 | AT160: 0 | AU160: 35300 | AV160: 37900 | AW160: 40700 | AX160: 43700 | AY160: 0 | AZ160: 0 | BA160: 0 | BB160: 0 | BC160: 0 | BD160: 0 | BE160: 0 | BF160: 0 | BG160: 100000 | BH160: 125000 | BI160: 1 | BJ160: 200 | BK160: TP | BL160: 1984 | BM160: ALE | BN160: 5 | BO160: 0 | BP160: 4 | BQ160: 1 | BR160: 2 | BS160: Activo | BT160: GSL | BU160: 4X2 | BV160: 0 | BW160: 1
A161: 601093 | B161: M | C161: AUDI | D161: AUTOMOVIL | F161: A6 | G161: C6 3.2 MULTITRONIC LUXURY | H161: TP 3200CC | I161: 1570 | J161: 1 | K161: Particular | L161: 0 | M161: 0 | N161: 0 | O161: 0 | P161: 0 | Q161: 0 | R161: 0 | S161: 0 | T161: 0 | U161: 0 | V161: 0 | W161: 0 | X161: 0 | Y161: 0 | Z161: 0 | AA161: 0 | AB161: 0 | AC161: 0 | AD161: 0 | AE161: 0 | AF161: 0 | AG161: 0 | AH161: 0 | AI161: 0 | AJ161: 0 | AK161: 0 | AL161: 0 | AM161: 0 | AN161: 0 | AO161: 0 | AP161: 0 | AQ161: 0 | AR161: 0 | AS161: 0 | AT161: 0 | AU161: 0 | AV161: 65600 | AW161: 70400 | AX161: 75500 | AY161: 0 | AZ161: 0 | BA161: 0 | BB161: 0 | BC161: 0 | BD161: 0 | BE161: 0 | BF161: 0 | BG161: 150000 | BH161: 187500 | BI161: 1 | BJ161: 255 | BK161: TP | BL161: 3123 | BM161: ALE | BN161: 5 | BO161: 0 | BP161: 4 | BQ161: 1 | BR161: 2 | BS161: Activo | BT161: GSL | BU161: 4X2 | BV161: 0 | BW161: 2
A162: 601094 | B162: M | C162: AUDI | D162: AUTOMOVIL | F162: A4 | G162: B7 2.0 TFSI QUATTRO | H162: TP 2000CC T | I162: 1535 | J162: 1 | K162: Particular | L162: 0 | M162: 0 | N162: 0 | O162: 0 | P162: 0 | Q162: 0 | R162: 0 | S162: 0 | T162: 0 | U162: 0 | V162: 0 | W162: 0 | X162: 0 | Y162: 0 | Z162: 0 | AA162: 0 | AB162: 0 | AC162: 0 | AD162: 0 | AE162: 0 | AF162: 0 | AG162: 0 | AH162: 0 | AI162: 0 | AJ162: 0 | AK162: 0 | AL162: 0 | AM162: 0 | AN162: 0 | AO162: 0 | AP162: 0 | AQ162: 0 | AR162: 0 | AS162: 0 | AT162: 0 | AU162: 0 | AV162: 0 | AW162: 44000 | AX162: 47200 | AY162: 0 | AZ162: 0 | BA162: 0 | BB162: 0 | BC162: 0 | BD162: 0 | BE162: 0 | BF162: 0 | BG162: 110000 | BH162: 137500 | BI162: 1 | BJ162: 200 | BK162: TP | BL162: 1984 | BM162: ALE | BN162: 5 | BO162: 0 | BP162: 4 | BQ162: 1 | BR162: 2 | BS162: Activo | BT162: GSL | BU162: 4X2 | BV162: 0 | BW162: 2
A163: 601095 | B163: M | C163: AUDI | D163: AUTOMOVIL | F163: TT | G163: 8J 2.0 TFSI COUPE | H163: MT 2000CC T | I163: 1260 | J163: 1 | K163: Particular | L163: 0 | M163: 0 | N163: 0 | O163: 0 | P163: 0 | Q163: 0 | R163: 0 | S163: 0 | T163: 0 | U163: 0 | V163: 0 | W163: 0 | X163: 0 | Y163: 0 | Z163: 0 | AA163: 0 | AB163: 0 | AC163: 0 | AD163: 0 | AE163: 0 | AF163: 0 | AG163: 0 | AH163: 0 | AI163: 0 | AJ163: 0 | AK163: 0 | AL163: 0 | AM163: 0 | AN163: 0 | AO163: 0 | AP163: 0 | AQ163: 0 | AR163: 0 | AS163: 0 | AT163: 0 | AU163: 0 | AV163: 57300 | AW163: 61500 | AX163: 66000 | AY163: 70800 | AZ163: 76000 | BA163: 81500 | BB163: 87400 | BC163: 0 | BD163: 0 | BE163: 0 | BF163: 0 | BG163: 111500 | BH163: 139400 | BI163: 1 | BJ163: 200 | BK163: MT | BL163: 1984 | BM163: HNG | BN163: 4 | BO163: 0 | BP163: 3 | BQ163: 1 | BR163: 2 | BS163: Activo | BT163: GSL | BU163: 4X2 | BV163: 0 | BW163: 1
A164: 601096 | B164: M | C164: AUDI | D164: AUTOMOVIL | F164: TT | G164: 8J 2.0 TFSI COUPE S-TRONIC | H164: TP 2000CC T | I164: 1280 | J164: 1 | K164: Particular | L164: 0 | M164: 0 | N164: 0 | O164: 0 | P164: 0 | Q164: 0 | R164: 0 | S164: 0 | T164: 0 | U164: 0 | V164: 0 | W164: 0 | X164: 0 | Y164: 0 | Z164: 0 | AA164: 0 | AB164: 0 | AC164: 0 | AD164: 0 | AE164: 0 | AF164: 0 | AG164: 0 | AH164: 0 | AI164: 0 | AJ164: 0 | AK164: 0 | AL164: 0 | AM164: 0 | AN164: 0 | AO164: 0 | AP164: 0 | AQ164: 0 | AR164: 0 | AS164: 0 | AT164: 0 | AU164: 0 | AV164: 0 | AW164: 64900 | AX164: 69600 | AY164: 74700 | AZ164: 80200 | BA164: 86000 | BB164: 92300 | BC164: 99000 | BD164: 110000 | BE164: 0 | BF164: 0 | BG164: 128000 | BH164: 160000 | BI164: 1 | BJ164: 200 | BK164: TP | BL164: 1984 | BM164: HNG | BN164: 4 | BO164: 0 | BP164: 3 | BQ164: 1 | BR164: 2 | BS164: Activo | BT164: GSL | BU164: 4X2 | BV164: 0 | BW164: 1
A165: 601097 | B165: M | C165: AUDI | D165: AUTOMOVIL | F165: A4 | G165: B6 2.4 AVANT V6 | H165: TP 2400CC SW | I165: 1535 | J165: 1 | K165: Particular | L165: 0 | M165: 0 | N165: 0 | O165: 0 | P165: 0 | Q165: 0 | R165: 0 | S165: 0 | T165: 0 | U165: 0 | V165: 0 | W165: 0 | X165: 0 | Y165: 0 | Z165: 0 | AA165: 0 | AB165: 0 | AC165: 0 | AD165: 0 | AE165: 0 | AF165: 0 | AG165: 0 | AH165: 0 | AI165: 0 | AJ165: 0 | AK165: 0 | AL165: 0 | AM165: 0 | AN165: 0 | AO165: 0 | AP165: 0 | AQ165: 0 | AR165: 0 | AS165: 0 | AT165: 33300 | AU165: 0 | AV165: 0 | AW165: 0 | AX165: 0 | AY165: 0 | AZ165: 0 | BA165: 0 | BB165: 0 | BC165: 0 | BD165: 0 | BE165: 0 | BF165: 0 | BG165: 108200 | BH165: 135300 | BI165: 1 | BJ165: 170 | BK165: TP | BL165: 2393 | BM165: ALE | BN165: 5 | BO165: 0 | BP165: 5 | BQ165: 1 | BR165: 2 | BS165: Activo | BT165: GSL | BU165: 4X2 | BV165: 0 | BW165: 2
A166: 601098 | B166: M | C166: AUDI | D166: AUTOMOVIL | F166: A4 | G166: B7 3.2 MULTITRONIC LUXURY | H166: TP 3200CC | I166: 1490 | J166: 1 | K166: Particular | L166: 0 | M166: 0 | N166: 0 | O166: 0 | P166: 0 | Q166: 0 | R166: 0 | S166: 0 | T166: 0 | U166: 0 | V166: 0 | W166: 0 | X166: 0 | Y166: 0 | Z166: 0 | AA166: 0 | AB166: 0 | AC166: 0 | AD166: 0 | AE166: 0 | AF166: 0 | AG166: 0 | AH166: 0 | AI166: 0 | AJ166: 0 | AK166: 0 | AL166: 0 | AM166: 0 | AN166: 0 | AO166: 0 | AP166: 0 | AQ166: 0 | AR166: 0 | AS166: 0 | AT166: 0 | AU166: 0 | AV166: 0 | AW166: 46600 | AX166: 50000 | AY166: 0 | AZ166: 0 | BA166: 0 | BB166: 0 | BC166: 0 | BD166: 0 | BE166: 0 | BF166: 0 | BG166: 118000 | BH166: 147500 | BI166: 1 | BJ166: 255 | BK166: TP | BL166: 3123 | BM166: ALE | BN166: 5 | BO166: 0 | BP166: 4 | BQ166: 1 | BR166: 2 | BS166: Activo | BT166: GSL | BU166: 4X2 | BV166: 0 | BW166: 2
A167: 601099 | B167: M | C167: AUDI | D167: AUTOMOVIL | F167: A3 | G167: 8P 1.6 COUPE | H167: MT 1600CC 3P | I167: 1205 | J167: 1 | K167: Particular | L167: 0 | M167: 0 | N167: 0 | O167: 0 | P167: 0 | Q167: 0 | R167: 0 | S167: 0 | T167: 0 | U167: 0 | V167: 0 | W167: 0 | X167: 0 | Y167: 0 | Z167: 0 | AA167: 0 | AB167: 0 | AC167: 0 | AD167: 0 | AE167: 0 | AF167: 0 | AG167: 0 | AH167: 0 | AI167: 0 | AJ167: 0 | AK167: 0 | AL167: 0 | AM167: 0 | AN167: 0 | AO167: 0 | AP167: 0 | AQ167: 0 | AR167: 0 | AS167: 0 | AT167: 0 | AU167: 0 | AV167: 0 | AW167: 31300 | AX167: 33600 | AY167: 36100 | AZ167: 38700 | BA167: 41500 | BB167: 44500 | BC167: 0 | BD167: 0 | BE167: 0 | BF167: 0 | BG167: 60700 | BH167: 75900 | BI167: 1 | BJ167: 100 | BK167: MT | BL167: 1595 | BM167: ALE | BN167: 5 | BO167: 0 | BP167: 3 | BQ167: 1 | BR167: 2 | BS167: Activo | BT167: GSL | BU167: 4X2 | BV167: 0 | BW167: 1
A168: 601100 | B168: M | C168: AUDI | D168: AUTOMOVIL | F168: A3 | G168: 8P SPORTBACK 2.0 TFSI | H168: TP 2000CC T 5P | I168: 1410 | J168: 1 | K168: Particular | L168: 0 | M168: 0 | N168: 0 | O168: 0 | P168: 0 | Q168: 0 | R168: 0 | S168: 0 | T168: 0 | U168: 0 | V168: 0 | W168: 0 | X168: 0 | Y168: 0 | Z168: 0 | AA168: 0 | AB168: 0 | AC168: 0 | AD168: 0 | AE168: 0 | AF168: 0 | AG168: 0 | AH168: 0 | AI168: 0 | AJ168: 0 | AK168: 0 | AL168: 0 | AM168: 0 | AN168: 0 | AO168: 0 | AP168: 0 | AQ168: 0 | AR168: 0 | AS168: 0 | AT168: 0 | AU168: 0 | AV168: 0 | AW168: 0 | AX168: 44600 | AY168: 47900 | AZ168: 0 | BA168: 0 | BB168: 0 | BC168: 0 | BD168: 0 | BE168: 0 | BF168: 0 | BG168: 95500 | BH168: 119400 | BI168: 1 | BJ168: 197 | BK168: TP | BL168: 1984 | BM168: ALE | BN168: 5 | BO168: 0 | BP168: 5 | BQ168: 1 | BR168: 2 | BS168: Activo | BT168: GSL | BU168: 4X2 | BV168: 0 | BW168: 1
A169: 601101 | B169: N | C169: AUDI | D169: AUTOMOVIL | F169: A5 | G169: 3.2 FSI MULTITRONIC | H169: TP 3200CC 2P | I169: 1495 | J169: 1 | K169: Particular | L169: 0 | M169: 0 | N169: 0 | O169: 0 | P169: 0 | Q169: 0 | R169: 0 | S169: 0 | T169: 0 | U169: 0 | V169: 0 | W169: 0 | X169: 0 | Y169: 0 | Z169: 0 | AA169: 0 | AB169: 0 | AC169: 0 | AD169: 0 | AE169: 0 | AF169: 0 | AG169: 0 | AH169: 0 | AI169: 0 | AJ169: 0 | AK169: 0 | AL169: 0 | AM169: 0 | AN169: 0 | AO169: 0 | AP169: 0 | AQ169: 0 | AR169: 0 | AS169: 0 | AT169: 0 | AU169: 0 | AV169: 0 | AW169: 0 | AX169: 78900 | AY169: 84700 | AZ169: 90900 | BA169: 0 | BB169: 0 | BC169: 0 | BD169: 0 | BE169: 0 | BF169: 0 | BG169: 171700 | BH169: 214600 | BI169: 1 | BJ169: 265 | BK169: TP | BL169: 3197 | BM169: ALE | BN169: 5 | BO169: 0 | BP169: 2 | BQ169: 1 | BR169: 2 | BS169: Activo | BT169: GSL | BU169: 4X2 | BV169: 0 | BW169: 2
A170: 601102 | B170: M | C170: AUDI | D170: AUTOMOVIL | F170: A6 | G170: C6 2.8 V6 MULTITRONIC LUJO | H170: TP 2800CC 24V | I170: 1570 | J170: 1 | K170: Particular | L170: 0 | M170: 0 | N170: 0 | O170: 0 | P170: 0 | Q170: 0 | R170: 0 | S170: 0 | T170: 0 | U170: 0 | V170: 0 | W170: 0 | X170: 0 | Y170: 0 | Z170: 0 | AA170: 0 | AB170: 0 | AC170: 0 | AD170: 0 | AE170: 0 | AF170: 0 | AG170: 0 | AH170: 0 | AI170: 0 | AJ170: 0 | AK170: 0 | AL170: 0 | AM170: 0 | AN170: 0 | AO170: 0 | AP170: 0 | AQ170: 0 | AR170: 0 | AS170: 0 | AT170: 0 | AU170: 0 | AV170: 0 | AW170: 0 | AX170: 59600 | AY170: 63900 | AZ170: 68600 | BA170: 0 | BB170: 79000 | BC170: 0 | BD170: 0 | BE170: 0 | BF170: 0 | BG170: 128900 | BH170: 161100 | BI170: 1 | BJ170: 210 | BK170: TP | BL170: 2773 | BM170: ALE | BN170: 5 | BO170: 0 | BP170: 4 | BQ170: 1 | BR170: 2 | BS170: Activo | BT170: GSL | BU170: 4X2 | BV170: 0 | BW170: 2
A171: 601103 | B171: M | C171: AUDI | D171: AUTOMOVIL | F171: A4 | G171: B8 1.8 TFSI MULTITRONIC LUXURY | H171: TP 1800CC T [160 HP] | I171: 1410 | J171: 1 | K171: Particular | L171: 0 | M171: 0 | N171: 0 | O171: 0 | P171: 0 | Q171: 0 | R171: 0 | S171: 0 | T171: 0 | U171: 0 | V171: 0 | W171: 0 | X171: 0 | Y171: 0 | Z171: 0 | AA171: 0 | AB171: 0 | AC171: 0 | AD171: 0 | AE171: 0 | AF171: 0 | AG171: 0 | AH171: 0 | AI171: 0 | AJ171: 0 | AK171: 0 | AL171: 0 | AM171: 0 | AN171: 0 | AO171: 0 | AP171: 0 | AQ171: 0 | AR171: 0 | AS171: 0 | AT171: 0 | AU171: 0 | AV171: 0 | AW171: 0 | AX171: 52800 | AY171: 56600 | AZ171: 60700 | BA171: 65100 | BB171: 69900 | BC171: 0 | BD171: 0 | BE171: 0 | BF171: 0 | BG171: 90900 | BH171: 113600 | BI171: 1 | BJ171: 160 | BK171: TP | BL171: 1798 | BM171: ALE | BN171: 5 | BO171: 0 | BP171: 4 | BQ171: 1 | BR171: 2 | BS171: Activo | BT171: GSL | BU171: 4X2 | BV171: 0 | BW171: 1
A172: 601104 | B172: M | C172: AUDI | D172: AUTOMOVIL | F172: RS6 | G172: C5 TFSI QUATTRO | H172: TP 4200CC V8 T | I172: 1840 | J172: 1 | K172: Particular | L172: 0 | M172: 0 | N172: 0 | O172: 0 | P172: 0 | Q172: 0 | R172: 0 | S172: 0 | T172: 0 | U172: 0 | V172: 0 | W172: 0 | X172: 0 | Y172: 0 | Z172: 0 | AA172: 0 | AB172: 0 | AC172: 0 | AD172: 0 | AE172: 0 | AF172: 0 | AG172: 0 | AH172: 0 | AI172: 0 | AJ172: 0 | AK172: 0 | AL172: 0 | AM172: 0 | AN172: 0 | AO172: 0 | AP172: 0 | AQ172: 0 | AR172: 0 | AS172: 72800 | AT172: 78100 | AU172: 0 | AV172: 0 | AW172: 0 | AX172: 0 | AY172: 0 | AZ172: 0 | BA172: 0 | BB172: 0 | BC172: 0 | BD172: 0 | BE172: 0 | BF172: 0 | BG172: 245100 | BH172: 306400 | BI172: 1 | BJ172: 450 | BK172: TP | BL172: 4172 | BM172: ALE | BN172: 5 | BO172: 0 | BP172: 4 | BQ172: 1 | BR172: 2 | BS172: Activo | BT172: GSL | BU172: 4X4 | BV172: 0 | BW172: 2
A173: 601105 | B173: M | C173: AUDI | D173: AUTOMOVIL | F173: S5 | G173: 4.2 FSI QUATTRO | H173: MT 4200CC V8 | I173: 1630 | J173: 1 | K173: Particular | L173: 0 | M173: 0 | N173: 0 | O173: 0 | P173: 0 | Q173: 0 | R173: 0 | S173: 0 | T173: 0 | U173: 0 | V173: 0 | W173: 0 | X173: 0 | Y173: 0 | Z173: 0 | AA173: 0 | AB173: 0 | AC173: 0 | AD173: 0 | AE173: 0 | AF173: 0 | AG173: 0 | AH173: 0 | AI173: 0 | AJ173: 0 | AK173: 0 | AL173: 0 | AM173: 0 | AN173: 0 | AO173: 0 | AP173: 0 | AQ173: 0 | AR173: 0 | AS173: 0 | AT173: 0 | AU173: 0 | AV173: 0 | AW173: 0 | AX173: 103400 | AY173: 110900 | AZ173: 0 | BA173: 0 | BB173: 0 | BC173: 0 | BD173: 0 | BE173: 0 | BF173: 0 | BG173: 211700 | BH173: 264600 | BI173: 1 | BJ173: 355 | BK173: MT | BL173: 4163 | BM173: ALE | BN173: 5 | BO173: 0 | BP173: 2 | BQ173: 1 | BR173: 2 | BS173: Activo | BT173: GSL | BU173: 4X4 | BV173: 0 | BW173: 2
A174: 601106 | B174: M | C174: AUDI | D174: AUTOMOVIL | F174: TT | G174: 8J 2.0 TFSI ROADSTER S-TRONIC | H174: TP 2000CC T | I174: 1295 | J174: 1 | K174: Particular | L174: 0 | M174: 0 | N174: 0 | O174: 0 | P174: 0 | Q174: 0 | R174: 0 | S174: 0 | T174: 0 | U174: 0 | V174: 0 | W174: 0 | X174: 0 | Y174: 0 | Z174: 0 | AA174: 0 | AB174: 0 | AC174: 0 | AD174: 0 | AE174: 0 | AF174: 0 | AG174: 0 | AH174: 0 | AI174: 0 | AJ174: 0 | AK174: 0 | AL174: 0 | AM174: 0 | AN174: 0 | AO174: 0 | AP174: 0 | AQ174: 0 | AR174: 0 | AS174: 0 | AT174: 0 | AU174: 0 | AV174: 0 | AW174: 0 | AX174: 77800 | AY174: 83500 | AZ174: 89600 | BA174: 96100 | BB174: 0 | BC174: 0 | BD174: 137000 | BE174: 0 | BF174: 0 | BG174: 146300 | BH174: 182900 | BI174: 1 | BJ174: 200 | BK174: TP | BL174: 1984 | BM174: HNG | BN174: 2 | BO174: 0 | BP174: 2 | BQ174: 1 | BR174: 2 | BS174: Activo | BT174: GSL | BU174: 4X2 | BV174: 0 | BW174: 1
A175: 601107 | B175: M | C175: AUDI | D175: AUTOMOVIL | F175: A3 | G175: 8P COUPE 2.0 FSI | H175: MT 2000CC 3P | I175: 1275 | J175: 1 | K175: Particular | L175: 0 | M175: 0 | N175: 0 | O175: 0 | P175: 0 | Q175: 0 | R175: 0 | S175: 0 | T175: 0 | U175: 0 | V175: 0 | W175: 0 | X175: 0 | Y175: 0 | Z175: 0 | AA175: 0 | AB175: 0 | AC175: 0 | AD175: 0 | AE175: 0 | AF175: 0 | AG175: 0 | AH175: 0 | AI175: 0 | AJ175: 0 | AK175: 0 | AL175: 0 | AM175: 0 | AN175: 0 | AO175: 0 | AP175: 0 | AQ175: 0 | AR175: 0 | AS175: 0 | AT175: 0 | AU175: 31500 | AV175: 33800 | AW175: 36300 | AX175: 38900 | AY175: 41700 | AZ175: 0 | BA175: 0 | BB175: 0 | BC175: 0 | BD175: 0 | BE175: 0 | BF175: 0 | BG175: 80400 | BH175: 100500 | BI175: 1 | BJ175: 148 | BK175: MT | BL175: 1984 | BM175: ALE | BN175: 5 | BO175: 0 | BP175: 3 | BQ175: 1 | BR175: 2 | BS175: Activo | BT175: GSL | BU175: 4X2 | BV175: 0 | BW175: 1
A176: 601108 | B176: N | C176: AUDI | D176: AUTOMOVIL | F176: A4 | G176: B8 1.8 TFSI | H176: MT 1800CC T [160 HP] | I176: 1410 | J176: 1 | K176: Particular | L176: 0 | M176: 0 | N176: 0 | O176: 0 | P176: 0 | Q176: 0 | R176: 0 | S176: 0 | T176: 0 | U176: 0 | V176: 0 | W176: 0 | X176: 0 | Y176: 0 | Z176: 0 | AA176: 0 | AB176: 0 | AC176: 0 | AD176: 0 | AE176: 0 | AF176: 0 | AG176: 0 | AH176: 0 | AI176: 0 | AJ176: 0 | AK176: 0 | AL176: 0 | AM176: 0 | AN176: 0 | AO176: 0 | AP176: 0 | AQ176: 0 | AR176: 0 | AS176: 0 | AT176: 0 | AU176: 0 | AV176: 0 | AW176: 0 | AX176: 0 | AY176: 50800 | AZ176: 54500 | BA176: 0 | BB176: 0 | BC176: 0 | BD176: 0 | BE176: 0 | BF176: 0 | BG176: 87500 | BH176: 109400 | BI176: 1 | BJ176: 160 | BK176: MT | BL176: 1798 | BM176: ALE | BN176: 5 | BO176: 0 | BP176: 4 | BQ176: 1 | BR176: 2 | BS176: Activo | BT176: GSL | BU176: 4X2 | BV176: 0 | BW176: 1
A177: 601109 | B177: N | C177: AUDI | D177: AUTOMOVIL | F177: A4 | G177: B6 1.8T | H177: MT 1800CC T | I177: 1350 | J177: 1 | K177: Particular | L177: 0 | M177: 0 | N177: 0 | O177: 0 | P177: 0 | Q177: 0 | R177: 0 | S177: 0 | T177: 0 | U177: 0 | V177: 0 | W177: 0 | X177: 0 | Y177: 0 | Z177: 0 | AA177: 0 | AB177: 0 | AC177: 0 | AD177: 0 | AE177: 0 | AF177: 0 | AG177: 0 | AH177: 0 | AI177: 0 | AJ177: 0 | AK177: 0 | AL177: 0 | AM177: 0 | AN177: 0 | AO177: 0 | AP177: 0 | AQ177: 23600 | AR177: 25300 | AS177: 27100 | AT177: 29100 | AU177: 31200 | AV177: 33500 | AW177: 0 | AX177: 0 | AY177: 0 | AZ177: 0 | BA177: 0 | BB177: 0 | BC177: 0 | BD177: 0 | BE177: 0 | BF177: 0 | BG177: 93200 | BH177: 116500 | BI177: 1 | BJ177: 163 | BK177: MT | BL177: 1781 | BM177: ALE | BN177: 5 | BO177: 0 | BP177: 4 | BQ177: 1 | BR177: 2 | BS177: Activo | BT177: GSL | BU177: 4X2 | BV177: 0 | BW177: 1
A178: 601110 | B178: N | C178: AUDI | D178: AUTOMOVIL | F178: A3 | G178: 8P COUPE 1.8 TFSI | H178: MT 1800CC T | I178: 1305 | J178: 1 | K178: Particular | L178: 0 | M178: 0 | N178: 0 | O178: 0 | P178: 0 | Q178: 0 | R178: 0 | S178: 0 | T178: 0 | U178: 0 | V178: 0 | W178: 0 | X178: 0 | Y178: 0 | Z178: 0 | AA178: 0 | AB178: 0 | AC178: 0 | AD178: 0 | AE178: 0 | AF178: 0 | AG178: 0 | AH178: 0 | AI178: 0 | AJ178: 0 | AK178: 0 | AL178: 0 | AM178: 0 | AN178: 0 | AO178: 0 | AP178: 0 | AQ178: 0 | AR178: 0 | AS178: 0 | AT178: 0 | AU178: 0 | AV178: 0 | AW178: 0 | AX178: 0 | AY178: 42700 | AZ178: 0 | BA178: 0 | BB178: 0 | BC178: 0 | BD178: 0 | BE178: 0 | BF178: 0 | BG178: 77600 | BH178: 97000 | BI178: 1 | BJ178: 160 | BK178: MT | BL178: 1798 | BM178: ALE | BN178: 5 | BO178: 0 | BP178: 3 | BQ178: 1 | BR178: 2 | BS178: Activo | BT178: GSL | BU178: 4X2 | BV178: 0 | BW178: 1
A179: 601111 | B179: N | C179: AUDI | D179: AUTOMOVIL | F179: A3 | G179: 8P COUPE 1.8 TFSI | H179: TP 1800CC T | I179: 1335 | J179: 1 | K179: Particular | L179: 0 | M179: 0 | N179: 0 | O179: 0 | P179: 0 | Q179: 0 | R179: 0 | S179: 0 | T179: 0 | U179: 0 | V179: 0 | W179: 0 | X179: 0 | Y179: 0 | Z179: 0 | AA179: 0 | AB179: 0 | AC179: 0 | AD179: 0 | AE179: 0 | AF179: 0 | AG179: 0 | AH179: 0 | AI179: 0 | AJ179: 0 | AK179: 0 | AL179: 0 | AM179: 0 | AN179: 0 | AO179: 0 | AP179: 0 | AQ179: 0 | AR179: 0 | AS179: 0 | AT179: 0 | AU179: 0 | AV179: 0 | AW179: 0 | AX179: 0 | AY179: 44200 | AZ179: 47400 | BA179: 50900 | BB179: 54600 | BC179: 0 | BD179: 0 | BE179: 0 | BF179: 0 | BG179: 81700 | BH179: 102100 | BI179: 1 | BJ179: 160 | BK179: TP | BL179: 1798 | BM179: ALE | BN179: 5 | BO179: 0 | BP179: 3 | BQ179: 1 | BR179: 2 | BS179: Activo | BT179: GSL | BU179: 4X2 | BV179: 0 | BW179: 1
A180: 601112 | B180: N | C180: AUDI | D180: AUTOMOVIL | F180: A3 | G180: 8P SPORTBACK 1.8 TFSI | H180: MT 1800CC T | I180: 1280 | J180: 1 | K180: Particular | L180: 0 | M180: 0 | N180: 0 | O180: 0 | P180: 0 | Q180: 0 | R180: 0 | S180: 0 | T180: 0 | U180: 0 | V180: 0 | W180: 0 | X180: 0 | Y180: 0 | Z180: 0 | AA180: 0 | AB180: 0 | AC180: 0 | AD180: 0 | AE180: 0 | AF180: 0 | AG180: 0 | AH180: 0 | AI180: 0 | AJ180: 0 | AK180: 0 | AL180: 0 | AM180: 0 | AN180: 0 | AO180: 0 | AP180: 0 | AQ180: 0 | AR180: 0 | AS180: 0 | AT180: 0 | AU180: 0 | AV180: 0 | AW180: 0 | AX180: 0 | AY180: 45700 | AZ180: 0 | BA180: 0 | BB180: 56400 | BC180: 60500 | BD180: 0 | BE180: 0 | BF180: 0 | BG180: 81500 | BH180: 101900 | BI180: 1 | BJ180: 160 | BK180: MT | BL180: 1798 | BM180: ALE | BN180: 5 | BO180: 0 | BP180: 5 | BQ180: 1 | BR180: 2 | BS180: Activo | BT180: GSL | BU180: 4X2 | BV180: 0 | BW180: 1
A181: 601113 | B181: N | C181: AUDI | D181: AUTOMOVIL | F181: A3 | G181: 8P SPORTBACK 1.8 TFSI | H181: TP 1800CC T | I181: 1295 | J181: 1 | K181: Particular | L181: 0 | M181: 0 | N181: 0 | O181: 0 | P181: 0 | Q181: 0 | R181: 0 | S181: 0 | T181: 0 | U181: 0 | V181: 0 | W181: 0 | X181: 0 | Y181: 0 | Z181: 0 | AA181: 0 | AB181: 0 | AC181: 0 | AD181: 0 | AE181: 0 | AF181: 0 | AG181: 0 | AH181: 0 | AI181: 0 | AJ181: 0 | AK181: 0 | AL181: 0 | AM181: 0 | AN181: 0 | AO181: 0 | AP181: 0 | AQ181: 0 | AR181: 0 | AS181: 0 | AT181: 0 | AU181: 0 | AV181: 0 | AW181: 0 | AX181: 0 | AY181: 47500 | AZ181: 51000 | BA181: 54700 | BB181: 58700 | BC181: 63000 | BD181: 0 | BE181: 0 | BF181: 0 | BG181: 85500 | BH181: 106900 | BI181: 1 | BJ181: 160 | BK181: TP | BL181: 1798 | BM181: ALE | BN181: 5 | BO181: 0 | BP181: 5 | BQ181: 1 | BR181: 2 | BS181: Activo | BT181: GSL | BU181: 4X2 | BV181: 0 | BW181: 1
A182: 601114 | B182: N | C182: AUDI | D182: AUTOMOVIL | F182: A4 | G182: B8 2.0 TFSI MULTITRONIC LUXURY | H182: TP 2000CC T | I182: 1465 | J182: 1 | K182: Particular | L182: 0 | M182: 0 | N182: 0 | O182: 0 | P182: 0 | Q182: 0 | R182: 0 | S182: 0 | T182: 0 | U182: 0 | V182: 0 | W182: 0 | X182: 0 | Y182: 0 | Z182: 0 | AA182: 0 | AB182: 0 | AC182: 0 | AD182: 0 | AE182: 0 | AF182: 0 | AG182: 0 | AH182: 0 | AI182: 0 | AJ182: 0 | AK182: 0 | AL182: 0 | AM182: 0 | AN182: 0 | AO182: 0 | AP182: 0 | AQ182: 0 | AR182: 0 | AS182: 0 | AT182: 0 | AU182: 0 | AV182: 0 | AW182: 0 | AX182: 0 | AY182: 61400 | AZ182: 65900 | BA182: 70700 | BB182: 75900 | BC182: 0 | BD182: 0 | BE182: 0 | BF182: 0 | BG182: 104100 | BH182: 130100 | BI182: 1 | BJ182: 211 | BK182: TP | BL182: 1984 | BM182: ALE | BN182: 5 | BO182: 0 | BP182: 4 | BQ182: 1 | BR182: 2 | BS182: Activo | BT182: GSL | BU182: 4X2 | BV182: 0 | BW182: 2
A183: 601115 | B183: N | C183: AUDI | D183: AUTOMOVIL | F183: 90 | G183: B3 QUATTRO | H183: MT 2300CC | I183: 1134 | J183: 1 | K183: Particular | L183: 0 | M183: 0 | N183: 0 | O183: 0 | P183: 0 | Q183: 0 | R183: 0 | S183: 0 | T183: 0 | U183: 0 | V183: 0 | W183: 0 | X183: 0 | Y183: 0 | Z183: 0 | AA183: 0 | AB183: 0 | AC183: 0 | AD183: 8700 | AE183: 0 | AF183: 0 | AG183: 0 | AH183: 0 | AI183: 0 | AJ183: 0 | AK183: 0 | AL183: 0 | AM183: 0 | AN183: 0 | AO183: 0 | AP183: 0 | AQ183: 0 | AR183: 0 | AS183: 0 | AT183: 0 | AU183: 0 | AV183: 0 | AW183: 0 | AX183: 0 | AY183: 0 | AZ183: 0 | BA183: 0 | BB183: 0 | BC183: 0 | BD183: 0 | BE183: 0 | BF183: 0 | BG183: 70800 | BH183: 88500 | BI183: 1 | BJ183: 130 | BK183: MT | BL183: 2299 | BM183: ALE | BN183: 5 | BO183: 0 | BP183: 4 | BQ183: 1 | BR183: 2 | BS183: Activo | BT183: GSL | BU183: 4X4 | BV183: 0 | BW183: 1
A184: 601116 | B184: N | C184: AUDI | D184: AUTOMOVIL | F184: S6 | G184: C6 5.2 FSI QUATTRO TRIPTRONIC | H184: TP 5200CC V10 | I184: 1910 | J184: 1 | K184: Particular | L184: 0 | M184: 0 | N184: 0 | O184: 0 | P184: 0 | Q184: 0 | R184: 0 | S184: 0 | T184: 0 | U184: 0 | V184: 0 | W184: 0 | X184: 0 | Y184: 0 | Z184: 0 | AA184: 0 | AB184: 0 | AC184: 0 | AD184: 0 | AE184: 0 | AF184: 0 | AG184: 0 | AH184: 0 | AI184: 0 | AJ184: 0 | AK184: 0 | AL184: 0 | AM184: 0 | AN184: 0 | AO184: 0 | AP184: 0 | AQ184: 0 | AR184: 0 | AS184: 0 | AT184: 0 | AU184: 0 | AV184: 0 | AW184: 0 | AX184: 95000 | AY184: 0 | AZ184: 0 | BA184: 0 | BB184: 0 | BC184: 0 | BD184: 0 | BE184: 0 | BF184: 0 | BG184: 270000 | BH184: 337500 | BI184: 1 | BJ184: 435 | BK184: TP | BL184: 5204 | BM184: ALE | BN184: 5 | BO184: 0 | BP184: 4 | BQ184: 1 | BR184: 2 | BS184: Activo | BT184: GSL | BU184: 4X4 | BV184: 0 | BW184: 2
A185: 601117 | B185: M | C185: AUDI | D185: AUTOMOVIL | F185: A4 | G185: B7 2.0 FSI | H185: MT 2000CC | I185: 1340 | J185: 1 | K185: Particular | L185: 0 | M185: 0 | N185: 0 | O185: 0 | P185: 0 | Q185: 0 | R185: 0 | S185: 0 | T185: 0 | U185: 0 | V185: 0 | W185: 0 | X185: 0 | Y185: 0 | Z185: 0 | AA185: 0 | AB185: 0 | AC185: 0 | AD185: 0 | AE185: 0 | AF185: 0 | AG185: 0 | AH185: 0 | AI185: 0 | AJ185: 0 | AK185: 0 | AL185: 0 | AM185: 0 | AN185: 0 | AO185: 0 | AP185: 0 | AQ185: 0 | AR185: 0 | AS185: 0 | AT185: 0 | AU185: 0 | AV185: 32700 | AW185: 0 | AX185: 0 | AY185: 0 | AZ185: 0 | BA185: 0 | BB185: 0 | BC185: 0 | BD185: 0 | BE185: 0 | BF185: 0 | BG185: 78000 | BH185: 97500 | BI185: 1 | BJ185: 130 | BK185: MT | BL185: 1984 | BM185: ALE | BN185: 5 | BO185: 0 | BP185: 4 | BQ185: 1 | BR185: 2 | BS185: Activo | BT185: GSL | BU185: 4X2 | BV185: 0 | BW185: 1
A186: 601118 | B186: N | C186: AUDI | D186: AUTOMOVIL | F186: A3 | G186: 8P COUPE 2.0 TFSI | H186: MT 2000CC T | I186: 1320 | J186: 1 | K186: Particular | L186: 0 | M186: 0 | N186: 0 | O186: 0 | P186: 0 | Q186: 0 | R186: 0 | S186: 0 | T186: 0 | U186: 0 | V186: 0 | W186: 0 | X186: 0 | Y186: 0 | Z186: 0 | AA186: 0 | AB186: 0 | AC186: 0 | AD186: 0 | AE186: 0 | AF186: 0 | AG186: 0 | AH186: 0 | AI186: 0 | AJ186: 0 | AK186: 0 | AL186: 0 | AM186: 0 | AN186: 0 | AO186: 0 | AP186: 0 | AQ186: 0 | AR186: 0 | AS186: 0 | AT186: 0 | AU186: 0 | AV186: 0 | AW186: 0 | AX186: 42100 | AY186: 45200 | AZ186: 0 | BA186: 0 | BB186: 0 | BC186: 0 | BD186: 0 | BE186: 0 | BF186: 0 | BG186: 87500 | BH186: 109400 | BI186: 1 | BJ186: 197 | BK186: MT | BL186: 1984 | BM186: ALE | BN186: 5 | BO186: 0 | BP186: 3 | BQ186: 1 | BR186: 2 | BS186: Activo | BT186: GSL | BU186: 4X2 | BV186: 0 | BW186: 1
A187: 601119 | B187: M | C187: AUDI | D187: AUTOMOVIL | F187: TTS | G187: 8J 2.0 TFSI COUPE S-TRONIC | H187: TP 2000CC T | I187: 1415 | J187: 1 | K187: Particular | L187: 0 | M187: 0 | N187: 0 | O187: 0 | P187: 0 | Q187: 0 | R187: 0 | S187: 0 | T187: 0 | U187: 0 | V187: 0 | W187: 0 | X187: 0 | Y187: 0 | Z187: 0 | AA187: 0 | AB187: 0 | AC187: 0 | AD187: 0 | AE187: 0 | AF187: 0 | AG187: 0 | AH187: 0 | AI187: 0 | AJ187: 0 | AK187: 0 | AL187: 0 | AM187: 0 | AN187: 0 | AO187: 0 | AP187: 0 | AQ187: 0 | AR187: 0 | AS187: 0 | AT187: 0 | AU187: 0 | AV187: 0 | AW187: 0 | AX187: 0 | AY187: 0 | AZ187: 112900 | BA187: 121100 | BB187: 0 | BC187: 0 | BD187: 0 | BE187: 0 | BF187: 0 | BG187: 185300 | BH187: 231600 | BI187: 1 | BJ187: 272 | BK187: TP | BL187: 1984 | BM187: HNG | BN187: 5 | BO187: 0 | BP187: 3 | BQ187: 1 | BR187: 2 | BS187: Activo | BT187: GSL | BU187: 4X4 | BV187: 0 | BW187: 1
A188: 601120 | B188: M | C188: AUDI | D188: AUTOMOVIL | F188: A4 | G188: B8 1.8 TFSI ATTRACTION | H188: MT 1800CC T [120 HP] | I188: 1410 | J188: 1 | K188: Particular | L188: 0 | M188: 0 | N188: 0 | O188: 0 | P188: 0 | Q188: 0 | R188: 0 | S188: 0 | T188: 0 | U188: 0 | V188: 0 | W188: 0 | X188: 0 | Y188: 0 | Z188: 0 | AA188: 0 | AB188: 0 | AC188: 0 | AD188: 0 | AE188: 0 | AF188: 0 | AG188: 0 | AH188: 0 | AI188: 0 | AJ188: 0 | AK188: 0 | AL188: 0 | AM188: 0 | AN188: 0 | AO188: 0 | AP188: 0 | AQ188: 0 | AR188: 0 | AS188: 0 | AT188: 0 | AU188: 0 | AV188: 0 | AW188: 0 | AX188: 0 | AY188: 0 | AZ188: 45000 | BA188: 48300 | BB188: 51800 | BC188: 0 | BD188: 0 | BE188: 0 | BF188: 0 | BG188: 68500 | BH188: 85600 | BI188: 1 | BJ188: 120 | BK188: MT | BL188: 1798 | BM188: ALE | BN188: 5 | BO188: 0 | BP188: 4 | BQ188: 1 | BR188: 2 | BS188: Activo | BT188: GSL | BU188: 4X2 | BV188: 0 | BW188: 1
A189: 601121 | B189: N | C189: AUDI | D189: AUTOMOVIL | F189: A5 | G189: SPORTBACK 2.0 TFSI QUATTRO | H189: TP 2000CC T | I189: 1615 | J189: 1 | K189: Particular | L189: 0 | M189: 0 | N189: 0 | O189: 0 | P189: 0 | Q189: 0 | R189: 0 | S189: 0 | T189: 0 | U189: 0 | V189: 0 | W189: 0 | X189: 0 | Y189: 0 | Z189: 0 | AA189: 0 | AB189: 0 | AC189: 0 | AD189: 0 | AE189: 0 | AF189: 0 | AG189: 0 | AH189: 0 | AI189: 0 | AJ189: 0 | AK189: 0 | AL189: 0 | AM189: 0 | AN189: 0 | AO189: 0 | AP189: 0 | AQ189: 0 | AR189: 0 | AS189: 0 | AT189: 0 | AU189: 0 | AV189: 0 | AW189: 0 | AX189: 0 | AY189: 0 | AZ189: 74800 | BA189: 80300 | BB189: 86200 | BC189: 0 | BD189: 0 | BE189: 0 | BF189: 0 | BG189: 123600 | BH189: 154500 | BI189: 1 | BJ189: 211 | BK189: TP | BL189: 1984 | BM189: ALE | BN189: 5 | BO189: 0 | BP189: 5 | BQ189: 1 | BR189: 2 | BS189: Activo | BT189: GSL | BU189: 4X4 | BV189: 0 | BW189: 2
A190: 601122 | B190: M | C190: AUDI | D190: AUTOMOVIL | F190: R8 | G190: 4.2 FSI QUATTRO Rtronic | H190: TP 4200CC V8 | I190: 1635 | J190: 1 | K190: Particular | L190: 0 | M190: 0 | N190: 0 | O190: 0 | P190: 0 | Q190: 0 | R190: 0 | S190: 0 | T190: 0 | U190: 0 | V190: 0 | W190: 0 | X190: 0 | Y190: 0 | Z190: 0 | AA190: 0 | AB190: 0 | AC190: 0 | AD190: 0 | AE190: 0 | AF190: 0 | AG190: 0 | AH190: 0 | AI190: 0 | AJ190: 0 | AK190: 0 | AL190: 0 | AM190: 0 | AN190: 0 | AO190: 0 | AP190: 0 | AQ190: 0 | AR190: 0 | AS190: 0 | AT190: 0 | AU190: 0 | AV190: 0 | AW190: 0 | AX190: 0 | AY190: 256000 | AZ190: 0 | BA190: 0 | BB190: 0 | BC190: 0 | BD190: 0 | BE190: 0 | BF190: 0 | BG190: 419200 | BH190: 524000 | BI190: 1 | BJ190: 420 | BK190: TP | BL190: 4163 | BM190: ALE | BN190: 2 | BO190: 0 | BP190: 2 | BQ190: 1 | BR190: 2 | BS190: Activo | BT190: GSL | BU190: 4X4 | BV190: 0 | BW190: 2
A191: 601123 | B191: N | C191: AUDI | D191: AUTOMOVIL | F191: A4 | G191: B8 1.8 TFSI COMFORT | H191: TP 1800CC T [120 HP] | I191: 1410 | J191: 1 | K191: Particular | L191: 0 | M191: 0 | N191: 0 | O191: 0 | P191: 0 | Q191: 0 | R191: 0 | S191: 0 | T191: 0 | U191: 0 | V191: 0 | W191: 0 | X191: 0 | Y191: 0 | Z191: 0 | AA191: 0 | AB191: 0 | AC191: 0 | AD191: 0 | AE191: 0 | AF191: 0 | AG191: 0 | AH191: 0 | AI191: 0 | AJ191: 0 | AK191: 0 | AL191: 0 | AM191: 0 | AN191: 0 | AO191: 0 | AP191: 0 | AQ191: 0 | AR191: 0 | AS191: 0 | AT191: 0 | AU191: 0 | AV191: 0 | AW191: 0 | AX191: 0 | AY191: 0 | AZ191: 51500 | BA191: 55300 | BB191: 59300 | BC191: 0 | BD191: 0 | BE191: 0 | BF191: 0 | BG191: 81900 | BH191: 102400 | BI191: 1 | BJ191: 120 | BK191: TP | BL191: 1798 | BM191: ALE | BN191: 5 | BO191: 0 | BP191: 4 | BQ191: 1 | BR191: 2 | BS191: Activo | BT191: GSL | BU191: 4X2 | BV191: 0 | BW191: 1
A192: 601124 | B192: N | C192: AUDI | D192: AUTOMOVIL | F192: A4 | G192: B7 CABRIOLET 1.8 TFSI | H192: TP 1800CC T | I192: 1580 | J192: 1 | K192: Particular | L192: 0 | M192: 0 | N192: 0 | O192: 0 | P192: 0 | Q192: 0 | R192: 0 | S192: 0 | T192: 0 | U192: 0 | V192: 0 | W192: 0 | X192: 0 | Y192: 0 | Z192: 0 | AA192: 0 | AB192: 0 | AC192: 0 | AD192: 0 | AE192: 0 | AF192: 0 | AG192: 0 | AH192: 0 | AI192: 0 | AJ192: 0 | AK192: 0 | AL192: 0 | AM192: 0 | AN192: 0 | AO192: 0 | AP192: 0 | AQ192: 0 | AR192: 0 | AS192: 0 | AT192: 0 | AU192: 0 | AV192: 0 | AW192: 0 | AX192: 0 | AY192: 57700 | AZ192: 0 | BA192: 0 | BB192: 0 | BC192: 0 | BD192: 0 | BE192: 0 | BF192: 0 | BG192: 123100 | BH192: 153900 | BI192: 1 | BJ192: 163 | BK192: TP | BL192: 1781 | BM192: ALE | BN192: 5 | BO192: 0 | BP192: 2 | BQ192: 1 | BR192: 2 | BS192: Activo | BT192: GSL | BU192: 4X2 | BV192: 0 | BW192: 2
A193: 601125 | B193: M | C193: AUDI | D193: AUTOMOVIL | F193: A5 | G193: COUPE 2.0 TFSI MULTITRONIC | H193: TP 2000CC T 2P | I193: 1465 | J193: 1 | K193: Particular | L193: 0 | M193: 0 | N193: 0 | O193: 0 | P193: 0 | Q193: 0 | R193: 0 | S193: 0 | T193: 0 | U193: 0 | V193: 0 | W193: 0 | X193: 0 | Y193: 0 | Z193: 0 | AA193: 0 | AB193: 0 | AC193: 0 | AD193: 0 | AE193: 0 | AF193: 0 | AG193: 0 | AH193: 0 | AI193: 0 | AJ193: 0 | AK193: 0 | AL193: 0 | AM193: 0 | AN193: 0 | AO193: 0 | AP193: 0 | AQ193: 0 | AR193: 0 | AS193: 0 | AT193: 0 | AU193: 0 | AV193: 0 | AW193: 0 | AX193: 0 | AY193: 63000 | AZ193: 67600 | BA193: 72500 | BB193: 77800 | BC193: 0 | BD193: 0 | BE193: 0 | BF193: 0 | BG193: 103500 | BH193: 129400 | BI193: 1 | BJ193: 211 | BK193: TP | BL193: 1984 | BM193: ALE | BN193: 5 | BO193: 0 | BP193: 2 | BQ193: 1 | BR193: 2 | BS193: Activo | BT193: GSL | BU193: 4X2 | BV193: 0 | BW193: 2
A194: 601126 | B194: N | C194: AUDI | D194: AUTOMOVIL | F194: A4 | G194: B8 1.8 TFSI AMBITION | H194: MT 1800CC T [120 HP] | I194: 1410 | J194: 1 | K194: Particular | L194: 0 | M194: 0 | N194: 0 | O194: 0 | P194: 0 | Q194: 0 | R194: 0 | S194: 0 | T194: 0 | U194: 0 | V194: 0 | W194: 0 | X194: 0 | Y194: 0 | Z194: 0 | AA194: 0 | AB194: 0 | AC194: 0 | AD194: 0 | AE194: 0 | AF194: 0 | AG194: 0 | AH194: 0 | AI194: 0 | AJ194: 0 | AK194: 0 | AL194: 0 | AM194: 0 | AN194: 0 | AO194: 0 | AP194: 0 | AQ194: 0 | AR194: 0 | AS194: 0 | AT194: 0 | AU194: 0 | AV194: 0 | AW194: 0 | AX194: 0 | AY194: 0 | AZ194: 48700 | BA194: 52200 | BB194: 56000 | BC194: 0 | BD194: 0 | BE194: 0 | BF194: 0 | BG194: 77100 | BH194: 96400 | BI194: 1 | BJ194: 120 | BK194: MT | BL194: 1798 | BM194: ALE | BN194: 5 | BO194: 0 | BP194: 4 | BQ194: 1 | BR194: 2 | BS194: Activo | BT194: GSL | BU194: 4X2 | BV194: 0 | BW194: 1
A195: 601127 | B195: N | C195: AUDI | D195: AUTOMOVIL | F195: A6 | G195: C6 2.0 TFSI MULTITRONIC | H195: TP 2000CC T | I195: 1550 | J195: 1 | K195: Particular | L195: 0 | M195: 0 | N195: 0 | O195: 0 | P195: 0 | Q195: 0 | R195: 0 | S195: 0 | T195: 0 | U195: 0 | V195: 0 | W195: 0 | X195: 0 | Y195: 0 | Z195: 0 | AA195: 0 | AB195: 0 | AC195: 0 | AD195: 0 | AE195: 0 | AF195: 0 | AG195: 0 | AH195: 0 | AI195: 0 | AJ195: 0 | AK195: 0 | AL195: 0 | AM195: 0 | AN195: 0 | AO195: 0 | AP195: 0 | AQ195: 0 | AR195: 0 | AS195: 0 | AT195: 0 | AU195: 0 | AV195: 0 | AW195: 0 | AX195: 0 | AY195: 0 | AZ195: 70700 | BA195: 75900 | BB195: 0 | BC195: 0 | BD195: 0 | BE195: 0 | BF195: 0 | BG195: 106200 | BH195: 132800 | BI195: 1 | BJ195: 170 | BK195: TP | BL195: 1984 | BM195: ALE | BN195: 5 | BO195: 0 | BP195: 4 | BQ195: 1 | BR195: 2 | BS195: Activo | BT195: GSL | BU195: 4X2 | BV195: 0 | BW195: 2
A196: 601128 | B196: N | C196: AUDI | D196: AUTOMOVIL | F196: S3 | G196: 8P 2.0 TFSI S-TRONIC QUATTRO [2] | H196: TP 2000CC T 3P CT | I196: 1475 | J196: 1 | K196: Particular | L196: 0 | M196: 0 | N196: 0 | O196: 0 | P196: 0 | Q196: 0 | R196: 0 | S196: 0 | T196: 0 | U196: 0 | V196: 0 | W196: 0 | X196: 0 | Y196: 0 | Z196: 0 | AA196: 0 | AB196: 0 | AC196: 0 | AD196: 0 | AE196: 0 | AF196: 0 | AG196: 0 | AH196: 0 | AI196: 0 | AJ196: 0 | AK196: 0 | AL196: 0 | AM196: 0 | AN196: 0 | AO196: 0 | AP196: 0 | AQ196: 0 | AR196: 0 | AS196: 0 | AT196: 0 | AU196: 0 | AV196: 0 | AW196: 0 | AX196: 0 | AY196: 0 | AZ196: 66400 | BA196: 71200 | BB196: 76400 | BC196: 82000 | BD196: 0 | BE196: 0 | BF196: 0 | BG196: 99900 | BH196: 124900 | BI196: 1 | BJ196: 265 | BK196: TP | BL196: 1984 | BM196: ALE | BN196: 5 | BO196: 0 | BP196: 3 | BQ196: 1 | BR196: 2 | BS196: Activo | BT196: GSL | BU196: 4X4 | BV196: 0 | BW196: 2
A197: 601129 | B197: N | C197: AUDI | D197: AUTOMOVIL | F197: A4 | G197: B7 3.0 MULTITRONIC LUXURY | H197: TP 3000CC | I197: 1490 | J197: 1 | K197: Particular | L197: 0 | M197: 0 | N197: 0 | O197: 0 | P197: 0 | Q197: 0 | R197: 0 | S197: 0 | T197: 0 | U197: 0 | V197: 0 | W197: 0 | X197: 0 | Y197: 0 | Z197: 0 | AA197: 0 | AB197: 0 | AC197: 0 | AD197: 0 | AE197: 0 | AF197: 0 | AG197: 0 | AH197: 0 | AI197: 0 | AJ197: 0 | AK197: 0 | AL197: 0 | AM197: 0 | AN197: 0 | AO197: 0 | AP197: 0 | AQ197: 0 | AR197: 0 | AS197: 0 | AT197: 0 | AU197: 0 | AV197: 42200 | AW197: 0 | AX197: 0 | AY197: 0 | AZ197: 0 | BA197: 0 | BB197: 0 | BC197: 0 | BD197: 0 | BE197: 0 | BF197: 0 | BG197: 115000 | BH197: 143800 | BI197: 1 | BJ197: 220 | BK197: TP | BL197: 2976 | BM197: ALE | BN197: 5 | BO197: 0 | BP197: 4 | BQ197: 1 | BR197: 2 | BS197: Activo | BT197: GSL | BU197: 4X2 | BV197: 0 | BW197: 2
A198: 601130 | B198: N | C198: AUDI | D198: AUTOMOVIL | F198: A6 | G198: C6 3.0 TFSI TIPTRONIC QUATTRO | H198: TP 3000CC V6 | I198: 1725 | J198: 1 | K198: Particular | L198: 0 | M198: 0 | N198: 0 | O198: 0 | P198: 0 | Q198: 0 | R198: 0 | S198: 0 | T198: 0 | U198: 0 | V198: 0 | W198: 0 | X198: 0 | Y198: 0 | Z198: 0 | AA198: 0 | AB198: 0 | AC198: 0 | AD198: 0 | AE198: 0 | AF198: 0 | AG198: 0 | AH198: 0 | AI198: 0 | AJ198: 0 | AK198: 0 | AL198: 0 | AM198: 0 | AN198: 0 | AO198: 0 | AP198: 0 | AQ198: 0 | AR198: 0 | AS198: 0 | AT198: 0 | AU198: 0 | AV198: 0 | AW198: 0 | AX198: 0 | AY198: 0 | AZ198: 93700 | BA198: 100500 | BB198: 0 | BC198: 0 | BD198: 0 | BE198: 0 | BF198: 0 | BG198: 167500 | BH198: 209400 | BI198: 1 | BJ198: 290 | BK198: TP | BL198: 2995 | BM198: ALE | BN198: 5 | BO198: 0 | BP198: 4 | BQ198: 1 | BR198: 2 | BS198: Activo | BT198: GSL | BU198: 4X4 | BV198: 0 | BW198: 2
A199: 601131 | B199: M | C199: AUDI | D199: AUTOMOVIL | F199: A5 | G199: CABRIOLET 2.0 TFSI MULTITRONIC | H199: TP 2000CC T | I199: 1730 | J199: 1 | K199: Particular | L199: 0 | M199: 0 | N199: 0 | O199: 0 | P199: 0 | Q199: 0 | R199: 0 | S199: 0 | T199: 0 | U199: 0 | V199: 0 | W199: 0 | X199: 0 | Y199: 0 | Z199: 0 | AA199: 0 | AB199: 0 | AC199: 0 | AD199: 0 | AE199: 0 | AF199: 0 | AG199: 0 | AH199: 0 | AI199: 0 | AJ199: 0 | AK199: 0 | AL199: 0 | AM199: 0 | AN199: 0 | AO199: 0 | AP199: 0 | AQ199: 0 | AR199: 0 | AS199: 0 | AT199: 0 | AU199: 0 | AV199: 0 | AW199: 0 | AX199: 0 | AY199: 0 | AZ199: 91100 | BA199: 97800 | BB199: 104900 | BC199: 0 | BD199: 0 | BE199: 0 | BF199: 0 | BG199: 158000 | BH199: 197500 | BI199: 1 | BJ199: 211 | BK199: TP | BL199: 1984 | BM199: ALE | BN199: 5 | BO199: 0 | BP199: 2 | BQ199: 1 | BR199: 2 | BS199: Activo | BT199: GSL | BU199: 4X2 | BV199: 0 | BW199: 2
A200: 601132 | B200: N | C200: AUDI | D200: AUTOMOVIL | F200: A1 | G200: 8X 1.4 TFSI ATTRACTION | H200: TP 1400CC T | I200: 1200 | J200: 1 | K200: Particular | L200: 0 | M200: 0 | N200: 0 | O200: 0 | P200: 0 | Q200: 0 | R200: 0 | S200: 0 | T200: 0 | U200: 0 | V200: 0 | W200: 0 | X200: 0 | Y200: 0 | Z200: 0 | AA200: 0 | AB200: 0 | AC200: 0 | AD200: 0 | AE200: 0 | AF200: 0 | AG200: 0 | AH200: 0 | AI200: 0 | AJ200: 0 | AK200: 0 | AL200: 0 | AM200: 0 | AN200: 0 | AO200: 0 | AP200: 0 | AQ200: 0 | AR200: 0 | AS200: 0 | AT200: 0 | AU200: 0 | AV200: 0 | AW200: 0 | AX200: 0 | AY200: 0 | AZ200: 0 | BA200: 45900 | BB200: 49200 | BC200: 52800 | BD200: 0 | BE200: 0 | BF200: 0 | BG200: 65000 | BH200: 81300 | BI200: 1 | BJ200: 122 | BK200: TP | BL200: 1390 | BM200: ALE | BN200: 5 | BO200: 0 | BP200: 3 | BQ200: 1 | BR200: 2 | BS200: Activo | BT200: GSL | BU200: 4X2 | BV200: 0 | BW200: 1
... 925 more rows

Sheet TablaDinamica
A3: Etiquetas de fila | B3: Suma de Valor base sin IVA + gravámenes
A4: Automóvil | B4: 1292652
A5: Total general | B5: 1292652

Sheet ResumenCotizacion
A1: Solicitud de Cotización
A3: Acuerdo Marco de Seguros de Vehículos
A5: Información de la Entidad Compradora
A7: Nombre de la Entidad: | G7: DIRECCIÓN NACIONAL DE DERECHO DE AUTOR | J7: NIT: | K7: 800185929-2
A9: Dirección de la Entidad: | G9: CALLE 28 # 13a-15 PISO 17 | J9: Municipio: | K9: bogota
A11: Nombre del Comprador: | G11: GLORIA RAQUEL TRIVIÑO GUZMAN | J11: Teléfono: | K11: 3418177
A13: Correo del comprador: | G13: compras@derechodeautor.gov.co
A15: Fechas estimadas
A17: Fecha creación solicitud cotización: | G17: 2016-09-06
A21: Artículos Solicitud de Cotización
F22: Filas a agregar o eliminar:
F23: 1
A25: No. | B25: Placa o sigla | C25: Numero de Motor | D25: Numero de chasis | E25: Tipo de adquisición | F25: Grupo | G25: Tipo de Vehículo | H25: Tienen Código Fasecolda? | I25: Código Fasecolda | J25: Marca | K25: Línea | L25: Modelo | M25: Referencia 1 Fasecolda | N25: Referencia 2 Fasecolda | O25: Referencia 3 Fasecolda | P25: Color | Q25: Cilindraje | R25: Tipo de Precio Vehiculo | S25: Precio del Vehículo | T25: Precio de Accesorios | U25: Total Precio Vehículo | V25: Servicio | W25: Deducible o Franquicia | X25: Valor Deducible o Franquicia | Y25: Cobertura Amparo de Responsabilidad Civil (PRC) | Z25: Cobertura Amparo por daño total (PDT) | AA25: Cobertura Amparo por daño parcial (PDP) | AB25: Cobertura Amparo por hurto total (PHT) | AC25: Cobertura Amparo por hurto parcial (PHP) | AD25: Asistencia en viaje (PAV1) | AE25: Transporte de mercancías azarosas, inflamables o explosivas (PAV2) | AF25: Daños Mutuos (PAV3) | AG25: Ampliación del radio de operaciones a país de pacto Andino (PAT1) | AH25: Transporte de mercancías ilícitas (PAT2) | AI25: Aclaraciones de la Póliza | AJ25: Fecha Inicio Póliza | AK25: Fecha Vencimiento Póliza | AL25: Vigencia de la Póliza en días | AM25: Información Adicional del Vehículo | AN25: Valor PRC | AO25: Valor PDT | AP25: Valor PDP | AQ25: Valor PHT | AR25: Valor PHP | AS25: Valor PAV1 | AT25: Valor PAV2 | AU25: Valor PAV3 | AV25: Valor PAT1 | AW25: Valor PAT2 | AX25: Precio máximo de la Póliza (1 AÑO) | AY25: Vigencia de la Póliza | AZ25: Valor base para gravámenes sin IVA | BA25: Gravámenes | BB25: Valor base sin IVA + gravámenes | BC25: IVA | BD25: Valor total de la Póliza
A26: 1 | B26: BLR 853 | C26: B3525756 | D26: KJDAJP17564 | E26: Propio | F26: Inspección permitida | G26: Automóvil | H26: Si | I26: 3001049 | J26: =VLOOKUP($I26,Fasecolda!$A$2:$BW$11651,3,0) -> FORD | K26: GLX | L26: 1995 | M26: =VLOOKUP($I26,Fasecolda!$A$2:$BW$11651,6,0) -> FESTIVA | N26: =VLOOKUP($I26,Fasecolda!$A$2:$BW$11651,7,0) -> GLX | O26: =VLOOKUP($I26,Fasecolda!$A$2:$BW$11651,8,0) -> MT 1300CC 4P | P26: ROJO | Q26: =VLOOKUP($I26,Fasecolda!$A$2:$BW$11651,64,0) -> 1300 | R26: Valor Fasecolda | S26: =VLOOKUP($I26,Fasecolda!$A$2:$BW$11651,MATCH(L26,Fasecolda!$A$1:$BG$1,0),0)*1000 -> 4800000 | T26: =SUMIF(Accesorios!$B:$B,$B26,Accesorios!$D:$D) -> 0 | U26: =S26+T26 -> 4800000 | V26: Particular | W26: Ninguno | Y26: 1000000000 | Z26: Si | AA26: Si | AB26: Si | AC26: Si | AD26: Si | AE26: Si | AF26: Si | AG26: No | AH26: No | AJ26: 2016-10-03 | AK26: 2017-10-02 | AL26: =IF(AND(AJ26<>"",AK26<>""),AK26-AJ26,"")+1 -> 365 | AN26: =IF($Y26<>"No",VLOOKUP($B26 &"Responsabilidad Civil",AmparosFiltrados!$A$2:$Q$25,MATCH("Vminimos",AmparosFiltrados!$A$1:$Q$1,0),0),0) -> 72357.75617 | AO26: =IF($Z26<>"No",VLOOKUP($B26 & "Daño total",AmparosFiltrados!$A$2:$Q$25,MATCH("Vminimos",AmparosFiltrados!$A$1:$Q$1,0),0),0) -> 21600 | AP26: =IF($AA26<>"No",VLOOKUP($B26 & "Daño parcial",AmparosFiltrados!$A$2:$Q$25,MATCH("Vminimos",AmparosFiltrados!$A$1:$Q$1,0),0),0) -> 62400 | AQ26: =IF($AB26<>"No",VLOOKUP($B26 & "Hurto total",AmparosFiltrados!$A$2:$Q$25,MATCH("Vminimos",AmparosFiltrados!$A$1:$Q$1,0),0),0) -> 12480 | AR26: =IF($AC26<>"No",VLOOKUP($B26 & "Hurto parcial",AmparosFiltrados!$A$2:$Q$25,MATCH("Vminimos",AmparosFiltrados!$A$1:$Q$1,0),0),0) -> 7200 | AS26: =IF($AD26<>"No",VLOOKUP($B26 & "Asistencia en viaje",AmparosFiltrados!$A$2:$Q$25,MATCH("Vminimos",AmparosFiltrados!$A$1:$Q$1,0),0),0) -> 14400 | AT26: =IF($AE26<>"No",VLOOKUP($B26 & "Transporte de mercancías azarosas, inflamables o explosivas",AmparosFiltrados!$A$2:$Q$25,MATCH("Vminimos",AmparosFiltrados!$A$1:$Q$1,0),0),0) -> 4800 | AU26: =IF($AF26<>"No",VLOOKUP($B26 & "Daños Mutuos",AmparosFiltrados!$A$2:$Q$25,MATCH("Vminimos",AmparosFiltrados!$A$1:$Q$1,0),0),0) -> 3120 | AV26: =IF($AG26<>"No",VLOOKUP($B26 & "Ampliación del radio de operaciones a país de pacto Andino",AmparosFiltrados!$A$2:$Q$25,MATCH("Vminimos",AmparosFiltrados!$A$1:$Q$1,0),0),0) -> 0 | AW26: =IF($AH26<>"No",VLOOKUP($B26 & "Transporte de mercancías ilícitas",AmparosFiltrados!$A$2:$Q$25,MATCH("Vminimos",AmparosFiltrados!$A$1:$Q$1,0),0),0) -> 0 | AX26: =SUM($AN26:$AW26) -> 198357.7562 | AY26: =$AL26 -> 365 | AZ26: =((AX26/365)*AY26)/1.16 -> 170998.0657 | BA26: =((AZ26)/(1-$H$57))-(AZ26) -> 0 | BB26: =ROUND((AZ26)+BA26,0) -> 170998 | BC26: =ROUND(BB26*16%,0) -> 27360 | BD26: =ROUND(BB26+BC26,0) -> 198358
A27: 2 | B27: OKZ 542 | C27: A812UC04109 | D27: 9FB4SREB4HM243762 | E27: Propio | F27: Inspección permitida | G27: Automóvil | H27: Si | I27: 8002144 | J27: =VLOOKUP($I27,Fasecolda!$A$2:$BW$11651,3,0) -> RENAULT | K27: LOGAN | L27: 2017 | M27: =VLOOKUP($I27,Fasecolda!$A$2:$BW$11651,6,0) -> LOGAN | N27: =VLOOKUP($I27,Fasecolda!$A$2:$BW$11651,7,0) -> DYNAMIQUE | O27: =VLOOKUP($I27,Fasecolda!$A$2:$BW$11651,8,0) -> MT 1600CC | P27: GRIS | Q27: =VLOOKUP($I27,Fasecolda!$A$2:$BW$11651,64,0) -> 1600 | R27: Valor Fasecolda | S27: =VLOOKUP($I27,Fasecolda!$A$2:$BW$11651,MATCH(L27,Fasecolda!$A$1:$BG$1,0),0)*1000 -> 29400000 | T27: =SUMIF(Accesorios!$B:$B,$B27,Accesorios!$D:$D) -> 1120000 | U27: 30520000 | V27: Oficiales | W27: Ninguno | Y27: 1000000000 | Z27: Si | AA27: Si | AB27: Si | AC27: Si | AD27: Si | AE27: Si | AF27: Si | AG27: No | AH27: No | AJ27: 2016-10-03 | AK27: 2017-10-02 | AL27: =IF(AND(AJ27<>"",AK27<>""),AK27-AJ27,"")+1 -> 365 | AN27: =IF($Y27<>"No",VLOOKUP($B27 &"Responsabilidad Civil",AmparosFiltrados!$A$2:$Q$25,MATCH("Vminimos",AmparosFiltrados!$A$1:$Q$1,0),0),0) -> 64251.61676 | AO27: =IF($Z27<>"No",VLOOKUP($B27 & "Daño total",AmparosFiltrados!$A$2:$Q$25,MATCH("Vminimos",AmparosFiltrados!$A$1:$Q$1,0),0),0) -> 131236 | AP27: =IF($AA27<>"No",VLOOKUP($B27 & "Daño parcial",AmparosFiltrados!$A$2:$Q$25,MATCH("Vminimos",AmparosFiltrados!$A$1:$Q$1,0),0),0) -> 372344 | AQ27: =IF($AB27<>"No",VLOOKUP($B27 & "Hurto total",AmparosFiltrados!$A$2:$Q$25,MATCH("Vminimos",AmparosFiltrados!$A$1:$Q$1,0),0),0) -> 73248 | AR27: =IF($AC27<>"No",VLOOKUP($B27 & "Hurto parcial",AmparosFiltrados!$A$2:$Q$25,MATCH("Vminimos",AmparosFiltrados!$A$1:$Q$1,0),0),0) -> 42728 | AS27: =IF($AD27<>"No",VLOOKUP($B27 & "Asistencia en viaje",AmparosFiltrados!$A$2:$Q$25,MATCH("Vminimos",AmparosFiltrados!$A$1:$Q$1,0),0),0) -> 91560 | AT27: =IF($AE27<>"No",VLOOKUP($B27 & "Transporte de mercancías azarosas, inflamables o explosivas",AmparosFiltrados!$A$2:$Q$25,MATCH("Vminimos",AmparosFiltrados!$A$1:$Q$1,0),0),0) -> 30520 | AU27: =IF($AF27<>"No",VLOOKUP($B27 & "Daños Mutuos",AmparosFiltrados!$A$2:$Q$25,MATCH("Vminimos",AmparosFiltrados!$A$1:$Q$1,0),0),0) -> 19838 | AV27: =IF($AG27<>"No",VLOOKUP($B27 & "Ampliación del radio de operaciones a país de pacto Andino",AmparosFiltrados!$A$2:$Q$25,MATCH("Vminimos",AmparosFiltrados!$A$1:$Q$1,0),0),0) -> 0 | AW27: =IF($AH27<>"No",VLOOKUP($B27 & "Transporte de mercancías ilícitas",AmparosFiltrados!$A$2:$Q$25,MATCH("Vminimos",AmparosFiltrados!$A$1:$Q$1,0),0),0) -> 0 | AX27: =SUM($AN27:$AW27) -> 825725.6168 | AY27: =$AL27 -> 365 | AZ27: =((AX27/365)*AY27)/1.16 -> 711832.4282 | BA27: =((AZ27)/(1-$H$57))-(AZ27) -> 0 | BB27: =ROUND((AZ27)+BA27,0) -> 711832 | BC27: =ROUND(BB27*16%,0) -> 113893 | BD27: =ROUND(BB27+BC27,0) -> 825725
A28: 3 | B28: OBI 445 | C28: L3788956 | D28: 9FCGG453470103158 | E28: Propio | F28: Inspección permitida | G28: Automóvil | H28: Si | I28: 5602161 | J28: =VLOOKUP($I28,Fasecolda!$A$2:$BW$11651,3,0) -> MAZDA | K28: 6 | L28: 2007 | M28: =VLOOKUP($I28,Fasecolda!$A$2:$BW$11651,6,0) -> 6 [1] | N28: =VLOOKUP($I28,Fasecolda!$A$2:$BW$11651,7,0) -> LXNM6 | O28: =VLOOKUP($I28,Fasecolda!$A$2:$BW$11651,8,0) -> MT 2000CC | P28: ROJO | Q28: =VLOOKUP($I28,Fasecolda!$A$2:$BW$11651,64,0) -> 1999 | R28: Valor Fasecolda | S28: =VLOOKUP($I28,Fasecolda!$A$2:$BW$11651,MATCH(L28,Fasecolda!$A$1:$BG$1,0),0)*1000 -> 15700000 | T28: =SUMIF(Accesorios!$B:$B,$B28,Accesorios!$D:$D) -> 0 | U28: 15700000 | V28: Oficiales | W28: Ninguno | Y28: 1000000000 | Z28: Si | AA28: Si | AB28: Si | AC28: Si | AD28: Si | AE28: Si | AF28: Si | AG28: No | AH28: No | AJ28: 2016-10-03 | AK28: 2017-10-02 | AL28: =IF(AND(AJ28<>"",AK28<>""),AK28-AJ28,"")+1 -> 365 | AN28: =IF($Y28<>"No",VLOOKUP($B28 &"Responsabilidad Civil",AmparosFiltrados!$A$2:$Q$25,MATCH("Vminimos",AmparosFiltrados!$A$1:$Q$1,0),0),0) -> 69548.01631 | AO28: =IF($Z28<>"No",VLOOKUP($B28 & "Daño total",AmparosFiltrados!$A$2:$Q$25,MATCH("Vminimos",AmparosFiltrados!$A$1:$Q$1,0),0),0) -> 70650 | AP28: =IF($AA28<>"No",VLOOKUP($B28 & "Daño parcial",AmparosFiltrados!$A$2:$Q$25,MATCH("Vminimos",AmparosFiltrados!$A$1:$Q$1,0),0),0) -> 199390 | AQ28: =IF($AB28<>"No",VLOOKUP($B28 & "Hurto total",AmparosFiltrados!$A$2:$Q$25,MATCH("Vminimos",AmparosFiltrados!$A$1:$Q$1,0),0),0) -> 39250 | AR28: =IF($AC28<>"No",VLOOKUP($B28 & "Hurto parcial",AmparosFiltrados!$A$2:$Q$25,MATCH("Vminimos",AmparosFiltrados!$A$1:$Q$1,0),0),0) -> 23550 | AS28: =IF($AD28<>"No",VLOOKUP($B28 & "Asistencia en viaje",AmparosFiltrados!$A$2:$Q$25,MATCH("Vminimos",AmparosFiltrados!$A$1:$Q$1,0),0),0) -> 47100 | AT28: =IF($AE28<>"No",VLOOKUP($B28 & "Transporte de mercancías azarosas, inflamables o explosivas",AmparosFiltrados!$A$2:$Q$25,MATCH("Vminimos",AmparosFiltrados!$A$1:$Q$1,0),0),0) -> 15700 | AU28: =IF($AF28<>"No",VLOOKUP($B28 & "Daños Mutuos",AmparosFiltrados!$A$2:$Q$25,MATCH("Vminimos",AmparosFiltrados!$A$1:$Q$1,0),0),0) -> 10205 | AV28: =IF($AG28<>"No",VLOOKUP($B28 & "Ampliación del radio de operaciones a país de pacto Andino",AmparosFiltrados!$A$2:$Q$25,MATCH("Vminimos",AmparosFiltrados!$A$1:$Q$1,0),0),0) -> 0 | AW28: =IF($AH28<>"No",VLOOKUP($B28 & "Transporte de mercancías ilícitas",AmparosFiltrados!$A$2:$Q$25,MATCH("Vminimos",AmparosFiltrados!$A$1:$Q$1,0),0),0) -> 0 | AX28: 475393.0163 | AY28: 365 | AZ28: 409821.5658 | BA28: 0 | BB28: 409822 | BC28: 65572 | BD28: 475394
BA29: Totales | BB29: =SUM(BB$26:BB$28) -> 1292652 | BC29: =SUM(BC$26:BC$28) -> 206825 | BD29: 1499477
A31: Lugar de Entrega
A32: Ciudad de Entrega
A33: BOGOTÁ, D.C. - BOGOTÁ, D.C.
A34: Dirección
A35: CALLE 28 # 13a-15 PISO 17
A37: Corredor de Seguros
A38: Si
A39: Nombre
A40: JARGU S.A. CORREDORES DE SEGUROS
A41: Télefono
A42: 6171411
A43: Correo electrónico
A44: juan.hurtado@jargu.com
A45: Si requiere agregue o elimine filas
A46: Fecha y hora para visita de los Vehículos
A49: Gravámenes adicionales (estampillas)
A51: Si los hay, indique los gravámenes adicionales (estampilllas) a los que está sujeta la Orden de Compra. Son gravámens adiconales por ejemplo; estampillas y demás impuestos territoriales. Los impuestos como ICA y retención en la fuente NO son gravámenes adicionales.
A54: No. | B54: Descripción | H54: % Gravámen
A55: 1
E57: Total Gravámenes adicionales | H57: =SUM(H55:I55) -> 0

Sheet Cotizacion
B1: Cotización Para Seguros de Vehículos | R1: 0
B3: Acuerdo Marco de Seguros de Vehículos
B5: Información del Proveedor
B7: Proveedor: | G7: NIT:
B9: Información de la Entidad Compradora
B11: Nombre de la Entidad: | E11: DIRECCIÓN NACIONAL DE DERECHO DE AUTOR | G11: NIT: | H11: 800185929-2
B13: Fechas estimadas
B15: Fecha creación solicitud cotización: | E15: 2016-09-06
A21: Artículos Solicitud de Cotización
F22: Filas a agregar o eliminar:
F23: 1
A25: No. | B25: Placa o sigla | C25: Numero de Motor | D25: Numero de chasis | E25: Tipo de adquisición | F25: Grupo | G25: Tipo de Vehículo | H25: Tienen Código Fasecolda? | I25: Código Fasecolda | J25: Marca | K25: Línea | L25: Modelo | M25: Referencia 1 Fasecolda | N25: Referencia 2 Fasecolda | O25: Referencia 3 Fasecolda | P25: Color | Q25: Cilindraje | R25: Tipo de Precio Vehiculo | S25: Precio del Vehículo | T25: Precio de Accesorios | U25: Total Precio Vehículo | V25: Servicio | W25: Deducible o Franquicia | X25: Valor Deducible o Franquicia | Y25: Cobertura Amparo de Responsabilidad Civil (PRC) | Z25: Cobertura Amparo por daño total (PDT) | AA25: Cobertura Amparo por daño parcial (PDP) | AB25: Cobertura Amparo por hurto total (PHT) | AC25: Cobertura Amparo por hurto parcial (PHP) | AD25: Asistencia en viaje (PAV1) | AE25: Transporte de mercancías azarosas, inflamables o explosivas (PAV2) | AF25: Daños Mutuos (PAV3) | AG25: Ampliación del radio de operaciones a país de pacto Andino (PAT1) | AH25: Transporte de mercancías ilícitas (PAT2) | AI25: Aclaraciones de la Póliza | AJ25: Fecha Inicio Póliza | AK25: Fecha Vencimiento Póliza | AL25: Vigencia de la Póliza en días | AM25: Información Adicional del Vehículo | AN25: Valor PRC | AO25: Valor PDT | AP25: Valor PDP | AQ25: Valor PHT | AR25: Valor PHP | AS25: Valor PAV1 | AT25: Valor PAV2 | AU25: Valor PAV3 | AV25: Valor PAT1 | AW25: Valor PAT2 | AX25: Precio máximo de la Póliza (1 AÑO) | AY25: Vigencia de la Póliza | AZ25: Valor base para gravámenes sin IVA | BA25: Gravámenes | BB25: Valor base sin IVA + gravámenes | BC25: % Descuento | BD25: Valor con Descuento | BE25: IVA | BF25: Valor total de la Póliza
A26: 1 | B26: BLR 853 | C26: B3525756 | D26: KJDAJP17564 | E26: Propio | F26: Inspección permitida | G26: Automóvil | H26: Si | I26: 3001049 | J26: =VLOOKUP($I26,Fasecolda!$A$2:$BW$11651,3,0) -> FORD | K26: GLX | L26: 1995 | M26: =VLOOKUP($I26,Fasecolda!$A$2:$BW$11651,6,0) -> FESTIVA | N26: =VLOOKUP($I26,Fasecolda!$A$2:$BW$11651,7,0) -> GLX | O26: =VLOOKUP($I26,Fasecolda!$A$2:$BW$11651,8,0) -> MT 1300CC 4P | P26: ROJO | Q26: =VLOOKUP($I26,Fasecolda!$A$2:$BW$11651,64,0) -> 1300 | R26: Valor Fasecolda | S26: =VLOOKUP($I26,Fasecolda!$A$2:$BW$11651,MATCH(L26,Fasecolda!$A$1:$BG$1,0),0)*1000 -> 4800000 | T26: =SUMIF(Accesorios!$B:$B,$B26,Accesorios!$D:$D) -> 0 | U26: =S26+T26 -> 4800000 | V26: Particular | W26: Ninguno | Y26: 1000000000 | Z26: Si | AA26: Si | AB26: Si | AC26: Si | AD26: Si | AE26: Si | AF26: Si | AG26: No | AH26: No | AJ26: 2016-10-03 | AK26: 2017-10-02 | AL26: =IF(AND(AJ26<>"",AK26<>""),AK26-AJ26,"")+1 -> 365 | AN26: =IF($Y26<>"No",VLOOKUP($B26 & "Responsabilidad Civil",AmparosFiltrados!$A$2:$Q$25,MATCH("V"&$D$7,AmparosFiltrados!$A$1:$Q$1,0),0),0) ->  | AO26: =IF($Z26<>"No",VLOOKUP($B26 & "Daño total",AmparosFiltrados!$A$2:$Q$25,MATCH("V"&$D$7,AmparosFiltrados!$A$1:$Q$1,0),0),0) ->  | AP26: =IF($AA26<>"No",VLOOKUP($B26 & "Daño parcial",AmparosFiltrados!$A$2:$Q$25,MATCH("V"&$D$7,AmparosFiltrados!$A$1:$Q$1,0),0),0) ->  | AQ26: =IF($AB26<>"No",VLOOKUP($B26 & "Hurto total",AmparosFiltrados!$A$2:$Q$25,MATCH("V"&$D$7,AmparosFiltrados!$A$1:$Q$1,0),0),0) ->  | AR26: =IF($AC26<>"No",VLOOKUP($B26 & "Hurto parcial",AmparosFiltrados!$A$2:$Q$25,MATCH("V"&$D$7,AmparosFiltrados!$A$1:$Q$1,0),0),0) ->  | AS26: =IF($AD26<>"No",VLOOKUP($B26 & "Asistencia en viaje",AmparosFiltrados!$A$2:$Q$25,MATCH("V"&$D$7,AmparosFiltrados!$A$1:$Q$1,0),0),0) ->  | AT26: =IF($AE26<>"No",VLOOKUP($B26 & "Transporte de mercancías azarosas, inflamables o explosivas",AmparosFiltrados!$A$2:$Q$25,MATCH("V"&$D$7,AmparosFiltrados!$A$1:$Q$1,0),0),0) ->  | AU26: =IF($AF26<>"No",VLOOKUP($B26 & "Daños Mutuos",AmparosFiltrados!$A$2:$Q$25,MATCH("V"&$D$7,AmparosFiltrados!$A$1:$Q$1,0),0),0) ->  | AV26: =IF($AG26<>"No",VLOOKUP($B26 & "Ampliación del radio de operaciones a país de pacto Andino",AmparosFiltrados!$A$2:$Q$25,MATCH("V"&$D$7,AmparosFiltrados!$A$1:$Q$1,0),0),0) -> 0 | AW26: =IF($AH26<>"No",VLOOKUP($B26 & "Transporte de mercancías ilícitas",AmparosFiltrados!$A$2:$Q$25,MATCH("V"&$D$7,AmparosFiltrados!$A$1:$Q$1,0),0),0) -> 0 | AX26: =SUM($AN26:$AW26) ->  | AY26: =$AL26 -> 365 | AZ26: =((AX26/365)*AY26)/1.16 ->  | BA26: =((AZ26)/(1-$H$57))-(AZ26) ->  | BB26: =(AZ26)+BA26 ->  | BD26: =BB26*(1-BC26) ->  | BE26: =BD26*16% ->  | BF26: =BD26+BE26 -> 
A27: 2 | B27: OKZ 542 | C27: A812UC04109 | D27: 9FB4SREB4HM243762 | E27: Propio | F27: Inspección permitida | G27: Automóvil | H27: Si | I27: 8002144 | J27: =VLOOKUP($I27,Fasecolda!$A$2:$BW$11651,3,0) -> RENAULT | K27: LOGAN | L27: 2017 | M27: =VLOOKUP($I27,Fasecolda!$A$2:$BW$11651,6,0) -> LOGAN | N27: =VLOOKUP($I27,Fasecolda!$A$2:$BW$11651,7,0) -> DYNAMIQUE | O27: =VLOOKUP($I27,Fasecolda!$A$2:$BW$11651,8,0) -> MT 1600CC | P27: GRIS | Q27: =VLOOKUP($I27,Fasecolda!$A$2:$BW$11651,64,0) -> 1600 | R27: Valor Fasecolda | S27: =VLOOKUP($I27,Fasecolda!$A$2:$BW$11651,MATCH(L27,Fasecolda!$A$1:$BG$1,0),0)*1000 -> 29400000 | T27: =SUMIF(Accesorios!$B:$B,$B27,Accesorios!$D:$D) -> 1120000 | U27: 30520000 | V27: Oficiales | W27: Ninguno | Y27: 1000000000 | Z27: Si | AA27: Si | AB27: Si | AC27: Si | AD27: Si | AE27: Si | AF27: Si | AG27: No | AH27: No | AJ27: 2016-10-03 | AK27: 2017-10-02 | AL27: =IF(AND(AJ27<>"",AK27<>""),AK27-AJ27,"")+1 -> 365 | AN27: =IF($Y27<>"No",VLOOKUP($B27 & "Responsabilidad Civil",AmparosFiltrados!$A$2:$Q$25,MATCH("V"&$D$7,AmparosFiltrados!$A$1:$Q$1,0),0),0) ->  | AO27: =IF($Z27<>"No",VLOOKUP($B27 & "Daño total",AmparosFiltrados!$A$2:$Q$25,MATCH("V"&$D$7,AmparosFiltrados!$A$1:$Q$1,0),0),0) ->  | AP27: =IF($AA27<>"No",VLOOKUP($B27 & "Daño parcial",AmparosFiltrados!$A$2:$Q$25,MATCH("V"&$D$7,AmparosFiltrados!$A$1:$Q$1,0),0),0) ->  | AQ27: =IF($AB27<>"No",VLOOKUP($B27 & "Hurto total",AmparosFiltrados!$A$2:$Q$25,MATCH("V"&$D$7,AmparosFiltrados!$A$1:$Q$1,0),0),0) ->  | AR27: =IF($AC27<>"No",VLOOKUP($B27 & "Hurto parcial",AmparosFiltrados!$A$2:$Q$25,MATCH("V"&$D$7,AmparosFiltrados!$A$1:$Q$1,0),0),0) ->  | AS27: =IF($AD27<>"No",VLOOKUP($B27 & "Asistencia en viaje",AmparosFiltrados!$A$2:$Q$25,MATCH("V"&$D$7,AmparosFiltrados!$A$1:$Q$1,0),0),0) ->  | AT27: =IF($AE27<>"No",VLOOKUP($B27 & "Transporte de mercancías azarosas, inflamables o explosivas",AmparosFiltrados!$A$2:$Q$25,MATCH("V"&$D$7,AmparosFiltrados!$A$1:$Q$1,0),0),0) ->  | AU27: =IF($AF27<>"No",VLOOKUP($B27 & "Daños Mutuos",AmparosFiltrados!$A$2:$Q$25,MATCH("V"&$D$7,AmparosFiltrados!$A$1:$Q$1,0),0),0) ->  | AV27: =IF($AG27<>"No",VLOOKUP($B27 & "Ampliación del radio de operaciones a país de pacto Andino",AmparosFiltrados!$A$2:$Q$25,MATCH("V"&$D$7,AmparosFiltrados!$A$1:$Q$1,0),0),0) -> 0 | AW27: =IF($AH27<>"No",VLOOKUP($B27 & "Transporte de mercancías ilícitas",AmparosFiltrados!$A$2:$Q$25,MATCH("V"&$D$7,AmparosFiltrados!$A$1:$Q$1,0),0),0) -> 0 | AX27: =SUM($AN27:$AW27) ->  | AY27: =$AL27 -> 365 | AZ27: =((AX27/365)*AY27)/1.16 ->  | BA27: =((AZ27)/(1-$H$57))-(AZ27) ->  | BB27: =(AZ27)+BA27 ->  | BD27: =BB27*(1-BC27) ->  | BE27: =BD27*16% ->  | BF27: =BD27+BE27 -> 
A28: 3 | B28: OBI 445 | C28: L3788956 | D28: 9FCGG453470103158 | E28: Propio | F28: Inspección permitida | G28: Automóvil | H28: Si | I28: 5602161 | J28: =VLOOKUP($I28,Fasecolda!$A$2:$BW$11651,3,0) -> MAZDA | K28: 6 | L28: 2007 | M28: =VLOOKUP($I28,Fasecolda!$A$2:$BW$11651,6,0) -> 6 [1] | N28: =VLOOKUP($I28,Fasecolda!$A$2:$BW$11651,7,0) -> LXNM6 | O28: =VLOOKUP($I28,Fasecolda!$A$2:$BW$11651,8,0) -> MT 2000CC | P28: ROJO | Q28: =VLOOKUP($I28,Fasecolda!$A$2:$BW$11651,64,0) -> 1999 | R28: Valor Fasecolda | S28: =VLOOKUP($I28,Fasecolda!$A$2:$BW$11651,MATCH(L28,Fasecolda!$A$1:$BG$1,0),0)*1000 -> 15700000 | T28: =SUMIF(Accesorios!$B:$B,$B28,Accesorios!$D:$D) -> 0 | U28: 15700000 | V28: Oficiales | W28: Ninguno | Y28: 1000000000 | Z28: Si | AA28: Si | AB28: Si | AC28: Si | AD28: Si | AE28: Si | AF28: Si | AG28: No | AH28: No | AJ28: 2016-10-03 | AK28: 2017-10-02 | AL28: =IF(AND(AJ28<>"",AK28<>""),AK28-AJ28,"")+1 -> 365 | AN28: =IF($Y28<>"No",VLOOKUP($B28 & "Responsabilidad Civil",AmparosFiltrados!$A$2:$Q$25,MATCH("V"&$D$7,AmparosFiltrados!$A$1:$Q$1,0),0),0) ->  | AO28: =IF($Z28<>"No",VLOOKUP($B28 & "Daño total",AmparosFiltrados!$A$2:$Q$25,MATCH("V"&$D$7,AmparosFiltrados!$A$1:$Q$1,0),0),0) ->  | AP28: =IF($AA28<>"No",VLOOKUP($B28 & "Daño parcial",AmparosFiltrados!$A$2:$Q$25,MATCH("V"&$D$7,AmparosFiltrados!$A$1:$Q$1,0),0),0) ->  | AQ28: =IF($AB28<>"No",VLOOKUP($B28 & "Hurto total",AmparosFiltrados!$A$2:$Q$25,MATCH("V"&$D$7,AmparosFiltrados!$A$1:$Q$1,0),0),0) ->  | AR28: =IF($AC28<>"No",VLOOKUP($B28 & "Hurto parcial",AmparosFiltrados!$A$2:$Q$25,MATCH("V"&$D$7,AmparosFiltrados!$A$1:$Q$1,0),0),0) ->  | AS28: =IF($AD28<>"No",VLOOKUP($B28 & "Asistencia en viaje",AmparosFiltrados!$A$2:$Q$25,MATCH("V"&$D$7,AmparosFiltrados!$A$1:$Q$1,0),0),0) ->  | AT28: =IF($AE28<>"No",VLOOKUP($B28 & "Transporte de mercancías azarosas, inflamables o explosivas",AmparosFiltrados!$A$2:$Q$25,MATCH("V"&$D$7,AmparosFiltrados!$A$1:$Q$1,0),0),0) ->  | AU28: =IF($AF28<>"No",VLOOKUP($B28 & "Daños Mutuos",AmparosFiltrados!$A$2:$Q$25,MATCH("V"&$D$7,AmparosFiltrados!$A$1:$Q$1,0),0),0) ->  | AV28: =IF($AG28<>"No",VLOOKUP($B28 & "Ampliación del radio de operaciones a país de pacto Andino",AmparosFiltrados!$A$2:$Q$25,MATCH("V"&$D$7,AmparosFiltrados!$A$1:$Q$1,0),0),0) -> 0 | AW28: =IF($AH28<>"No",VLOOKUP($B28 & "Transporte de mercancías ilícitas",AmparosFiltrados!$A$2:$Q$25,MATCH("V"&$D$7,AmparosFiltrados!$A$1:$Q$1,0),0),0) -> 0 | AY28: 365
BC29: Totales | BD29: =SUM(BD$26:BD$28) ->  | BE29: =SUM(BE$26:BE$28) -> 
A31: Lugar de Entrega
A32: Ciudad de Entrega
A33: BOGOTÁ, D.C. - BOGOTÁ, D.C.
A34: Dirección
A35: CALLE 28 # 13a-15 PISO 17
A37: Corredor de Seguros
A38: Si
A39: Nombre
A40: JARGU S.A. CORREDORES DE SEGUROS
A41: Télefono
A42: 6171411
A43: Correo electrónico
A44: juan.hurtado@jargu.com
A45: Si requiere agregue o elimine filas
A46: Fecha y hora para visita de los Vehículos
A49: Gravámenes adicionales (estampillas)
A51: Si los hay, indique los gravámenes adicionales (estampilllas) a los que está sujeta la Orden de Compra. Son gravámens adiconales por ejemplo; estampillas y demás impuestos territoriales. Los impuestos como ICA y retención en la fuente NO son gravámenes adicionales.
A54: No. | B54: Descripción | H54: % Gravámen
A55: 1
E57: Total Gravámenes adicionales | H57: =SUM(H55:I55) -> 0

Sheet solCotizacionCSV
A1: Tipo (servicio o artÃ­culo) | B1: Cantidad | C1: CÃ³digo de unidad de medida* | D1: PosiciÃ³n | E1: Precio base | F1: Divisa | G1: DescripciÃ³n | H1: MercancÃ­a
A2: item | B2: 1 | C2: Und | E2: "1292652" | F2: COP | G2: AutomÃ³vil
A3: item | B3: 1 | C3: Und | E3: "206825" | F3: COP | G3: IVA

Sheet Listas (hidden)
A1: tadquisicion | B1: Grupo | C1: TipodeVehiculo | D1: Marca | E1: SiTipoPrecio | F1: NoTipoPrecio | G1: Servicio | H1: DeduFran | I1: Automóvil | J1: Autosdenegociosyotaxis | K1: Busesybusetasdeserviciopúblicourbano | L1: Camionetasycamperos | M1: Cargaomixto | N1: Motocicletas | O1: Oficialesespeciales | P1: Serviciopúblicointermunicipal | Q1: Vehículopara6omáspasajeros | R1: check | S1: CiudadesEntrega | T1: Proveedor | U1: PlacasOSiglas
A2: Propio | B2: Inspección permitida | C2: Motocicletas | D2: ACB | E2: Valor admitido | F2: Valor admitido | G2: Uniformado | H2: Deducible | I2: No | J2: No | K2: No | L2: No | M2: No | N2: No | O2: No | P2: No | Q2: No | R2: Si | S2: ANTIOQUIA - MEDELLÍN | T2: Axa - Colpatria | U2: BLR 853
A3: Tenencia | B3: Inspección no permitida | C3: Camionetas y camperos | D3: ACURA | E3: Valor Fasecolda | F3: Vehículo nuevo | G3: Blindado | H3: Franquicia | I3: 500000000 | J3: 500000000 | K3: 500000000 | L3: 500000000 | M3: 500000000 | N3: 150000000 | O3: 500000000 | P3: 500000000 | Q3: 500000000 | R3: No | S3: ANTIOQUIA - ABRIAQUÍ | T3: La Previsora | U3: OKZ 542
A4: Custodia | C4: Automóvil | D4: AG | E4: Vehículo nuevo | G4: Publico Urbano | H4: Ninguno | I4: 1000000000 | J4: 1000000000 | K4: 1000000000 | L4: 1000000000 | M4: 1000000000 | N4: 200000000 | O4: 1000000000 | P4: 1000000000 | Q4: 1000000000 | S4: ANTIOQUIA - ALEJANDRÍA | T4: Mapfre | U4: OBI 445
A5: Donación | C5: Carga o mixto | D5: AGRALE | G5: Publico Intermunicipal | I5: 1500000000 | J5: 1500000000 | K5: 1500000000 | L5: 1500000000 | M5: 1500000000 | N5: 250000000 | O5: 1500000000 | P5: 1500000000 | Q5: 1500000000 | S5: ANTIOQUIA - AMAGÁ
A6: Comodato | C6: Oficiales especiales | D6: AKT | G6: Particular | I6: 2000000000 | J6: 2000000000 | K6: 2000000000 | L6: 2000000000 | M6: 2000000000 | N6: 300000000 | O6: 2000000000 | P6: 2000000000 | Q6: 2000000000 | S6: ANTIOQUIA - AMALFI
A7: Arriendo | C7: Autos de negocios y/o taxis | D7: ALCAR | G7: Diplomaticos | I7: 2500000000 | J7: 2500000000 | K7: 2500000000 | L7: 2500000000 | M7: 2500000000 | N7: 350000000 | O7: 2500000000 | P7: 2500000000 | Q7: 2500000000 | S7: ANTIOQUIA - ANDES
A8: Administración | C8: Buses y busetas de servicio público urbano | D8: ALEKO | G8: Trabajo Agroindustrial | I8: 3000000000 | J8: 3000000000 | K8: 3000000000 | L8: 3000000000 | M8: 3000000000 | N8: 400000000 | O8: 3000000000 | P8: 3000000000 | Q8: 3000000000 | S8: ANTIOQUIA - ANGELÓPOLIS
C9: Servicio público intermunicipal | D9: ALFA ROMEO | G9: Ensenanza Automotriz | I9: 3500000000 | J9: 3500000000 | K9: 3500000000 | L9: 3500000000 | M9: 3500000000 | N9: 450000000 | O9: 3500000000 | P9: 3500000000 | Q9: 3500000000 | S9: ANTIOQUIA - ANGOSTURA
C10: Vehículo para 6 o más pasajeros | D10: AMC | G10: Carro Funebre | I10: 4000000000 | J10: 4000000000 | K10: 4000000000 | L10: 4000000000 | M10: 4000000000 | N10: 500000000 | O10: 4000000000 | P10: 4000000000 | Q10: 4000000000 | S10: ANTIOQUIA - ANORÍ
D11: AMERICAN MOTOR | G11: Ambulancia | S11: ANTIOQUIA - SANTA FÉ DE ANTIOQUIA
D12: AMERICAN TRAYLER | G12: Bomberos | S12: ANTIOQUIA - ANZÁ
D13: AMPLE | G13: Transporte De Valores | S13: ANTIOQUIA - APARTADÓ
D14: ANDITRAILERS | G14: Fuerzas Militares Especiales | S14: ANTIOQUIA - ARBOLETES
D15: APOLO | G15: Oficiales | S15: ANTIOQUIA - ARGELIA
D16: APONCAR | G16: Particular Escolar | S16: ANTIOQUIA - ARMENIA
D17: APRILIA | G17: Oficial Escolar | S17: ANTIOQUIA - BARBOSA
D18: ARCTIC CAT | S18: ANTIOQUIA - BELMIRA
D19: AROCARPATI | S19: ANTIOQUIA - BELLO
D20: ASIA | S20: ANTIOQUIA - BETANIA
D21: ATM | S21: ANTIOQUIA - BETULIA
D22: AUDI | S22: ANTIOQUIA - CIUDAD BOLÍVAR
D23: AUPACO | S23: ANTIOQUIA - BRICEÑO
D24: AUTECO | S24: ANTIOQUIA - BURITICÁ
D25: AUTOCAR | S25: ANTIOQUIA - CÁCERES
D26: AVA | S26: ANTIOQUIA - CAICEDO
D27: AYCO | S27: ANTIOQUIA - CALDAS
D28: BAIC | S28: ANTIOQUIA - CAMPAMENTO
D29: BAW | S29: ANTIOQUIA - CAÑASGORDAS
D30: BAYONA TRAILER | S30: ANTIOQUIA - CARACOLÍ
D31: BEIJING | S31: ANTIOQUIA - CARAMANTA
D32: BENELLI | S32: ANTIOQUIA - CAREPA
D33: BISON TRUCK | S33: ANTIOQUIA - EL CARMEN DE VIBORAL
D34: BMW | S34: ANTIOQUIA - CAROLINA
D35: BORGO | S35: ANTIOQUIA - CAUCASIA
D36: BRILLIANCE | S36: ANTIOQUIA - CHIGORODÓ
D37: BRONTO | S37: ANTIOQUIA - CISNEROS
D38: BRP CAN AM | S38: ANTIOQUIA - COCORNÁ
D39: BUICK | S39: ANTIOQUIA - CONCEPCIÓN
D40: BYD | S40: ANTIOQUIA - CONCORDIA
D41: CADILLAC | S41: ANTIOQUIA - COPACABANA
D42: CAGIVA | S42: ANTIOQUIA - DABEIBA
D43: CANACOL | S43: ANTIOQUIA - DONMATÍAS
D44: CAPRI | S44: ANTIOQUIA - EBÉJICO
D45: CARMEX | S45: ANTIOQUIA - EL BAGRE
D46: CARROCERIAS JAGUER | S46: ANTIOQUIA - ENTRERRÍOS
D47: CARROCERIAS MODERNA | S47: ANTIOQUIA - ENVIGADO
D48: CEDAL | S48: ANTIOQUIA - FREDONIA
D49: CHANA | S49: ANTIOQUIA - FRONTINO
D50: CHANGAN | S50: ANTIOQUIA - GIRALDO
D51: CHANGFENG | S51: ANTIOQUIA - GIRARDOTA
D52: CHANGHE | S52: ANTIOQUIA - GÓMEZ PLATA
D53: CHERY | S53: ANTIOQUIA - GRANADA
D54: CHEVROLET | S54: ANTIOQUIA - GUADALUPE
D55: CHRYSLER | S55: ANTIOQUIA - GUARNE
D56: CILINDRAULICOS | S56: ANTIOQUIA - GUATAPÉ
D57: CIMC | S57: ANTIOQUIA - HELICONIA
D58: CITROEN | S58: ANTIOQUIA - HISPANIA
D59: CMC | S59: ANTIOQUIA - ITAGÜÍ
D60: COLTRAILER | S60: ANTIOQUIA - ITUANGO
D61: CONALCAR | S61: ANTIOQUIA - JARDÍN
D62: CONSTRUTANQUES | S62: ANTIOQUIA - JERICÓ
D63: CONSTRUTRAILER | S63: ANTIOQUIA - LA CEJA
D64: CONTAPA | S64: ANTIOQUIA - LA ESTRELLA
D65: CORCEL | S65: ANTIOQUIA - LA PINTADA
D66: CYAN | S66: ANTIOQUIA - LA UNIÓN
D67: DACIA | S67: ANTIOQUIA - LIBORINA
D68: DADI | S68: ANTIOQUIA - MACEO
D69: DAEWOO | S69: ANTIOQUIA - MARINILLA
D70: DAF | S70: ANTIOQUIA - MONTEBELLO
D71: DAIHATSU | S71: ANTIOQUIA - MURINDÓ
D72: DAYANG | S72: ANTIOQUIA - MUTATÁ
D73: DERBI | S73: ANTIOQUIA - NARIÑO
D74: DFAC | S74: ANTIOQUIA - NECOCLÍ
D75: DFSK/DFM | S75: ANTIOQUIA - NECHÍ
D76: DINA | S76: ANTIOQUIA - OLAYA
D77: DITE | S77: ANTIOQUIA - PEÑOL
D78: DODGE | S78: ANTIOQUIA - PEQUE
D79: DONGBEN | S79: ANTIOQUIA - PUEBLORRICO
D80: DORSEY | S80: ANTIOQUIA - PUERTO BERRÍO
D81: DUCATI | S81: ANTIOQUIA - PUERTO NARE
D82: DUST | S82: ANTIOQUIA - PUERTO TRIUNFO
D83: EAGLE CARGO | S83: ANTIOQUIA - REMEDIOS
D84: EAGLE TRUCK | S84: ANTIOQUIA - RETIRO
D85: EL ABARCO | S85: ANTIOQUIA - RIONEGRO
D86: EL CHINO BERNA | S86: ANTIOQUIA - SABANALARGA
D87: EL SOL | S87: ANTIOQUIA - SABANETA
D88: EL TRAILERO | S88: ANTIOQUIA - SALGAR
D89: EQUITRAILER | S89: ANTIOQUIA - SAN ANDRÉS DE CUERQUÍA
D90: ESTEMCO | S90: ANTIOQUIA - SAN CARLOS
D91: EUROPAMOTOS | S91: ANTIOQUIA - SAN FRANCISCO
D92: EUROSTAR D`LONG | S92: ANTIOQUIA - SAN JERÓNIMO
D93: FALCON | S93: ANTIOQUIA - SAN JOSÉ DE LA MONTAÑA
D94: FAMERS | S94: ANTIOQUIA - SAN JUAN DE URABÁ
D95: FAW AMI | S95: ANTIOQUIA - SAN LUIS
D96: FEGAM | S96: ANTIOQUIA - SAN PEDRO DE LOS MILAGROS
D97: FERRARI | S97: ANTIOQUIA - SAN PEDRO DE URABÁ
D98: FERRELAMINAS | S98: ANTIOQUIA - SAN RAFAEL
D99: FIAT | S99: ANTIOQUIA - SAN ROQUE
D100: FIRENZE | S100: ANTIOQUIA - SAN VICENTE FERRER
D101: FMI | S101: ANTIOQUIA - SANTA BÁRBARA
D102: FONTAINE | S102: ANTIOQUIA - SANTA ROSA DE OSOS
D103: FORD | S103: ANTIOQUIA - SANTO DOMINGO
D104: FOTON | S104: ANTIOQUIA - EL SANTUARIO
D105: FRANCOCOL | S105: ANTIOQUIA - SEGOVIA
D106: FREIGHTLINER | S106: ANTIOQUIA - SONSÓN
D107: FULL TRAILER | S107: ANTIOQUIA - SOPETRÁN
D108: FUSO | S108: ANTIOQUIA - TÁMESIS
D109: GAS GAS | S109: ANTIOQUIA - TARAZÁ
D110: GAZ | S110: ANTIOQUIA - TARSO
D111: GEELY | S111: ANTIOQUIA - TITIRIBÍ
D112: GERLAP | S112: ANTIOQUIA - TOLEDO
D113: GERMAR GMG | S113: ANTIOQUIA - TURBO
D114: GESMET | S114: ANTIOQUIA - URAMITA
D115: GLOW | S115: ANTIOQUIA - URRAO
D116: GMC | S116: ANTIOQUIA - VALDIVIA
D117: GOLDEN DRAGON | S117: ANTIOQUIA - VALPARAÍSO
D118: GOMOTOR | S118: ANTIOQUIA - VEGACHÍ
D119: GONOW | S119: ANTIOQUIA - VENECIA
D120: GREAT DANE | S120: ANTIOQUIA - VIGÍA DEL FUERTE
D121: GREAT WALL MOTOR | S121: ANTIOQUIA - YALÍ
D122: GREMCAR | S122: ANTIOQUIA - YARUMAL
D123: GUERCAR | S123: ANTIOQUIA - YOLOMBÓ
D124: GUZI | S124: ANTIOQUIA - YONDÓ
D125: HAFEI | S125: ANTIOQUIA - ZARAGOZA
D126: HAIMA | S126: ANTIOQUIA - ABEJORRAL
D127: HALEI | S127: ATLÁNTICO - BARRANQUILLA
D128: HAOJIANG | S128: ATLÁNTICO - BARANOA
D129: HARLEY DAVIDSON | S129: ATLÁNTICO - CAMPO DE LA CRUZ
D130: HEIL | S130: ATLÁNTICO - CANDELARIA
D131: HERO | S131: ATLÁNTICO - GALAPA
D132: HIDROAMERICA | S132: ATLÁNTICO - JUAN DE ACOSTA
D133: HIGER | S133: ATLÁNTICO - LURUACO
D134: HINO | S134: ATLÁNTICO - MALAMBO
D135: HONDA | S135: ATLÁNTICO - MANATÍ
D136: HONGXING | S136: ATLÁNTICO - PALMAR DE VARELA
D137: HONLEI | S137: ATLÁNTICO - PIOJÓ
D138: HUALIN | S138: ATLÁNTICO - POLONUEVO
D139: HUANGHAI | S139: ATLÁNTICO - PONEDERA
D140: HUMMER | S140: ATLÁNTICO - PUERTO COLOMBIA
D141: HUSQVARNA | S141: ATLÁNTICO - REPELÓN
D142: HYOSUNG | S142: ATLÁNTICO - SABANAGRANDE
D143: HYUNDAI | S143: ATLÁNTICO - SABANALARGA
D144: IFA | S144: ATLÁNTICO - SANTA LUCÍA
D145: IMCOLTRANS | S145: ATLÁNTICO - SANTO TOMÁS
D146: IMECOL | S146: ATLÁNTICO - SOLEDAD
D147: IMEVA | S147: ATLÁNTICO - SUAN
D148: INCA FRUEHAUF | S148: ATLÁNTICO - TUBARÁ
D149: INCALLES COLOMBIA | S149: ATLÁNTICO - USIACURÍ
D150: INCOLTANQUES | S150: BOGOTÁ, D.C. - BOGOTÁ, D.C.
D151: INCOLTRAILERS | S151: BOLÍVAR - CARTAGENA DE INDIAS
D152: INDUCAM JC | S152: BOLÍVAR - ACHÍ
D153: INDUCAPI | S153: BOLÍVAR - ALTOS DEL ROSARIO
D154: INDUGWEST | S154: BOLÍVAR - ARENAL
D155: INDUREMOLQUES | S155: BOLÍVAR - ARJONA
D156: INDUROC | S156: BOLÍVAR - ARROYOHONDO
D157: INDUSTRIAS BERMEO | S157: BOLÍVAR - BARRANCO DE LOBA
D158: INDUVOLCOS | S158: BOLÍVAR - CALAMAR
D159: INFINITI | S159: BOLÍVAR - CANTAGALLO
D160: INOX MEC | S160: BOLÍVAR - CICUCO
D161: INSAR | S161: BOLÍVAR - CÓRDOBA
D162: INTERNATIONAL | S162: BOLÍVAR - CLEMENCIA
D163: INTRAILER | S163: BOLÍVAR - EL CARMEN DE BOLÍVAR
D164: ISUZU | S164: BOLÍVAR - EL GUAMO
D165: ITANREM | S165: BOLÍVAR - EL PEÑÓN
D166: IVECO | S166: BOLÍVAR - HATILLO DE LOBA
D167: JAC | S167: BOLÍVAR - MAGANGUÉ
D168: JAGUAR | S168: BOLÍVAR - MAHATES
D169: JAWA | S169: BOLÍVAR - MARGARITA
D170: JEEP | S170: BOLÍVAR - MARÍA LA BAJA
D171: JIALING | S171: BOLÍVAR - MONTECRISTO
D172: JINBEI | S172: BOLÍVAR - MOMPÓS
D173: JINCHENG | S173: BOLÍVAR - MORALES
D174: JINFENG | S174: BOLÍVAR - NOROSÍ
D175: JINGLONG | S175: BOLÍVAR - PINILLOS
D176: JMC | S176: BOLÍVAR - REGIDOR
D177: JOYLONG | S177: BOLÍVAR - RÍO VIEJO
D178: KAMAZ | S178: BOLÍVAR - SAN CRISTÓBAL
D179: KAWASAKI | S179: BOLÍVAR - SAN ESTANISLAO
D180: KAYAK | S180: BOLÍVAR - SAN FERNANDO
D181: KAZUKI | S181: BOLÍVAR - SAN JACINTO
D182: KEEWAY | S182: BOLÍVAR - SAN JACINTO DEL CAUCA
D183: KENWORTH | S183: BOLÍVAR - SAN JUAN NEPOMUCENO
D184: KIA | S184: BOLÍVAR - SAN MARTÍN DE LOBA
D185: KRAZ | S185: BOLÍVAR - SAN PABLO
D186: KTM | S186: BOLÍVAR - SANTA CATALINA
D187: KYMCO | S187: BOLÍVAR - SANTA ROSA
D188: KYOTO | S188: BOLÍVAR - SANTA ROSA DEL SUR
D189: LA QUINTA RUEDA | S189: BOLÍVAR - SIMITÍ
D190: LADA | S190: BOLÍVAR - SOPLAVIENTO
D191: LANCIA | S191: BOLÍVAR - TALAIGUA NUEVO
D192: LAND ROVER | S192: BOLÍVAR - TIQUISIO
D193: LANDWIND | S193: BOLÍVAR - TURBACO
D194: LEXUS | S194: BOLÍVAR - TURBANÁ
D195: LIFAN | S195: BOLÍVAR - VILLANUEVA
D196: LINCOLN | S196: BOLÍVAR - ZAMBRANO
D197: LML | S197: BOYACÁ - TUNJA
D198: LMX | S198: BOYACÁ - ALMEIDA
D199: LOHR | S199: BOYACÁ - AQUITANIA
D200: MACK | S200: BOYACÁ - ARCABUCO
... 801 more rows

Sheet ConsolidadoAmparos (hidden)
A1: idAmparo | B1: Amparo | C1: Combinación | D1: Tipo de Vehículo | E1: Grupo | F1: Cobertura | G1: Antigüedad (incluido el límite superior) | H1: Axa - Colpatria | I1: La Previsora | J1: Mapfre
A2: 1 | B2: Responsabilidad Civil | C2: 1 | D2: Motocicletas | E2: Inspección permitida | F2: 150000000 | G2: 0 a 2 años | H2: 21166.81106 | I2: 22685 | J2: 71000
A3: 1 | B3: Responsabilidad Civil | C3: 2 | D3: Motocicletas | E3: Inspección permitida | F3: 150000000 | G3: 2 a 4 años | H3: 21864.61802 | I3: 23365.55 | J3: 71000
A4: 1 | B4: Responsabilidad Civil | C4: 3 | D4: Motocicletas | E4: Inspección permitida | F4: 150000000 | G4: 4 a 6 años | H4: 22562.42497 | I4: 24066.5165 | J4: 71000
A5: 1 | B5: Responsabilidad Civil | C5: 4 | D5: Motocicletas | E5: Inspección permitida | F5: 150000000 | G5: 6 a 8 años | H5: 23260.23193 | I5: 24788.512 | J5: 71000
A6: 1 | B6: Responsabilidad Civil | C6: 5 | D6: Motocicletas | E6: Inspección permitida | F6: 150000000 | G6: 8 a 10 años | H6: 23958.03889 | I6: 25532.16735 | J6: 71000
A7: 1 | B7: Responsabilidad Civil | C7: 6 | D7: Motocicletas | E7: Inspección permitida | F7: 150000000 | G7: 10 a 12 años | H7: 24655.84585 | I7: 26298.13238 | J7: 71000
A8: 1 | B8: Responsabilidad Civil | C8: 7 | D8: Motocicletas | E8: Inspección permitida | F8: 150000000 | G8: 12 años en adelante | H8: 25353.65281 | I8: 27087.07635 | J8: 71000
A9: 1 | B9: Responsabilidad Civil | C9: 8 | D9: Motocicletas | E9: Inspección permitida | F9: 200000000 | G9: 0 a 2 años | H9: 29842.78468 | I9: 30245 | J9: 82000
A10: 1 | B10: Responsabilidad Civil | C10: 9 | D10: Motocicletas | E10: Inspección permitida | F10: 200000000 | G10: 2 a 4 años | H10: 30826.61274 | I10: 31152.35 | J10: 82000
A11: 1 | B11: Responsabilidad Civil | C11: 10 | D11: Motocicletas | E11: Inspección permitida | F11: 200000000 | G11: 4 a 6 años | H11: 31810.44081 | I11: 32086.9205 | J11: 82000
A12: 1 | B12: Responsabilidad Civil | C12: 11 | D12: Motocicletas | E12: Inspección permitida | F12: 200000000 | G12: 6 a 8 años | H12: 32794.26887 | I12: 33049.52812 | J12: 82000
A13: 1 | B13: Responsabilidad Civil | C13: 12 | D13: Motocicletas | E13: Inspección permitida | F13: 200000000 | G13: 8 a 10 años | H13: 33778.09694 | I13: 34041.01396 | J13: 82000
A14: 1 | B14: Responsabilidad Civil | C14: 13 | D14: Motocicletas | E14: Inspección permitida | F14: 200000000 | G14: 10 a 12 años | H14: 34761.92501 | I14: 35062.24438 | J14: 82000
A15: 1 | B15: Responsabilidad Civil | C15: 14 | D15: Motocicletas | E15: Inspección permitida | F15: 200000000 | G15: 12 años en adelante | H15: 35745.75307 | I15: 36114.11171 | J15: 82000
A16: 1 | B16: Responsabilidad Civil | C16: 15 | D16: Motocicletas | E16: Inspección permitida | F16: 250000000 | G16: 0 a 2 años | H16: 38874.55155 | I16: 37808 | J16: 90000
A17: 1 | B17: Responsabilidad Civil | C17: 16 | D17: Motocicletas | E17: Inspección permitida | F17: 250000000 | G17: 2 a 4 años | H17: 40156.13017 | I17: 38942.24 | J17: 90000
A18: 1 | B18: Responsabilidad Civil | C18: 17 | D18: Motocicletas | E18: Inspección permitida | F18: 250000000 | G18: 4 a 6 años | H18: 41437.70879 | I18: 40110.5072 | J18: 90000
A19: 1 | B19: Responsabilidad Civil | C19: 18 | D19: Motocicletas | E19: Inspección permitida | F19: 250000000 | G19: 6 a 8 años | H19: 42719.28741 | I19: 41313.82242 | J19: 90000
A20: 1 | B20: Responsabilidad Civil | C20: 19 | D20: Motocicletas | E20: Inspección permitida | F20: 250000000 | G20: 8 a 10 años | H20: 44000.86604 | I20: 42553.23709 | J20: 90000
A21: 1 | B21: Responsabilidad Civil | C21: 20 | D21: Motocicletas | E21: Inspección permitida | F21: 250000000 | G21: 10 a 12 años | H21: 45282.44466 | I21: 43829.8342 | J21: 90000
A22: 1 | B22: Responsabilidad Civil | C22: 21 | D22: Motocicletas | E22: Inspección permitida | F22: 250000000 | G22: 12 años en adelante | H22: 46564.02328 | I22: 45144.72923 | J22: 90000
A23: 1 | B23: Responsabilidad Civil | C23: 22 | D23: Motocicletas | E23: Inspección permitida | F23: 300000000 | G23: 0 a 2 años | H23: 48189.85173 | I23: 40235 | J23: 97000
A24: 1 | B24: Responsabilidad Civil | C24: 23 | D24: Motocicletas | E24: Inspección permitida | F24: 300000000 | G24: 2 a 4 años | H24: 49778.52817 | I24: 41442.05 | J24: 97000
A25: 1 | B25: Responsabilidad Civil | C25: 24 | D25: Motocicletas | E25: Inspección permitida | F25: 300000000 | G25: 4 a 6 años | H25: 51367.2046 | I25: 42685.3115 | J25: 97000
A26: 1 | B26: Responsabilidad Civil | C26: 25 | D26: Motocicletas | E26: Inspección permitida | F26: 300000000 | G26: 6 a 8 años | H26: 52955.88103 | I26: 43965.87085 | J26: 97000
A27: 1 | B27: Responsabilidad Civil | C27: 26 | D27: Motocicletas | E27: Inspección permitida | F27: 300000000 | G27: 8 a 10 años | H27: 54544.55746 | I27: 45284.84697 | J27: 97000
A28: 1 | B28: Responsabilidad Civil | C28: 27 | D28: Motocicletas | E28: Inspección permitida | F28: 300000000 | G28: 10 a 12 años | H28: 56133.23389 | I28: 46643.39238 | J28: 97000
A29: 1 | B29: Responsabilidad Civil | C29: 28 | D29: Motocicletas | E29: Inspección permitida | F29: 300000000 | G29: 12 años en adelante | H29: 57721.91032 | I29: 48042.69415 | J29: 97000
A30: 1 | B30: Responsabilidad Civil | C30: 29 | D30: Motocicletas | E30: Inspección permitida | F30: 350000000 | G30: 0 a 2 años | H30: 57740.93829 | I30: 46940.83333 | J30: 100000
A31: 1 | B31: Responsabilidad Civil | C31: 30 | D31: Motocicletas | E31: Inspección permitida | F31: 350000000 | G31: 2 a 4 años | H31: 59644.48571 | I31: 48349.05833 | J31: 100000
A32: 1 | B32: Responsabilidad Civil | C32: 31 | D32: Motocicletas | E32: Inspección permitida | F32: 350000000 | G32: 4 a 6 años | H32: 61548.03312 | I32: 49799.53008 | J32: 100000
A33: 1 | B33: Responsabilidad Civil | C33: 32 | D33: Motocicletas | E33: Inspección permitida | F33: 350000000 | G33: 6 a 8 años | H33: 63451.58054 | I33: 51293.51599 | J33: 100000
A34: 1 | B34: Responsabilidad Civil | C34: 33 | D34: Motocicletas | E34: Inspección permitida | F34: 350000000 | G34: 8 a 10 años | H34: 65355.12795 | I34: 52832.32147 | J34: 100000
A35: 1 | B35: Responsabilidad Civil | C35: 34 | D35: Motocicletas | E35: Inspección permitida | F35: 350000000 | G35: 10 a 12 años | H35: 67258.67537 | I35: 54417.29111 | J35: 100000
A36: 1 | B36: Responsabilidad Civil | C36: 35 | D36: Motocicletas | E36: Inspección permitida | F36: 350000000 | G36: 12 años en adelante | H36: 69162.22279 | I36: 56049.80984 | J36: 100000
A37: 1 | B37: Responsabilidad Civil | C37: 36 | D37: Motocicletas | E37: Inspección permitida | F37: 400000000 | G37: 0 a 2 años | H37: 67493.87551 | I37: 49145.41667 | J37: 103000
A38: 1 | B38: Responsabilidad Civil | C38: 37 | D38: Motocicletas | E38: Inspección permitida | F38: 400000000 | G38: 2 a 4 años | H38: 69718.94833 | I38: 50619.77917 | J38: 103000
A39: 1 | B39: Responsabilidad Civil | C39: 38 | D39: Motocicletas | E39: Inspección permitida | F39: 400000000 | G39: 4 a 6 años | H39: 71944.02115 | I39: 52138.37254 | J39: 103000
A40: 1 | B40: Responsabilidad Civil | C40: 39 | D40: Motocicletas | E40: Inspección permitida | F40: 400000000 | G40: 6 a 8 años | H40: 74169.09396 | I40: 53702.52372 | J40: 103000
A41: 1 | B41: Responsabilidad Civil | C41: 40 | D41: Motocicletas | E41: Inspección permitida | F41: 400000000 | G41: 8 a 10 años | H41: 76394.16678 | I41: 55313.59943 | J41: 103000
A42: 1 | B42: Responsabilidad Civil | C42: 41 | D42: Motocicletas | E42: Inspección permitida | F42: 400000000 | G42: 10 a 12 años | H42: 78619.2396 | I42: 56973.00741 | J42: 103000
A43: 1 | B43: Responsabilidad Civil | C43: 42 | D43: Motocicletas | E43: Inspección permitida | F43: 400000000 | G43: 12 años en adelante | H43: 80844.31242 | I43: 58682.19763 | J43: 103000
A44: 1 | B44: Responsabilidad Civil | C44: 43 | D44: Motocicletas | E44: Inspección permitida | F44: 450000000 | G44: 0 a 2 años | H44: 77423.28969 | I44: 51350 | J44: 107000
A45: 1 | B45: Responsabilidad Civil | C45: 44 | D45: Motocicletas | E45: Inspección permitida | F45: 450000000 | G45: 2 a 4 años | H45: 79975.70583 | I45: 52890.5 | J45: 107000
A46: 1 | B46: Responsabilidad Civil | C46: 45 | D46: Motocicletas | E46: Inspección permitida | F46: 450000000 | G46: 4 a 6 años | H46: 82528.12197 | I46: 54477.215 | J46: 107000
A47: 1 | B47: Responsabilidad Civil | C47: 46 | D47: Motocicletas | E47: Inspección permitida | F47: 450000000 | G47: 6 a 8 años | H47: 85080.53812 | I47: 56111.53145 | J47: 107000
A48: 1 | B48: Responsabilidad Civil | C48: 47 | D48: Motocicletas | E48: Inspección permitida | F48: 450000000 | G48: 8 a 10 años | H48: 87632.95426 | I48: 57794.87739 | J48: 107000
A49: 1 | B49: Responsabilidad Civil | C49: 48 | D49: Motocicletas | E49: Inspección permitida | F49: 450000000 | G49: 10 a 12 años | H49: 90185.3704 | I49: 59528.72372 | J49: 107000
A50: 1 | B50: Responsabilidad Civil | C50: 49 | D50: Motocicletas | E50: Inspección permitida | F50: 450000000 | G50: 12 años en adelante | H50: 92737.78655 | I50: 61314.58543 | J50: 107000
A51: 1 | B51: Responsabilidad Civil | C51: 50 | D51: Motocicletas | E51: Inspección permitida | F51: 500000000 | G51: 0 a 2 años | H51: 87509.48579 | I51: 54708.33333 | J51: 110000
A52: 1 | B52: Responsabilidad Civil | C52: 51 | D52: Motocicletas | E52: Inspección permitida | F52: 500000000 | G52: 2 a 4 años | H52: 90394.41389 | I52: 56349.58333 | J52: 110000
A53: 1 | B53: Responsabilidad Civil | C53: 52 | D53: Motocicletas | E53: Inspección permitida | F53: 500000000 | G53: 4 a 6 años | H53: 93279.342 | I53: 58040.07083 | J53: 110000
A54: 1 | B54: Responsabilidad Civil | C54: 53 | D54: Motocicletas | E54: Inspección permitida | F54: 500000000 | G54: 6 a 8 años | H54: 96164.2701 | I54: 59781.27296 | J54: 110000
A55: 1 | B55: Responsabilidad Civil | C55: 54 | D55: Motocicletas | E55: Inspección permitida | F55: 500000000 | G55: 8 a 10 años | H55: 99049.1982 | I55: 61574.71115 | J55: 110000
A56: 1 | B56: Responsabilidad Civil | C56: 55 | D56: Motocicletas | E56: Inspección permitida | F56: 500000000 | G56: 10 a 12 años | H56: 101934.1263 | I56: 63421.95248 | J56: 110000
A57: 1 | B57: Responsabilidad Civil | C57: 56 | D57: Motocicletas | E57: Inspección permitida | F57: 500000000 | G57: 12 años en adelante | H57: 104819.0544 | I57: 65324.61106 | J57: 110000
A58: 1 | B58: Responsabilidad Civil | C58: 57 | D58: Motocicletas | E58: Inspección no permitida | F58: 150000000 | G58: 0 a 2 años | H58: 21166.81106 | I58: 22685 | J58: 71000
A59: 1 | B59: Responsabilidad Civil | C59: 58 | D59: Motocicletas | E59: Inspección no permitida | F59: 150000000 | G59: 2 a 4 años | H59: 21864.61802 | I59: 23365.55 | J59: 71000
A60: 1 | B60: Responsabilidad Civil | C60: 59 | D60: Motocicletas | E60: Inspección no permitida | F60: 150000000 | G60: 4 a 6 años | H60: 22562.42497 | I60: 24066.5165 | J60: 71000
A61: 1 | B61: Responsabilidad Civil | C61: 60 | D61: Motocicletas | E61: Inspección no permitida | F61: 150000000 | G61: 6 a 8 años | H61: 23260.23193 | I61: 24788.512 | J61: 71000
A62: 1 | B62: Responsabilidad Civil | C62: 61 | D62: Motocicletas | E62: Inspección no permitida | F62: 150000000 | G62: 8 a 10 años | H62: 23958.03889 | I62: 25532.16735 | J62: 71000
A63: 1 | B63: Responsabilidad Civil | C63: 62 | D63: Motocicletas | E63: Inspección no permitida | F63: 150000000 | G63: 10 a 12 años | H63: 24655.84585 | I63: 26298.13238 | J63: 71000
A64: 1 | B64: Responsabilidad Civil | C64: 63 | D64: Motocicletas | E64: Inspección no permitida | F64: 150000000 | G64: 12 años en adelante | H64: 25353.65281 | I64: 27087.07635 | J64: 71000
A65: 1 | B65: Responsabilidad Civil | C65: 64 | D65: Motocicletas | E65: Inspección no permitida | F65: 200000000 | G65: 0 a 2 años | H65: 29842.78468 | I65: 30245 | J65: 82000
A66: 1 | B66: Responsabilidad Civil | C66: 65 | D66: Motocicletas | E66: Inspección no permitida | F66: 200000000 | G66: 2 a 4 años | H66: 30826.61274 | I66: 31152.35 | J66: 82000
A67: 1 | B67: Responsabilidad Civil | C67: 66 | D67: Motocicletas | E67: Inspección no permitida | F67: 200000000 | G67: 4 a 6 años | H67: 31810.44081 | I67: 32086.9205 | J67: 82000
A68: 1 | B68: Responsabilidad Civil | C68: 67 | D68: Motocicletas | E68: Inspección no permitida | F68: 200000000 | G68: 6 a 8 años | H68: 32794.26887 | I68: 33049.52812 | J68: 82000
A69: 1 | B69: Responsabilidad Civil | C69: 68 | D69: Motocicletas | E69: Inspección no permitida | F69: 200000000 | G69: 8 a 10 años | H69: 33778.09694 | I69: 34041.01396 | J69: 82000
A70: 1 | B70: Responsabilidad Civil | C70: 69 | D70: Motocicletas | E70: Inspección no permitida | F70: 200000000 | G70: 10 a 12 años | H70: 34761.92501 | I70: 35062.24438 | J70: 82000
A71: 1 | B71: Responsabilidad Civil | C71: 70 | D71: Motocicletas | E71: Inspección no permitida | F71: 200000000 | G71: 12 años en adelante | H71: 35745.75307 | I71: 36114.11171 | J71: 82000
A72: 1 | B72: Responsabilidad Civil | C72: 71 | D72: Motocicletas | E72: Inspección no permitida | F72: 250000000 | G72: 0 a 2 años | H72: 38874.55155 | I72: 37808 | J72: 90000
A73: 1 | B73: Responsabilidad Civil | C73: 72 | D73: Motocicletas | E73: Inspección no permitida | F73: 250000000 | G73: 2 a 4 años | H73: 40156.13017 | I73: 38942.24 | J73: 90000
A74: 1 | B74: Responsabilidad Civil | C74: 73 | D74: Motocicletas | E74: Inspección no permitida | F74: 250000000 | G74: 4 a 6 años | H74: 41437.70879 | I74: 40110.5072 | J74: 90000
A75: 1 | B75: Responsabilidad Civil | C75: 74 | D75: Motocicletas | E75: Inspección no permitida | F75: 250000000 | G75: 6 a 8 años | H75: 42719.28741 | I75: 41313.82242 | J75: 90000
A76: 1 | B76: Responsabilidad Civil | C76: 75 | D76: Motocicletas | E76: Inspección no permitida | F76: 250000000 | G76: 8 a 10 años | H76: 44000.86604 | I76: 42553.23709 | J76: 90000
A77: 1 | B77: Responsabilidad Civil | C77: 76 | D77: Motocicletas | E77: Inspección no permitida | F77: 250000000 | G77: 10 a 12 años | H77: 45282.44466 | I77: 43829.8342 | J77: 90000
A78: 1 | B78: Responsabilidad Civil | C78: 77 | D78: Motocicletas | E78: Inspección no permitida | F78: 250000000 | G78: 12 años en adelante | H78: 46564.02328 | I78: 45144.72923 | J78: 90000
A79: 1 | B79: Responsabilidad Civil | C79: 78 | D79: Motocicletas | E79: Inspección no permitida | F79: 300000000 | G79: 0 a 2 años | H79: 48189.85173 | I79: 40235 | J79: 97000
A80: 1 | B80: Responsabilidad Civil | C80: 79 | D80: Motocicletas | E80: Inspección no permitida | F80: 300000000 | G80: 2 a 4 años | H80: 49778.52817 | I80: 41442.05 | J80: 97000
A81: 1 | B81: Responsabilidad Civil | C81: 80 | D81: Motocicletas | E81: Inspección no permitida | F81: 300000000 | G81: 4 a 6 años | H81: 51367.2046 | I81: 42685.3115 | J81: 97000
A82: 1 | B82: Responsabilidad Civil | C82: 81 | D82: Motocicletas | E82: Inspección no permitida | F82: 300000000 | G82: 6 a 8 años | H82: 52955.88103 | I82: 43965.87085 | J82: 97000
A83: 1 | B83: Responsabilidad Civil | C83: 82 | D83: Motocicletas | E83: Inspección no permitida | F83: 300000000 | G83: 8 a 10 años | H83: 54544.55746 | I83: 45284.84697 | J83: 97000
A84: 1 | B84: Responsabilidad Civil | C84: 83 | D84: Motocicletas | E84: Inspección no permitida | F84: 300000000 | G84: 10 a 12 años | H84: 56133.23389 | I84: 46643.39238 | J84: 97000
A85: 1 | B85: Responsabilidad Civil | C85: 84 | D85: Motocicletas | E85: Inspección no permitida | F85: 300000000 | G85: 12 años en adelante | H85: 57721.91032 | I85: 48042.69415 | J85: 97000
A86: 1 | B86: Responsabilidad Civil | C86: 85 | D86: Motocicletas | E86: Inspección no permitida | F86: 350000000 | G86: 0 a 2 años | H86: 57740.93829 | I86: 46940.83333 | J86: 100000
A87: 1 | B87: Responsabilidad Civil | C87: 86 | D87: Motocicletas | E87: Inspección no permitida | F87: 350000000 | G87: 2 a 4 años | H87: 59644.48571 | I87: 48349.05833 | J87: 100000
A88: 1 | B88: Responsabilidad Civil | C88: 87 | D88: Motocicletas | E88: Inspección no permitida | F88: 350000000 | G88: 4 a 6 años | H88: 61548.03312 | I88: 49799.53008 | J88: 100000
A89: 1 | B89: Responsabilidad Civil | C89: 88 | D89: Motocicletas | E89: Inspección no permitida | F89: 350000000 | G89: 6 a 8 años | H89: 63451.58054 | I89: 51293.51599 | J89: 100000
A90: 1 | B90: Responsabilidad Civil | C90: 89 | D90: Motocicletas | E90: Inspección no permitida | F90: 350000000 | G90: 8 a 10 años | H90: 65355.12795 | I90: 52832.32147 | J90: 100000
A91: 1 | B91: Responsabilidad Civil | C91: 90 | D91: Motocicletas | E91: Inspección no permitida | F91: 350000000 | G91: 10 a 12 años | H91: 67258.67537 | I91: 54417.29111 | J91: 100000
A92: 1 | B92: Responsabilidad Civil | C92: 91 | D92: Motocicletas | E92: Inspección no permitida | F92: 350000000 | G92: 12 años en adelante | H92: 69162.22279 | I92: 56049.80984 | J92: 100000
A93: 1 | B93: Responsabilidad Civil | C93: 92 | D93: Motocicletas | E93: Inspección no permitida | F93: 400000000 | G93: 0 a 2 años | H93: 67493.87551 | I93: 49145.41667 | J93: 103000
A94: 1 | B94: Responsabilidad Civil | C94: 93 | D94: Motocicletas | E94: Inspección no permitida | F94: 400000000 | G94: 2 a 4 años | H94: 69718.94833 | I94: 50619.77917 | J94: 103000
A95: 1 | B95: Responsabilidad Civil | C95: 94 | D95: Motocicletas | E95: Inspección no permitida | F95: 400000000 | G95: 4 a 6 años | H95: 71944.02115 | I95: 52138.37254 | J95: 103000
A96: 1 | B96: Responsabilidad Civil | C96: 95 | D96: Motocicletas | E96: Inspección no permitida | F96: 400000000 | G96: 6 a 8 años | H96: 74169.09396 | I96: 53702.52372 | J96: 103000
A97: 1 | B97: Responsabilidad Civil | C97: 96 | D97: Motocicletas | E97: Inspección no permitida | F97: 400000000 | G97: 8 a 10 años | H97: 76394.16678 | I97: 55313.59943 | J97: 103000
A98: 1 | B98: Responsabilidad Civil | C98: 97 | D98: Motocicletas | E98: Inspección no permitida | F98: 400000000 | G98: 10 a 12 años | H98: 78619.2396 | I98: 56973.00741 | J98: 103000
A99: 1 | B99: Responsabilidad Civil | C99: 98 | D99: Motocicletas | E99: Inspección no permitida | F99: 400000000 | G99: 12 años en adelante | H99: 80844.31242 | I99: 58682.19763 | J99: 103000
A100: 1 | B100: Responsabilidad Civil | C100: 99 | D100: Motocicletas | E100: Inspección no permitida | F100: 450000000 | G100: 0 a 2 años | H100: 77423.28969 | I100: 51350 | J100: 107000
A101: 1 | B101: Responsabilidad Civil | C101: 100 | D101: Motocicletas | E101: Inspección no permitida | F101: 450000000 | G101: 2 a 4 años | H101: 79975.70583 | I101: 52890.5 | J101: 107000
A102: 1 | B102: Responsabilidad Civil | C102: 101 | D102: Motocicletas | E102: Inspección no permitida | F102: 450000000 | G102: 4 a 6 años | H102: 82528.12197 | I102: 54477.215 | J102: 107000
A103: 1 | B103: Responsabilidad Civil | C103: 102 | D103: Motocicletas | E103: Inspección no permitida | F103: 450000000 | G103: 6 a 8 años | H103: 85080.53812 | I103: 56111.53145 | J103: 107000
A104: 1 | B104: Responsabilidad Civil | C104: 103 | D104: Motocicletas | E104: Inspección no permitida | F104: 450000000 | G104: 8 a 10 años | H104: 87632.95426 | I104: 57794.87739 | J104: 107000
A105: 1 | B105: Responsabilidad Civil | C105: 104 | D105: Motocicletas | E105: Inspección no permitida | F105: 450000000 | G105: 10 a 12 años | H105: 90185.3704 | I105: 59528.72372 | J105: 107000
A106: 1 | B106: Responsabilidad Civil | C106: 105 | D106: Motocicletas | E106: Inspección no permitida | F106: 450000000 | G106: 12 años en adelante | H106: 92737.78655 | I106: 61314.58543 | J106: 107000
A107: 1 | B107: Responsabilidad Civil | C107: 106 | D107: Motocicletas | E107: Inspección no permitida | F107: 500000000 | G107: 0 a 2 años | H107: 87509.48579 | I107: 54708.33333 | J107: 110000
A108: 1 | B108: Responsabilidad Civil | C108: 107 | D108: Motocicletas | E108: Inspección no permitida | F108: 500000000 | G108: 2 a 4 años | H108: 90394.41389 | I108: 56349.58333 | J108: 110000
A109: 1 | B109: Responsabilidad Civil | C109: 108 | D109: Motocicletas | E109: Inspección no permitida | F109: 500000000 | G109: 4 a 6 años | H109: 93279.342 | I109: 58040.07083 | J109: 110000
A110: 1 | B110: Responsabilidad Civil | C110: 109 | D110: Motocicletas | E110: Inspección no permitida | F110: 500000000 | G110: 6 a 8 años | H110: 96164.2701 | I110: 59781.27296 | J110: 110000
A111: 1 | B111: Responsabilidad Civil | C111: 110 | D111: Motocicletas | E111: Inspección no permitida | F111: 500000000 | G111: 8 a 10 años | H111: 99049.1982 | I111: 61574.71115 | J111: 110000
A112: 1 | B112: Responsabilidad Civil | C112: 111 | D112: Motocicletas | E112: Inspección no permitida | F112: 500000000 | G112: 10 a 12 años | H112: 101934.1263 | I112: 63421.95248 | J112: 110000
A113: 1 | B113: Responsabilidad Civil | C113: 112 | D113: Motocicletas | E113: Inspección no permitida | F113: 500000000 | G113: 12 años en adelante | H113: 104819.0544 | I113: 65324.61106 | J113: 110000
A114: 1 | B114: Responsabilidad Civil | C114: 113 | D114: Camionetas y camperos | E114: Inspección permitida | F114: 500000000 | G114: 0 a 2 años | H114: 80316.41956 | I114: 111628.7865 | J114: 222600
A115: 1 | B115: Responsabilidad Civil | C115: 114 | D115: Camionetas y camperos | E115: Inspección permitida | F115: 500000000 | G115: 2 a 4 años | H115: 82964.21361 | I115: 114977.6501 | J115: 222600
A116: 1 | B116: Responsabilidad Civil | C116: 115 | D116: Camionetas y camperos | E116: Inspección permitida | F116: 500000000 | G116: 4 a 6 años | H116: 85612.00766 | I116: 118426.9796 | J116: 222600
A117: 1 | B117: Responsabilidad Civil | C117: 116 | D117: Camionetas y camperos | E117: Inspección permitida | F117: 500000000 | G117: 6 a 8 años | H117: 88259.80171 | I117: 121979.789 | J117: 222600
A118: 1 | B118: Responsabilidad Civil | C118: 117 | D118: Camionetas y camperos | E118: Inspección permitida | F118: 500000000 | G118: 8 a 10 años | H118: 90907.59576 | I118: 125639.1827 | J118: 222600
A119: 1 | B119: Responsabilidad Civil | C119: 118 | D119: Camionetas y camperos | E119: Inspección permitida | F119: 500000000 | G119: 10 a 12 años | H119: 93555.38981 | I119: 129408.3581 | J119: 222600
A120: 1 | B120: Responsabilidad Civil | C120: 119 | D120: Camionetas y camperos | E120: Inspección permitida | F120: 500000000 | G120: 12 años en adelante | H120: 96203.18387 | I120: 133290.6089 | J120: 222600
A121: 1 | B121: Responsabilidad Civil | C121: 120 | D121: Camionetas y camperos | E121: Inspección permitida | F121: 1000000000 | G121: 0 a 2 años | H121: 178549.0452 | I121: 200931.3872 | J121: 313200
A122: 1 | B122: Responsabilidad Civil | C122: 121 | D122: Camionetas y camperos | E122: Inspección permitida | F122: 1000000000 | G122: 2 a 4 años | H122: 184435.2775 | I122: 206959.3288 | J122: 313200
A123: 1 | B123: Responsabilidad Civil | C123: 122 | D123: Camionetas y camperos | E123: Inspección permitida | F123: 1000000000 | G123: 4 a 6 años | H123: 190321.5097 | I123: 213168.1087 | J123: 313200
A124: 1 | B124: Responsabilidad Civil | C124: 123 | D124: Camionetas y camperos | E124: Inspección permitida | F124: 1000000000 | G124: 6 a 8 años | H124: 196207.742 | I124: 219563.152 | J124: 313200
A125: 1 | B125: Responsabilidad Civil | C125: 124 | D125: Camionetas y camperos | E125: Inspección permitida | F125: 1000000000 | G125: 8 a 10 años | H125: 202093.9743 | I125: 226150.0465 | J125: 313200
A126: 1 | B126: Responsabilidad Civil | C126: 125 | D126: Camionetas y camperos | E126: Inspección permitida | F126: 1000000000 | G126: 10 a 12 años | H126: 207980.2065 | I126: 232934.5479 | J126: 313200
A127: 1 | B127: Responsabilidad Civil | C127: 126 | D127: Camionetas y camperos | E127: Inspección permitida | F127: 1000000000 | G127: 12 años en adelante | H127: 213866.4388 | I127: 239922.5843 | J127: 313200
A128: 1 | B128: Responsabilidad Civil | C128: 127 | D128: Camionetas y camperos | E128: Inspección permitida | F128: 1500000000 | G128: 0 a 2 años | H128: 283544.0309 | I128: 261210.9319 | J128: 348000
A129: 1 | B129: Responsabilidad Civil | C129: 128 | D129: Camionetas y camperos | E129: Inspección permitida | F129: 1500000000 | G129: 2 a 4 años | H129: 292891.6363 | I129: 269047.2599 | J129: 348000
A130: 1 | B130: Responsabilidad Civil | C130: 129 | D130: Camionetas y camperos | E130: Inspección permitida | F130: 1500000000 | G130: 4 a 6 años | H130: 302239.2417 | I130: 277118.6777 | J130: 348000
A131: 1 | B131: Responsabilidad Civil | C131: 130 | D131: Camionetas y camperos | E131: Inspección permitida | F131: 1500000000 | G131: 6 a 8 años | H131: 311586.8472 | I131: 285432.238 | J131: 348000
A132: 1 | B132: Responsabilidad Civil | C132: 131 | D132: Camionetas y camperos | E132: Inspección permitida | F132: 1500000000 | G132: 8 a 10 años | H132: 320934.4526 | I132: 293995.2051 | J132: 348000
A133: 1 | B133: Responsabilidad Civil | C133: 132 | D133: Camionetas y camperos | E133: Inspección permitida | F133: 1500000000 | G133: 10 a 12 años | H133: 330282.058 | I133: 302815.0613 | J133: 348000
A134: 1 | B134: Responsabilidad Civil | C134: 133 | D134: Camionetas y camperos | E134: Inspección permitida | F134: 1500000000 | G134: 12 años en adelante | H134: 339629.6634 | I134: 311899.5131 | J134: 348000
A135: 1 | B135: Responsabilidad Civil | C135: 134 | D135: Camionetas y camperos | E135: Inspección permitida | F135: 2000000000 | G135: 0 a 2 años | H135: 392930.5026 | I135: 267412.5523 | J135: 382800
A136: 1 | B136: Responsabilidad Civil | C136: 135 | D136: Camionetas y camperos | E136: Inspección permitida | F136: 2000000000 | G136: 2 a 4 años | H136: 405884.2555 | I136: 275434.9289 | J136: 382800
A137: 1 | B137: Responsabilidad Civil | C137: 136 | D137: Camionetas y camperos | E137: Inspección permitida | F137: 2000000000 | G137: 4 a 6 años | H137: 418838.0083 | I137: 283697.9768 | J137: 382800
A138: 1 | B138: Responsabilidad Civil | C138: 137 | D138: Camionetas y camperos | E138: Inspección permitida | F138: 2000000000 | G138: 6 a 8 años | H138: 431791.7611 | I138: 292208.9161 | J138: 382800
A139: 1 | B139: Responsabilidad Civil | C139: 138 | D139: Camionetas y camperos | E139: Inspección permitida | F139: 2000000000 | G139: 8 a 10 años | H139: 444745.514 | I139: 300975.1836 | J139: 382800
A140: 1 | B140: Responsabilidad Civil | C140: 139 | D140: Camionetas y camperos | E140: Inspección permitida | F140: 2000000000 | G140: 10 a 12 años | H140: 457699.2668 | I140: 310004.4391 | J140: 382800
A141: 1 | B141: Responsabilidad Civil | C141: 140 | D141: Camionetas y camperos | E141: Inspección permitida | F141: 2000000000 | G141: 12 años en adelante | H141: 470653.0196 | I141: 319304.5722 | J141: 382800
A142: 1 | B142: Responsabilidad Civil | C142: 141 | D142: Camionetas y camperos | E142: Inspección permitida | F142: 2500000000 | G142: 0 a 2 años | H142: 505582.4535 | I142: 320894.9813 | J142: 403500
A143: 1 | B143: Responsabilidad Civil | C143: 142 | D143: Camionetas y camperos | E143: Inspección permitida | F143: 2500000000 | G143: 2 a 4 años | H143: 522250.007 | I143: 330521.8308 | J143: 403500
A144: 1 | B144: Responsabilidad Civil | C144: 143 | D144: Camionetas y camperos | E144: Inspección permitida | F144: 2500000000 | G144: 4 a 6 años | H144: 538917.5604 | I144: 340437.4857 | J144: 403500
A145: 1 | B145: Responsabilidad Civil | C145: 144 | D145: Camionetas y camperos | E145: Inspección permitida | F145: 2500000000 | G145: 6 a 8 años | H145: 555585.1138 | I145: 350650.6103 | J145: 403500
A146: 1 | B146: Responsabilidad Civil | C146: 145 | D146: Camionetas y camperos | E146: Inspección permitida | F146: 2500000000 | G146: 8 a 10 años | H146: 572252.6672 | I146: 361170.1286 | J146: 403500
A147: 1 | B147: Responsabilidad Civil | C147: 146 | D147: Camionetas y camperos | E147: Inspección permitida | F147: 2500000000 | G147: 10 a 12 años | H147: 588920.2206 | I147: 372005.2324 | J147: 403500
A148: 1 | B148: Responsabilidad Civil | C148: 147 | D148: Camionetas y camperos | E148: Inspección permitida | F148: 2500000000 | G148: 12 años en adelante | H148: 605587.774 | I148: 383165.3894 | J148: 403500
A149: 1 | B149: Responsabilidad Civil | C149: 148 | D149: Camionetas y camperos | E149: Inspección permitida | F149: 3000000000 | G149: 0 a 2 años | H149: 620836.6801 | I149: 374377.4103 | J149: 417600
A150: 1 | B150: Responsabilidad Civil | C150: 149 | D150: Camionetas y camperos | E150: Inspección permitida | F150: 3000000000 | G150: 2 a 4 años | H150: 641303.8234 | I150: 385608.7326 | J150: 417600
A151: 1 | B151: Responsabilidad Civil | C151: 150 | D151: Camionetas y camperos | E151: Inspección permitida | F151: 3000000000 | G151: 4 a 6 años | H151: 661770.9667 | I151: 397176.9946 | J151: 417600
A152: 1 | B152: Responsabilidad Civil | C152: 151 | D152: Camionetas y camperos | E152: Inspección permitida | F152: 3000000000 | G152: 6 a 8 años | H152: 682238.11 | I152: 409092.3045 | J152: 417600
A153: 1 | B153: Responsabilidad Civil | C153: 152 | D153: Camionetas y camperos | E153: Inspección permitida | F153: 3000000000 | G153: 8 a 10 años | H153: 702705.2533 | I153: 421365.0736 | J153: 417600
A154: 1 | B154: Responsabilidad Civil | C154: 153 | D154: Camionetas y camperos | E154: Inspección permitida | F154: 3000000000 | G154: 10 a 12 años | H154: 723172.3966 | I154: 434006.0258 | J154: 417600
A155: 1 | B155: Responsabilidad Civil | C155: 154 | D155: Camionetas y camperos | E155: Inspección permitida | F155: 3000000000 | G155: 12 años en adelante | H155: 743639.5399 | I155: 447026.2066 | J155: 417600
A156: 1 | B156: Responsabilidad Civil | C156: 155 | D156: Camionetas y camperos | E156: Inspección permitida | F156: 3500000000 | G156: 0 a 2 años | H156: 738254.9598 | I156: 427859.8393 | J156: 424500
A157: 1 | B157: Responsabilidad Civil | C157: 156 | D157: Camionetas y camperos | E157: Inspección permitida | F157: 3500000000 | G157: 2 a 4 años | H157: 762593.0354 | I157: 440695.6345 | J157: 424500
A158: 1 | B158: Responsabilidad Civil | C158: 157 | D158: Camionetas y camperos | E158: Inspección permitida | F158: 3500000000 | G158: 4 a 6 años | H158: 786931.111 | I158: 453916.5035 | J158: 424500
A159: 1 | B159: Responsabilidad Civil | C159: 158 | D159: Camionetas y camperos | E159: Inspección permitida | F159: 3500000000 | G159: 6 a 8 años | H159: 811269.1865 | I159: 467533.9987 | J159: 424500
A160: 1 | B160: Responsabilidad Civil | C160: 159 | D160: Camionetas y camperos | E160: Inspección permitida | F160: 3500000000 | G160: 8 a 10 años | H160: 835607.2621 | I160: 481560.0186 | J160: 424500
A161: 1 | B161: Responsabilidad Civil | C161: 160 | D161: Camionetas y camperos | E161: Inspección permitida | F161: 3500000000 | G161: 10 a 12 años | H161: 859945.3377 | I161: 496006.8192 | J161: 424500
A162: 1 | B162: Responsabilidad Civil | C162: 161 | D162: Camionetas y camperos | E162: Inspección permitida | F162: 3500000000 | G162: 12 años en adelante | H162: 884283.4133 | I162: 510887.0237 | J162: 424500
A163: 1 | B163: Responsabilidad Civil | C163: 162 | D163: Camionetas y camperos | E163: Inspección permitida | F163: 4000000000 | G163: 0 a 2 años | H163: 857525.8297 | I163: 481342.2683 | J163: 438300
A164: 1 | B164: Responsabilidad Civil | C164: 163 | D164: Camionetas y camperos | E164: Inspección permitida | F164: 4000000000 | G164: 2 a 4 años | H164: 885795.912 | I164: 495782.5364 | J164: 438300
A165: 1 | B165: Responsabilidad Civil | C165: 164 | D165: Camionetas y camperos | E165: Inspección permitida | F165: 4000000000 | G165: 4 a 6 años | H165: 914065.9943 | I165: 510656.0125 | J165: 438300
A166: 1 | B166: Responsabilidad Civil | C166: 165 | D166: Camionetas y camperos | E166: Inspección permitida | F166: 4000000000 | G166: 6 a 8 años | H166: 942336.0766 | I166: 525975.6928 | J166: 438300
A167: 1 | B167: Responsabilidad Civil | C167: 166 | D167: Camionetas y camperos | E167: Inspección permitida | F167: 4000000000 | G167: 8 a 10 años | H167: 970606.1589 | I167: 541754.9636 | J167: 438300
A168: 1 | B168: Responsabilidad Civil | C168: 167 | D168: Camionetas y camperos | E168: Inspección permitida | F168: 4000000000 | G168: 10 a 12 años | H168: 998876.2412 | I168: 558007.6125 | J168: 438300
A169: 1 | B169: Responsabilidad Civil | C169: 168 | D169: Camionetas y camperos | E169: Inspección permitida | F169: 4000000000 | G169: 12 años en adelante | H169: 1027146.323 | I169: 574747.8409 | J169: 438300
A170: 1 | B170: Responsabilidad Civil | C170: 169 | D170: Camionetas y camperos | E170: Inspección no permitida | F170: 500000000 | G170: 0 a 2 años | H170: 80316.41956 | I170: 111628.7865 | J170: 222600
A171: 1 | B171: Responsabilidad Civil | C171: 170 | D171: Camionetas y camperos | E171: Inspección no permitida | F171: 500000000 | G171: 2 a 4 años | H171: 82964.21361 | I171: 114977.6501 | J171: 222600
A172: 1 | B172: Responsabilidad Civil | C172: 171 | D172: Camionetas y camperos | E172: Inspección no permitida | F172: 500000000 | G172: 4 a 6 años | H172: 85612.00766 | I172: 118426.9796 | J172: 222600
A173: 1 | B173: Responsabilidad Civil | C173: 172 | D173: Camionetas y camperos | E173: Inspección no permitida | F173: 500000000 | G173: 6 a 8 años | H173: 88259.80171 | I173: 121979.789 | J173: 222600
A174: 1 | B174: Responsabilidad Civil | C174: 173 | D174: Camionetas y camperos | E174: Inspección no permitida | F174: 500000000 | G174: 8 a 10 años | H174: 90907.59576 | I174: 125639.1827 | J174: 222600
A175: 1 | B175: Responsabilidad Civil | C175: 174 | D175: Camionetas y camperos | E175: Inspección no permitida | F175: 500000000 | G175: 10 a 12 años | H175: 93555.38981 | I175: 129408.3581 | J175: 222600
A176: 1 | B176: Responsabilidad Civil | C176: 175 | D176: Camionetas y camperos | E176: Inspección no permitida | F176: 500000000 | G176: 12 años en adelante | H176: 96203.18387 | I176: 133290.6089 | J176: 222600
A177: 1 | B177: Responsabilidad Civil | C177: 176 | D177: Camionetas y camperos | E177: Inspección no permitida | F177: 1000000000 | G177: 0 a 2 años | H177: 178549.0452 | I177: 223257.0969 | J177: 313200
A178: 1 | B178: Responsabilidad Civil | C178: 177 | D178: Camionetas y camperos | E178: Inspección no permitida | F178: 1000000000 | G178: 2 a 4 años | H178: 184435.2775 | I178: 229954.8098 | J178: 313200
A179: 1 | B179: Responsabilidad Civil | C179: 178 | D179: Camionetas y camperos | E179: Inspección no permitida | F179: 1000000000 | G179: 4 a 6 años | H179: 190321.5097 | I179: 236853.4541 | J179: 313200
A180: 1 | B180: Responsabilidad Civil | C180: 179 | D180: Camionetas y camperos | E180: Inspección no permitida | F180: 1000000000 | G180: 6 a 8 años | H180: 196207.742 | I180: 243959.0577 | J180: 313200
A181: 1 | B181: Responsabilidad Civil | C181: 180 | D181: Camionetas y camperos | E181: Inspección no permitida | F181: 1000000000 | G181: 8 a 10 años | H181: 202093.9743 | I181: 251277.8295 | J181: 313200
A182: 1 | B182: Responsabilidad Civil | C182: 181 | D182: Camionetas y camperos | E182: Inspección no permitida | F182: 1000000000 | G182: 10 a 12 años | H182: 207980.2065 | I182: 258816.1643 | J182: 313200
A183: 1 | B183: Responsabilidad Civil | C183: 182 | D183: Camionetas y camperos | E183: Inspección no permitida | F183: 1000000000 | G183: 12 años en adelante | H183: 213866.4388 | I183: 266580.6493 | J183: 313200
A184: 1 | B184: Responsabilidad Civil | C184: 183 | D184: Camionetas y camperos | E184: Inspección no permitida | F184: 1500000000 | G184: 0 a 2 años | H184: 283544.0309 | I184: 290234.3688 | J184: 348000
A185: 1 | B185: Responsabilidad Civil | C185: 184 | D185: Camionetas y camperos | E185: Inspección no permitida | F185: 1500000000 | G185: 2 a 4 años | H185: 292891.6363 | I185: 298941.3999 | J185: 348000
A186: 1 | B186: Responsabilidad Civil | C186: 185 | D186: Camionetas y camperos | E186: Inspección no permitida | F186: 1500000000 | G186: 4 a 6 años | H186: 302239.2417 | I186: 307909.6419 | J186: 348000
A187: 1 | B187: Responsabilidad Civil | C187: 186 | D187: Camionetas y camperos | E187: Inspección no permitida | F187: 1500000000 | G187: 6 a 8 años | H187: 311586.8472 | I187: 317146.9311 | J187: 348000
A188: 1 | B188: Responsabilidad Civil | C188: 187 | D188: Camionetas y camperos | E188: Inspección no permitida | F188: 1500000000 | G188: 8 a 10 años | H188: 320934.4526 | I188: 326661.339 | J188: 348000
A189: 1 | B189: Responsabilidad Civil | C189: 188 | D189: Camionetas y camperos | E189: Inspección no permitida | F189: 1500000000 | G189: 10 a 12 años | H189: 330282.058 | I189: 336461.1792 | J189: 348000
A190: 1 | B190: Responsabilidad Civil | C190: 189 | D190: Camionetas y camperos | E190: Inspección no permitida | F190: 1500000000 | G190: 12 años en adelante | H190: 339629.6634 | I190: 346555.0146 | J190: 348000
A191: 1 | B191: Responsabilidad Civil | C191: 190 | D191: Camionetas y camperos | E191: Inspección no permitida | F191: 2000000000 | G191: 0 a 2 años | H191: 392930.5026 | I191: 267412.5523 | J191: 382800
A192: 1 | B192: Responsabilidad Civil | C192: 191 | D192: Camionetas y camperos | E192: Inspección no permitida | F192: 2000000000 | G192: 2 a 4 años | H192: 405884.2555 | I192: 275434.9289 | J192: 382800
A193: 1 | B193: Responsabilidad Civil | C193: 192 | D193: Camionetas y camperos | E193: Inspección no permitida | F193: 2000000000 | G193: 4 a 6 años | H193: 418838.0083 | I193: 283697.9768 | J193: 382800
A194: 1 | B194: Responsabilidad Civil | C194: 193 | D194: Camionetas y camperos | E194: Inspección no permitida | F194: 2000000000 | G194: 6 a 8 años | H194: 431791.7611 | I194: 292208.9161 | J194: 382800
A195: 1 | B195: Responsabilidad Civil | C195: 194 | D195: Camionetas y camperos | E195: Inspección no permitida | F195: 2000000000 | G195: 8 a 10 años | H195: 444745.514 | I195: 300975.1836 | J195: 382800
A196: 1 | B196: Responsabilidad Civil | C196: 195 | D196: Camionetas y camperos | E196: Inspección no permitida | F196: 2000000000 | G196: 10 a 12 años | H196: 457699.2668 | I196: 310004.4391 | J196: 382800
A197: 1 | B197: Responsabilidad Civil | C197: 196 | D197: Camionetas y camperos | E197: Inspección no permitida | F197: 2000000000 | G197: 12 años en adelante | H197: 470653.0196 | I197: 319304.5722 | J197: 382800
A198: 1 | B198: Responsabilidad Civil | C198: 197 | D198: Camionetas y camperos | E198: Inspección no permitida | F198: 2500000000 | G198: 0 a 2 años | H198: 505582.4535 | I198: 320894.9813 | J198: 403500
A199: 1 | B199: Responsabilidad Civil | C199: 198 | D199: Camionetas y camperos | E199: Inspección no permitida | F199: 2500000000 | G199: 2 a 4 años | H199: 522250.007 | I199: 330521.8308 | J199: 403500
A200: 1 | B200: Responsabilidad Civil | C200: 199 | D200: Camionetas y camperos | E200: Inspección no permitida | F200: 2500000000 | G200: 4 a 6 años | H200: 538917.5604 | I200: 340437.4857 | J200: 403500
... 1318 more rows

Sheet AmparosFiltrados (hidden)
A1: llave | B1: Placa | C1: Precio Vehiculos | D1: idAmparo | E1: Amparo | F1: Combinación | G1: Tipo de Vehículo | H1: Grupo | I1: Cobertura | J1: Antigüedad (incluido el límite superior) | K1: Axa - Colpatria | L1: La Previsora | M1: Mapfre | N1: VAxa - Colpatria | O1: VLa Previsora | P1: VMapfre | Q1: VMinimos
A2: =B2&E2 -> BLR 853Responsabilidad Civil | B2: BLR 853 | C2: 4800000 | D2: 1 | E2: Responsabilidad Civil | F2: 238 | G2: Automóvil | H2: Inspección permitida | I2: 1000000000 | J2: 12 años en adelante | K2: 213866.4388 | L2: 72357.75617 | M2: 222600 | N2: =IF(OR($D2=1,$D2=9,$D2=10),K2,K2*$C2) -> 213866.4388 | O2: =IF(OR($D2=1,$D2=9,$D2=10),L2,L2*$C2) -> 72357.75617 | P2: 222600 | Q2: 72357.75617
A3: =B3&E3 -> BLR 853Daño total | B3: BLR 853 | C3: 4800000 | D3: 2 | E3: Daño total | F3: 41 | G3: Automóvil | H3: Inspección permitida | J3: 12 años en adelante | K3: 0.0007431339169 | L3: 0.0045 | M3: 0.0107 | N3: =IF(OR($D3=1,$D3=9,$D3=10),K3,K3*$C3) -> 3567.042801 | O3: =IF(OR($D3=1,$D3=9,$D3=10),L3,L3*$C3) -> 21600 | P3: =IF(OR($D3=1,$D3=9,$D3=10),M3,M3*$C3) -> 51360 | Q3: 21600
A4: BLR 853Daño parcial | B4: BLR 853 | C4: 4800000 | D4: 3 | E4: Daño parcial | F4: 41 | G4: Automóvil | H4: Inspección permitida | J4: 12 años en adelante | K4: 0.03824143313 | L4: 0.013 | M4: 0.0236 | N4: 183558.879 | O4: 62400 | P4: 113280 | Q4: 62400
A5: BLR 853Hurto total | B5: BLR 853 | C5: 4800000 | D5: 4 | E5: Hurto total | F5: 41 | G5: Automóvil | H5: Inspección permitida | J5: 12 años en adelante | K5: 0.0005737362203 | L5: 0.0026 | M5: 0.01888 | N5: 2753.933857 | O5: 12480 | P5: 90624 | Q5: 12480
A6: BLR 853Hurto parcial | B6: BLR 853 | C6: 4800000 | D6: 5 | E6: Hurto parcial | F6: 41 | G6: Automóvil | H6: Inspección permitida | J6: 12 años en adelante | K6: 0.0002160669341 | L6: 0.0015 | M6: 0.00376 | N6: 1037.121284 | O6: 7200 | P6: 18048 | Q6: 7200
A7: BLR 853Asistencia en viaje | B7: BLR 853 | C7: 4800000 | D7: 6 | E7: Asistencia en viaje | K7: 0.004432361657 | L7: 0.003 | M7: 0.007 | N7: 21275.33595 | O7: 14400 | P7: 33600 | Q7: 14400
A8: BLR 853Transporte de mercancías azarosas, inflamables o explosivas | B8: BLR 853 | C8: 4800000 | D8: 7 | E8: Transporte de mercancías azarosas, inflamables o explosivas | K8: 1e-06 | L8: 0.001 | M8: 0.0012 | N8: 4.8 | O8: 4800 | P8: 5760 | Q8: 4800
A9: BLR 853Daños Mutuos | B9: BLR 853 | C9: 4800000 | D9: 8 | E9: Daños Mutuos | K9: 1e-06 | L9: 0.00065 | M9: 0.0006 | N9: 4.8 | O9: 3120 | P9: 2880 | Q9: 3120
A10: =B10&E10 -> OKZ 542Responsabilidad Civil | B10: OKZ 542 | C10: 30520000 | D10: 1 | E10: Responsabilidad Civil | F10: 232 | G10: Automóvil | H10: Inspección permitida | I10: 1000000000 | J10: 0 a 2 años | K10: 178549.0452 | L10: 64251.61676 | M10: 222600 | N10: 178549.0452 | O10: 64251.61676 | P10: 222600 | Q10: 64251.61676
A11: =B11&E11 -> OKZ 542Daño total | B11: OKZ 542 | C11: 30520000 | D11: 2 | E11: Daño total | F11: 29 | G11: Automóvil | H11: Inspección permitida | J11: 0 a 2 años | K11: 0.0007431339169 | L11: 0.0043 | M11: 0.0107 | N11: 22680.44714 | O11: 131236 | P11: 326564 | Q11: 131236
A12: OKZ 542Daño parcial | B12: OKZ 542 | C12: 30520000 | D12: 3 | E12: Daño parcial | F12: 29 | G12: Automóvil | H12: Inspección permitida | J12: 0 a 2 años | K12: 0.03824143313 | L12: 0.0122 | M12: 0.0236 | N12: 1167128.539 | O12: 372344 | P12: 720272 | Q12: 372344
A13: OKZ 542Hurto total | B13: OKZ 542 | C13: 30520000 | D13: 4 | E13: Hurto total | F13: 29 | G13: Automóvil | H13: Inspección permitida | J13: 0 a 2 años | K13: 0.0005737362203 | L13: 0.0024 | M13: 0.01888 | N13: 17510.42944 | O13: 73248 | P13: 576217.6 | Q13: 73248
A14: OKZ 542Hurto parcial | B14: OKZ 542 | C14: 30520000 | D14: 5 | E14: Hurto parcial | F14: 29 | G14: Automóvil | H14: Inspección permitida | J14: 0 a 2 años | K14: 0.0002160669341 | L14: 0.0014 | M14: 0.00376 | N14: 6594.36283 | O14: 42728 | P14: 114755.2 | Q14: 42728
A15: OKZ 542Asistencia en viaje | B15: OKZ 542 | C15: 30520000 | D15: 6 | E15: Asistencia en viaje | K15: 0.004432361657 | L15: 0.003 | M15: 0.007 | N15: 135275.6778 | O15: 91560 | P15: 213640 | Q15: 91560
A16: OKZ 542Transporte de mercancías azarosas, inflamables o explosivas | B16: OKZ 542 | C16: 30520000 | D16: 7 | E16: Transporte de mercancías azarosas, inflamables o explosivas | K16: 1e-06 | L16: 0.001 | M16: 0.0012 | N16: 30.52 | O16: 30520 | P16: 36624 | Q16: 30520
A17: OKZ 542Daños Mutuos | B17: OKZ 542 | C17: 30520000 | D17: 8 | E17: Daños Mutuos | K17: 1e-06 | L17: 0.00065 | M17: 0.0006 | N17: 30.52 | O17: 19838 | P17: 18312 | Q17: 19838
A18: =B18&E18 -> OBI 445Responsabilidad Civil | B18: OBI 445 | C18: 15700000 | D18: 1 | E18: Responsabilidad Civil | F18: 236 | G18: Automóvil | H18: Inspección permitida | I18: 1000000000 | J18: 8 a 10 años | K18: 202093.9743 | L18: 69548.01631 | M18: 222600 | N18: 202093.9743 | O18: 69548.01631 | P18: 222600 | Q18: 69548.01631
A19: =B19&E19 -> OBI 445Daño total | B19: OBI 445 | C19: 15700000 | D19: 2 | E19: Daño total | F19: 37 | G19: Automóvil | H19: Inspección permitida | J19: 8 a 10 años | K19: 0.0007431339169 | L19: 0.0045 | M19: 0.0107 | N19: 11667.20249 | O19: 70650 | P19: 167990 | Q19: 70650
A20: OBI 445Daño parcial | B20: OBI 445 | C20: 15700000 | D20: 3 | E20: Daño parcial | F20: 37 | G20: Automóvil | H20: Inspección permitida | J20: 8 a 10 años | K20: 0.03824143313 | L20: 0.0127 | M20: 0.0236 | N20: 600390.5002 | O20: 199390 | P20: 370520 | Q20: 199390
A21: OBI 445Hurto total | B21: OBI 445 | C21: 15700000 | D21: 4 | E21: Hurto total | F21: 37 | G21: Automóvil | H21: Inspección permitida | J21: 8 a 10 años | K21: 0.0005737362203 | L21: 0.0025 | M21: 0.01888 | N21: 9007.658658 | O21: 39250 | P21: 296416 | Q21: 39250
A22: OBI 445Hurto parcial | B22: OBI 445 | C22: 15700000 | D22: 5 | E22: Hurto parcial | F22: 37 | G22: Automóvil | H22: Inspección permitida | J22: 8 a 10 años | K22: 0.0002160669341 | L22: 0.0015 | M22: 0.00376 | N22: 3392.250866 | O22: 23550 | P22: 59032 | Q22: 23550
A23: OBI 445Asistencia en viaje | B23: OBI 445 | C23: 15700000 | D23: 6 | E23: Asistencia en viaje | K23: 0.004432361657 | L23: 0.003 | M23: 0.007 | N23: 69588.07801 | O23: 47100 | P23: 109900 | Q23: 47100
A24: OBI 445Transporte de mercancías azarosas, inflamables o explosivas | B24: OBI 445 | C24: 15700000 | D24: 7 | E24: Transporte de mercancías azarosas, inflamables o explosivas | K24: 1e-06 | L24: 0.001 | M24: 0.0012 | N24: 15.7 | O24: 15700 | P24: 18840 | Q24: 15700
A25: OBI 445Daños Mutuos | B25: OBI 445 | C25: 15700000 | D25: 8 | E25: Daños Mutuos | K25: 1e-06 | L25: 0.00065 | M25: 0.0006 | N25: 15.7 | O25: 10205 | P25: 9420 | Q25: 10205
N26: =SUM(N$2:N$25) -> 2850038.958 | O26: =SUM(O$2:O$25) -> 1499476.389 | P26: 4021854.8
N27: =MIN($N$26:$P$26) -> 1499476.389 | O27: =MIN($N$26:$P$26) -> 1499476.389 | P27: 1499476.389
N28: =N26=N27 -> FALSE | O28: =O26=O27 -> TRUE | P28: FALSE
